Workbook

Sheet Vertilina
B2: =IF(data!$CC$17=7,"Effektsimulering Hybridmodeller","Selectiontool Vertilina Hybrid") -> Selectiontool Vertilina Hybrid
F4: Taal/Language/Sprache/Språk/Jazyk | J4: English
F5: =IF(data!$CC$17=1,NL!F4,IF(data!$CC$17=2,EN!F4,IF(data!$CC$17=3,FR!F4,IF(data!$CC$17=4,DE!F4,IF(data!$CC$17=5,NR!F4,IF(data!$CC$17=6,SP!F4,IF(data!$CC$17=7,SW!F4,IF(data!$CC$17=8,TS!F4,IF(data!$CC$17=9,ExtraTaal1!F4,IF(data!$CC$17=10,ExtraTaal2!F4,IF(data!$CC$17=11,ExtraTaal3!F4,))))))))))) -> Hybrid device | J5: Vertilina Hybrid
F6: =IF(data!$CC$17=1,NL!E4,IF(data!$CC$17=2,EN!E4,IF(data!$CC$17=3,FR!E4,IF(data!$CC$17=4,DE!E4,IF(data!$CC$17=5,NR!E4,IF(data!$CC$17=6,SP!E4,IF(data!$CC$17=7,SW!E4,IF(data!$CC$17=8,TS!E4,IF(data!$CC$17=9,ExtraTaal1!E4,IF(data!$CC$17=10,ExtraTaal2!E4,IF(data!$CC$17=11,ExtraTaal38E4,)))))))))))&IF(data!$CC$17=8," [centimetr]"," [centimeter]") -> Version [centimeter] | J6: 30dB(A) | K6: 41 | L6: 11 | M6: =data!H6 -> 11.5
G7: =IF($J$4=data!$CC$3,NL!B3,IF($J$4=data!$CC$4,EN!B3,IF($J$4=data!$CC$5,FR!B3,IF($J$4=data!$CC$6,DE!B3,IF($J$4=data!$CC$7,NR!B3,IF($J$4=data!$CC$8,SP!B3,IF($J$4=data!$CC$9,SW!B3,))))))) -> Length | H7: =IF(data!$CC$17=1,NL!B16,IF(data!$CC$17=2,EN!B16,IF(data!$CC$17=3,FR!B16,IF(data!$CC$17=4,DE!B16,IF(data!$CC$17=5,NR!B16,IF(data!$CC$17=6,SP!B16,IF(data!$CC$17=7,SW!B16,IF(data!$CC$17=8,TS!B16,IF(data!$CC$17=9,ExtraTaal1!B16,IF(data!$CC$17=10,ExtraTaal2!B16,IF(data!$CC$17=11,ExtraTaal3!B16,))))))))))) -> Fan speed | K7: =IF(data!$CC$17=1,NL!B3,IF(data!$CC$17=2,EN!B3,IF(data!$CC$17=3,FR!B3,IF(data!$CC$17=4,DE!B3,IF(data!$CC$17=5,NR!B3,IF(data!$CC$17=6,SP!B3,IF(data!$CC$17=7,SW!B3,IF(data!$CC$17=8,TS!B3,IF(data!$CC$17=9,ExtraTaal1!B3,IF(data!$CC$17=10,ExtraTaal2!B3,IF(data!$CC$17=11,ExtraTaal3!B3,)))))))))))&" [cm]" -> Length [cm] | L7: =IF(data!$CC$17=1,NL!B5,IF(data!$CC$17=2,EN!B5,IF(data!$CC$17=3,FR!B5,IF(data!$CC$17=4,DE!B5,IF(data!$CC$17=5,NR!B5,IF(data!$CC$17=6,SP!B5,IF(data!$CC$17=7,SW!B5,IF(data!$CC$17=8,TS!B5,IF(data!$CC$17=9,ExtraTaal1!B5,IF(data!$CC$17=10,ExtraTaal2!B5,IF(data!$CC$17=11,ExtraTaal3!B5,))))))))))) -> Type | M7: =IF(data!$CC$17=1,NL!B6,IF(data!$CC$17=2,EN!B6,IF(data!$CC$17=3,FR!B6,IF(data!$CC$17=4,DE!B6,IF(data!$CC$17=5,NR!B6,IF(data!$CC$17=6,SP!B6,IF(data!$CC$17=7,SW!B6,IF(data!$CC$17=8,TS!B6,IF(data!$CC$17=9,ExtraTaal1!B6,IF(data!$CC$17=10,ExtraTaal2!B6,IF(data!$CC$17=11,ExtraTaal3!B6,))))))))))) -> Depth
B8: =IF(data!$CC$17=1,NL!E5,IF(data!$CC$17=2,EN!E5,IF(data!$CC$17=3,FR!E5,IF(data!$CC$17=4,DE!E5,IF(data!$CC$17=5,NR!E5,IF(data!$CC$17=6,SP!E5,IF(data!$CC$17=7,SW!E5,IF(data!$CC$17=8,TS!E5,IF(data!$CC$17=9,ExtraTaal1!E5,IF(data!$CC$17=10,ExtraTaal2!E5,IF(data!$CC$17=11,ExtraTaal3!E5,))))))))))) -> Temperatures
B9: =IF(data!$CC$17=1,NL!B8,IF(data!$CC$17=2,EN!B8,IF(data!$CC$17=3,FR!B8,IF(data!$CC$17=4,DE!B8,IF(data!$CC$17=5,NR!B8,IF(data!$CC$17=6,SP!B8,IF(data!$CC$17=7,SW!B8,IF(data!$CC$17=8,TS!B8,IF(data!$CC$17=9,ExtraTaal1!B8,IF(data!$CC$17=10,ExtraTaal2!B8,IF(data!$CC$17=11,ExtraTaal3!B8,))))))))))) -> Heating: | G9: =IF(data!$CC$17=1,NL!G8,IF(data!$CC$17=2,EN!G8,IF(data!$CC$17=3,FR!G8,IF(data!$CC$17=4,DE!G8,IF(data!$CC$17=5,NR!G8,IF(data!$CC$17=6,SP!G8,IF(data!$CC$17=7,SW!G8,IF(data!$CC$17=8,TS!G8,IF(data!$CC$17=9,ExtraTaal1!G8,IF(data!$CC$17=10,ExtraTaal2!G8,IF(data!$CC$17=11,ExtraTaal3!G8,))))))))))) -> Cooling:
B10: =IF(data!$CC$17=1,NL!B9,IF(data!$CC$17=2,EN!B9,IF(data!$CC$17=3,FR!B9,IF(data!$CC$17=4,DE!B9,IF(data!$CC$17=5,NR!B9,IF(data!$CC$17=6,SP!B9,IF(data!$CC$17=7,SW!B9,IF(data!$CC$17=8,TS!B9,IF(data!$CC$17=9,ExtraTaal1!B9,IF(data!$CC$17=10,ExtraTaal2!B9,IF(data!$CC$17=11,ExtraTaal3!B9,))))))))))) -> Supply water | C10: 0 | D10: 0 | E10: 35 | F10: =IF(data!$BZ$2=1,"°C",IF(data!$BZ$2=2,"°F",)) -> °C | G10: =B10 -> Supply water | H10: 0 | I10: 0 | J10: 16 | K10: =F10 -> °C | L10: =IF(data!$CC$17=1,NL!G4,IF(data!$CC$17=2,EN!G4,IF(data!$CC$17=3,FR!G4,IF(data!$CC$17=4,DE!G4,IF(data!$CC$17=5,NR!G4,IF(data!$CC$17=6,SP!G4,IF(data!$CC$17=7,SW!G4,IF(data!$CC$17=8,TS!G4,IF(data!$CC$17=9,ExtraTaal1!G4,IF(data!$CC$17=10,ExtraTaal2!G4,IF(data!$CC$17=11,ExtraTaal3!G4,))))))))))) -> Unit conversion
B11: =IF(data!$CC$17=1,NL!B10,IF(data!$CC$17=2,EN!B10,IF(data!$CC$17=3,FR!B10,IF(data!$CC$17=4,DE!B10,IF(data!$CC$17=5,NR!B10,IF(data!$CC$17=6,SP!B10,IF(data!$CC$17=7,SW!B10,IF(data!$CC$17=8,TS!B10,IF(data!$CC$17=9,ExtraTaal1!B10,IF(data!$CC$17=10,ExtraTaal2!B10,IF(data!$CC$17=11,ExtraTaal3!B10,))))))))))) -> Return water | C11: 0 | D11: 0 | E11: 30 | F11: =F10 -> °C | G11: =B11 -> Return water | H11: 0 | I11: 0 | J11: 18 | K11: =F10 -> °C
B12: =IF(data!$CC$17=1,NL!B11,IF(data!$CC$17=2,EN!B11,IF(data!$CC$17=3,FR!B11,IF(data!$CC$17=4,DE!B11,IF(data!$CC$17=5,NR!B11,IF(data!$CC$17=6,SP!B11,IF(data!$CC$17=7,SW!B11,IF(data!$CC$17=8,TS!B11,IF(data!$CC$17=9,ExtraTaal1!B11,IF(data!$CC$17=10,ExtraTaal2!B11,IF(data!$CC$17=11,ExtraTaal3!B11,))))))))))) -> Entering air (dry bulb) | C12: 0 | D12: 0 | E12: 20 | F12: =F10 -> °C | G12: =B12 -> Entering air (dry bulb) | H12: 0 | I12: 0 | J12: 27 | K12: =F10 -> °C
G13: =IF(data!$CC$17=1,NL!$G$3,IF(data!$CC$17=2,EN!$G$3,IF(data!$CC$17=3,FR!$G$3,IF(data!$CC$17=4,DE!$G$3,IF(data!$CC$17=5,NR!$G$3,IF(data!$CC$17=6,SP!$G$3,IF(data!$CC$17=7,SW!$G$3,IF(data!$CC$17=8,TS!G3,IF(data!$CC$17=9,ExtraTaal1!G3,IF(data!$CC$17=10,ExtraTaal2!G3,IF(data!$CC$17=11,ExtraTaal3!G3,))))))))))) -> rel. humid. | J13: 0.5
B16: =IF(data!$CC$17=1,NL!B4,IF(data!$CC$17=2,EN!B4,IF(data!$CC$17=3,FR!B4,IF(data!$CC$17=4,DE!B4,IF(data!$CC$17=5,NR!B4,IF(data!$CC$17=6,SP!B4,IF(data!$CC$17=7,SW!B4,IF(data!$CC$17=8,TS!B4,IF(data!$CC$17=9,ExtraTaal1!B4,IF(data!$CC$17=10,ExtraTaal2!B4,IF(data!$CC$17=11,ExtraTaal3!B4,)))))))))))&" [cm]" -> Heigth [cm] | D16: =IF(data!$CC$17=1,NL!C14,IF(data!$CC$17=2,EN!C14,IF(data!$CC$17=3,FR!C14,IF(data!$CC$17=4,DE!C14,IF(data!$CC$17=5,NR!C14,IF(data!$CC$17=6,SP!C14,IF(data!$CC$17=7,SW!C14,IF(data!$CC$17=8,TS!C14,IF(data!$CC$17=9,ExtraTaal1!C14,IF(data!$CC$17=10,ExtraTaal2!C14,IF(data!$CC$17=11,ExtraTaal3!C14,)))))))))))&IF(data!BZ2=1," [W]",IF(data!BZ2=2," [Btu/h]",)) -> Heating capacity [W] | E16: =IF(data!$CC$17=1,NL!D14,IF(data!$CC$17=2,EN!D14,IF(data!$CC$17=3,FR!D14,IF(data!$CC$17=4,DE!D14,IF(data!$CC$17=5,NR!D14,IF(data!$CC$17=6,SP!D14,IF(data!$CC$17=7,SW!D14,IF(data!$CC$17=8,TS!D14,IF(data!$CC$17=9,ExtraTaal1!D14,IF(data!$CC$17=10,ExtraTaal2!D14,IF(data!$CC$17=11,ExtraTaal3!D14,)))))))))))&IF(data!BZ2=1," [kg/h]",IF(data!BZ2=2," [GPM]**",)) -> Water flow [kg/h] | F16: =IF(data!$CC$17=1,NL!F6,IF(data!$CC$17=2,EN!F6,IF(data!$CC$17=3,FR!F6,IF(data!$CC$17=4,DE!F6,IF(data!$CC$17=5,NR!F6,IF(data!$CC$17=6,SP!F6,IF(data!$CC$17=7,SW!F6,IF(data!$CC$17=8,TS!F6,IF(data!$CC$17=9,ExtraTaal1!F6,IF(data!$CC$17=10,ExtraTaal2!F6,IF(data!$CC$17=11,ExtraTaal3!F6,)))))))))))&" ["&IF(data!BZ2=1,"kPa",IF(data!BZ2=2,"ftH2O"))&"]" -> Water side pressure loss [kPa] | G16: =IF(data!$CC$17=1,NL!E14,IF(data!$CC$17=2,EN!E14,IF(data!$CC$17=3,FR!E14,IF(data!$CC$17=4,DE!E14,IF(data!$CC$17=5,NR!E14,IF(data!$CC$17=6,SP!E14,IF(data!$CC$17=7,SW!E14,IF(data!$CC$17=8,TS!E14,IF(data!$CC$17=9,ExtraTaal1!E14,IF(data!$CC$17=10,ExtraTaal2!E14,IF(data!$CC$17=11,ExtraTaal3!E14,)))))))))))&IF(data!BZ2=1," [W]",IF(data!BZ2=2," [Btu/h]*",)) -> Cooling capacity [W] | H16: =E16 -> Water flow [kg/h] | I16: =F16 -> Water side pressure loss [kPa] | J16: =IF(data!$CC$17=1,NL!I13,IF(data!$CC$17=2,EN!I13,IF(data!$CC$17=3,FR!I13,IF(data!$CC$17=4,DE!I13,IF(data!$CC$17=5,NR!I13,IF(data!$CC$17=6,SP!I13,IF(data!$CC$17=7,SW!I13,IF(data!$CC$17=8,TS!I13,IF(data!$CC$17=9,ExtraTaal1!I13,IF(data!$CC$17=10,ExtraTaal2!I13,IF(data!$CC$17=11,ExtraTaal3!I13,))))))))))) -> Sound pressure level [dB(A)]**** | K16: =IF(data!$CC$17=1,NL!J13,IF(data!$CC$17=2,EN!J13,IF(data!$CC$17=3,FR!J13,IF(data!$CC$17=4,DE!J13,IF(data!$CC$17=5,NR!J13,IF(data!$CC$17=6,SP!J13,IF(data!$CC$17=7,SW!J13,IF(data!$CC$17=8,TS!J13,IF(data!$CC$17=9,ExtraTaal1!J13,IF(data!$CC$17=10,ExtraTaal2!J13,IF(data!$CC$17=11,ExtraTaal3!J13,))))))))))) -> Sound power [dB(A)]**** | L16: =IF(data!$CC$17=1,NL!H13,IF(data!$CC$17=2,EN!H13,IF(data!$CC$17=3,FR!H13,IF(data!$CC$17=4,DE!H13,IF(data!$CC$17=5,NR!H13,IF(data!$CC$17=6,SP!H13,IF(data!$CC$17=7,SW!H13,IF(data!$CC$17=8,TS!H13,IF(data!$CC$17=9,ExtraTaal1!H13,IF(data!$CC$17=10,ExtraTaal2!H13,IF(data!$CC$17=11,ExtraTaal3!H13,))))))))))) -> Electrical consumption [W] | M16: =IF(data!$CC$17=1,NL!G13,IF(data!$CC$17=2,EN!G13,IF(data!$CC$17=3,FR!G13,IF(data!$CC$17=4,DE!G13,IF(data!$CC$17=5,NR!G13,IF(data!$CC$17=6,SP!G13,IF(data!$CC$17=7,SW!G13,IF(data!$CC$17=8,TS!G13,IF(data!$CC$17=9,ExtraTaal1!G13,IF(data!$CC$17=10,ExtraTaal2!G13,IF(data!$CC$17=11,ExtraTaal3!G13,)))))))))))&IF(data!BZ2=1," [l]",IF(data!BZ2=2," [Gal]**",)) -> Water volume [l]
B17: =CONCATENATE($J$5,", ",$K$7, " ",$K$6,"cm, ",$L$7, " ",$L$6) -> Vertilina Hybrid, Length [cm] 41cm, Type 11 | C17: 0 | D17: 0 | E17: 0 | F17: 0 | G17: 0 | H17: 0 | I17: 0 | J17: 0 | K17: 0 | L17: 0 | M17: 0
B18: =data!CK3 -> 90 | D18: =IF(L6=8,"",IF($J$6="OFF",data!DH18,IF($J$6="26dB(A)",data!DH19,IF($J$6="30dB(A)",data!DH20,IF($J$6="MAX",data!DH21))))) -> 438 | E18: =IF(L6=8,"",IF($J$6="OFF",data!DI18,IF($J$6="26dB(A)",data!DI19,IF($J$6="30dB(A)",data!DI20,IF($J$6="MAX",data!DI21))))) -> 75 | F18: =IF(L6=8,"",IF($J$6="OFF",data!DJ18,IF($J$6="26dB(A)",data!DJ19,IF($J$6="30dB(A)",data!DJ20,IF($J$6="MAX",data!DJ21))))) -> 0.0526939683 | G18: =IF(L6=8,"",IF($J$6="OFF",data!DK18,IF($J$6="26dB(A)",data!DK19,IF($J$6="30dB(A)",data!DK20,IF($J$6="MAX",data!DK21))))) -> 273 | H18: =IF(L6=8,"",IF($J$6="OFF",data!DL18,IF($J$6="26dB(A)",data!DL19,IF($J$6="30dB(A)",data!DL20,IF($J$6="MAX",data!DL21))))) -> 117 | I18: =IF(L6=8,"",IF($J$6="OFF",data!DM18,IF($J$6="26dB(A)",data!DM19,IF($J$6="30dB(A)",data!DM20,IF($J$6="MAX",data!DM21))))) -> 0.1225370497 | J18: =IF(L6=8,"",IF($J$6="OFF",data!DN18,IF($J$6="26dB(A)",data!DN19,IF($J$6="30dB(A)",data!DN20,IF($J$6="MAX",data!DN21))))) -> 30 | K18: =IF(L6=8,"",IF($J$6="OFF",data!DO18,IF($J$6="26dB(A)",data!DO19,IF($J$6="30dB(A)",data!DO20,IF($J$6="MAX",data!DO21))))) -> 34.8451125 | L18: =IF(L6=8,"",IF($J$6="OFF",data!DP18,IF($J$6="26dB(A)",data!DP19,IF($J$6="30dB(A)",data!DP20,IF($J$6="MAX",data!DP21))))) -> 11.47209765 | M18: =IF(L6=8,"",IF($J$6="OFF",data!DQ18,IF($J$6="26dB(A)",data!DQ19,IF($J$6="30dB(A)",data!DQ20,IF($J$6="MAX",data!DQ21))))) -> 1.2
B19: =data!CK4 -> 100 | D19: =IF($J$6="OFF",data!DH22,IF($J$6="26dB(A)",data!DH23,IF($J$6="30dB(A)",data!DH24,IF($J$6="MAX",data!DH25)))) -> 502 | E19: =IF($J$6="OFF",data!DI22,IF($J$6="26dB(A)",data!DI23,IF($J$6="30dB(A)",data!DI24,IF($J$6="MAX",data!DI25)))) -> 86 | F19: =IF($J$6="OFF",data!DJ22,IF($J$6="26dB(A)",data!DJ23,IF($J$6="30dB(A)",data!DJ24,IF($J$6="MAX",data!DJ25)))) -> 0.07182589684 | G19: =IF($J$6="OFF",data!DK22,IF($J$6="26dB(A)",data!DK23,IF($J$6="30dB(A)",data!DK24,IF($J$6="MAX",data!DK25)))) -> 315 | H19: =IF($J$6="OFF",data!DL22,IF($J$6="26dB(A)",data!DL23,IF($J$6="30dB(A)",data!DL24,IF($J$6="MAX",data!DL25)))) -> 135 | I19: =IF($J$6="OFF",data!DM22,IF($J$6="26dB(A)",data!DM23,IF($J$6="30dB(A)",data!DM24,IF($J$6="MAX",data!DM25)))) -> 0.1685971488 | J19: =IF($J$6="OFF",data!DN22,IF($J$6="26dB(A)",data!DN23,IF($J$6="30dB(A)",data!DN24,IF($J$6="MAX",data!DN25)))) -> 30 | K19: =IF($J$6="OFF",data!DO22,IF($J$6="26dB(A)",data!DO23,IF($J$6="30dB(A)",data!DO24,IF($J$6="MAX",data!DO25)))) -> 38 | L19: =IF($J$6="OFF",data!DP22,IF($J$6="26dB(A)",data!DP23,IF($J$6="30dB(A)",data!DP24,IF($J$6="MAX",data!DP25)))) -> 12.74071773 | M19: =IF($J$6="OFF",data!DQ22,IF($J$6="26dB(A)",data!DQ23,IF($J$6="30dB(A)",data!DQ24,IF($J$6="MAX",data!DQ25)))) -> 1.3
B20: =data!CK5 -> 120 | D20: =IF($J$6="OFF",data!DH26,IF($J$6="26dB(A)",data!DH27,IF($J$6="30dB(A)",data!DH28,IF($J$6="MAX",data!DH29)))) -> 629 | E20: =IF($J$6="OFF",data!DI26,IF($J$6="26dB(A)",data!DI27,IF($J$6="30dB(A)",data!DI28,IF($J$6="MAX",data!DI29)))) -> 108 | F20: =IF($J$6="OFF",data!DJ26,IF($J$6="26dB(A)",data!DJ27,IF($J$6="30dB(A)",data!DJ28,IF($J$6="MAX",data!DJ29)))) -> 0.1209557973 | G20: =IF($J$6="OFF",data!DK26,IF($J$6="26dB(A)",data!DK27,IF($J$6="30dB(A)",data!DK28,IF($J$6="MAX",data!DK29)))) -> 397 | H20: =IF($J$6="OFF",data!DL26,IF($J$6="26dB(A)",data!DL27,IF($J$6="30dB(A)",data!DL28,IF($J$6="MAX",data!DL29)))) -> 171 | I20: =IF($J$6="OFF",data!DM26,IF($J$6="26dB(A)",data!DM27,IF($J$6="30dB(A)",data!DM28,IF($J$6="MAX",data!DM29)))) -> 0.2873090082 | J20: =IF($J$6="OFF",data!DN26,IF($J$6="26dB(A)",data!DN27,IF($J$6="30dB(A)",data!DN28,IF($J$6="MAX",data!DN29)))) -> 30 | K20: =IF($J$6="OFF",data!DO26,IF($J$6="26dB(A)",data!DO27,IF($J$6="30dB(A)",data!DO28,IF($J$6="MAX",data!DO29)))) -> 38 | L20: =IF($J$6="OFF",data!DP26,IF($J$6="26dB(A)",data!DP27,IF($J$6="30dB(A)",data!DP28,IF($J$6="MAX",data!DP29)))) -> 15.19527547 | M20: =IF($J$6="OFF",data!DQ26,IF($J$6="26dB(A)",data!DQ27,IF($J$6="30dB(A)",data!DQ28,IF($J$6="MAX",data!DQ29)))) -> 1.6
B21: =data!CK6 -> 150 | D21: =IF($J$6="OFF",data!DH30,IF($J$6="26dB(A)",data!DH31,IF($J$6="30dB(A)",data!DH32,IF($J$6="MAX",data!DH33)))) -> 814 | E21: =IF($J$6="OFF",data!DI30,IF($J$6="26dB(A)",data!DI31,IF($J$6="30dB(A)",data!DI32,IF($J$6="MAX",data!DI33)))) -> 140 | F21: =IF($J$6="OFF",data!DJ30,IF($J$6="26dB(A)",data!DJ31,IF($J$6="30dB(A)",data!DJ32,IF($J$6="MAX",data!DJ33)))) -> 0.2217131779 | G21: =IF($J$6="OFF",data!DK30,IF($J$6="26dB(A)",data!DK31,IF($J$6="30dB(A)",data!DK32,IF($J$6="MAX",data!DK33)))) -> 517 | H21: =IF($J$6="OFF",data!DL30,IF($J$6="26dB(A)",data!DL31,IF($J$6="30dB(A)",data!DL32,IF($J$6="MAX",data!DL33)))) -> 222 | I21: =IF($J$6="OFF",data!DM30,IF($J$6="26dB(A)",data!DM31,IF($J$6="30dB(A)",data!DM32,IF($J$6="MAX",data!DM33)))) -> 0.5252338984 | J21: =IF($J$6="OFF",data!DN30,IF($J$6="26dB(A)",data!DN31,IF($J$6="30dB(A)",data!DN32,IF($J$6="MAX",data!DN33)))) -> 30 | K21: =IF($J$6="OFF",data!DO30,IF($J$6="26dB(A)",data!DO31,IF($J$6="30dB(A)",data!DO32,IF($J$6="MAX",data!DO33)))) -> 38 | L21: =IF($J$6="OFF",data!DP30,IF($J$6="26dB(A)",data!DP31,IF($J$6="30dB(A)",data!DP32,IF($J$6="MAX",data!DP33)))) -> 18.74396404 | M21: =IF($J$6="OFF",data!DQ30,IF($J$6="26dB(A)",data!DQ31,IF($J$6="30dB(A)",data!DQ32,IF($J$6="MAX",data!DQ33)))) -> 2
B22: =data!CK7 -> 170 | D22: =IF($J$6="OFF",data!DH34,IF($J$6="26dB(A)",data!DH35,IF($J$6="30dB(A)",data!DH36,IF($J$6="MAX",data!DH37)))) -> 936 | E22: =IF($J$6="OFF",data!DI34,IF($J$6="26dB(A)",data!DI35,IF($J$6="30dB(A)",data!DI36,IF($J$6="MAX",data!DI37)))) -> 161 | F22: =IF($J$6="OFF",data!DJ34,IF($J$6="26dB(A)",data!DJ35,IF($J$6="30dB(A)",data!DJ36,IF($J$6="MAX",data!DJ37)))) -> 0.3087899097 | G22: =IF($J$6="OFF",data!DK34,IF($J$6="26dB(A)",data!DK35,IF($J$6="30dB(A)",data!DK36,IF($J$6="MAX",data!DK37)))) -> 596 | H22: =IF($J$6="OFF",data!DL34,IF($J$6="26dB(A)",data!DL35,IF($J$6="30dB(A)",data!DL36,IF($J$6="MAX",data!DL37)))) -> 256 | I22: =IF($J$6="OFF",data!DM34,IF($J$6="26dB(A)",data!DM35,IF($J$6="30dB(A)",data!DM36,IF($J$6="MAX",data!DM37)))) -> 0.7330128022 | J22: =IF($J$6="OFF",data!DN34,IF($J$6="26dB(A)",data!DN35,IF($J$6="30dB(A)",data!DN36,IF($J$6="MAX",data!DN37)))) -> 30 | K22: =IF($J$6="OFF",data!DO34,IF($J$6="26dB(A)",data!DO35,IF($J$6="30dB(A)",data!DO36,IF($J$6="MAX",data!DO37)))) -> 38 | L22: =IF($J$6="OFF",data!DP34,IF($J$6="26dB(A)",data!DP35,IF($J$6="30dB(A)",data!DP36,IF($J$6="MAX",data!DP37)))) -> 21.02882825 | M22: =IF($J$6="OFF",data!DQ34,IF($J$6="26dB(A)",data!DQ35,IF($J$6="30dB(A)",data!DQ36,IF($J$6="MAX",data!DQ37)))) -> 2.3
B23: =data!CK8 -> 190 | D23: =IF($J$6="OFF",data!DH38,IF($J$6="26dB(A)",data!DH39,IF($J$6="30dB(A)",data!DH40,IF($J$6="MAX",data!DH41)))) -> 1056 | E23: =IF($J$6="OFF",data!DI38,IF($J$6="26dB(A)",data!DI39,IF($J$6="30dB(A)",data!DI40,IF($J$6="MAX",data!DI41)))) -> 182 | F23: =IF($J$6="OFF",data!DJ38,IF($J$6="26dB(A)",data!DJ39,IF($J$6="30dB(A)",data!DJ40,IF($J$6="MAX",data!DJ41)))) -> 0.4138336345 | G23: =IF($J$6="OFF",data!DK38,IF($J$6="26dB(A)",data!DK39,IF($J$6="30dB(A)",data!DK40,IF($J$6="MAX",data!DK41)))) -> 675 | H23: =IF($J$6="OFF",data!DL38,IF($J$6="26dB(A)",data!DL39,IF($J$6="30dB(A)",data!DL40,IF($J$6="MAX",data!DL41)))) -> 290 | I23: =IF($J$6="OFF",data!DM38,IF($J$6="26dB(A)",data!DM39,IF($J$6="30dB(A)",data!DM40,IF($J$6="MAX",data!DM41)))) -> 0.9835481576 | J23: =IF($J$6="OFF",data!DN38,IF($J$6="26dB(A)",data!DN39,IF($J$6="30dB(A)",data!DN40,IF($J$6="MAX",data!DN41)))) -> 30 | K23: =IF($J$6="OFF",data!DO38,IF($J$6="26dB(A)",data!DO39,IF($J$6="30dB(A)",data!DO40,IF($J$6="MAX",data!DO41)))) -> 38 | L23: =IF($J$6="OFF",data!DP38,IF($J$6="26dB(A)",data!DP39,IF($J$6="30dB(A)",data!DP40,IF($J$6="MAX",data!DP41)))) -> 23.24183525 | M23: =IF($J$6="OFF",data!DQ38,IF($J$6="26dB(A)",data!DQ39,IF($J$6="30dB(A)",data!DQ40,IF($J$6="MAX",data!DQ41)))) -> 2.5
B24: =data!CK9 -> 210 | D24: =IF($J$6="OFF",data!DH42,IF($J$6="26dB(A)",data!DH43,IF($J$6="30dB(A)",data!DH44,IF($J$6="MAX",data!DH45)))) -> 1172 | E24: =IF($J$6="OFF",data!DI42,IF($J$6="26dB(A)",data!DI43,IF($J$6="30dB(A)",data!DI44,IF($J$6="MAX",data!DI45)))) -> 202 | F24: =IF($J$6="OFF",data!DJ42,IF($J$6="26dB(A)",data!DJ43,IF($J$6="30dB(A)",data!DJ44,IF($J$6="MAX",data!DJ45)))) -> 0.5331736454 | G24: =IF($J$6="OFF",data!DK42,IF($J$6="26dB(A)",data!DK43,IF($J$6="30dB(A)",data!DK44,IF($J$6="MAX",data!DK45)))) -> 751 | H24: =IF($J$6="OFF",data!DL42,IF($J$6="26dB(A)",data!DL43,IF($J$6="30dB(A)",data!DL44,IF($J$6="MAX",data!DL45)))) -> 323 | I24: =IF($J$6="OFF",data!DM42,IF($J$6="26dB(A)",data!DM43,IF($J$6="30dB(A)",data!DM44,IF($J$6="MAX",data!DM45)))) -> 1.272336536 | J24: =IF($J$6="OFF",data!DN42,IF($J$6="26dB(A)",data!DN43,IF($J$6="30dB(A)",data!DN44,IF($J$6="MAX",data!DN45)))) -> 30 | K24: =IF($J$6="OFF",data!DO42,IF($J$6="26dB(A)",data!DO43,IF($J$6="30dB(A)",data!DO44,IF($J$6="MAX",data!DO45)))) -> 38 | L24: =IF($J$6="OFF",data!DP42,IF($J$6="26dB(A)",data!DP43,IF($J$6="30dB(A)",data!DP44,IF($J$6="MAX",data!DP45)))) -> 25.31535921 | M24: =IF($J$6="OFF",data!DQ42,IF($J$6="26dB(A)",data!DQ43,IF($J$6="30dB(A)",data!DQ44,IF($J$6="MAX",data!DQ45)))) -> 2.8
B25: =data!CK10 -> 230 | D25: =IF($J$6="OFF",data!DH46,IF($J$6="26dB(A)",data!DH47,IF($J$6="30dB(A)",data!DH48,IF($J$6="MAX",data!DH49)))) -> 1291 | E25: =IF($J$6="OFF",data!DI46,IF($J$6="26dB(A)",data!DI47,IF($J$6="30dB(A)",data!DI48,IF($J$6="MAX",data!DI49)))) -> 222 | F25: =IF($J$6="OFF",data!DJ46,IF($J$6="26dB(A)",data!DJ47,IF($J$6="30dB(A)",data!DJ48,IF($J$6="MAX",data!DJ49)))) -> 0.6714654279 | G25: =IF($J$6="OFF",data!DK46,IF($J$6="26dB(A)",data!DK47,IF($J$6="30dB(A)",data!DK48,IF($J$6="MAX",data!DK49)))) -> 828 | H25: =IF($J$6="OFF",data!DL46,IF($J$6="26dB(A)",data!DL47,IF($J$6="30dB(A)",data!DL48,IF($J$6="MAX",data!DL49)))) -> 356 | I25: =IF($J$6="OFF",data!DM46,IF($J$6="26dB(A)",data!DM47,IF($J$6="30dB(A)",data!DM48,IF($J$6="MAX",data!DM49)))) -> 1.607321568 | J25: =IF($J$6="OFF",data!DN46,IF($J$6="26dB(A)",data!DN47,IF($J$6="30dB(A)",data!DN48,IF($J$6="MAX",data!DN49)))) -> 30 | K25: =IF($J$6="OFF",data!DO46,IF($J$6="26dB(A)",data!DO47,IF($J$6="30dB(A)",data!DO48,IF($J$6="MAX",data!DO49)))) -> 38 | L25: =IF($J$6="OFF",data!DP46,IF($J$6="26dB(A)",data!DP47,IF($J$6="30dB(A)",data!DP48,IF($J$6="MAX",data!DP49)))) -> 27.47144596 | M25: =IF($J$6="OFF",data!DQ46,IF($J$6="26dB(A)",data!DQ47,IF($J$6="30dB(A)",data!DQ48,IF($J$6="MAX",data!DQ49)))) -> 3.1
B26: =data!CK11 -> 250 | D26: =IF($J$6="OFF",data!DH50,IF($J$6="26dB(A)",data!DH51,IF($J$6="30dB(A)",data!DH52,IF($J$6="MAX",data!DH53)))) -> 1413 | E26: =IF($J$6="OFF",data!DI50,IF($J$6="26dB(A)",data!DI51,IF($J$6="30dB(A)",data!DI52,IF($J$6="MAX",data!DI53)))) -> 243 | F26: =IF($J$6="OFF",data!DJ50,IF($J$6="26dB(A)",data!DJ51,IF($J$6="30dB(A)",data!DJ52,IF($J$6="MAX",data!DJ53)))) -> 0.8360791354 | G26: =IF($J$6="OFF",data!DK50,IF($J$6="26dB(A)",data!DK51,IF($J$6="30dB(A)",data!DK52,IF($J$6="MAX",data!DK53)))) -> 907 | H26: =IF($J$6="OFF",data!DL50,IF($J$6="26dB(A)",data!DL51,IF($J$6="30dB(A)",data!DL52,IF($J$6="MAX",data!DL53)))) -> 390 | I26: =IF($J$6="OFF",data!DM50,IF($J$6="26dB(A)",data!DM51,IF($J$6="30dB(A)",data!DM52,IF($J$6="MAX",data!DM53)))) -> 2.000488798 | J26: =IF($J$6="OFF",data!DN50,IF($J$6="26dB(A)",data!DN51,IF($J$6="30dB(A)",data!DN52,IF($J$6="MAX",data!DN53)))) -> 30 | K26: =IF($J$6="OFF",data!DO50,IF($J$6="26dB(A)",data!DO51,IF($J$6="30dB(A)",data!DO52,IF($J$6="MAX",data!DO53)))) -> 38 | L26: =IF($J$6="OFF",data!DP50,IF($J$6="26dB(A)",data!DP51,IF($J$6="30dB(A)",data!DP52,IF($J$6="MAX",data!DP53)))) -> 28.48908807 | M26: =IF($J$6="OFF",data!DQ50,IF($J$6="26dB(A)",data!DQ51,IF($J$6="30dB(A)",data!DQ52,IF($J$6="MAX",data!DQ53)))) -> 3.3
B27: =data!CK12 -> 270 | D27: =IF($J$6="OFF",data!DH54,IF($J$6="26dB(A)",data!DH55,IF($J$6="30dB(A)",data!DH56,IF($J$6="MAX",data!DH57)))) -> 1521 | E27: =IF($J$6="OFF",data!DI54,IF($J$6="26dB(A)",data!DI55,IF($J$6="30dB(A)",data!DI56,IF($J$6="MAX",data!DI57)))) -> 262 | F27: =IF($J$6="OFF",data!DJ54,IF($J$6="26dB(A)",data!DJ55,IF($J$6="30dB(A)",data!DJ56,IF($J$6="MAX",data!DJ57)))) -> 1.009079538 | G27: =IF($J$6="OFF",data!DK54,IF($J$6="26dB(A)",data!DK55,IF($J$6="30dB(A)",data!DK56,IF($J$6="MAX",data!DK57)))) -> 978 | H27: =IF($J$6="OFF",data!DL54,IF($J$6="26dB(A)",data!DL55,IF($J$6="30dB(A)",data!DL56,IF($J$6="MAX",data!DL57)))) -> 421 | I27: =IF($J$6="OFF",data!DM54,IF($J$6="26dB(A)",data!DM55,IF($J$6="30dB(A)",data!DM56,IF($J$6="MAX",data!DM57)))) -> 2.415292705 | J27: =IF($J$6="OFF",data!DN54,IF($J$6="26dB(A)",data!DN55,IF($J$6="30dB(A)",data!DN56,IF($J$6="MAX",data!DN57)))) -> 30 | K27: =IF($J$6="OFF",data!DO54,IF($J$6="26dB(A)",data!DO55,IF($J$6="30dB(A)",data!DO56,IF($J$6="MAX",data!DO57)))) -> 38 | L27: =IF($J$6="OFF",data!DP54,IF($J$6="26dB(A)",data!DP55,IF($J$6="30dB(A)",data!DP56,IF($J$6="MAX",data!DP57)))) -> 31.43914396 | M27: =IF($J$6="OFF",data!DQ54,IF($J$6="26dB(A)",data!DQ55,IF($J$6="30dB(A)",data!DQ56,IF($J$6="MAX",data!DQ57)))) -> 3.6
B28: =data!CK13 -> 290 | D28: =IF($J$6="OFF",data!DH58,IF($J$6="26dB(A)",data!DH59,IF($J$6="30dB(A)",data!DH60,IF($J$6="MAX",data!DH61)))) -> 1647 | E28: =IF($J$6="OFF",data!DI58,IF($J$6="26dB(A)",data!DI59,IF($J$6="30dB(A)",data!DI60,IF($J$6="MAX",data!DI61)))) -> 283 | F28: =IF($J$6="OFF",data!DJ58,IF($J$6="26dB(A)",data!DJ59,IF($J$6="30dB(A)",data!DJ60,IF($J$6="MAX",data!DJ61)))) -> 1.218307628 | G28: =IF($J$6="OFF",data!DK58,IF($J$6="26dB(A)",data!DK59,IF($J$6="30dB(A)",data!DK60,IF($J$6="MAX",data!DK61)))) -> 1060 | H28: =IF($J$6="OFF",data!DL58,IF($J$6="26dB(A)",data!DL59,IF($J$6="30dB(A)",data!DL60,IF($J$6="MAX",data!DL61)))) -> 456 | I28: =IF($J$6="OFF",data!DM58,IF($J$6="26dB(A)",data!DM59,IF($J$6="30dB(A)",data!DM60,IF($J$6="MAX",data!DM61)))) -> 2.926115972 | J28: =IF($J$6="OFF",data!DN58,IF($J$6="26dB(A)",data!DN59,IF($J$6="30dB(A)",data!DN60,IF($J$6="MAX",data!DN61)))) -> 30 | K28: =IF($J$6="OFF",data!DO58,IF($J$6="26dB(A)",data!DO59,IF($J$6="30dB(A)",data!DO60,IF($J$6="MAX",data!DO61)))) -> 38 | L28: =IF($J$6="OFF",data!DP58,IF($J$6="26dB(A)",data!DP59,IF($J$6="30dB(A)",data!DP60,IF($J$6="MAX",data!DP61)))) -> 31.44 | M28: =IF($J$6="OFF",data!DQ58,IF($J$6="26dB(A)",data!DQ59,IF($J$6="30dB(A)",data!DQ60,IF($J$6="MAX",data!DQ61)))) -> 3.9
B29: =IF($J$6="OFF",data!DF82,IF($J$6="26dB(A)",data!DF83,IF($J$6="30dB(A)",data!DF84,IF($J$6="MAX",data!DF85)))) -> 300 | D29: =IF($J$6="OFF",data!DH82,IF($J$6="26dB(A)",data!DH83,IF($J$6="30dB(A)",data!DH84,IF($J$6="MAX",data!DH85)))) ->  | E29: =IF($J$6="OFF",data!DI82,IF($J$6="26dB(A)",data!DI83,IF($J$6="30dB(A)",data!DI84,IF($J$6="MAX",data!DI85)))) ->  | F29: =IF($J$6="OFF",data!DJ82,IF($J$6="26dB(A)",data!DJ83,IF($J$6="30dB(A)",data!DJ84,IF($J$6="MAX",data!DJ85)))) ->  | G29: =IF($J$6="OFF",data!DK82,IF($J$6="26dB(A)",data!DK83,IF($J$6="30dB(A)",data!DK84,IF($J$6="MAX",data!DK85)))) ->  | H29: =IF($J$6="OFF",data!DL82,IF($J$6="26dB(A)",data!DL83,IF($J$6="30dB(A)",data!DL84,IF($J$6="MAX",data!DL85)))) ->  | I29: =IF($J$6="OFF",data!DM82,IF($J$6="26dB(A)",data!DM83,IF($J$6="30dB(A)",data!DM84,IF($J$6="MAX",data!DM85)))) ->  | J29: =IF($J$6="OFF",data!DN82,IF($J$6="26dB(A)",data!DN83,IF($J$6="30dB(A)",data!DN84,IF($J$6="MAX",data!DN85)))) ->  | K29: =IF($J$6="OFF",data!DO82,IF($J$6="26dB(A)",data!DO83,IF($J$6="30dB(A)",data!DO84,IF($J$6="MAX",data!DO85)))) ->  | L29: =IF($J$6="OFF",data!DP82,IF($J$6="26dB(A)",data!DP83,IF($J$6="30dB(A)",data!DP84,IF($J$6="MAX",data!DP85)))) ->  | M29: =IF($J$6="OFF",data!DQ82,IF($J$6="26dB(A)",data!DQ83,IF($J$6="30dB(A)",data!DQ84,IF($J$6="MAX",data!DQ85)))) -> 
M30: v2025-03-07
B31: * | C31: =IF(data!$CC$17=1,NL!E6,IF(data!$CC$17=2,EN!E6,IF(data!$CC$17=3,FR!E6,IF(data!$CC$17=4,DE!E6,IF(data!$CC$17=5,NR!E6,IF(data!$CC$17=6,SP!E6,IF(data!$CC$17=7,SW!E6,IF(data!$CC$17=8,TS!E6,IF(data!$CC$17=9,ExtraTaal1!E6,IF(data!$CC$17=10,ExtraTaal2!E6,IF(data!$CC$17=11,ExtraTaal3!E6,))))))))))) -> Output without fans is negligible | M31: v2026-02-23
B32: ** | C32: =IF(data!$CC$17=1,NL!B20,IF(data!$CC$17=2,EN!B20,IF(data!$CC$17=3,FR!B20,IF(data!$CC$17=4,DE!B20,IF(data!$CC$17=5,NR!B20,IF(data!$CC$17=6,SP!B20,IF(data!$CC$17=7,SW!B20,IF(data!$CC$17=8,TS!B20,IF(data!$CC$17=9,ExtraTaal1!B20,IF(data!$CC$17=10,ExtraTaal2!B20,IF(data!$CC$17=11,ExtraTaal3!B20,))))))))))) -> Cooling power is calcullated according EN16430 with fans blowing up for all heights.
B33: *** | C33: =IF($J$4=data!$CC$3,NL!B21,IF($J$4=data!$CC$4,EN!B21,IF($J$4=data!$CC$5,FR!B21,IF($J$4=data!$CC$6,DE!B21,IF($J$4=data!$CC$7,NR!B21,IF($J$4=data!$CC$8,SP!B21,IF($J$4=data!$CC$9,SW!B21,))))))) -> When the water volume is given in gallons, the units are specifically imperial gallons.
B34: **** | C34: =IF(data!$CC$17=1,NL!B22,IF(data!$CC$17=2,EN!B22,IF(data!$CC$17=3,FR!B22,IF(data!$CC$17=4,DE!B22,IF(data!$CC$17=5,NR!B22,IF(data!$CC$17=6,SP!B22,IF(data!$CC$17=7,SW!B22,IF(data!$CC$17=8,TS!B22,IF(data!$CC$17=9,ExtraTaal1!B22,IF(data!$CC$17=10,ExtraTaal2!B22,IF(data!$CC$17=11,ExtraTaal3!B22,))))))))))) -> Soundpower according to ISO 3741:2010, sound pressure level with assumed room damping of 8 dB(A).

Sheet data (hidden)
A1: =+CONCATENATE($A$2,"_L") -> Vertilina_L | M1: heating | N1: Ti | O1: =IF($BZ$2=1,$P1,IF($BZ$2=2,(P1-32)/1.8,)) -> 35 | P1: =Vertilina!E10 -> 35 | AK1: cooling | AL1: Ti | AM1: =IF($BZ$2=1,$AN1,IF($BZ$2=2,($AN1-32)/1.8,)) -> 16 | AN1: =Vertilina!J10 -> 16 | AP1: RH | AQ1: =Vertilina!J13 -> 0.5 | AU1: RH | BT1: DBH rail | BU1: =IF($CC$17=1,"GEEN",IF($CC$17=2,"NONE",IF($CC$17=3,"NONE",IF($CC$17=4,"NONE",IF($CC$17=5,"NONE",))))) -> NONE | BV1: 10 | BW1: 15 | BZ1: Imperial/SI | CB1: toestel | CC1: taal | CD1: lengte | CE1: hoogte | CF1: type | CK1: Vertilina Hybrid
A2: =IF(Vertilina!$J$5=data!$CH$1,data!$CA$6,IF(Vertilina!$J$5=data!$CK$1,data!$CA$3,IF(Vertilina!$J$5=data!$CN$1,data!$CA$4,IF(Vertilina!$J$5=data!$CQ$1,data!$CA$5,IF(Vertilina!$J$5=data!$CW$1,data!$CA$7,IF(Vertilina!$J$5=data!$CZ$1,data!$CA$8)))))) -> Vertilina | N2: Tr | O2: =IF($BZ$2=1,$P2,IF($BZ$2=2,(P2-32)/1.8,)) -> 30 | P2: =Vertilina!E11 -> 30 | AL2: Tr | AM2: =IF($BZ$2=1,$AN2,IF($BZ$2=2,($AN2-32)/1.8,)) -> 18 | AN2: =Vertilina!J11 -> 18 | BT2: 1 | BZ2: 1 | CB2: Geselecteerd | CK2: hoogte | CL2: lengte | CM2: type | CN2: Type van letter tot cijfer voor zoek functie | DF2: =IF(data!$CC$17=7,"Effektsimulering Hybridmodeller","Selectiontool LowH2O Hybrids") -> Selectiontool LowH2O Hybrids
A3: =+CONCATENATE($A$2,"_T") -> Vertilina_T | N3: Ta | O3: =IF($BZ$2=1,$P3,IF($BZ$2=2,(P3-32)/1.8,)) -> 20 | P3: =Vertilina!E12 -> 20 | AL3: Ta | AM3: =IF($BZ$2=1,$AN3,IF($BZ$2=2,($AN3-32)/1.8,)) -> 27 | AN3: =Vertilina!J12 -> 27 | BZ3: 1 | CA3: Vertilina | CB3: =CK1 -> Vertilina Hybrid | CC3: Nederlands | CD3: 90 | CE3: 41 | CF3: 8 | CK3: 90 | CL3: 41 | CM3: 8 | CN3: =IF(Vertilina!L6=8,8,IF(Vertilina!L6=11,11,IF(Vertilina!L6=16,16,""))) -> 11
A4: kolomindex | B4: 2 | C4: 3 | D4: 4 | E4: 5 | F4: 6 | G4: 7 | H4: 8 | I4: 9 | J4: 10 | K4: 11 | L4: 12 | M4: 13 | N4: 14 | O4: 15 | P4: 16 | Q4: 17 | R4: 18 | S4: 19 | T4: 20 | U4: 21 | V4: 22 | W4: 23 | X4: 24 | Y4: 25 | Z4: 26 | AA4: 27 | AB4: 28 | AC4: 29 | AD4: 30 | AE4: 31 | AF4: 32 | AG4: 33 | AH4: 34 | AI4: 35 | AJ4: 36 | AK4: 37 | AL4: 38 | AM4: 39 | AN4: 40 | AO4: 41 | AP4: 42 | AQ4: 43 | AR4: 44 | AS4: 45 | AT4: 46 | AU4: 47 | AV4: 48 | AW4: 49 | AX4: 50 | AY4: 51 | AZ4: 52 | BA4: 53 | BB4: 54 | BC4: 55 | BD4: 56 | BE4: 57 | BF4: 58 | BG4: 59 | BH4: 60 | BI4: 61 | BJ4: 62 | BK4: 63 | BL4: 64 | BM4: 65 | BN4: 66 | BO4: 67 | BP4: 68 | BQ4: 69 | BR4: 70 | BS4: 71 | BT4: 72 | BU4: 73 | BV4: 74 | BW4: 75 | BX4: 76 | BY4: 77 | CA4: Linea | CB4: =CN1 -> 0 | CC4: English | CD4: 100 | CE4: 41 | CF4: 11 | CK4: 100 | CM4: 11 | DJ4: Taal/Language/Sprache/Langue/Språk/Lengua | DN4: =Vertilina!J4 -> English | DO4: =Vertilina!K4 -> 0
A5: =CONCATENATE($CB$9,$CD3,$CN$3) -> 19011 | D5: =VLOOKUP($A5,$A$28:$BY$1500,D$4,0) -> 1 | E5: =VLOOKUP($A5,$A$28:$BY$1500,E$4,0) -> 90 | F5: =VLOOKUP($A5,$A$28:$BY$1500,F$4,0) -> 40.5 | G5: 11 | H5: =VLOOKUP($A5,$A$28:$BY$1500,H$4,0) -> 11.5 | I5: 0 | J5: 26 | K5: 30 | L5: 34.8451125 | M5: =VLOOKUP($A5,$A$28:$BY$1500,M$4,0) -> 565.76 | N5: =VLOOKUP($A5,$A$28:$BY$1500,N$4,0) -> 720.3428155 | O5: 796.4006883 | P5: 891.4998305 | Q5: N/A | R5: 1 | S5: 1 | T5: 1 | U5: =VLOOKUP($A5,$A$28:$BY$1500,U$4,0)*IF(Vertilina!$J$5=data!$CB$8,0.9,1) ->  | V5: 396 | W5: 438 | X5: =VLOOKUP($A5,$A$28:$BY$1500,X$4,0) -> 491 | Z5: 68 | AA5: 75 | AB5: 84 | AD5: 0.04377236387 | AE5: 0.0526939683 | AF5: 0.06531744809 | AG5: 0.0003969 | AH5: =VLOOKUP($A5,$A$28:$BY$1500,AH$4,0) -> 1.7346 | AI5: 4 | AJ5: 0.000574288 | AK5: 224.8432327 | AL5: 242.801283 | AM5: 260.5001532 | AN5: 1 | AO5: 1 | AP5: 1 | AQ5: 253 | AR5: =VLOOKUP($A5,$A$28:$BY$1500,AR$4,0) -> 273 | AS5: 293 | AT5: 109 | AU5: 117 | AV5: 126 | AW5: 0.1071019936 | AX5: 0.1225370497 | AY5: 0.1410863479 | AZ5: 1.2 | BA5: 9.888835516 | BB5: =VLOOKUP($A5,$A$28:$BY$1500,BB$4,0) -> 11.47209765 | BC5: 12.35 | BD5: 0 | BE5: 832 | BF5: 0 | BG5: 0.68 | BH5: 0 | BI5: 0 | BJ5: 0 | BK5: 13.6 | BL5: =VLOOKUP($A5,$A$28:$BY$1500,BL$4,0) -> 15.6 | BM5: 21.85 | BN5: 0 | BO5: 1 | BP5: 1 | BQ5: 1 | BR5: 253 | BS5: 273 | BT5: 293 | BU5: 0 | BV5: 0 | BW5: 0 | BX5: 0 | BY5: 1 | CA5: Tempo | CB5: =CQ1 -> 0 | CC5: Français | CD5: 120 | CE5: 41 | CF5: 16 | CK5: 120 | CM5: 16 | DJ5: =IF($J$4=data!$CC$3,NL!DJ4,IF($J$4=data!$CC$4,EN!DJ4,IF($J$4=data!$CC$5,FR!DJ4,IF($J$4=data!$CC$6,DE!DJ4,IF($J$4=data!$CC$7,NR!DJ4,IF($J$4=data!$CC$8,SP!DJ4,IF($J$4=data!$CC$9,SW!DJ4,))))))) -> 0 | DN5: =Vertilina!J5 -> Vertilina Hybrid | DO5: =Vertilina!K5 -> 0
A6: =CONCATENATE($CB$9,$CD4,$CN$3) -> 110011 | D6: 1 | E6: 100 | F6: 40.5 | G6: 11 | H6: 11.5 | I6: 0 | J6: 26 | K6: 30 | L6: 35.51228976 | M6: 629.68 | N6: 827.7405541 | O6: 912.9331512 | P6: 1040.083341 | Q6: N/A | R6: 1 | S6: 1 | T6: 1 | U6: =VLOOKUP($A6,$A$28:$BY$1500,U$4,0)*IF(Vertilina!$J$5=data!$CB$8,0.9,1) ->  | V6: 456 | W6: 502 | X6: 572 | Z6: 78 | AA6: 86 | AB6: 98 | AD6: 0.0597366639 | AE6: 0.07182589684 | AF6: 0.09193254861 | AG6: 0.0003969 | AH6: 1.7346 | AI6: 4 | AJ6: 0.000574288 | AK6: 259.0561966 | AL6: 279.7075434 | AM6: 303.9166395 | AN6: 1 | AO6: 1 | AP6: 1 | AQ6: 292 | AR6: 315 | AS6: 342 | AT6: 126 | AU6: 135 | AV6: 147 | AW6: 0.1479297162 | AX6: 0.1685971488 | AY6: 0.198152609 | AZ6: 1.3 | BA6: 11.09420308 | BB6: 12.74071773 | BC6: 14.40833333 | BD6: 0 | BE6: 926 | BF6: 0 | BG6: 0.68 | BH6: 0 | BI6: 0 | BJ6: 0 | BK6: 13.6 | BL6: 15.6 | BM6: 21.85 | BN6: 0 | BO6: 1 | BP6: 1 | BQ6: 1 | BR6: 292 | BS6: 315 | BT6: 342 | BU6: 0 | BV6: 0 | BW6: 0 | BX6: 0 | BY6: 1 | CA6: Built_in | CB6: =CH1 -> 0 | CC6: Deutsch | CD6: 150 | CE6: 41 | CK6: 150 | DJ6: =IF($J$4=data!$CC$3,NL!DI4,IF($J$4=data!$CC$4,EN!DI4,IF($J$4=data!$CC$5,FR!DI4,IF($J$4=data!$CC$6,DE!DI4,IF($J$4=data!$CC$7,NR!DI4,IF($J$4=data!$CC$8,SP!DI4,IF($J$4=data!$CC$9,SW!DI4,)))))))&" [centimeter]" -> [centimeter] | DN6: =Vertilina!J6 -> 30dB(A) | DO6: =Vertilina!K6 -> 41 | DP6: =Vertilina!L6 -> 11 | DQ6: =data!DL6 -> 0
A7: =CONCATENATE($CB$9,$CD5,$CN$3) -> 112011 | D7: 1 | E7: 120 | F7: 40.5 | G7: 11 | H7: 11.5 | I7: 0 | J7: 26 | K7: 30 | L7: 36.6 | M7: 733.04 | N7: 1038.250684 | O7: 1142.080306 | P7: 1337.249951 | Q7: N/A | R7: 1 | S7: 1 | T7: 1 | U7: =VLOOKUP($A7,$A$28:$BY$1500,U$4,0)*IF(Vertilina!$J$5=data!$CB$8,0.9,1) ->  | V7: 571 | W7: 629 | X7: 736 | Z7: 98 | AA7: 108 | AB7: 127 | AD7: 0.1007832546 | AE7: 0.1209557973 | AF7: 0.1640381021 | AG7: 0.0003969 | AH7: 1.7346 | AI7: 4 | AJ7: 0.000574288 | AK7: 326.2128513 | AL7: 352.3572829 | AM7: 390.7500239 | AN7: 1 | AO7: 1 | AP7: 1 | AQ7: 367 | AR7: 397 | AS7: 440 | AT7: 158 | AU7: 171 | AV7: 189 | AW7: 0.2475072867 | AX7: 0.2873090082 | AY7: 0.3470482952 | AZ7: 1.6 | BA7: 13.39581572 | BB7: 15.19527547 | BC7: 18.525 | BD7: 0 | BE7: 1078 | BF7: 0 | BG7: 0.68 | BH7: 0 | BI7: 0 | BJ7: 0 | BK7: 13.6 | BL7: 15.6 | BM7: 21.85 | BN7: 0 | BO7: 1 | BP7: 1 | BQ7: 1 | BR7: 367 | BS7: 397 | BT7: 440 | BU7: 0 | BV7: 0 | BW7: 0 | BX7: 0 | BY7: 1 | CA7: MiniHybrid | CB7: Mini Hybrid | CC7: Norsk | CD7: 170 | CE7: 41 | CK7: 170 | DK7: =IF($J$4=data!$CC$3,NL!DF3,IF($J$4=data!$CC$4,EN!DF3,IF($J$4=data!$CC$5,FR!DF3,IF($J$4=data!$CC$6,DE!DF3,IF($J$4=data!$CC$7,NR!DF3,IF($J$4=data!$CC$8,SP!DF3,IF($J$4=data!$CC$9,SW!DF3,))))))) -> 0 | DM7: =IF($J$4=data!$CC$3,NL!DF16,IF($J$4=data!$CC$4,EN!DF16,IF($J$4=data!$CC$5,FR!DF16,IF($J$4=data!$CC$6,DE!DF16,IF($J$4=data!$CC$7,NR!DF16,IF($J$4=data!$CC$8,SP!DF16,IF($J$4=data!$CC$9,SW!DF16,))))))) -> 0 | DO7: =IF($J$4=data!$CC$3,NL!DF4,IF($J$4=data!$CC$4,EN!DF4,IF($J$4=data!$CC$5,FR!DF4,IF($J$4=data!$CC$6,DE!DF4,IF($J$4=data!$CC$7,NR!DF4,IF($J$4=data!$CC$8,SP!DF4,IF($J$4=data!$CC$9,SW!DF4,))))))) -> 0 | DP7: =IF($J$4=data!$CC$3,NL!DF5,IF($J$4=data!$CC$4,EN!DF5,IF($J$4=data!$CC$5,FR!DF5,IF($J$4=data!$CC$6,DE!DF5,IF($J$4=data!$CC$7,NR!DF5,IF($J$4=data!$CC$8,SP!DF5,IF($J$4=data!$CC$9,SW!DF5,))))))) -> 0 | DQ7: =IF($J$4=data!$CC$3,NL!DF6,IF($J$4=data!$CC$4,EN!DF6,IF($J$4=data!$CC$5,FR!DF6,IF($J$4=data!$CC$6,DE!DF6,IF($J$4=data!$CC$7,NR!DF6,IF($J$4=data!$CC$8,SP!DF6,IF($J$4=data!$CC$9,SW!DF6,))))))) -> 0
A8: 115011 | D8: 1 | E8: 150 | F8: 40.5 | G8: 11 | H8: 11.5 | I8: 0 | J8: 26 | K8: 30 | L8: 37.8451125 | M8: 599.76 | N8: 1342.85655 | O8: 1479.204174 | P8: 1783.000073 | Q8: N/A | R8: 1 | S8: 1 | T8: 1 | U8: =VLOOKUP($A8,$A$28:$BY$1500,U$4,0)*IF(Vertilina!$J$5=data!$CB$8,0.9,1) ->  | V8: 739 | W8: 814 | X8: 981 | Z8: 127 | AA8: 140 | AB8: 169 | AD8: 0.1848516614 | AE8: 0.2217131779 | AF8: 0.3151674894 | AG8: 0.0003969 | AH8: 1.7346 | AI8: 4 | AJ8: 0.000574288 | AK8: 423.658157 | AL8: 459.3348371 | AM8: 520.9998946 | AN8: 1 | AO8: 1 | AP8: 1 | AQ8: 477 | AR8: 517 | AS8: 587 | AT8: 205 | AU8: 222 | AV8: 252 | AW8: 0.4523890388 | AX8: 0.5252338984 | AY8: 0.6662154032 | AZ8: 2 | BA8: 16.55811632 | BB8: 18.74396404 | BC8: 24.7 | BD8: 0 | BE8: 882 | BF8: 0 | BG8: 0.68 | BH8: 0 | BI8: 0 | BJ8: 0 | BK8: 12.3 | BL8: 14.4 | BM8: 21.85 | BN8: 0 | BO8: 1 | BP8: 1 | BQ8: 1 | BR8: 477 | BS8: 517 | BT8: 587 | BU8: 0 | BV8: 0 | BW8: 0 | BX8: 0 | BY8: 1 | CA8: StradaMM | CB8: Strada Hybrid MM | CC8: Español | CD8: 190 | CE8: 41 | CK8: 190 | DF8: =IF($J$4=data!$CC$3,NL!DI5,IF($J$4=data!$CC$4,EN!DI5,IF($J$4=data!$CC$5,FR!DI5,IF($J$4=data!$CC$6,DE!DI5,IF($J$4=data!$CC$7,NR!DI5,IF($J$4=data!$CC$8,SP!DI5,IF($J$4=data!$CC$9,SW!DI5,))))))) -> 0
A9: 117011 | D9: 1 | E9: 170 | F9: 40.5 | G9: 11 | H9: 11.5 | I9: 0 | J9: 26 | K9: 30 | L9: 38.51228976 | M9: 707.2 | N9: 1538.865385 | O9: 1700.275063 | P9: 2080.166683 | Q9: N/A | R9: 1 | S9: 1 | T9: 1 | U9: =VLOOKUP($A9,$A$28:$BY$1500,U$4,0)*IF(Vertilina!$J$5=data!$CB$8,0.9,1) ->  | V9: 847 | W9: 936 | X9: 1145 | Z9: 146 | AA9: 161 | AB9: 197 | AD9: 0.2574544277 | AE9: 0.3087899097 | AF9: 0.449601975 | AG9: 0.0003969 | AH9: 1.7346 | AI9: 4 | AJ9: 0.000574288 | AK9: 486.5088846 | AL9: 529.5631045 | AM9: 607.833279 | AN9: 1 | AO9: 1 | AP9: 1 | AQ9: 548 | AR9: 596 | AS9: 685 | AT9: 236 | AU9: 256 | AV9: 295 | AW9: 0.6297078876 | AX9: 0.7330128022 | AY9: 0.9555041599 | AZ9: 2.3 | BA9: 18.489204 | BB9: 21.02882825 | BC9: 28.81666667 | BD9: 0 | BE9: 1040 | BF9: 0 | BG9: 0.68 | BH9: 0 | BI9: 0 | BJ9: 0 | BK9: 12.3 | BL9: 14.4 | BM9: 21.85 | BN9: 0 | BO9: 1 | BP9: 1 | BQ9: 1 | BR9: 548 | BS9: 596 | BT9: 685 | BU9: 0 | BV9: 0 | BW9: 0 | BX9: 0 | BY9: 1 | CA9: =IF(#REF!=data!CA3,1,IF(#REF!=data!CA4,2,IF(#REF!=data!CA5,3,IF(#REF!=data!CA6,3)))) ->  | CB9: =IF(Vertilina!$J$5=data!CB3,1,IF(Vertilina!$J$5=data!CB4,2,IF(Vertilina!$J$5=data!CB5,3,IF(Vertilina!$J$5=data!CB6,3,IF(Vertilina!$J$5=data!CB7,5,IF(Vertilina!$J$5=data!CB8,1)))))) -> 1 | CC9: Svenska | CD9: 210 | CE9: 41 | CK9: 210 | DF9: =IF($J$4=data!$CC$3,NL!DF8,IF($J$4=data!$CC$4,EN!DF8,IF($J$4=data!$CC$5,FR!DF8,IF($J$4=data!$CC$6,DE!DF8,IF($J$4=data!$CC$7,NR!DF8,IF($J$4=data!$CC$8,SP!DF8,IF($J$4=data!$CC$9,SW!DF8,))))))) -> 0 | DK9: =IF($J$4=data!$CC$3,NL!DK8,IF($J$4=data!$CC$4,EN!DK8,IF($J$4=data!$CC$5,FR!DK8,IF($J$4=data!$CC$6,DE!DK8,IF($J$4=data!$CC$7,NR!DK8,IF($J$4=data!$CC$8,SP!DK8,IF($J$4=data!$CC$9,SW!DK8,))))))) -> 0
A10: 119011 | D10: 1 | E10: 190 | F10: 40.5 | G10: 11 | H10: 11.5 | I10: 0 | J10: 26 | K10: 30 | L10: 39.090225 | M10: 784.04 | N10: 1729.738019 | O10: 1918.350336 | P10: 2377.333293 | Q10: N/A | R10: 1 | S10: 1 | T10: 1 | U10: =VLOOKUP($A10,$A$28:$BY$1500,U$4,0)*IF(Vertilina!$J$5=data!$CB$8,0.9,1) ->  | V10: 952 | W10: 1056 | X10: 1308 | Z10: 164 | AA10: 182 | AB10: 225 | AD10: 0.3411990913 | AE10: 0.4138336345 | AF10: 0.6134580444 | AG10: 0.0003969 | AH10: 1.7346 | AI10: 4 | AJ10: 0.000574288 | AK10: 547.7922273 | AL10: 598.9271409 | AM10: 694.6666632 | AN10: 1 | AO10: 1 | AP10: 1 | AQ10: 617 | AR10: 675 | AS10: 782 | AT10: 265 | AU10: 290 | AV10: 336 | AW10: 0.8315969535 | AX10: 0.9835481576 | AY10: 1.294069272 | AZ10: 2.5 | BA10: 20.29804816 | BB10: 23.24183525 | BC10: 32.93333333 | BD10: 0 | BE10: 1153 | BF10: 0 | BG10: 0.68 | BH10: 0 | BI10: 0 | BJ10: 0 | BK10: 12.3 | BL10: 14.4 | BM10: 21.85 | BN10: 0 | BO10: 1 | BP10: 1 | BQ10: 1 | BR10: 617 | BS10: 675 | BT10: 782 | BU10: 0 | BV10: 0 | BW10: 0 | BX10: 0 | BY10: 1 | CA10: W/m,beript dyn heat | CB10: W/m,beript dyn cool | CC10: Čeština | CD10: 230 | CE10: 41 | CK10: 230 | DF10: =IF($J$4=data!$CC$3,NL!DF9,IF($J$4=data!$CC$4,EN!DF9,IF($J$4=data!$CC$5,FR!DF9,IF($J$4=data!$CC$6,DE!DF9,IF($J$4=data!$CC$7,NR!DF9,IF($J$4=data!$CC$8,SP!DF9,IF($J$4=data!$CC$9,SW!DF9,))))))) -> 0 | DG10: 0 | DH10: 0 | DI10: =Vertilina!E10 -> 35 | DJ10: =IF(data!$BZ$2=1,"°C",IF(data!$BZ$2=2,"°F",)) -> °C | DK10: =DF10 -> 0 | DL10: 0 | DM10: 0 | DN10: =Vertilina!J10 -> 16 | DO10: =DJ10 -> °C | DP10: =IF($J$4=data!$CC$3,NL!DK4,IF($J$4=data!$CC$4,EN!DK4,IF($J$4=data!$CC$5,FR!DK4,IF($J$4=data!$CC$6,DE!DK4,IF($J$4=data!$CC$7,NR!DK4,IF($J$4=data!$CC$8,SP!DK4,IF($J$4=data!$CC$9,SW!DK4,))))))) -> 0
A11: 121011 | D11: 1 | E11: 210 | F11: 40.5 | G11: 11 | H11: 11.5 | I11: 0 | J11: 26 | K11: 30 | L11: 39.6 | M11: 875.84 | N11: 1918.384399 | O11: 2129.736151 | P11: 2674.499903 | Q11: N/A | R11: 1 | S11: 1 | T11: 1 | U11: =VLOOKUP($A11,$A$28:$BY$1500,U$4,0)*IF(Vertilina!$J$5=data!$CB$8,0.9,1) ->  | V11: 1056 | W11: 1172 | X11: 1472 | Z11: 182 | AA11: 202 | AB11: 253 | AD11: 0.4397346619 | AE11: 0.5331736454 | AF11: 0.808771376 | AG11: 0.0003969 | AH11: 1.7346 | AI11: 4 | AJ11: 0.000574288 | AK11: 608.33434 | AL11: 666.4722649 | AM11: 781.5000476 | AN11: 1 | AO11: 1 | AP11: 1 | AQ11: 685 | AR11: 751 | AS11: 880 | AT11: 295 | AU11: 323 | AV11: 378 | AW11: 1.075227942 | AX11: 1.272336536 | AY11: 1.704176699 | AZ11: 2.8 | BA11: 21.91492927 | BB11: 25.31535921 | BC11: 37.05 | BD11: 0 | BE11: 1288 | BF11: 0 | BG11: 0.68 | BH11: 0 | BI11: 0 | BJ11: 0 | BK11: 12.3 | BL11: 14.4 | BM11: 21.85 | BN11: 0 | BO11: 1 | BP11: 1 | BQ11: 1 | BR11: 685 | BS11: 751 | BT11: 880 | BU11: 0 | BV11: 0 | BW11: 0 | BX11: 0 | BY11: 1 | CB11: =IF(Vertilina!$J$5=data!CB3,1,IF(Vertilina!$J$5=data!CB4,2,IF(Vertilina!$J$5=data!CB5,3,IF(Vertilina!$J$5=data!CB6,3,IF(Vertilina!$J$5=data!CB7,5,IF(Vertilina!$J$5=data!CB8,6)))))) -> 1 | CC11: ExtraTaal1 | CD11: 250 | CE11: 41 | CK11: 250 | DF11: =IF($J$4=data!$CC$3,NL!DF10,IF($J$4=data!$CC$4,EN!DF10,IF($J$4=data!$CC$5,FR!DF10,IF($J$4=data!$CC$6,DE!DF10,IF($J$4=data!$CC$7,NR!DF10,IF($J$4=data!$CC$8,SP!DF10,IF($J$4=data!$CC$9,SW!DF10,))))))) -> 0 | DG11: 0 | DH11: 0 | DI11: =Vertilina!E11 -> 30 | DJ11: =DJ10 -> °C | DK11: =DF11 -> 0 | DL11: 0 | DM11: 0 | DN11: =Vertilina!J11 -> 18 | DO11: =DJ10 -> °C
A12: 123011 | D12: 1 | E12: 230 | F12: 40.5 | G12: 11 | H12: 11.5 | I12: 0 | J12: 26 | K12: 30 | L12: 40.05600928 | M12: 650.08 | N12: 2098.753525 | O12: 2346.283578 | P12: 2971.666513 | Q12: N/A | R12: 1 | S12: 1 | T12: 1 | U12: =VLOOKUP($A12,$A$28:$BY$1500,U$4,0)*IF(Vertilina!$J$5=data!$CB$8,0.9,1) ->  | V12: 1155 | W12: 1291 | X12: 1635 | Z12: 199 | AA12: 222 | AB12: 281 | AD12: 0.5488669596 | AE12: 0.6714654279 | AF12: 1.03751337 | AG12: 0.0003969 | AH12: 1.7346 | AI12: 4 | AJ12: 0.000574288 | AK12: 666.374133 | AL12: 735.2764464 | AM12: 868.333432 | AN12: 1 | AO12: 1 | AP12: 1 | AQ12: 750 | AR12: 828 | AS12: 978 | AT12: 323 | AU12: 356 | AV12: 421 | AW12: 1.342394879 | AX12: 1.607321568 | AY12: 2.193418466 | AZ12: 3.1 | BA12: 23.63423899 | BB12: 27.47144596 | BC12: 41.16666667 | BD12: 0 | BE12: 956 | BF12: 0 | BG12: 0.68 | BH12: 0 | BI12: 0 | BJ12: 0 | BK12: 12.3 | BL12: 14.4 | BM12: 21.85 | BN12: 0 | BO12: 1 | BP12: 1 | BQ12: 1 | BR12: 750 | BS12: 828 | BT12: 978 | BU12: 0 | BV12: 0 | BW12: 0 | BX12: 0 | BY12: 1 | CA12: OFF | CC12: ExtraTaal2 | CD12: 270 | CE12: 41 | CK12: 270 | DF12: =IF($J$4=data!$CC$3,NL!DF11,IF($J$4=data!$CC$4,EN!DF11,IF($J$4=data!$CC$5,FR!DF11,IF($J$4=data!$CC$6,DE!DF11,IF($J$4=data!$CC$7,NR!DF11,IF($J$4=data!$CC$8,SP!DF11,IF($J$4=data!$CC$9,SW!DF11,))))))) -> 0 | DG12: 0 | DH12: 0 | DI12: =Vertilina!E12 -> 20 | DJ12: =DJ10 -> °C | DK12: =DF12 -> 0 | DL12: 0 | DM12: 0 | DN12: =Vertilina!J12 -> 27 | DO12: =DJ10 -> °C
A13: 125011 | D13: 1 | E13: 250 | F13: 40.5 | G13: 11 | H13: 11.5 | I13: 0 | J13: 26 | K13: 30 | L13: 40.26717726 | M13: 774.52 | N13: 2292.996375 | O13: 2568.345023 | P13: 3268.833535 | Q13: N/A | R13: 1 | S13: 1 | T13: 1 | U13: =VLOOKUP($A13,$A$28:$BY$1500,U$4,0)*IF(Vertilina!$J$5=data!$CB$8,0.9,1) ->  | V13: 1262 | W13: 1413 | X13: 1799 | Z13: 217 | AA13: 243 | AB13: 309 | AD13: 0.6789847412 | AE13: 0.8360791354 | AF13: 1.30159982 | AG13: 0.0003969 | AH13: 1.7346 | AI13: 4 | AJ13: 0.000574288 | AK13: 728.4144049 | AL13: 805.4943317 | AM13: 955.1668164 | AN13: 1 | AO13: 1 | AP13: 1 | AQ13: 820 | AR13: 907 | AS13: 1076 | AT13: 353 | AU13: 390 | AV13: 463 | AW13: 1.664049868 | AX13: 2.000488798 | AY13: 2.747674381 | AZ13: 3.3 | BA13: 24.42179911 | BB13: 28.48908807 | BC13: 43.225 | BD13: 0 | BE13: 1139 | BF13: 0 | BG13: 0.68 | BH13: 0 | BI13: 0 | BJ13: 0 | BK13: 12.3 | BL13: 14.4 | BM13: 21.85 | BN13: 0 | BO13: 1 | BP13: 1 | BQ13: 1 | BR13: 820 | BS13: 907 | BT13: 1076 | BU13: 0 | BV13: 0 | BW13: 0 | BX13: 0 | BY13: 1 | CA13: 26dB(A) | CC13: ExtraTaal3 | CD13: 290 | CE13: 41 | CF13: =IF($CC$17=1,NL!$I3,IF($CC$17=2,EN!$I3,IF($CC$17=3,FR!$I3,IF($CC$17=4,DE!$I3,IF($CC$17=5,NR!$I3,IF($CC$17=6,SP!$I3,IF($CC$17=7,SW!$I3,IF($CC$17=8,TS!$I3,IF($CC$17=9,ExtraTaal1!$I3,IF($CC$17=10,ExtraTaal2!$I3,IF($CC$17=11,ExtraTaal3!$I3,))))))))))) -> Copy all data | CK13: 290 | DK13: =IF($J$4=data!$CC$3,NL!$G$3,IF($J$4=data!$CC$4,EN!$G$3,IF($J$4=data!$CC$5,FR!$G$3,IF($J$4=data!$CC$6,DE!$G$3,IF($J$4=data!$CC$7,NR!$G$3,IF($J$4=data!$CC$8,SP!$G$3,IF($J$4=data!$CC$9,SW!$G$3,))))))) -> 0 | DN13: =Vertilina!J13 -> 0.5
A14: 127011 | D14: 1 | E14: 270 | F14: 40.5 | G14: 11 | H14: 11.5 | I14: 0 | J14: 26 | K14: 30 | L14: 40.8451125 | M14: 886.72 | N14: 2454.212236 | O14: 2763.282262 | P14: 3566.000145 | Q14: N/A | R14: 1 | S14: 1 | T14: 1 | U14: =VLOOKUP($A14,$A$28:$BY$1500,U$4,0)*IF(Vertilina!$J$5=data!$CB$8,0.9,1) ->  | V14: 1351 | W14: 1521 | X14: 1963 | Z14: 232 | AA14: 262 | AB14: 338 | AD14: 0.807239522 | AE14: 1.009079538 | AF14: 1.611662491 | AG14: 0.0003969 | AH14: 1.7346 | AI14: 4 | AJ14: 0.000574288 | AK14: 780.6000955 | AL14: 868.4570063 | AM14: 1042.000201 | AN14: 1 | AO14: 1 | AP14: 1 | AQ14: 879 | AR14: 978 | AS14: 1173 | AT14: 378 | AU14: 421 | AV14: 504 | AW14: 1.980257173 | AX14: 2.415292705 | AY14: 3.366761186 | AZ14: 3.6 | BA14: 26.69406538 | BB14: 31.43914396 | BC14: 49.4 | BD14: 0 | BE14: 1304 | BF14: 0 | BG14: 0.68 | BH14: 0 | BI14: 0 | BJ14: 0 | BK14: 12.3 | BL14: 14.4 | BM14: 21.85 | BN14: 0 | BO14: 1 | BP14: 1 | BQ14: 1 | BR14: 879 | BS14: 978 | BT14: 1173 | BU14: 0 | BV14: 0 | BW14: 0 | BX14: 0 | BY14: 1 | CA14: 30dB(A) | CF14: =IF($CC$17=1,NL!$I4,IF($CC$17=2,EN!$I4,IF($CC$17=3,FR!$I4,IF($CC$17=4,DE!$I4,IF($CC$17=5,NR!$I4,IF($CC$17=6,SP!$I4,IF($CC$17=7,SW!$I4,IF($CC$17=8,TS!$I4,IF($CC$17=9,ExtraTaal1!$I4,IF($CC$17=10,ExtraTaal2!$I4,IF($CC$17=11,ExtraTaal3!$I4,))))))))))) -> SI-units
A15: 129011 | D15: =VLOOKUP($A15,$A$28:$BY$1500,D$4,0) -> 1 | E15: 290 | F15: 40.5 | G15: 11 | H15: 11.5 | I15: 0 | J15: 26 | K15: 30 | L15: 40.8451125 | M15: 1092.08 | N15: =VLOOKUP($A15,$A$28:$BY$1500,N$4,0) -> 2658.729895 | O15: 2993.555749 | P15: 3863.166755 | Q15: N/A | R15: 1 | S15: 1 | T15: 1 | U15: =VLOOKUP($A15,$A$28:$BY$1500,U$4,0)*IF(Vertilina!$J$5=data!$CB$8,0.9,1) ->  | V15: 1463 | W15: 1647 | X15: =VLOOKUP($A15,$A$28:$BY$1500,X$4,0) -> 2126 | Z15: 252 | AA15: 283 | AB15: 366 | AD15: 0.9850493678 | AE15: 1.218307628 | AF15: 1.953021911 | AG15: 0.0003969 | AH15: =VLOOKUP($A15,$A$28:$BY$1500,AH$4,0) -> 1.7346 | AI15: 4 | AJ15: 0.000574288 | AK15: 845.6499591 | AL15: 940.8282302 | AM15: 1128.833173 | AN15: 1 | AO15: 1 | AP15: 1 | AQ15: 952 | AR15: =VLOOKUP($A15,$A$28:$BY$1500,AR$4,0) -> 1060 | AS15: 1271 | AT15: 409 | AU15: 456 | AV15: 547 | AW15: 2.39538496 | AX15: 2.926115972 | AY15: 4.091415594 | AZ15: 3.9 | BA15: 26.69 | BB15: =VLOOKUP($A15,$A$28:$BY$1500,BB$4,0) -> 31.44 | BC15: 49.4 | BD15: 0 | BE15: 1606 | BF15: 0 | BG15: 0.68 | BH15: 0 | BI15: 0 | BJ15: 0 | BK15: 12.3 | BL15: =VLOOKUP($A15,$A$28:$BY$1500,BL$4,0) -> 14.4 | BM15: 21.85 | BN15: 0 | BO15: 1 | BP15: 1 | BQ15: 1 | BR15: 952 | BS15: 1060 | BT15: 1271 | BU15: 0 | BV15: 0 | BW15: 0 | BX15: 0 | BY15: 1 | CA15: MAX | CF15: =IF($CC$17=1,NL!$I5,IF($CC$17=2,EN!$I5,IF($CC$17=3,FR!$I5,IF($CC$17=4,DE!$I5,IF($CC$17=5,NR!$I5,IF($CC$17=6,SP!$I5,IF($CC$17=7,SW!$I5,IF($CC$17=8,TS!$I5,IF($CC$17=9,ExtraTaal1!$I5,IF($CC$17=10,ExtraTaal2!$I5,IF($CC$17=11,ExtraTaal3!$I5,))))))))))) -> Imperial-units
A16: 111 | U16: =VLOOKUP($A16,$A$28:$BY$1500,U$4,0)*IF(Vertilina!$J$5=data!$CB$8,0.9,1) ->  | DF16: =IF($J$4=data!$CC$3,NL!DF3,IF($J$4=data!$CC$4,EN!DF3,IF($J$4=data!$CC$5,FR!DF3,IF($J$4=data!$CC$6,DE!DF3,IF($J$4=data!$CC$7,NR!DF3,IF($J$4=data!$CC$8,SP!DF3,IF($J$4=data!$CC$9,SW!DF3,)))))))&" [cm]" -> [cm] | DG16: =IF($J$4=data!$CC$3,NL!DF19,IF($J$4=data!$CC$4,EN!DF19,IF($J$4=data!$CC$5,FR!DF19,IF($J$4=data!$CC$6,DE!DF19,IF($J$4=data!$CC$7,NR!DF19,IF($J$4=data!$CC$8,SP!DF19,IF($J$4=data!$CC$9,SW!DF19,))))))) -> 0 | DH16: =IF($J$4=data!$CC$3,NL!DG14,IF($J$4=data!$CC$4,EN!DG14,IF($J$4=data!$CC$5,FR!DG14,IF($J$4=data!$CC$6,DE!DG14,IF($J$4=data!$CC$7,NR!DG14,IF($J$4=data!$CC$8,SP!DG14,IF($J$4=data!$CC$9,SW!DG14,)))))))&IF(data!GD2=1," [W]",IF(data!GD2=2," [Btu/h]",)) ->  | DI16: =IF($J$4=data!$CC$3,NL!DH14,IF($J$4=data!$CC$4,EN!DH14,IF($J$4=data!$CC$5,FR!DH14,IF($J$4=data!$CC$6,DE!DH14,IF($J$4=data!$CC$7,NR!DH14,IF($J$4=data!$CC$8,SP!DH14,IF($J$4=data!$CC$9,SW!DH14,)))))))&IF(data!GD2=1," [kg/h]",IF(data!GD2=2," [GPM]**",)) ->  | DJ16: =IF($J$4=data!$CC$3,NL!DJ6,IF($J$4=data!$CC$4,EN!DJ6,IF($J$4=data!$CC$5,FR!DJ6,IF($J$4=data!$CC$6,DE!DJ6,IF($J$4=data!$CC$7,NR!DJ6,IF($J$4=data!$CC$8,SP!DJ6,IF($J$4=data!$CC$9,SW!DJ6,)))))))&" ["&IF(data!GD2=1,"kPa",IF(data!GD2=2,"ftH2O"))&"]" -> [ONWAAR] | DK16: =IF($J$4=data!$CC$3,NL!DI14,IF($J$4=data!$CC$4,EN!DI14,IF($J$4=data!$CC$5,FR!DI14,IF($J$4=data!$CC$6,DE!DI14,IF($J$4=data!$CC$7,NR!DI14,IF($J$4=data!$CC$8,SP!DI14,IF($J$4=data!$CC$9,SW!DI14,)))))))&IF(data!GD2=1," [W]*",IF(data!GD2=2," [Btu/h]*",)) ->  | DL16: =DI16 ->  | DM16: =DJ16 -> [ONWAAR] | DN16: =IF($J$4=data!$CC$3,NL!DM13,IF($J$4=data!$CC$4,EN!DM13,IF($J$4=data!$CC$5,FR!DM13,IF($J$4=data!$CC$6,DE!DM13,IF($J$4=data!$CC$7,NR!DM13,IF($J$4=data!$CC$8,SP!DM13,IF($J$4=data!$CC$9,SW!DM13,))))))) -> 0 | DO16: =IF($J$4=data!$CC$3,NL!DN13,IF($J$4=data!$CC$4,EN!DN13,IF($J$4=data!$CC$5,FR!DN13,IF($J$4=data!$CC$6,DE!DN13,IF($J$4=data!$CC$7,NR!DN13,IF($J$4=data!$CC$9,SW!DN13,)))))) -> 0 | DP16: =IF($J$4=data!$CC$3,NL!DL13,IF($J$4=data!$CC$4,EN!DL13,IF($J$4=data!$CC$5,FR!DL13,IF($J$4=data!$CC$6,DE!DL13,IF($J$4=data!$CC$7,NR!DL13,IF($J$4=data!$CC$8,SP!DL13,IF($J$4=data!$CC$9,SW!DL13,))))))) -> 0 | DQ16: =IF($J$4=data!$CC$3,NL!DK13,IF($J$4=data!$CC$4,EN!DK13,IF($J$4=data!$CC$5,FR!DK13,IF($J$4=data!$CC$6,DE!DK13,IF($J$4=data!$CC$7,NR!DK13,IF($J$4=data!$CC$8,SP!DK13,IF($J$4=data!$CC$9,SW!DK13,)))))))&IF(data!GD2=1," [l]",IF(data!GD2=2," [Gal]**",)) -> 
A17: 111 | U17: =VLOOKUP($A17,$A$28:$BY$1500,U$4,0)*IF(Vertilina!$J$5=data!$CB$8,0.9,1) ->  | CC17: =IF(Vertilina!$J$4=data!CC3,1,IF(Vertilina!$J$4=data!CC4,2,IF(Vertilina!$J$4=data!CC5,3,IF(Vertilina!$J$4=data!CC6,4,IF(Vertilina!$J$4=data!CC7,5,IF(Vertilina!$J$4=data!CC8,6,IF(Vertilina!$J$4=data!CC9,7,IF(Vertilina!$J$4=data!CC10,8,IF(Vertilina!$J$4=data!CC11,9,IF(Vertilina!$J$4=data!CC12,10,IF(Vertilina!$J$4=data!CC13,11))))))))))) -> 2 | DF17: =CONCATENATE($J$5,", ",$K$7, " ",$K$6,"cm, ",$L$7, " ",$L$6) -> 26, 30 30cm, 36,6 35,5122897619372 | DG17: 0 | DH17: 0 | DI17: 0 | DJ17: 0 | DK17: 0 | DL17: 0 | DM17: 0 | DN17: 0 | DO17: 0 | DP17: 0 | DQ17: 0
A18: 111 | U18: =VLOOKUP($A18,$A$28:$BY$1500,U$4,0)*IF(Vertilina!$J$5=data!$CB$8,0.9,1) ->  | DF18: =IF(data!$CB$6=5,"N.v.t.",50) -> 50 | DG18: =BJ5 -> 0 | DH18: =ROUND(IF($BZ$2=1,U5,IF($BZ$2=2,U5*3.412141633,)),0) ->  | DI18: =IF($BZ$2=1,ROUND(Y5,0),IF($BZ$2=2,ROUND(Y5/272.7654,1),)) ->  | DJ18: =IF($BZ$2=1,AC5,IF($BZ$2=2,AC5*0.3346,)) ->  | DN18: 0 | DO18: 0 | DP18: 0 | DQ18: =IF($BZ$2=1,AZ5,IF($BZ$2=2,AZ5/4.54609,)) -> 1.2
A19: 111 | U19: =VLOOKUP($A19,$A$28:$BY$1500,U$4,0)*IF(Vertilina!$J$5=data!$CB$8,0.9,1) ->  | DF19: =IF(data!$CB$6=5,"N.v.t.",50) -> 50 | DG19: =BK5 -> 13.6 | DH19: =ROUND(IF($BZ$2=1,V5,IF($BZ$2=2,V5*3.412141633,)),0) -> 396 | DI19: =IF($BZ$2=1,ROUND(Z5,0),IF($BZ$2=2,ROUND(Z5/272.7654,1),)) -> 68 | DJ19: =IF($BZ$2=1,AD5,IF($BZ$2=2,AD5*0.3346,)) -> 0.04377236387 | DK19: =IF(BY5=1,ROUND(IF($BZ$2=1,AQ5,IF($BZ$2=2,AQ5*3.412141633,)),0),"") -> 253 | DL19: =IF(BY5=1,IF($BZ$2=1,ROUND(AT5,0),IF($BZ$2=2,ROUND(AT5/272.7654,1),)),"") -> 109 | DM19: =IF(BY5=1,IF($BZ$2=1,AW5,IF($BZ$2=2,AW5*0.3346,)),"") -> 0.1071019936 | DN19: =J5 -> 26 | DO19: =DN19+8 -> 34 | DP19: =BA5 -> 9.888835516 | DQ19: =DQ18 -> 1.2
A20: 111 | U20: =VLOOKUP($A20,$A$28:$BY$1500,U$4,0)*IF(Vertilina!$J$5=data!$CB$8,0.9,1) ->  | CN20: 1 | CO20: 2 | CP20: 3 | CQ20: 4 | CR20: 5 | CS20: 6 | CT20: 7 | CU20: 8 | CV20: 9 | DF20: =IF(data!$CB$6=5,"N.v.t.",50) -> 50 | DG20: =BL5 -> 15.6 | DH20: =ROUND(IF($BZ$2=1,W5,IF($BZ$2=2,W5*3.412141633,)),0) -> 438 | DI20: =IF($BZ$2=1,ROUND(AA5,0),IF($BZ$2=2,ROUND(AA5/272.7654,1),)) -> 75 | DJ20: =IF($BZ$2=1,AE5,IF($BZ$2=2,AE5*0.3346,)) -> 0.0526939683 | DK20: =IF(BY5=1,ROUND(IF($BZ$2=1,AR5,IF($BZ$2=2,AR5*3.412141633,)),0),"") -> 273 | DL20: =IF(BY5=1,IF($BZ$2=1,ROUND(AU5,0),IF($BZ$2=2,ROUND(AU5/272.7654,1),)),"") -> 117 | DM20: =IF(BY5=1,IF($BZ$2=1,AX5,IF($BZ$2=2,AX5*0.3346,)),"") -> 0.1225370497 | DN20: =K5 -> 30 | DO20: =L5 -> 34.8451125 | DP20: =BB5 -> 11.47209765 | DQ20: =DQ18 -> 1.2
A21: 111 | U21: =VLOOKUP($A21,$A$28:$BY$1500,U$4,0)*IF(Vertilina!$J$5=data!$CB$8,0.9,1) ->  | CQ21: =VLOOKUP($A$24,$CN$23:$CV$56,CQ$20,0) ->  | DF21: =IF(data!$CB$6=5,"N.v.t.",50) -> 50 | DG21: =BM5 -> 21.85 | DH21: =ROUND(IF($BZ$2=1,X5,IF($BZ$2=2,X5*3.412141633,)),0) -> 491 | DI21: =IF($BZ$2=1,ROUND(AB5,0),IF($BZ$2=2,ROUND(AB5/272.7654,1),)) -> 84 | DJ21: =IF($BZ$2=1,AF5,IF($BZ$2=2,AF5*0.3346,)) -> 0.06531744809 | DK21: =IF(BY5=1,ROUND(IF($BZ$2=1,AS5,IF($BZ$2=2,AS5*3.412141633,)),0),"") -> 293 | DL21: =IF(BY5=1,IF($BZ$2=1,ROUND(AV5,0),IF($BZ$2=2,ROUND(AV5/272.7654,1),)),"") -> 126 | DM21: =IF(BY5=1,IF($BZ$2=1,AY5,IF($BZ$2=2,AY5*0.3346,)),"") -> 0.1410863479 | DN21: =L5 -> 34.8451125 | DO21: =DN21+8 -> 42.8451125 | DP21: =BC5 -> 12.35 | DQ21: =DQ18 -> 1.2
CO22: Raillengte | CP22: Railtype | CQ22: BMS-stuurspanningen | CT22: Opgenomen elektrisch vermogen | DF22: =IF(data!$CB$9=5,81,60) -> 60 | DG22: =BJ6 -> 0 | DH22: =ROUND(IF($BZ$2=1,U6,IF($BZ$2=2,U6*3.412141633,)),0) ->  | DI22: =IF($BZ$2=1,ROUND(Y6,0),IF($BZ$2=2,ROUND(Y6/272.7654,1),)) ->  | DJ22: =IF($BZ$2=1,AC6,IF($BZ$2=2,AC6*0.3346,)) ->  | DN22: 0 | DO22: 0 | DP22: 0 | DQ22: =IF($BZ$2=1,AZ6,IF($BZ$2=2,AZ6/4.54606,)) -> 1.3
CN23: =CONCATENATE(CO23,CP23) -> 5010 | CO23: 50 | CP23: 10 | CQ23: 14.2 | CR23: 16.2 | CS23: 21.85 | CT23: 3.6 | CU23: 4.1 | CV23: 5.1 | DF23: =DF22 -> 60 | DG23: =BK6 -> 13.6 | DH23: =ROUND(IF($BZ$2=1,V6,IF($BZ$2=2,V6*3.412141633,)),0) -> 456 | DI23: =IF($BZ$2=1,ROUND(Z6,0),IF($BZ$2=2,ROUND(Z6/272.7654,1),)) -> 78 | DJ23: =IF($BZ$2=1,AD6,IF($BZ$2=2,AD6*0.3346,)) -> 0.0597366639 | DK23: =IF(BY6=1,ROUND(IF($BZ$2=1,AQ6,IF($BZ$2=2,AQ6*3.412141633,)),0),"") -> 292 | DL23: =IF(BY6=1,IF($BZ$2=1,ROUND(AT6,0),IF($BZ$2=2,ROUND(AT6/272.7654,1),)),"") -> 126 | DM23: =IF(BY6=1,IF($BZ$2=1,AW6,IF($BZ$2=2,AW6*0.3346,)),"") -> 0.1479297162 | DN23: =J6 -> 26 | DO23: =DN23+8 -> 34 | DP23: =BA6 -> 11.09420308 | DQ23: =DQ22 -> 1.3
CN24: =CONCATENATE(CO24,CP24) -> 5015 | CO24: 50 | CP24: 15 | CQ24: 0 | CR24: 0 | CS24: 0 | CT24: 0 | CU24: 0 | CV24: 0 | DF24: =DF22 -> 60 | DG24: =BL6 -> 15.6 | DH24: =ROUND(IF($BZ$2=1,W6,IF($BZ$2=2,W6*3.412141633,)),0) -> 502 | DI24: =IF($BZ$2=1,ROUND(AA6,0),IF($BZ$2=2,ROUND(AA6/272.7654,1),)) -> 86 | DJ24: =IF($BZ$2=1,AE6,IF($BZ$2=2,AE6*0.3346,)) -> 0.07182589684 | DK24: =IF(BY6=1,ROUND(IF($BZ$2=1,AR6,IF($BZ$2=2,AR6*3.412141633,)),0),"") -> 315 | DL24: =IF(BY6=1,IF($BZ$2=1,ROUND(AU6,0),IF($BZ$2=2,ROUND(AU6/272.7654,1),)),"") -> 135 | DM24: =IF(BY6=1,IF($BZ$2=1,AX6,IF($BZ$2=2,AX6*0.3346,)),"") -> 0.1685971488 | DN24: =K6 -> 30 | DO24: =DN24+8 -> 38 | DP24: =BB6 -> 12.74071773 | DQ24: =DQ22 -> 1.3
CN25: 6010 | CO25: 60 | CP25: 10 | CQ25: 13.6 | CR25: 15.6 | CS25: 21.85 | CT25: 4.8 | CU25: 5.4 | CV25: 6.8 | DF25: =DF22 -> 60 | DG25: =BM6 -> 21.85 | DH25: =ROUND(IF($BZ$2=1,X6,IF($BZ$2=2,X6*3.412141633,)),0) -> 572 | DI25: =IF($BZ$2=1,ROUND(AB6,0),IF($BZ$2=2,ROUND(AB6/272.7654,1),)) -> 98 | DJ25: =IF($BZ$2=1,AF6,IF($BZ$2=2,AF6*0.3346,)) -> 0.09193254861 | DK25: =IF(BY6=1,ROUND(IF($BZ$2=1,AS6,IF($BZ$2=2,AS6*3.412141633,)),0),"") -> 342 | DL25: =IF(BY6=1,IF($BZ$2=1,ROUND(AV6,0),IF($BZ$2=2,ROUND(AV6/272.7654,1),)),"") -> 147 | DM25: =IF(BY6=1,IF($BZ$2=1,AY6,IF($BZ$2=2,AY6*0.3346,)),"") -> 0.198152609 | DN25: =L6 -> 35.51228976 | DO25: =DN25+8 -> 43.51228976 | DP25: =BC6 -> 14.40833333 | DQ25: =DQ22 -> 1.3
I26: soundpressure level | M26: power | N26: 45/40/20 | Q26: n | U26: result | V26: power | Y26: result | Z26: flow | AC26: static pressure loss | AK26: power | AL26: 16/20/27 | AN26: n | AQ26: result | AR26: power | AT26: result | AU26: flow | AW26: static pressure loss | BA26: electrical power nominal | BE26: oude cataloog | BG26: Statisch met rail / statisch cataloog | BL26: BMS-stuurspanning | BO26: Sensible heat factor | BR26: Total cooling capacity | BV26: Diff. Total and sensible | BY26: Show or not | CN26: 6015 | CO26: 60 | CP26: 15 | CQ26: 12.3 | CR26: 14.4 | CS26: 21.85 | CT26: 4.8 | CU26: 5.5 | CV26: 7.2 | DF26: =IF(data!$CB$9=5,101,70) -> 70 | DG26: =BJ7 -> 0 | DH26: =ROUND(IF($BZ$2=1,U7,IF($BZ$2=2,U7*3.412141633,)),0) ->  | DI26: =IF($BZ$2=1,ROUND(Y7,0),IF($BZ$2=2,ROUND(Y7/272.7654,1),)) ->  | DJ26: =IF($BZ$2=1,AC7,IF($BZ$2=2,AC7*0.3346,)) ->  | DN26: 0 | DO26: 0 | DP26: 0 | DQ26: =IF($BZ$2=1,AZ7,IF($BZ$2=2,AZ7/4.54609,)) -> 1.6
A27: lookup code | B27: L,rail | C27: T,rail | D27: toestel | E27: height | F27: length | G27: type | H27: depth | I27: 0 | J27: 1 | K27: 2 | L27: 3 | M27: 0 | N27: 1 | O27: 2 | P27: 3 | Q27: 0 | R27: 1 | S27: 2 | T27: 3 | U27: 0 | V27: 1 | W27: 2 | X27: 3 | Y27: 0 | Z27: 1 | AA27: 2 | AB27: 3 | AC27: 0 | AD27: 1 | AE27: 2 | AF27: 3 | AG27: k1 | AH27: n | AI27: t | AJ27: k2 | AK27: 1 | AL27: 2 | AM27: 3 | AN27: 1 | AO27: 2 | AP27: 3 | AQ27: 1 | AR27: 2 | AS27: 3 | AT27: 1 | AU27: 2 | AV27: 3 | AW27: 1 | AX27: 2 | AY27: 3 | AZ27: watervolume | BA27: 1 | BB27: 2 | BC27: 3 | BE27: Static,H | BF27: Static,C | BJ27: 0 | BK27: 1 | BL27: 2 | BM27: 3 | BO27: SHF 1 | BP27: SHF 2 | BQ27: SHF 3 | BR27: Q,t 1 | BS27: Q,t 2 | BT27: Q,t 3 | BV27: ΔQ,t,s 1 | BW27: ΔQ,t,s 2 | BX27: ΔQ,t,s 3 | BY27: OK/NOTOK | CN27: 7010 | CO27: 70 | CP27: 10 | CQ27: 13.2 | CR27: 15.1 | CS27: 21.85 | CT27: 5.5 | CU27: 5.9 | CV27: 7.9 | DF27: =DF26 -> 70 | DG27: =BK7 -> 13.6 | DH27: =ROUND(IF($BZ$2=1,V7,IF($BZ$2=2,V7*3.412141633,)),0) -> 571 | DI27: =IF($BZ$2=1,ROUND(Z7,0),IF($BZ$2=2,ROUND(Z7/272.7654,1),)) -> 98 | DJ27: =IF($BZ$2=1,AD7,IF($BZ$2=2,AD7*0.3346,)) -> 0.1007832546 | DK27: =IF(BY7=1,ROUND(IF($BZ$2=1,AQ7,IF($BZ$2=2,AQ7*3.412141633,)),0),"") -> 367 | DL27: =IF(BY7=1,IF($BZ$2=1,ROUND(AT7,0),IF($BZ$2=2,ROUND(AT7/272.7654,1),)),"") -> 158 | DM27: =IF(BY7=1,IF($BZ$2=1,AW7,IF($BZ$2=2,AW7*0.3346,)),"") -> 0.2475072867 | DN27: =J7 -> 26 | DO27: =DN27+8 -> 34 | DP27: =BA7 -> 13.39581572 | DQ27: =DQ26 -> 1.6
A28: =CONCATENATE(D28,E28,G28) -> 11008 | D28: 1 | E28: 100 | F28: 40.5 | G28: 8 | H28: 9.5 | I28: 0 | J28: 26 | K28: 30 | L28: 30.9 | M28: =IF($N28-($BE28*$BG28)>100,$BE28*$BG28,$N28-95) -> 0 | N28: 531.0838856 | O28: 593.5851294 | P28: 603.75006 | Q28: N/A | R28: 1 | S28: 1 | T28: 1 | U28: =ROUND(M28*POWER(CF_heat,Q28),0) ->  | V28: =ROUND(N28*POWER(CF_heat,R28),0) -> 292 | W28: =ROUND(O28*POWER(CF_heat,S28),0) -> 327 | X28: =ROUND(P28*POWER(CF_heat,T28),0) -> 332 | Y28: =ROUND(U28*3600/(4186*ABS($O$1-$O$2)),0) ->  | Z28: =ROUND(V28*3600/(4186*ABS($O$1-$O$2)),0) -> 50 | AA28: =ROUND(W28*3600/(4186*ABS($O$1-$O$2)),0) -> 56 | AB28: =ROUND(X28*3600/(4186*ABS($O$1-$O$2)),0) -> 57 | AC28: =(($AG28*(Y28^$AH28)*((($F28-14.4)*$AI28)/100))+($AJ28*(Y28^2)))*0.0098 ->  | AD28: =(($AG28*(Z28^$AH28)*((($E28-14.4)*$AI28)/100))+($AJ28*(Z28^2)))*0.0098 -> 0.0684865648 | AE28: =(($AG28*(AA28^$AH28)*((($E28-14.4)*$AI28)/100))+($AJ28*(AA28^2)))*0.0098 -> 0.08488900001 | AF28: =(($AG28*(AB28^$AH28)*((($E28-14.4)*$AI28)/100))+($AJ28*(AB28^2)))*0.0098 -> 0.08778495858 | AG28: =IF($G28=$CO$103,CP$103,IF($G28=$CO$104,CP$104,IF($G28=$CO$105,CP$105,IF($G28=$CO$107,CP$107,IF($G28=$CO$108,CP$108,IF($G28=$CO$109,CP$109,IF($G28=$CO$111,CP$111,IF($G28=$CO$112,CP$112,IF($G28=$CO$113,CP$113,IF($G28=$CO$115,CP$115,IF($G28=$CO$116,CP$116,IF($G28=$CO$117,CP$117,IF($G28=$CO$119,CP$119,IF($G28=$CO$120,CP$120,)))))))))))))) -> 0.000937 | AH28: =IF($G28=$CO$103,CQ$103,IF($G28=$CO$104,CQ$104,IF($G28=$CO$105,CQ$105,IF($G28=$CO$107,CQ$107,IF($G28=$CO$108,CQ$108,IF($G28=$CO$109,CQ$109,IF($G28=$CO$111,CQ$111,IF($G28=$CO$112,CQ$112,IF($G28=$CO$113,CQ$113,IF($G28=$CO$115,CQ$115,IF($G28=$CO$116,CQ$116,IF($G28=$CO$117,CQ$117,IF($G28=$CO$119,CQ$119,IF($G28=$CO$120,CQ$120,)))))))))))))) -> 1.789 | AI28: =IF($G28=$CO$103,CR$103,IF($G28=$CO$104,CR$104,IF($G28=$CO$105,CR$105,IF($G28=$CO$107,CR$107,IF($G28=$CO$108,CR$108,IF($G28=$CO$109,CR$109,IF($G28=$CO$111,CR$111,IF($G28=$CO$112,CR$112,IF($G28=$CO$113,CR$113,IF($G28=$CO$115,CR$115,IF($G28=$CO$116,CR$116,IF($G28=$CO$117,CR$117,IF($G28=$CO$119,CR$119,IF($G28=$CO$120,CR$120,)))))))))))))) -> 4 | AJ28: =IF($G28=$CO$103,CS$103,IF($G28=$CO$104,CS$104,IF($G28=$CO$105,CS$105,IF($G28=$CO$107,CS$107,IF($G28=$CO$108,CS$108,IF($G28=$CO$109,CS$109,IF($G28=$CO$111,CS$111,IF($G28=$CO$112,CS$112,IF($G28=$CO$113,CS$113,IF($G28=$CO$115,CS$115,IF($G28=$CO$116,CS$116,IF($G28=$CO$117,CS$117,IF($G28=$CO$119,CS$119,IF($G28=$CO$120,CS$120,)))))))))))))) -> 0.00139 | AK28: 165.2042479 | AL28: 176.5748905 | AM28: 177.9165359 | AN28: 1 | AO28: 1 | AP28: 1 | AQ28: =ROUND(AK28*POWER(CF_cool,AN28),0) -> 186 | AR28: =ROUND(AL28*POWER(CF_cool,AO28),0) -> 199 | AS28: =ROUND(AM28*POWER(CF_cool,AP28),0) -> 200 | AT28: =ROUND(AQ28*3600/(4186*ABS($AM$1-$AM$2)),0) -> 80 | AU28: =ROUND(AR28*3600/(4186*ABS($AM$1-$AM$2)),0) -> 86 | AV28: =ROUND(AS28*3600/(4186*ABS($AM$1-$AM$2)),0) -> 86 | AW28: =(($AG28*(AT28^$AH28)*((($E28-14.4)*$AI28)/100))+($AJ28*(AT28^2)))*0.0098 -> 0.167003683 | AX28: =(($AG28*(AU28^$AH28)*((($E28-14.4)*$AI28)/100))+($AJ28*(AU28^2)))*0.0098 -> 0.1915966846 | AY28: =(($AG28*(AV28^$AH28)*((($E28-14.4)*$AI28)/100))+($AJ28*(AV28^2)))*0.0098 -> 0.1915966846 | AZ28: =AZ40/2 -> 0.65 | BA28: 3.967998642 | BB28: 4.517832689 | BC28: 4.571428571 | BE28: 449 | BG28: =IF(G28=10,0.9,IF(G28=11,0.68,IF(G28=15,0.8,IF(G28=16,0.68,IF(G28=20,0.8,IF(G28=21,0.8)))))) -> FALSE | BJ28: 0 | BK28: 14.2 | BL28: 16.2 | BM28: 21.85 | BO28: =IF((237.3*LN(($AQ$1*EXP(17.27*($AM$3/($AM$3+237.3))))))/(17.27-LN(($AQ$1*EXP(17.27*($AM$3/($AM$3+237.3))))))<(($AM$1+$AM$2)/2),1,IF(1/(1+((2258*((0.622/((101325/(1*611*EXP(17.27*((($AM$1+$AM$2)/2)/((($AM$1+$AM$2)/2)+237.3))))))-1)*1000-(0.622/((101325/($AQ$1*611*EXP(17.27*($AM$3/($AM$3+237.3))))))-1)*1000))/(1005*((($AM$1+$AM$2)/2)-$AM$3))))>1,1,1/(1+((2258*((0.622/((101325/(1*611*EXP(17.27*((($AM$1+$AM$2)/2)/((($AM$1+$AM$2)/2)+237.3))))))-1)*1000-(0.622/((101325/($AQ$1*611*EXP(17.27*($AM$3/($AM$3+237.3))))))-1)*1000))/(1005*((($AM$1+$AM$2)/2)-$AM$3)))))) -> 1 | BP28: =IF((237.3*LN(($AQ$1*EXP(17.27*($AM$3/($AM$3+237.3))))))/(17.27-LN(($AQ$1*EXP(17.27*($AM$3/($AM$3+237.3))))))<(($AM$1+$AM$2)/2),1,IF(1/(1+((2258*((0.622/((101325/(1*611*EXP(17.27*((($AM$1+$AM$2)/2)/((($AM$1+$AM$2)/2)+237.3))))))-1)*1000-(0.622/((101325/($AQ$1*611*EXP(17.27*($AM$3/($AM$3+237.3))))))-1)*1000))/(1005*((($AM$1+$AM$2)/2)-$AM$3))))>1,1,1/(1+((2258*((0.622/((101325/(1*611*EXP(17.27*((($AM$1+$AM$2)/2)/((($AM$1+$AM$2)/2)+237.3))))))-1)*1000-(0.622/((101325/($AQ$1*611*EXP(17.27*($AM$3/($AM$3+237.3))))))-1)*1000))/(1005*((($AM$1+$AM$2)/2)-$AM$3)))))) -> 1 | BQ28: 1 | BR28: =AQ28/BO28 -> 186 | BS28: =AR28/BP28 -> 199 | BT28: =AS28/BQ28 -> 200 | BV28: =BR28-AQ28 -> 0 | BW28: =BS28-AR28 -> 0 | BX28: =BT28-AS28 -> 0 | BY28: =IF(SUM(BV28:BX28)=0,1,0) -> 1 | CN28: 7015 | CO28: 70 | CP28: 15 | CQ28: 12.3 | CR28: 14.4 | CS28: 21.85 | CT28: 5.1 | CU28: 5.6 | CV28: 7.2 | DF28: =DF26 -> 70 | DG28: =BL7 -> 15.6 | DH28: =ROUND(IF($BZ$2=1,W7,IF($BZ$2=2,W7*3.412141633,)),0) -> 629 | DI28: =IF($BZ$2=1,ROUND(AA7,0),IF($BZ$2=2,ROUND(AA7/272.7654,1),)) -> 108 | DJ28: =IF($BZ$2=1,AE7,IF($BZ$2=2,AE7*0.3346,)) -> 0.1209557973 | DK28: =IF(BY7=1,ROUND(IF($BZ$2=1,AR7,IF($BZ$2=2,AR7*3.412141633,)),0),"") -> 397 | DL28: =IF(BY7=1,IF($BZ$2=1,ROUND(AU7,0),IF($BZ$2=2,ROUND(AU7/272.7654,1),)),"") -> 171 | DM28: =IF(BY7=1,IF($BZ$2=1,AX7,IF($BZ$2=2,AX7*0.3346,)),"") -> 0.2873090082 | DN28: =K7 -> 30 | DO28: =DN28+8 -> 38 | DP28: =BB7 -> 15.19527547 | DQ28: =DQ26 -> 1.6
A29: =CONCATENATE(D29,E29,G29) -> 11208 | D29: 1 | E29: 120 | F29: 40.5 | G29: 8 | H29: 9.5 | I29: 0 | J29: 26 | K29: 30 | L29: 31.5 | M29: 0 | N29: 660.9183241 | O29: 754.0763423 | P29: 776.2499241 | Q29: N/A | R29: 1 | S29: 1 | T29: 1 | V29: =ROUND(N29*POWER(CF_heat,R29),0) -> 364 | W29: 415 | X29: 427 | Z29: 63 | AA29: 71 | AB29: 73 | AC29: =(($AG29*(Y29^$AH29)*((($F29-14.4)*$AI29)/100))+($AJ29*(Y29^2)))*0.0098 ->  | AD29: =(($AG29*(Z29^$AH29)*((($E29-14.4)*$AI29)/100))+($AJ29*(Z29^2)))*0.0098 -> 0.1182915618 | AE29: =(($AG29*(AA29^$AH29)*((($E29-14.4)*$AI29)/100))+($AJ29*(AA29^2)))*0.0098 -> 0.1482094499 | AF29: =(($AG29*(AB29^$AH29)*((($E29-14.4)*$AI29)/100))+($AJ29*(AB29^2)))*0.0098 -> 0.1561854582 | AG29: =IF($G29=$CO$103,CP$103,IF($G29=$CO$104,CP$104,IF($G29=$CO$105,CP$105,IF($G29=$CO$107,CP$107,IF($G29=$CO$108,CP$108,IF($G29=$CO$109,CP$109,IF($G29=$CO$111,CP$111,IF($G29=$CO$112,CP$112,IF($G29=$CO$113,CP$113,IF($G29=$CO$115,CP$115,IF($G29=$CO$116,CP$116,IF($G29=$CO$117,CP$117,IF($G29=$CO$119,CP$119,IF($G29=$CO$120,CP$120,)))))))))))))) -> 0.000937 | AH29: 1.789 | AI29: 4 | AJ29: 0.00139 | AK29: 207.5531778 | AL29: 225.6901508 | AM29: 228.7498828 | AN29: 1 | AO29: 1 | AP29: 1 | AQ29: 234 | AR29: 254 | AS29: 258 | AT29: 101 | AU29: 109 | AV29: 111 | AW29: =(($AG29*(AT29^$AH29)*((($E29-14.4)*$AI29)/100))+($AJ29*(AT29^2)))*0.0098 -> 0.2883820756 | AX29: =(($AG29*(AU29^$AH29)*((($E29-14.4)*$AI29)/100))+($AJ29*(AU29^2)))*0.0098 -> 0.3330988972 | AY29: =(($AG29*(AV29^$AH29)*((($E29-14.4)*$AI29)/100))+($AJ29*(AV29^2)))*0.0098 -> 0.3447548103 | AZ29: =AZ41/2 -> 0.8 | BA29: 4.588867564 | BB29: 5.312684686 | BC29: 5.714285714 | BE29: 538 | BG29: FALSE | BJ29: 0 | BK29: 14.2 | BL29: 16.2 | BM29: 21.85 | BO29: =IF((237.3*LN(($AQ$1*EXP(17.27*($AM$3/($AM$3+237.3))))))/(17.27-LN(($AQ$1*EXP(17.27*($AM$3/($AM$3+237.3))))))<(($AM$1+$AM$2)/2),1,IF(1/(1+((2258*((0.622/((101325/(1*611*EXP(17.27*((($AM$1+$AM$2)/2)/((($AM$1+$AM$2)/2)+237.3))))))-1)*1000-(0.622/((101325/($AQ$1*611*EXP(17.27*($AM$3/($AM$3+237.3))))))-1)*1000))/(1005*((($AM$1+$AM$2)/2)-$AM$3))))>1,1,1/(1+((2258*((0.622/((101325/(1*611*EXP(17.27*((($AM$1+$AM$2)/2)/((($AM$1+$AM$2)/2)+237.3))))))-1)*1000-(0.622/((101325/($AQ$1*611*EXP(17.27*($AM$3/($AM$3+237.3))))))-1)*1000))/(1005*((($AM$1+$AM$2)/2)-$AM$3)))))) -> 1 | BP29: 1 | BQ29: 1 | BR29: 234 | BS29: =AR29/BP29 -> 254 | BT29: =AS29/BQ29 -> 258 | BV29: =BR29-AQ29 -> 0 | BW29: 0 | BX29: 0 | BY29: =IF(SUM(BV29:BX29)=0,1,0) -> 1 | CN29: 8010 | CO29: 80 | CP29: 10 | CQ29: 12.8 | CR29: 14.7 | CS29: 21.85 | CT29: 6.3 | CU29: 6.8 | CV29: 9.1 | DF29: =DF26 -> 70 | DG29: =BM7 -> 21.85 | DH29: =ROUND(IF($BZ$2=1,X7,IF($BZ$2=2,X7*3.412141633,)),0) -> 736 | DI29: =IF($BZ$2=1,ROUND(AB7,0),IF($BZ$2=2,ROUND(AB7/272.7654,1),)) -> 127 | DJ29: =IF($BZ$2=1,AF7,IF($BZ$2=2,AF7*0.3346,)) -> 0.1640381021 | DK29: =IF(BY7=1,ROUND(IF($BZ$2=1,AS7,IF($BZ$2=2,AS7*3.412141633,)),0),"") -> 440 | DL29: =IF(BY7=1,IF($BZ$2=1,ROUND(AV7,0),IF($BZ$2=2,ROUND(AV7/272.7654,1),)),"") -> 189 | DM29: =IF(BY7=1,IF($BZ$2=1,AY7,IF($BZ$2=2,AY7*0.3346,)),"") -> 0.3470482952 | DN29: =L7 -> 36.6 | DO29: =DN29+8 -> 44.6 | DP29: =BC7 -> 18.525 | DQ29: =DQ26 -> 1.6
A30: 11508 | D30: 1 | E30: 150 | F30: 40.5 | G30: 8 | H30: 9.5 | I30: 0 | J30: 26 | K30: 30 | L30: 32.5 | M30: 0 | N30: 827.5812844 | O30: 984.8027473 | P30: 1034.999899 | Q30: N/A | R30: 1 | S30: 1 | T30: 1 | V30: 455 | W30: 542 | X30: 570 | Z30: 78 | AA30: 93 | AB30: 98 | AD30: 0.2037251174 | AE30: 0.2833560649 | AF30: 0.3126235606 | AG30: 0.000937 | AH30: 1.789 | AI30: 4 | AJ30: 0.00139 | AK30: 263.932795 | AL30: 297.6018721 | AM30: 305.0000816 | AN30: 1 | AO30: 1 | AP30: 1 | AQ30: 297 | AR30: 335 | AS30: 343 | AT30: 128 | AU30: 144 | AV30: 147 | AW30: 0.5163288551 | AX30: 0.6443718441 | AY30: 0.6698630878 | AZ30: 1 | BA30: 5.588403094 | BB30: 6.763114515 | BC30: 8 | BE30: 606 | BG30: FALSE | BJ30: 0 | BK30: 14.2 | BL30: 16.2 | BM30: 21.85 | BO30: =IF((237.3*LN(($AQ$1*EXP(17.27*($AM$3/($AM$3+237.3))))))/(17.27-LN(($AQ$1*EXP(17.27*($AM$3/($AM$3+237.3))))))<(($AM$1+$AM$2)/2),1,IF(1/(1+((2258*((0.622/((101325/(1*611*EXP(17.27*((($AM$1+$AM$2)/2)/((($AM$1+$AM$2)/2)+237.3))))))-1)*1000-(0.622/((101325/($AQ$1*611*EXP(17.27*($AM$3/($AM$3+237.3))))))-1)*1000))/(1005*((($AM$1+$AM$2)/2)-$AM$3))))>1,1,1/(1+((2258*((0.622/((101325/(1*611*EXP(17.27*((($AM$1+$AM$2)/2)/((($AM$1+$AM$2)/2)+237.3))))))-1)*1000-(0.622/((101325/($AQ$1*611*EXP(17.27*($AM$3/($AM$3+237.3))))))-1)*1000))/(1005*((($AM$1+$AM$2)/2)-$AM$3)))))) -> 1 | BP30: 1 | BQ30: 1 | BR30: 297 | BS30: 335 | BT30: 343 | BV30: 0 | BW30: 0 | BX30: 0 | BY30: 1 | CN30: 8015 | CO30: 80 | CP30: 15 | CQ30: 11.8 | CR30: 13.7 | CS30: 21.85 | CT30: 6 | CU30: 6.7 | CV30: 9 | DF30: =IF(data!$CB$9=5,121,80) -> 80 | DG30: =BJ8 -> 0 | DH30: =ROUND(IF($BZ$2=1,U8,IF($BZ$2=2,U8*3.412141633,)),0) ->  | DI30: =IF($BZ$2=1,ROUND(Y8,0),IF($BZ$2=2,ROUND(Y8/272.7654,1),)) ->  | DJ30: =IF($BZ$2=1,AC8,IF($BZ$2=2,AC8*0.3346,)) ->  | DN30: 0 | DO30: 0 | DP30: 0 | DQ30: =IF($BZ$2=1,AZ8,IF($BZ$2=2,AZ8/4.54609,)) -> 2
A31: 11708 | D31: 1 | E31: 170 | F31: 40.5 | G31: 8 | H31: 9.5 | I31: 0 | J31: 26 | K31: 30 | L31: 34.1 | M31: 0 | N31: 935.3254718 | O31: 1110.061114 | P31: 1207.50012 | Q31: N/A | R31: 1 | S31: 1 | T31: 1 | V31: 515 | W31: 611 | X31: 665 | Z31: 89 | AA31: 105 | AB31: 114 | AD31: 0.2834875144 | AE31: 0.3861993439 | AF31: 0.4504563916 | AG31: 0.000937 | AH31: 1.789 | AI31: 4 | AJ31: 0.00139 | AK31: 300.2905047 | AL31: 340.167237 | AM31: 355.8334287 | AN31: 1 | AO31: 1 | AP31: 1 | AQ31: 338 | AR31: 383 | AS31: 401 | AT31: 145 | AU31: 165 | AV31: 172 | AW31: 0.7068605368 | AX31: 0.9006614786 | AY31: 0.9736771763 | AZ31: 1.15 | BA31: 5.978002617 | BB31: 7.423357195 | BC31: 9.142857143 | BE31: 598 | BG31: FALSE | BJ31: 0 | BK31: 14.2 | BL31: 16.2 | BM31: 21.85 | BO31: 1 | BP31: 1 | BQ31: 1 | BR31: 338 | BS31: 383 | BT31: 401 | BV31: 0 | BW31: 0 | BX31: 0 | BY31: 1 | CN31: 9010 | CO31: 90 | CP31: 10 | CQ31: 12.5 | CR31: 14.7 | CS31: 21.85 | CT31: 6.7 | CU31: 7.4 | CV31: 10.3 | DF31: =DF30 -> 80 | DG31: =BK8 -> 12.3 | DH31: =ROUND(IF($BZ$2=1,V8,IF($BZ$2=2,V8*3.412141633,)),0) -> 739 | DI31: =IF($BZ$2=1,ROUND(Z8,0),IF($BZ$2=2,ROUND(Z8/272.7654,1),)) -> 127 | DJ31: =IF($BZ$2=1,AD8,IF($BZ$2=2,AD8*0.3346,)) -> 0.1848516614 | DK31: =IF(BY8=1,ROUND(IF($BZ$2=1,AQ8,IF($BZ$2=2,AQ8*3.412141633,)),0),"") -> 477 | DL31: =IF(BY8=1,IF($BZ$2=1,ROUND(AT8,0),IF($BZ$2=2,ROUND(AT8/272.7654,1),)),"") -> 205 | DM31: =IF(BY8=1,IF($BZ$2=1,AW8,IF($BZ$2=2,AW8*0.3346,)),"") -> 0.4523890388 | DN31: =J8 -> 26 | DO31: =DN31+8 -> 34 | DP31: =BA8 -> 16.55811632 | DQ31: =DQ30 -> 2
A32: 11908 | D32: 1 | E32: 190 | F32: 40.5 | G32: 8 | H32: 9.5 | I32: 0 | J32: 26 | K32: 30 | L32: 34.7 | M32: 0 | N32: 1034.640879 | O32: 1249.245455 | P32: 1379.999984 | Q32: N/A | R32: 1 | S32: 1 | T32: 1 | V32: 569 | W32: 688 | X32: 759 | Z32: 98 | AA32: 118 | AB32: 131 | AD32: 0.3662512517 | AE32: 0.5178791545 | AF32: 0.6294511676 | AG32: 0.000937 | AH32: 1.789 | AI32: 4 | AJ32: 0.00139 | AK32: 334.24446 | AL32: 384.9537891 | AM32: 406.6667755 | AN32: 1 | AO32: 1 | AP32: 1 | AQ32: 376 | AR32: 434 | AS32: 458 | AT32: 162 | AU32: 187 | AV32: 197 | AW32: 0.9360879092 | AX32: 1.224301571 | AY32: 1.349669603 | AZ32: 1.25 | BA32: 6.300101252 | BB32: 8.042539944 | BC32: 10.28571429 | BE32: 693 | BG32: FALSE | BJ32: 0 | BK32: 14.2 | BL32: 16.2 | BM32: 21.85 | BO32: 1 | BP32: 1 | BQ32: 1 | BR32: 376 | BS32: 434 | BT32: 458 | BV32: 0 | BW32: 0 | BX32: 0 | BY32: 1 | CN32: 9015 | CO32: 90 | CP32: 15 | CQ32: 11.3 | CR32: 13.2 | CS32: 21.85 | CT32: 7 | CU32: 7.7 | CV32: 10.7 | DF32: =DF30 -> 80 | DG32: =BL8 -> 14.4 | DH32: =ROUND(IF($BZ$2=1,W8,IF($BZ$2=2,W8*3.412141633,)),0) -> 814 | DI32: =IF($BZ$2=1,ROUND(AA8,0),IF($BZ$2=2,ROUND(AA8/272.7654,1),)) -> 140 | DJ32: =IF($BZ$2=1,AE8,IF($BZ$2=2,AE8*0.3346,)) -> 0.2217131779 | DK32: =IF(BY8=1,ROUND(IF($BZ$2=1,AR8,IF($BZ$2=2,AR8*3.412141633,)),0),"") -> 517 | DL32: =IF(BY8=1,IF($BZ$2=1,ROUND(AU8,0),IF($BZ$2=2,ROUND(AU8/272.7654,1),)),"") -> 222 | DM32: =IF(BY8=1,IF($BZ$2=1,AX8,IF($BZ$2=2,AX8*0.3346,)),"") -> 0.5252338984 | DN32: =K8 -> 30 | DO32: =DN32+8 -> 38 | DP32: =BB8 -> 18.74396404 | DQ32: =DQ30 -> 2
A33: 12108 | D33: 1 | E33: 210 | F33: 40.5 | G33: 8 | H33: 9.5 | I33: 0 | J33: 26 | K33: 30 | L33: 35.2 | M33: 0 | N33: 1125.296306 | O33: 1384.762802 | P33: 1552.499848 | Q33: N/A | R33: 1 | S33: 1 | T33: 1 | V33: 619 | W33: 762 | X33: 854 | Z33: 106 | AA33: 131 | AB33: 147 | AD33: 0.4548202872 | AE33: 0.6745176853 | AF33: 0.8360158708 | AG33: 0.000937 | AH33: 1.789 | AI33: 4 | AJ33: 0.00139 | AK33: 365.6603353 | AL33: 428.8537824 | AM33: 457.5001226 | AN33: 1 | AO33: 1 | AP33: 1 | AQ33: 412 | AR33: 483 | AS33: 515 | AT33: 177 | AU33: 208 | AV33: 221 | AW33: 1.181888348 | AX33: 1.597224499 | AY33: 1.78865485 | AZ33: 1.4 | BA33: 6.558604409 | BB33: 8.621945474 | BC33: 11.42857143 | BE33: 772 | BG33: FALSE | BJ33: 0 | BK33: 14.2 | BL33: 16.2 | BM33: 21.85 | BO33: 1 | BP33: 1 | BQ33: 1 | BR33: 412 | BS33: 483 | BT33: 515 | BV33: 0 | BW33: 0 | BX33: 0 | BY33: 1 | CN33: 10010 | CO33: 100 | CP33: 10 | CQ33: 12.3 | CR33: 14.1 | CS33: 21.85 | CT33: 7.8 | CU33: 8.7 | CV33: 12.2 | DF33: =DF30 -> 80 | DG33: =BM8 -> 21.85 | DH33: =ROUND(IF($BZ$2=1,X8,IF($BZ$2=2,X8*3.412141633,)),0) -> 981 | DI33: =IF($BZ$2=1,ROUND(AB8,0),IF($BZ$2=2,ROUND(AB8/272.7654,1),)) -> 169 | DJ33: =IF($BZ$2=1,AF8,IF($BZ$2=2,AF8*0.3346,)) -> 0.3151674894 | DK33: =IF(BY8=1,ROUND(IF($BZ$2=1,AS8,IF($BZ$2=2,AS8*3.412141633,)),0),"") -> 587 | DL33: =IF(BY8=1,IF($BZ$2=1,ROUND(AV8,0),IF($BZ$2=2,ROUND(AV8/272.7654,1),)),"") -> 252 | DM33: =IF(BY8=1,IF($BZ$2=1,AY8,IF($BZ$2=2,AY8*0.3346,)),"") -> 0.6662154032 | DN33: =L8 -> 37.8451125 | DO33: =DN33+8 -> 45.8451125 | DP33: =BC8 -> 24.7 | DQ33: =DQ30 -> 2
A34: 12308 | D34: 1 | E34: 230 | F34: 40.5 | G34: 8 | H34: 9.5 | I34: 0 | J34: 26 | K34: 30 | L34: 35.7 | M34: 0 | N34: 1207.033476 | O34: 1516.574431 | P34: 1725.00007 | Q34: N/A | R34: 1 | S34: 1 | T34: 1 | V34: 664 | W34: 835 | X34: 949 | Z34: 114 | AA34: 144 | AB34: 163 | AD34: 0.5558901498 | AE34: 0.8578857391 | AF34: 1.080176894 | AG34: 0.000937 | AH34: 1.789 | AI34: 4 | AJ34: 0.00139 | AK34: 394.3977098 | AL34: 471.8389309 | AM34: 508.3334695 | AN34: 1 | AO34: 1 | AP34: 1 | AQ34: 444 | AR34: 531 | AS34: 572 | AT34: 191 | AU34: 228 | AV34: 246 | AW34: 1.450712975 | AX34: 2.017367827 | AY34: 2.324231739 | AZ34: 1.55 | BA34: 6.757156595 | BB34: 9.162662944 | BC34: 12.57142857 | BE34: 539 | BG34: FALSE | BJ34: 0 | BK34: 13.6 | BL34: 15.6 | BM34: 21.85 | BO34: 1 | BP34: 1 | BQ34: 1 | BR34: 444 | BS34: 531 | BT34: 572 | BV34: 0 | BW34: 0 | BX34: 0 | BY34: 1 | CN34: 10015 | CO34: 100 | CP34: 15 | CQ34: 10.9 | CR34: 12.8 | CS34: 21.85 | CT34: 7 | CU34: 7.7 | CV34: 10.7 | DF34: =IF(data!$CB$9=5,141,90) -> 90 | DG34: =BJ9 -> 0 | DH34: =ROUND(IF($BZ$2=1,U9,IF($BZ$2=2,U9*3.412141633,)),0) ->  | DI34: =IF($BZ$2=1,ROUND(Y9,0),IF($BZ$2=2,ROUND(Y9/272.7654,1),)) ->  | DJ34: =IF($BZ$2=1,AC9,IF($BZ$2=2,AC9*0.3346,)) ->  | DN34: 0 | DO34: 0 | DP34: 0 | DQ34: =IF($BZ$2=1,AZ9,IF($BZ$2=2,AZ9/4.54609,)) -> 2.3
A35: 12508 | D35: 1 | E35: 250 | F35: 40.5 | G35: 8 | H35: 9.5 | I35: 0 | J35: 26 | K35: 30 | L35: 36.2 | M35: 0 | N35: 1279.57624 | O35: 1644.619871 | P35: 1897.499934 | Q35: N/A | R35: 1 | S35: 1 | T35: 1 | V35: 704 | W35: 905 | X35: 1044 | Z35: 121 | AA35: 156 | AB35: 180 | AD35: 0.6600185313 | AE35: 1.057110967 | AF35: 1.378663243 | AG35: 0.000937 | AH35: 1.789 | AI35: 4 | AJ35: 0.00139 | AK35: 420.3119393 | AL35: 513.8753875 | AM35: 559.1668165 | AN35: 1 | AO35: 1 | AP35: 1 | AQ35: 473 | AR35: 579 | AS35: 630 | AT35: 203 | AU35: 249 | AV35: 271 | AW35: 1.72363058 | AX35: 2.519526576 | AY35: 2.949283908 | AZ35: 1.65 | BA35: 6.8992204 | BB35: 9.665656211 | BC35: 13.71428571 | BE35: 646 | BG35: FALSE | BJ35: 0 | BK35: 13.6 | BL35: 15.6 | BM35: 21.85 | BO35: 1 | BP35: 1 | BQ35: 1 | BR35: 473 | BS35: 579 | BT35: 630 | BV35: 0 | BW35: 0 | BX35: 0 | BY35: 1 | CN35: 11010 | CO35: 110 | CP35: 10 | CQ35: 12 | CR35: 13.9 | CS35: 21.85 | CT35: 8.4 | CU35: 9.3 | CV35: 14 | DF35: =DF34 -> 90 | DG35: =BK9 -> 12.3 | DH35: =ROUND(IF($BZ$2=1,V9,IF($BZ$2=2,V9*3.412141633,)),0) -> 847 | DI35: =IF($BZ$2=1,ROUND(Z9,0),IF($BZ$2=2,ROUND(Z9/272.7654,1),)) -> 146 | DJ35: =IF($BZ$2=1,AD9,IF($BZ$2=2,AD9*0.3346,)) -> 0.2574544277 | DK35: =IF(BY9=1,ROUND(IF($BZ$2=1,AQ9,IF($BZ$2=2,AQ9*3.412141633,)),0),"") -> 548 | DL35: =IF(BY9=1,IF($BZ$2=1,ROUND(AT9,0),IF($BZ$2=2,ROUND(AT9/272.7654,1),)),"") -> 236 | DM35: =IF(BY9=1,IF($BZ$2=1,AW9,IF($BZ$2=2,AW9*0.3346,)),"") -> 0.6297078876 | DN35: =J9 -> 26 | DO35: =DN35+8 -> 34 | DP35: =BA9 -> 18.489204 | DQ35: =DQ34 -> 2.3
A36: 12708 | D36: 1 | E36: 270 | F36: 40.5 | G36: 8 | H36: 9.5 | I36: 0 | J36: 26 | K36: 30 | L36: 36.6 | M36: 0 | N36: 1315.69917 | O36: 1768.82526 | P36: 2070.000155 | Q36: N/A | R36: 1 | S36: 1 | T36: 1 | V36: 724 | W36: 973 | X36: 1139 | Z36: 125 | AA36: 167 | AB36: 196 | AD36: 0.7424566083 | AE36: 1.269158873 | AF36: 1.707523372 | AG36: 0.000937 | AH36: 1.789 | AI36: 4 | AJ36: 0.00139 | AK36: 435.4235446 | AL36: 554.9253538 | AM36: 610.0001634 | AN36: 1 | AO36: 1 | AP36: 1 | AQ36: 490 | AR36: 625 | AS36: 687 | AT36: 211 | AU36: 269 | AV36: 295 | AW36: 1.957690523 | AX36: 3.072177267 | AY36: 3.646377939 | AZ36: 1.8 | BA36: 7.013654899 | BB36: 10.35133079 | BC36: 15.42857143 | BE36: 727 | BG36: FALSE | BJ36: 0 | BK36: 13.6 | BL36: 15.6 | BM36: 21.85 | BO36: 1 | BP36: 1 | BQ36: 1 | BR36: 490 | BS36: 625 | BT36: 687 | BV36: 0 | BW36: 0 | BX36: 0 | BY36: 1 | CN36: 11015 | CO36: 110 | CP36: 15 | CQ36: 10.9 | CR36: 12.8 | CS36: 21.85 | CT36: 7.9 | CU36: 8.8 | CV36: 12.5 | DF36: =DF34 -> 90 | DG36: =BL9 -> 14.4 | DH36: =ROUND(IF($BZ$2=1,W9,IF($BZ$2=2,W9*3.412141633,)),0) -> 936 | DI36: =IF($BZ$2=1,ROUND(AA9,0),IF($BZ$2=2,ROUND(AA9/272.7654,1),)) -> 161 | DJ36: =IF($BZ$2=1,AE9,IF($BZ$2=2,AE9*0.3346,)) -> 0.3087899097 | DK36: =IF(BY9=1,ROUND(IF($BZ$2=1,AR9,IF($BZ$2=2,AR9*3.412141633,)),0),"") -> 596 | DL36: =IF(BY9=1,IF($BZ$2=1,ROUND(AU9,0),IF($BZ$2=2,ROUND(AU9/272.7654,1),)),"") -> 256 | DM36: =IF(BY9=1,IF($BZ$2=1,AX9,IF($BZ$2=2,AX9*0.3346,)),"") -> 0.7330128022 | DN36: =K9 -> 30 | DO36: =DN36+8 -> 38 | DP36: =BB9 -> 21.02882825 | DQ36: =DQ34 -> 2.3
A37: 12908 | D37: 1 | E37: 290 | F37: 40.5 | G37: 8 | H37: 9.5 | I37: 0 | J37: 26 | K37: 30 | L37: 37.1 | M37: 0 | N37: 1336.330972 | O37: 1875.607077 | P37: 2242.500019 | Q37: N/A | R37: 1 | S37: 1 | T37: 1 | V37: 735 | W37: 1032 | X37: 1234 | Z37: 126 | AA37: 178 | AB37: 212 | AD37: 0.7955151846 | AE37: 1.506346482 | AF37: 2.081558455 | AG37: 0.000937 | AH37: 1.789 | AI37: 4 | AJ37: 0.00139 | AK37: 445.3690035 | AL37: 591.7994071 | AM37: 660.8335103 | AN37: 1 | AO37: 1 | AP37: 1 | AQ37: 502 | AR37: 666 | AS37: 744 | AT37: =ROUND(AQ37*3600/(4186*ABS($AM$1-$AM$2)),0) -> 216 | AU37: 286 | AV37: 320 | AW37: =(($AG37*(AT37^$AH37)*((($E37-14.4)*$AI37)/100))+($AJ37*(AT37^2)))*0.0098 -> 2.154844863 | AX37: 3.62462961 | AY37: 4.46404328 | AZ37: 1.95 | BA37: 7.019287905 | BB37: 10.95688719 | BC37: 17.14285714 | BE37: 836 | BG37: FALSE | BJ37: 0 | BK37: 13.6 | BL37: 15.6 | BM37: 21.85 | BO37: 1 | BP37: 1 | BQ37: 1 | BR37: 502 | BS37: 666 | BT37: 744 | BV37: 0 | BW37: 0 | BX37: 0 | BY37: 1 | CN37: 12010 | CO37: 120 | CP37: 10 | CQ37: 11.8 | CR37: 13.7 | CS37: 21.85 | CT37: 8.9 | CU37: 9.9 | CV37: 14.8 | DF37: =DF34 -> 90 | DG37: =BM9 -> 21.85 | DH37: =ROUND(IF($BZ$2=1,X9,IF($BZ$2=2,X9*3.412141633,)),0) -> 1145 | DI37: =IF($BZ$2=1,ROUND(AB9,0),IF($BZ$2=2,ROUND(AB9/272.7654,1),)) -> 197 | DJ37: =IF($BZ$2=1,AF9,IF($BZ$2=2,AF9*0.3346,)) -> 0.449601975 | DK37: =IF(BY9=1,ROUND(IF($BZ$2=1,AS9,IF($BZ$2=2,AS9*3.412141633,)),0),"") -> 685 | DL37: =IF(BY9=1,IF($BZ$2=1,ROUND(AV9,0),IF($BZ$2=2,ROUND(AV9/272.7654,1),)),"") -> 295 | DM37: =IF(BY9=1,IF($BZ$2=1,AY9,IF($BZ$2=2,AY9*0.3346,)),"") -> 0.9555041599 | DN37: =L9 -> 38.51228976 | DO37: =DN37+8 -> 46.51228976 | DP37: =BC9 -> 28.81666667 | DQ37: =DQ34 -> 2.3
A38: 17011 | D38: 1 | E38: 70 | F38: 40.5 | G38: 11 | H38: 11.5 | I38: 0 | J38: 26 | K38: 30 | L38: 33.090225 | M38: 406.6872976 | N38: 501.6872976 | O38: 555.7763266 | P38: 594.3332203 | Q38: N/A | R38: 1 | S38: 1 | T38: 1 | V38: 276 | W38: 306 | X38: 327 | Z38: 47 | AA38: 53 | AB38: 56 | AD38: 0.01931031305 | AE38: 0.02428082102 | AF38: 0.02697018639 | AG38: 0.0003969 | AH38: 1.7346 | AI38: 4 | AJ38: 0.000574288 | AK38: 155.2031703 | AL38: 166.9571286 | AM38: 173.6667688 | AN38: 1 | AO38: 1 | AP38: 1 | AQ38: 175 | AR38: 188 | AS38: 196 | AT38: 75 | AU38: 81 | AV38: 84 | AW38: 0.04712879838 | AX38: 0.05460618004 | AY38: 0.05854334173 | AZ38: =ROUND(IF(G38=10,$CO$92*E38,IF(G38=11,$CO$93*E38,IF(G38=15,$CO$94*E38,IF(G38=16,$CO$95*E38,IF(G38=20,$CO$96*E38,IF(G38=21,$CO$97*E38,)))))),1) -> 0.9 | BA38: 7.398631433 | BB38: 8.727145179 | BC38: 8.233333333 | BE38: 718 | BG38: 0.68 | BJ38: 0 | BK38: 13.6 | BL38: 15.6 | BM38: 21.85 | BO38: 1 | BP38: 1 | BQ38: 1 | BR38: 175 | BS38: 188 | BT38: 196 | BV38: 0 | BW38: 0 | BX38: 0 | BY38: 1 | CN38: 12015 | CO38: 120 | CP38: 15 | CQ38: 10.6 | CR38: 12.5 | CS38: 21.85 | CT38: 8.7 | CU38: 9.8 | CV38: 14.3 | DF38: =IF(data!$CB$9=5,181,100) -> 100 | DG38: =BJ10 -> 0 | DH38: =ROUND(IF($BZ$2=1,U10,IF($BZ$2=2,U10*3.412141633,)),0) ->  | DI38: =IF($BZ$2=1,ROUND(Y10,0),IF($BZ$2=2,ROUND(Y10/272.7654,1),)) ->  | DJ38: =IF($BZ$2=1,AC10,IF($BZ$2=2,AC10*0.3346,)) ->  | DN38: 0 | DO38: 0 | DP38: 0 | DQ38: =IF($BZ$2=1,AZ10,IF($BZ$2=2,AZ10/4.54609,)) -> 2.5
A39: 19011 | D39: 1 | E39: 90 | F39: 40.5 | G39: 11 | H39: 11.5 | I39: 0 | J39: 26 | K39: 30 | L39: 34.8451125 | M39: 565.76 | N39: 720.3428155 | O39: 796.4006883 | P39: 891.4998305 | Q39: N/A | R39: 1 | S39: 1 | T39: 1 | V39: 396 | W39: 438 | X39: 491 | Y39: =ROUND(U39*3600/(4186*ABS($O$1-$O$2)),0) ->  | Z39: 68 | AA39: 75 | AB39: 84 | AC39: =(($AG39*(Y39^$AH39)*((($F39-14.4)*$AI39)/100))+($AJ39*(Y39^2)))*0.0098 ->  | AD39: 0.04377236387 | AE39: 0.0526939683 | AF39: 0.06531744809 | AG39: 0.0003969 | AH39: 1.7346 | AI39: 4 | AJ39: 0.000574288 | AK39: 224.8432327 | AL39: 242.801283 | AM39: 260.5001532 | AN39: 1 | AO39: 1 | AP39: 1 | AQ39: =ROUND(AK39*POWER(CF_cool,AN39),0) -> 253 | AR39: 273 | AS39: 293 | AT39: 109 | AU39: 117 | AV39: 126 | AW39: 0.1071019936 | AX39: 0.1225370497 | AY39: 0.1410863479 | AZ39: =ROUND(IF(G39=10,$CO$92*E39,IF(G39=11,$CO$93*E39,IF(G39=15,$CO$94*E39,IF(G39=16,$CO$95*E39,IF(G39=20,$CO$96*E39,IF(G39=21,$CO$97*E39,)))))),1) -> 1.2 | BA39: 9.888835516 | BB39: 11.47209765 | BC39: 12.35 | BE39: 832 | BG39: 0.68 | BJ39: 0 | BK39: 13.6 | BL39: 15.6 | BM39: 21.85 | BO39: 1 | BP39: 1 | BQ39: 1 | BR39: 253 | BS39: 273 | BT39: 293 | BV39: 0 | BW39: 0 | BX39: 0 | BY39: 1 | CN39: 14010 | CO39: 140 | CP39: 10 | CQ39: 11.5 | CR39: 13.3 | CS39: 21.85 | CT39: 10.1 | CU39: 11.2 | CV39: 17.5 | DF39: =DF38 -> 100 | DG39: =BK10 -> 12.3 | DH39: =ROUND(IF($BZ$2=1,V10,IF($BZ$2=2,V10*3.412141633,)),0) -> 952 | DI39: =IF($BZ$2=1,ROUND(Z10,0),IF($BZ$2=2,ROUND(Z10/272.7654,1),)) -> 164 | DJ39: =IF($BZ$2=1,AD10,IF($BZ$2=2,AD10*0.3346,)) -> 0.3411990913 | DK39: =IF(BY10=1,ROUND(IF($BZ$2=1,AQ10,IF($BZ$2=2,AQ10*3.412141633,)),0),"") -> 617 | DL39: =IF(BY10=1,IF($BZ$2=1,ROUND(AT10,0),IF($BZ$2=2,ROUND(AT10/272.7654,1),)),"") -> 265 | DM39: =IF(BY10=1,IF($BZ$2=1,AW10,IF($BZ$2=2,AW10*0.3346,)),"") -> 0.8315969535 | DN39: =J10 -> 26 | DO39: =DN39+8 -> 34 | DP39: =BA10 -> 20.29804816 | DQ39: =DQ38 -> 2.5
A40: 110011 | D40: 1 | E40: 100 | F40: 40.5 | G40: 11 | H40: 11.5 | I40: 0 | J40: 26 | K40: 30 | L40: 35.51228976 | M40: 629.68 | N40: 827.7405541 | O40: 912.9331512 | P40: 1040.083341 | Q40: N/A | R40: 1 | S40: 1 | T40: 1 | V40: 456 | W40: 502 | X40: 572 | Z40: 78 | AA40: 86 | AB40: 98 | AD40: 0.0597366639 | AE40: 0.07182589684 | AF40: 0.09193254861 | AG40: 0.0003969 | AH40: 1.7346 | AI40: 4 | AJ40: 0.000574288 | AK40: 259.0561966 | AL40: 279.7075434 | AM40: 303.9166395 | AN40: 1 | AO40: 1 | AP40: 1 | AQ40: 292 | AR40: 315 | AS40: 342 | AT40: 126 | AU40: 135 | AV40: 147 | AW40: 0.1479297162 | AX40: 0.1685971488 | AY40: 0.198152609 | AZ40: 1.3 | BA40: 11.09420308 | BB40: 12.74071773 | BC40: 14.40833333 | BE40: 926 | BG40: 0.68 | BJ40: 0 | BK40: 13.6 | BL40: 15.6 | BM40: 21.85 | BO40: 1 | BP40: 1 | BQ40: 1 | BR40: 292 | BS40: 315 | BT40: 342 | BV40: 0 | BW40: 0 | BX40: 0 | BY40: 1 | CN40: 14015 | CO40: 140 | CP40: 15 | CQ40: 10.4 | CR40: 12.2 | CS40: 21.85 | CT40: 9.6 | CU40: 10.5 | CV40: 16.1 | DF40: =DF38 -> 100 | DG40: =BL10 -> 14.4 | DH40: =ROUND(IF($BZ$2=1,W10,IF($BZ$2=2,W10*3.412141633,)),0) -> 1056 | DI40: =IF($BZ$2=1,ROUND(AA10,0),IF($BZ$2=2,ROUND(AA10/272.7654,1),)) -> 182 | DJ40: =IF($BZ$2=1,AE10,IF($BZ$2=2,AE10*0.3346,)) -> 0.4138336345 | DK40: =IF(BY10=1,ROUND(IF($BZ$2=1,AR10,IF($BZ$2=2,AR10*3.412141633,)),0),"") -> 675 | DL40: =IF(BY10=1,IF($BZ$2=1,ROUND(AU10,0),IF($BZ$2=2,ROUND(AU10/272.7654,1),)),"") -> 290 | DM40: =IF(BY10=1,IF($BZ$2=1,AX10,IF($BZ$2=2,AX10*0.3346,)),"") -> 0.9835481576 | DN40: =K10 -> 30 | DO40: =DN40+8 -> 38 | DP40: =BB10 -> 23.24183525 | DQ40: =DQ38 -> 2.5
A41: 112011 | D41: 1 | E41: 120 | F41: 40.5 | G41: 11 | H41: 11.5 | I41: 0 | J41: 26 | K41: 30 | L41: 36.6 | M41: 733.04 | N41: 1038.250684 | O41: 1142.080306 | P41: 1337.249951 | Q41: N/A | R41: 1 | S41: 1 | T41: 1 | V41: 571 | W41: 629 | X41: 736 | Z41: 98 | AA41: 108 | AB41: 127 | AD41: 0.1007832546 | AE41: 0.1209557973 | AF41: 0.1640381021 | AG41: 0.0003969 | AH41: 1.7346 | AI41: 4 | AJ41: 0.000574288 | AK41: 326.2128513 | AL41: 352.3572829 | AM41: 390.7500239 | AN41: 1 | AO41: 1 | AP41: 1 | AQ41: 367 | AR41: 397 | AS41: 440 | AT41: 158 | AU41: 171 | AV41: 189 | AW41: 0.2475072867 | AX41: 0.2873090082 | AY41: 0.3470482952 | AZ41: 1.6 | BA41: 13.39581572 | BB41: 15.19527547 | BC41: 18.525 | BE41: 1078 | BG41: 0.68 | BJ41: 0 | BK41: 13.6 | BL41: 15.6 | BM41: 21.85 | BO41: 1 | BP41: 1 | BQ41: 1 | BR41: 367 | BS41: 397 | BT41: 440 | BV41: 0 | BW41: 0 | BX41: 0 | BY41: 1 | CN41: 16010 | CO41: 160 | CP41: 10 | CQ41: 11.2 | CR41: 13 | CS41: 21.85 | CT41: 11 | CU41: 12.4 | CV41: 19.2 | DF41: =DF38 -> 100 | DG41: =BM10 -> 21.85 | DH41: =ROUND(IF($BZ$2=1,X10,IF($BZ$2=2,X10*3.412141633,)),0) -> 1308 | DI41: =IF($BZ$2=1,ROUND(AB10,0),IF($BZ$2=2,ROUND(AB10/272.7654,1),)) -> 225 | DJ41: =IF($BZ$2=1,AF10,IF($BZ$2=2,AF10*0.3346,)) -> 0.6134580444 | DK41: =IF(BY10=1,ROUND(IF($BZ$2=1,AS10,IF($BZ$2=2,AS10*3.412141633,)),0),"") -> 782 | DL41: =IF(BY10=1,IF($BZ$2=1,ROUND(AV10,0),IF($BZ$2=2,ROUND(AV10/272.7654,1),)),"") -> 336 | DM41: =IF(BY10=1,IF($BZ$2=1,AY10,IF($BZ$2=2,AY10*0.3346,)),"") -> 1.294069272 | DN41: =L10 -> 39.090225 | DO41: =DN41+8 -> 47.090225 | DP41: =BC10 -> 32.93333333 | DQ41: =DQ38 -> 2.5
A42: 115011 | D42: 1 | E42: 150 | F42: 40.5 | G42: 11 | H42: 11.5 | I42: 0 | J42: 26 | K42: 30 | L42: 37.8451125 | M42: 599.76 | N42: 1342.85655 | O42: 1479.204174 | P42: 1783.000073 | Q42: N/A | R42: 1 | S42: 1 | T42: 1 | V42: 739 | W42: 814 | X42: 981 | Z42: 127 | AA42: 140 | AB42: 169 | AD42: 0.1848516614 | AE42: 0.2217131779 | AF42: 0.3151674894 | AG42: 0.0003969 | AH42: 1.7346 | AI42: 4 | AJ42: 0.000574288 | AK42: 423.658157 | AL42: 459.3348371 | AM42: 520.9998946 | AN42: 1 | AO42: 1 | AP42: 1 | AQ42: 477 | AR42: 517 | AS42: 587 | AT42: 205 | AU42: 222 | AV42: 252 | AW42: 0.4523890388 | AX42: 0.5252338984 | AY42: 0.6662154032 | AZ42: 2 | BA42: 16.55811632 | BB42: 18.74396404 | BC42: 24.7 | BE42: 882 | BG42: 0.68 | BJ42: 0 | BK42: 12.3 | BL42: 14.4 | BM42: 21.85 | BO42: 1 | BP42: 1 | BQ42: 1 | BR42: 477 | BS42: 517 | BT42: 587 | BV42: 0 | BW42: 0 | BX42: 0 | BY42: 1 | CN42: 16015 | CO42: 160 | CP42: 15 | CQ42: 10 | CR42: 11.8 | CS42: 21.85 | CT42: 11.5 | CU42: 12.8 | CV42: 19.6 | DF42: =IF(data!$CB$9=5,241,110) -> 110 | DG42: =BJ11 -> 0 | DH42: =ROUND(IF($BZ$2=1,U11,IF($BZ$2=2,U11*3.412141633,)),0) ->  | DI42: =IF($BZ$2=1,ROUND(Y11,0),IF($BZ$2=2,ROUND(Y11/272.7654,1),)) ->  | DJ42: =IF($BZ$2=1,AC11,IF($BZ$2=2,AC11*0.3346,)) ->  | DN42: 0 | DO42: 0 | DP42: 0 | DQ42: =IF($BZ$2=1,AZ11,IF($BZ$2=2,AZ11/4.54609,)) -> 2.8
A43: 117011 | D43: 1 | E43: 170 | F43: 40.5 | G43: 11 | H43: 11.5 | I43: 0 | J43: 26 | K43: 30 | L43: 38.51228976 | M43: 707.2 | N43: 1538.865385 | O43: 1700.275063 | P43: 2080.166683 | Q43: N/A | R43: 1 | S43: 1 | T43: 1 | V43: 847 | W43: 936 | X43: 1145 | Z43: 146 | AA43: 161 | AB43: 197 | AD43: 0.2574544277 | AE43: 0.3087899097 | AF43: 0.449601975 | AG43: 0.0003969 | AH43: 1.7346 | AI43: 4 | AJ43: 0.000574288 | AK43: 486.5088846 | AL43: 529.5631045 | AM43: 607.833279 | AN43: 1 | AO43: 1 | AP43: 1 | AQ43: 548 | AR43: 596 | AS43: 685 | AT43: 236 | AU43: 256 | AV43: 295 | AW43: 0.6297078876 | AX43: 0.7330128022 | AY43: 0.9555041599 | AZ43: 2.3 | BA43: 18.489204 | BB43: 21.02882825 | BC43: 28.81666667 | BE43: 1040 | BG43: 0.68 | BJ43: 0 | BK43: 12.3 | BL43: 14.4 | BM43: 21.85 | BO43: 1 | BP43: 1 | BQ43: 1 | BR43: 548 | BS43: 596 | BT43: 685 | BV43: 0 | BW43: 0 | BX43: 0 | BY43: 1 | CN43: 18010 | CO43: 180 | CP43: 10 | CQ43: 10.9 | CR43: 12.7 | CS43: 21.85 | CT43: 12.2 | CU43: 13.7 | CV43: 22 | DF43: =DF42 -> 110 | DG43: =BK11 -> 12.3 | DH43: =ROUND(IF($BZ$2=1,V11,IF($BZ$2=2,V11*3.412141633,)),0) -> 1056 | DI43: =IF($BZ$2=1,ROUND(Z11,0),IF($BZ$2=2,ROUND(Z11/272.7654,1),)) -> 182 | DJ43: =IF($BZ$2=1,AD11,IF($BZ$2=2,AD11*0.3346,)) -> 0.4397346619 | DK43: =IF(BY11=1,ROUND(IF($BZ$2=1,AQ11,IF($BZ$2=2,AQ11*3.412141633,)),0),"") -> 685 | DL43: =IF(BY11=1,IF($BZ$2=1,ROUND(AT11,0),IF($BZ$2=2,ROUND(AT11/272.7654,1),)),"") -> 295 | DM43: =IF(BY11=1,IF($BZ$2=1,AW11,IF($BZ$2=2,AW11*0.3346,)),"") -> 1.075227942 | DN43: =J11 -> 26 | DO43: =DN43+8 -> 34 | DP43: =BA11 -> 21.91492927 | DQ43: =DQ42 -> 2.8
A44: 119011 | D44: 1 | E44: 190 | F44: 40.5 | G44: 11 | H44: 11.5 | I44: 0 | J44: 26 | K44: 30 | L44: 39.090225 | M44: 784.04 | N44: 1729.738019 | O44: 1918.350336 | P44: 2377.333293 | Q44: N/A | R44: 1 | S44: 1 | T44: 1 | V44: 952 | W44: 1056 | X44: 1308 | Z44: 164 | AA44: 182 | AB44: 225 | AD44: 0.3411990913 | AE44: 0.4138336345 | AF44: 0.6134580444 | AG44: 0.0003969 | AH44: 1.7346 | AI44: 4 | AJ44: 0.000574288 | AK44: 547.7922273 | AL44: 598.9271409 | AM44: 694.6666632 | AN44: 1 | AO44: 1 | AP44: 1 | AQ44: 617 | AR44: 675 | AS44: 782 | AT44: 265 | AU44: 290 | AV44: 336 | AW44: 0.8315969535 | AX44: 0.9835481576 | AY44: 1.294069272 | AZ44: 2.5 | BA44: 20.29804816 | BB44: 23.24183525 | BC44: 32.93333333 | BE44: 1153 | BG44: 0.68 | BJ44: 0 | BK44: 12.3 | BL44: 14.4 | BM44: 21.85 | BO44: 1 | BP44: 1 | BQ44: 1 | BR44: 617 | BS44: 675 | BT44: 782 | BV44: 0 | BW44: 0 | BX44: 0 | BY44: 1 | CN44: 18015 | CO44: 180 | CP44: 15 | CQ44: 10 | CR44: 11.8 | CS44: 21.85 | CT44: 11.5 | CU44: 12.8 | CV44: 19.6 | DF44: =DF42 -> 110 | DG44: =BL11 -> 14.4 | DH44: =ROUND(IF($BZ$2=1,W11,IF($BZ$2=2,W11*3.412141633,)),0) -> 1172 | DI44: =IF($BZ$2=1,ROUND(AA11,0),IF($BZ$2=2,ROUND(AA11/272.7654,1),)) -> 202 | DJ44: =IF($BZ$2=1,AE11,IF($BZ$2=2,AE11*0.3346,)) -> 0.5331736454 | DK44: =IF(BY11=1,ROUND(IF($BZ$2=1,AR11,IF($BZ$2=2,AR11*3.412141633,)),0),"") -> 751 | DL44: =IF(BY11=1,IF($BZ$2=1,ROUND(AU11,0),IF($BZ$2=2,ROUND(AU11/272.7654,1),)),"") -> 323 | DM44: =IF(BY11=1,IF($BZ$2=1,AX11,IF($BZ$2=2,AX11*0.3346,)),"") -> 1.272336536 | DN44: =K11 -> 30 | DO44: =DN44+8 -> 38 | DP44: =BB11 -> 25.31535921 | DQ44: =DQ42 -> 2.8
A45: 121011 | D45: 1 | E45: 210 | F45: 40.5 | G45: 11 | H45: 11.5 | I45: 0 | J45: 26 | K45: 30 | L45: 39.6 | M45: 875.84 | N45: 1918.384399 | O45: 2129.736151 | P45: 2674.499903 | Q45: N/A | R45: 1 | S45: 1 | T45: 1 | V45: 1056 | W45: 1172 | X45: 1472 | Z45: 182 | AA45: 202 | AB45: 253 | AD45: 0.4397346619 | AE45: 0.5331736454 | AF45: 0.808771376 | AG45: 0.0003969 | AH45: 1.7346 | AI45: 4 | AJ45: 0.000574288 | AK45: 608.33434 | AL45: 666.4722649 | AM45: 781.5000476 | AN45: 1 | AO45: 1 | AP45: 1 | AQ45: 685 | AR45: 751 | AS45: 880 | AT45: 295 | AU45: 323 | AV45: 378 | AW45: 1.075227942 | AX45: 1.272336536 | AY45: 1.704176699 | AZ45: 2.8 | BA45: 21.91492927 | BB45: 25.31535921 | BC45: 37.05 | BE45: 1288 | BG45: 0.68 | BJ45: 0 | BK45: 12.3 | BL45: 14.4 | BM45: 21.85 | BO45: 1 | BP45: 1 | BQ45: 1 | BR45: 685 | BS45: 751 | BT45: 880 | BV45: 0 | BW45: 0 | BX45: 0 | BY45: 1 | CN45: 20010 | CO45: 200 | CP45: 10 | CQ45: 10.7 | CR45: 12.5 | CS45: 21.85 | CT45: 13.4 | CU45: 14.8 | CV45: 24 | DF45: =DF42 -> 110 | DG45: =BM11 -> 21.85 | DH45: =ROUND(IF($BZ$2=1,X11,IF($BZ$2=2,X11*3.412141633,)),0) -> 1472 | DI45: =IF($BZ$2=1,ROUND(AB11,0),IF($BZ$2=2,ROUND(AB11/272.7654,1),)) -> 253 | DJ45: =IF($BZ$2=1,AF11,IF($BZ$2=2,AF11*0.3346,)) -> 0.808771376 | DK45: =IF(BY11=1,ROUND(IF($BZ$2=1,AS11,IF($BZ$2=2,AS11*3.412141633,)),0),"") -> 880 | DL45: =IF(BY11=1,IF($BZ$2=1,ROUND(AV11,0),IF($BZ$2=2,ROUND(AV11/272.7654,1),)),"") -> 378 | DM45: =IF(BY11=1,IF($BZ$2=1,AY11,IF($BZ$2=2,AY11*0.3346,)),"") -> 1.704176699 | DN45: =L11 -> 39.6 | DO45: =DN45+8 -> 47.6 | DP45: =BC11 -> 37.05 | DQ45: =DQ42 -> 2.8
A46: 123011 | D46: 1 | E46: 230 | F46: 40.5 | G46: 11 | H46: 11.5 | I46: 0 | J46: 26 | K46: 30 | L46: 40.05600928 | M46: 650.08 | N46: 2098.753525 | O46: 2346.283578 | P46: 2971.666513 | Q46: N/A | R46: 1 | S46: 1 | T46: 1 | V46: 1155 | W46: 1291 | X46: 1635 | Z46: 199 | AA46: 222 | AB46: 281 | AD46: 0.5488669596 | AE46: 0.6714654279 | AF46: 1.03751337 | AG46: 0.0003969 | AH46: 1.7346 | AI46: 4 | AJ46: 0.000574288 | AK46: 666.374133 | AL46: 735.2764464 | AM46: 868.333432 | AN46: 1 | AO46: 1 | AP46: 1 | AQ46: 750 | AR46: 828 | AS46: 978 | AT46: 323 | AU46: 356 | AV46: 421 | AW46: 1.342394879 | AX46: 1.607321568 | AY46: 2.193418466 | AZ46: 3.1 | BA46: 23.63423899 | BB46: 27.47144596 | BC46: 41.16666667 | BE46: 956 | BG46: 0.68 | BJ46: 0 | BK46: 12.3 | BL46: 14.4 | BM46: 21.85 | BO46: 1 | BP46: 1 | BQ46: 1 | BR46: 750 | BS46: 828 | BT46: 978 | BV46: 0 | BW46: 0 | BX46: 0 | BY46: 1 | CN46: 20015 | CO46: 200 | CP46: 15 | CQ46: 10 | CR46: 11.4 | CS46: 21.85 | CT46: 13.2 | CU46: 14.7 | CV46: 23.5 | DF46: 120 | DG46: =BJ12 -> 0 | DH46: =ROUND(IF($BZ$2=1,U12,IF($BZ$2=2,U12*3.412141633,)),0) ->  | DI46: =IF($BZ$2=1,ROUND(Y12,0),IF($BZ$2=2,ROUND(Y12/272.7654,1),)) ->  | DJ46: =IF($BZ$2=1,AC12,IF($BZ$2=2,AC12*0.3346,)) ->  | DN46: 0 | DO46: 0 | DP46: 0 | DQ46: =IF($BZ$2=1,AZ12,IF($BZ$2=2,AZ12/4.54609,)) -> 3.1
A47: 125011 | D47: 1 | E47: 250 | F47: 40.5 | G47: 11 | H47: 11.5 | I47: 0 | J47: 26 | K47: 30 | L47: 40.26717726 | M47: 774.52 | N47: 2292.996375 | O47: 2568.345023 | P47: 3268.833535 | Q47: N/A | R47: 1 | S47: 1 | T47: 1 | V47: 1262 | W47: 1413 | X47: 1799 | Z47: 217 | AA47: 243 | AB47: 309 | AD47: 0.6789847412 | AE47: 0.8360791354 | AF47: 1.30159982 | AG47: 0.0003969 | AH47: 1.7346 | AI47: 4 | AJ47: 0.000574288 | AK47: 728.4144049 | AL47: 805.4943317 | AM47: 955.1668164 | AN47: 1 | AO47: 1 | AP47: 1 | AQ47: 820 | AR47: 907 | AS47: 1076 | AT47: 353 | AU47: 390 | AV47: 463 | AW47: 1.664049868 | AX47: 2.000488798 | AY47: 2.747674381 | AZ47: 3.3 | BA47: 24.42179911 | BB47: 28.48908807 | BC47: 43.225 | BE47: 1139 | BG47: 0.68 | BJ47: 0 | BK47: 12.3 | BL47: 14.4 | BM47: 21.85 | BO47: 1 | BP47: 1 | BQ47: 1 | BR47: 820 | BS47: 907 | BT47: 1076 | BV47: 0 | BW47: 0 | BX47: 0 | BY47: 1 | CN47: 22010 | CO47: 220 | CP47: 10 | CQ47: 10.5 | CR47: 12.3 | CS47: 21.85 | CT47: 13.4 | CU47: 14.8 | CV47: 24 | DF47: =DF46 -> 120 | DG47: =BK12 -> 12.3 | DH47: =ROUND(IF($BZ$2=1,V12,IF($BZ$2=2,V12*3.412141633,)),0) -> 1155 | DI47: =IF($BZ$2=1,ROUND(Z12,0),IF($BZ$2=2,ROUND(Z12/272.7654,1),)) -> 199 | DJ47: =IF($BZ$2=1,AD12,IF($BZ$2=2,AD12*0.3346,)) -> 0.5488669596 | DK47: =IF(BY12=1,ROUND(IF($BZ$2=1,AQ12,IF($BZ$2=2,AQ12*3.412141633,)),0),"") -> 750 | DL47: =IF(BY12=1,IF($BZ$2=1,ROUND(AT12,0),IF($BZ$2=2,ROUND(AT12/272.7654,1),)),"") -> 323 | DM47: =IF(BY12=1,IF($BZ$2=1,AW12,IF($BZ$2=2,AW12*0.3346,)),"") -> 1.342394879 | DN47: =J12 -> 26 | DO47: =DN47+8 -> 34 | DP47: =BA12 -> 23.63423899 | DQ47: =DQ46 -> 3.1
A48: 127011 | D48: 1 | E48: 270 | F48: 40.5 | G48: 11 | H48: 11.5 | I48: 0 | J48: 26 | K48: 30 | L48: 40.8451125 | M48: 886.72 | N48: 2454.212236 | O48: 2763.282262 | P48: 3566.000145 | Q48: N/A | R48: 1 | S48: 1 | T48: 1 | V48: 1351 | W48: 1521 | X48: 1963 | Z48: 232 | AA48: 262 | AB48: 338 | AD48: 0.807239522 | AE48: 1.009079538 | AF48: 1.611662491 | AG48: 0.0003969 | AH48: 1.7346 | AI48: 4 | AJ48: 0.000574288 | AK48: 780.6000955 | AL48: 868.4570063 | AM48: 1042.000201 | AN48: 1 | AO48: 1 | AP48: 1 | AQ48: 879 | AR48: 978 | AS48: 1173 | AT48: 378 | AU48: 421 | AV48: 504 | AW48: 1.980257173 | AX48: 2.415292705 | AY48: 3.366761186 | AZ48: 3.6 | BA48: 26.69406538 | BB48: 31.43914396 | BC48: 49.4 | BE48: 1304 | BG48: 0.68 | BJ48: 0 | BK48: 12.3 | BL48: 14.4 | BM48: 21.85 | BO48: 1 | BP48: 1 | BQ48: 1 | BR48: 879 | BS48: 978 | BT48: 1173 | BV48: 0 | BW48: 0 | BX48: 0 | BY48: 1 | CN48: 22015 | CO48: 220 | CP48: 15 | CQ48: 10 | CR48: 11.1 | CS48: 21.85 | CT48: 15.5 | CU48: 16.8 | CV48: 27.5 | DF48: =DF46 -> 120 | DG48: =BL12 -> 14.4 | DH48: =ROUND(IF($BZ$2=1,W12,IF($BZ$2=2,W12*3.412141633,)),0) -> 1291 | DI48: =IF($BZ$2=1,ROUND(AA12,0),IF($BZ$2=2,ROUND(AA12/272.7654,1),)) -> 222 | DJ48: =IF($BZ$2=1,AE12,IF($BZ$2=2,AE12*0.3346,)) -> 0.6714654279 | DK48: =IF(BY12=1,ROUND(IF($BZ$2=1,AR12,IF($BZ$2=2,AR12*3.412141633,)),0),"") -> 828 | DL48: =IF(BY12=1,IF($BZ$2=1,ROUND(AU12,0),IF($BZ$2=2,ROUND(AU12/272.7654,1),)),"") -> 356 | DM48: =IF(BY12=1,IF($BZ$2=1,AX12,IF($BZ$2=2,AX12*0.3346,)),"") -> 1.607321568 | DN48: =K12 -> 30 | DO48: =DN48+8 -> 38 | DP48: =BB12 -> 27.47144596 | DQ48: =DQ46 -> 3.1
A49: 129011 | D49: 1 | E49: 290 | F49: 40.5 | G49: 11 | H49: 11.5 | I49: 0 | J49: 26 | K49: 30 | L49: 40.8451125 | M49: 1092.08 | N49: 2658.729895 | O49: 2993.555749 | P49: 3863.166755 | Q49: N/A | R49: 1 | S49: 1 | T49: 1 | V49: 1463 | W49: 1647 | X49: 2126 | Z49: 252 | AA49: 283 | AB49: 366 | AD49: 0.9850493678 | AE49: 1.218307628 | AF49: 1.953021911 | AG49: 0.0003969 | AH49: 1.7346 | AI49: 4 | AJ49: 0.000574288 | AK49: 845.6499591 | AL49: 940.8282302 | AM49: 1128.833173 | AN49: 1 | AO49: 1 | AP49: 1 | AQ49: 952 | AR49: 1060 | AS49: 1271 | AT49: 409 | AU49: 456 | AV49: 547 | AW49: 2.39538496 | AX49: 2.926115972 | AY49: 4.091415594 | AZ49: 3.9 | BA49: 26.69 | BB49: 31.44 | BC49: 49.4 | BE49: 1606 | BG49: 0.68 | BJ49: 0 | BK49: 12.3 | BL49: 14.4 | BM49: 21.85 | BO49: 1 | BP49: 1 | BQ49: 1 | BR49: 952 | BS49: 1060 | BT49: 1271 | BV49: 0 | BW49: 0 | BX49: 0 | BY49: 1 | CN49: 24010 | CO49: 240 | CP49: 10 | CQ49: 10.4 | CR49: 12.2 | CS49: 21.85 | CT49: 14.8 | CU49: 16.6 | CV49: 28 | DF49: =DF46 -> 120 | DG49: =BM12 -> 21.85 | DH49: =ROUND(IF($BZ$2=1,X12,IF($BZ$2=2,X12*3.412141633,)),0) -> 1635 | DI49: =IF($BZ$2=1,ROUND(AB12,0),IF($BZ$2=2,ROUND(AB12/272.7654,1),)) -> 281 | DJ49: =IF($BZ$2=1,AF12,IF($BZ$2=2,AF12*0.3346,)) -> 1.03751337 | DK49: =IF(BY12=1,ROUND(IF($BZ$2=1,AS12,IF($BZ$2=2,AS12*3.412141633,)),0),"") -> 978 | DL49: =IF(BY12=1,IF($BZ$2=1,ROUND(AV12,0),IF($BZ$2=2,ROUND(AV12/272.7654,1),)),"") -> 421 | DM49: =IF(BY12=1,IF($BZ$2=1,AY12,IF($BZ$2=2,AY12*0.3346,)),"") -> 2.193418466 | DN49: =L12 -> 40.05600928 | DO49: =DN49+8 -> 48.05600928 | DP49: =BC12 -> 41.16666667 | DQ49: =DQ46 -> 3.1
A50: 19016 | D50: 1 | E50: 90 | F50: 40.5 | G50: 16 | H50: 16.5 | I50: 0 | J50: 26 | K50: 30 | L50: 32.37325167 | M50: 1000.430929 | N50: 1000.430929 | O50: 1061.187808 | P50: 1097.49991 | Q50: N/A | R50: 1 | S50: 1 | T50: 1 | V50: 551 | W50: 584 | X50: 604 | Z50: 95 | AA50: 100 | AB50: 104 | AD50: 0.1390381548 | AE50: 0.153811984 | AF50: 0.1661613725 | AG50: 0.0002083 | AH50: 1.724 | AI50: 4 | AJ50: 0.001392796 | AK50: 292.167245 | AL50: 314.0225479 | AM50: 330.4999683 | AN50: 1 | AO50: 1 | AP50: 1 | AQ50: 329 | AR50: 354 | AS50: 372 | AT50: 141 | AU50: 152 | AV50: 160 | AW50: 0.3026786267 | AX50: 0.3510004983 | AY50: 0.3883650223 | AZ50: 1.8 | BA50: 9 | BB50: 9.8 | BC50: 12 | BE50: 1236 | BG50: 0.68 | BJ50: 0 | BK50: 12.3 | BL50: 14.4 | BM50: 21.85 | BO50: 1 | BP50: 1 | BQ50: 1 | BR50: 329 | BS50: 354 | BT50: 372 | BV50: 0 | BW50: 0 | BX50: 0 | BY50: 1 | CN50: 24015 | CO50: 240 | CP50: 15 | CQ50: 10 | CR50: 10.9 | CS50: 21.85 | CT50: 16.4 | CU50: 17.7 | CV50: 29.7 | DF50: 140 | DG50: =BJ13 -> 0 | DH50: =ROUND(IF($BZ$2=1,U13,IF($BZ$2=2,U13*3.412141633,)),0) ->  | DI50: =IF($BZ$2=1,ROUND(Y13,0),IF($BZ$2=2,ROUND(Y13/272.7654,1),)) ->  | DJ50: =IF($BZ$2=1,AC13,IF($BZ$2=2,AC13*0.3346,)) ->  | DN50: 0 | DO50: 0 | DP50: 0 | DQ50: =IF($BZ$2=1,AZ13,IF($BZ$2=2,AZ13/4.54609,)) -> 3.3
A51: 110016 | D51: 1 | E51: 100 | F51: 40.5 | G51: 16 | H51: 16.5 | I51: 0 | J51: 26 | K51: 30 | L51: 33.5 | M51: 1144.294562 | N51: 1144.294562 | O51: 1219.856753 | P51: 1280.416561 | Q51: N/A | R51: 1 | S51: 1 | T51: 1 | V51: 630 | W51: 671 | X51: 705 | Z51: 108 | AA51: 115 | AB51: 121 | AD51: 0.1815975164 | AE51: 0.2054645682 | AF51: 0.2270786177 | AG51: 0.0002083 | AH51: 1.724 | AI51: 4 | AJ51: 0.001392796 | AK51: 333.7101918 | AL51: 359.2077805 | AM51: 385.583339 | AN51: 1 | AO51: 1 | AP51: 1 | AQ51: 376 | AR51: 405 | AS51: 434 | AT51: 162 | AU51: 174 | AV51: 187 | AW51: 0.4032605379 | AX51: 0.464200645 | AY51: 0.5349963605 | AZ51: 2 | BA51: 10.6 | BB51: 11.5 | BC51: 15 | BE51: 1455 | BG51: 0.68 | BJ51: 0 | BK51: 12.3 | BL51: 14.4 | BM51: 21.85 | BO51: 1 | BP51: 1 | BQ51: 1 | BR51: 376 | BS51: 405 | BT51: 434 | BV51: 0 | BW51: 0 | BX51: 0 | BY51: 1 | CN51: 26010 | CO51: 260 | CP51: 10 | CQ51: 10.2 | CR51: 11.9 | CS51: 21.85 | CT51: 16.2 | CU51: 18.6 | CV51: 31.4 | DF51: =DF50 -> 140 | DG51: =BK13 -> 12.3 | DH51: =ROUND(IF($BZ$2=1,V13,IF($BZ$2=2,V13*3.412141633,)),0) -> 1262 | DI51: =IF($BZ$2=1,ROUND(Z13,0),IF($BZ$2=2,ROUND(Z13/272.7654,1),)) -> 217 | DJ51: =IF($BZ$2=1,AD13,IF($BZ$2=2,AD13*0.3346,)) -> 0.6789847412 | DK51: =IF(BY13=1,ROUND(IF($BZ$2=1,AQ13,IF($BZ$2=2,AQ13*3.412141633,)),0),"") -> 820 | DL51: =IF(BY13=1,IF($BZ$2=1,ROUND(AT13,0),IF($BZ$2=2,ROUND(AT13/272.7654,1),)),"") -> 353 | DM51: =IF(BY13=1,IF($BZ$2=1,AW13,IF($BZ$2=2,AW13*0.3346,)),"") -> 1.664049868 | DN51: =J13 -> 26 | DO51: =DN51+8 -> 34 | DP51: =BA13 -> 24.42179911 | DQ51: =DQ50 -> 3.3
A52: 112016 | D52: 1 | E52: 120 | F52: 40.5 | G52: 16 | H52: 16.5 | I52: 0 | J52: 26 | K52: 30 | L52: 34.42062042 | M52: 1444.151411 | N52: 1444.151411 | O52: 1549.130006 | P52: 1646.250121 | Q52: N/A | R52: 1 | S52: 1 | T52: 1 | V52: 795 | W52: 853 | X52: 906 | Z52: 137 | AA52: 147 | AB52: 156 | AD52: 0.2978097666 | AE52: 0.3419495212 | AF52: 0.3842416362 | AG52: 0.0002083 | AH52: 1.724 | AI52: 4 | AJ52: 0.001392796 | AK52: 421.0184523 | AL52: 454.725721 | AM52: 495.7500807 | AN52: 1 | AO52: 1 | AP52: 1 | AQ52: 474 | AR52: 512 | AS52: 558 | AT52: 204 | AU52: 220 | AV52: 240 | AW52: 0.6507213068 | AX52: 0.7548147441 | AY52: 0.8956322197 | AZ52: 2.4 | BA52: 12 | BB52: 13.2 | BC52: 18 | BE52: 1611 | BG52: 0.68 | BJ52: 0 | BK52: 12.3 | BL52: 14.4 | BM52: 21.85 | BO52: 1 | BP52: 1 | BQ52: 1 | BR52: 474 | BS52: 512 | BT52: 558 | BV52: 0 | BW52: 0 | BX52: 0 | BY52: 1 | CN52: 26015 | CO52: 260 | CP52: 15 | CQ52: 10 | CR52: 10.9 | CS52: 21.85 | CT52: 16.2 | CU52: 18.6 | CV52: 31.4 | DF52: =DF50 -> 140 | DG52: =BL13 -> 14.4 | DH52: =ROUND(IF($BZ$2=1,W13,IF($BZ$2=2,W13*3.412141633,)),0) -> 1413 | DI52: =IF($BZ$2=1,ROUND(AA13,0),IF($BZ$2=2,ROUND(AA13/272.7654,1),)) -> 243 | DJ52: =IF($BZ$2=1,AE13,IF($BZ$2=2,AE13*0.3346,)) -> 0.8360791354 | DK52: =IF(BY13=1,ROUND(IF($BZ$2=1,AR13,IF($BZ$2=2,AR13*3.412141633,)),0),"") -> 907 | DL52: =IF(BY13=1,IF($BZ$2=1,ROUND(AU13,0),IF($BZ$2=2,ROUND(AU13/272.7654,1),)),"") -> 390 | DM52: =IF(BY13=1,IF($BZ$2=1,AX13,IF($BZ$2=2,AX13*0.3346,)),"") -> 2.000488798 | DN52: =K13 -> 30 | DO52: =DN52+8 -> 38 | DP52: =BB13 -> 28.48908807 | DQ52: =DQ50 -> 3.3
A53: 115016 | D53: 1 | E53: 150 | F53: 40.5 | G53: 16 | H53: 16.5 | I53: 0 | J53: 26 | K53: 30 | L53: 35.87325167 | M53: 1863.87079 | N53: 1863.87079 | O53: 2019.295987 | P53: 2195.000076 | Q53: N/A | R53: 1 | S53: 1 | T53: 1 | V53: 1026 | W53: 1111 | X53: 1208 | Z53: 176 | AA53: 191 | AB53: 208 | AD53: 0.5051226079 | AE53: 0.5927281221 | AF53: 0.7003210716 | AG53: 0.0002083 | AH53: 1.724 | AI53: 4 | AJ53: 0.001392796 | AK53: 544.121504 | AL53: 590.3544681 | AM53: 660.9999364 | AN53: 1 | AO53: 1 | AP53: 1 | AQ53: 613 | AR53: 665 | AS53: 744 | AT53: 264 | AU53: 286 | AV53: 320 | AW53: 1.116916213 | AX53: 1.306578623 | AY53: 1.628433701 | AZ53: 3 | BA53: 14.6 | BB53: 16.2 | BC53: 24 | BE53: 1795 | BG53: 0.68 | BJ53: 0 | BK53: 12.3 | BL53: 14.4 | BM53: 21.85 | BO53: 1 | BP53: 1 | BQ53: 1 | BR53: 613 | BS53: 665 | BT53: 744 | BV53: 0 | BW53: 0 | BX53: 0 | BY53: 1 | CN53: 28010 | CO53: 280 | CP53: 10 | CQ53: 10.2 | CR53: 11.9 | CS53: 21.85 | CT53: 16.2 | CU53: 18.6 | CV53: 31.4 | DF53: =DF50 -> 140 | DG53: =BM13 -> 21.85 | DH53: =ROUND(IF($BZ$2=1,X13,IF($BZ$2=2,X13*3.412141633,)),0) -> 1799 | DI53: =IF($BZ$2=1,ROUND(AB13,0),IF($BZ$2=2,ROUND(AB13/272.7654,1),)) -> 309 | DJ53: =IF($BZ$2=1,AF13,IF($BZ$2=2,AF13*0.3346,)) -> 1.30159982 | DK53: =IF(BY13=1,ROUND(IF($BZ$2=1,AS13,IF($BZ$2=2,AS13*3.412141633,)),0),"") -> 1076 | DL53: =IF(BY13=1,IF($BZ$2=1,ROUND(AV13,0),IF($BZ$2=2,ROUND(AV13/272.7654,1),)),"") -> 463 | DM53: =IF(BY13=1,IF($BZ$2=1,AY13,IF($BZ$2=2,AY13*0.3346,)),"") -> 2.747674381 | DN53: =L13 -> 40.26717726 | DO53: =DN53+8 -> 48.26717726 | DP53: =BC13 -> 43.225 | DQ53: =DQ50 -> 3.3
A54: 117016 | D54: 1 | E54: 170 | F54: 40.5 | G54: 16 | H54: 16.5 | I54: 0 | J54: 26 | K54: 30 | L54: 37 | M54: 2118.863345 | N54: 2118.863345 | O54: 2307.012996 | P54: 2560.83338 | Q54: N/A | R54: 1 | S54: 1 | T54: 1 | V54: 1166 | W54: 1270 | X54: 1409 | Z54: 201 | AA54: 218 | AB54: 242 | AD54: 0.6702162082 | AE54: 0.7852845745 | AF54: 0.9629255869 | AG54: 0.0002083 | AH54: 1.724 | AI54: 4 | AJ54: 0.001392796 | AK54: 620.157643 | AL54: 673.0826121 | AM54: 771.1666781 | AN54: 1 | AO54: 1 | AP54: 1 | AQ54: 698 | AR54: 758 | AS54: 868 | AT54: 300 | AU54: 326 | AV54: 373 | AW54: 1.465333478 | AX54: 1.723987076 | AY54: 2.243862179 | AZ54: 3.4 | BA54: 16.9 | BB54: 18.9 | BC54: 30 | BE54: 1268 | BG54: 0.68 | BJ54: 0 | BK54: 12.3 | BL54: 14.4 | BM54: 21.85 | BO54: 1 | BP54: 1 | BQ54: 1 | BR54: 698 | BS54: 758 | BT54: 868 | BV54: 0 | BW54: 0 | BX54: 0 | BY54: 1 | CN54: 28015 | CO54: 280 | CP54: 15 | CQ54: 10 | CR54: 10.6 | CS54: 21.85 | CT54: 19.3 | CU54: 20.4 | CV54: 34.5 | DF54: 160 | DG54: =BJ14 -> 0 | DH54: =ROUND(IF($BZ$2=1,U14,IF($BZ$2=2,U14*3.412141633,)),0) ->  | DI54: =IF($BZ$2=1,ROUND(Y14,0),IF($BZ$2=2,ROUND(Y14/272.7654,1),)) ->  | DJ54: =IF($BZ$2=1,AC14,IF($BZ$2=2,AC14*0.3346,)) ->  | DN54: 0 | DO54: 0 | DP54: 0 | DQ54: =IF($BZ$2=1,AZ14,IF($BZ$2=2,AZ14/4.54609,)) -> 3.6
A55: 119016 | D55: 1 | E55: 190 | F55: 40.5 | G55: 16 | H55: 16.5 | I55: 0 | J55: 26 | K55: 30 | L55: 37 | M55: 2421.558089 | N55: 2421.558089 | O55: 2636.586257 | P55: 2926.666683 | Q55: N/A | R55: 1 | S55: 1 | T55: 1 | V55: 1333 | W55: 1451 | X55: 1611 | Z55: 229 | AA55: 250 | AB55: 277 | AD55: 0.883613059 | AE55: 1.04831839 | AF55: 1.280293634 | AG55: 0.0002083 | AH55: 1.724 | AI55: 4 | AJ55: 0.001392796 | AK55: 708.7516293 | AL55: 769.2373195 | AM55: 881.3334197 | AN55: 1 | AO55: 1 | AP55: 1 | AQ55: 798 | AR55: 866 | AS55: 993 | AT55: 343 | AU55: 372 | AV55: 427 | AW55: 1.942618835 | AX55: 2.276219666 | AY55: 2.979993749 | AZ55: 3.8 | BA55: 16.9 | BB55: 18.9 | BC55: 30 | BE55: 1549 | BG55: 0.68 | BJ55: 0 | BK55: 12.3 | BL55: 14.4 | BM55: 21.85 | BO55: 1 | BP55: 1 | BQ55: 1 | BR55: 798 | BS55: 866 | BT55: 993 | BV55: 0 | BW55: 0 | BX55: 0 | BY55: 1 | CN55: 30010 | CO55: 300 | CP55: 10 | CQ55: =CQ53 -> 10.2 | CR55: =CR53 -> 11.9 | CS55: =CS53 -> 21.85 | CT55: 16.2 | CU55: 18.6 | CV55: 31.4 | DF55: =DF54 -> 160 | DG55: =BK14 -> 12.3 | DH55: =ROUND(IF($BZ$2=1,V14,IF($BZ$2=2,V14*3.412141633,)),0) -> 1351 | DI55: =IF($BZ$2=1,ROUND(Z14,0),IF($BZ$2=2,ROUND(Z14/272.7654,1),)) -> 232 | DJ55: =IF($BZ$2=1,AD14,IF($BZ$2=2,AD14*0.3346,)) -> 0.807239522 | DK55: =IF(BY14=1,ROUND(IF($BZ$2=1,AQ14,IF($BZ$2=2,AQ14*3.412141633,)),0),"") -> 879 | DL55: =IF(BY14=1,IF($BZ$2=1,ROUND(AT14,0),IF($BZ$2=2,ROUND(AT14/272.7654,1),)),"") -> 378 | DM55: =IF(BY14=1,IF($BZ$2=1,AW14,IF($BZ$2=2,AW14*0.3346,)),"") -> 1.980257173 | DN55: =J14 -> 26 | DO55: =DN55+8 -> 34 | DP55: =BA14 -> 26.69406538 | DQ55: =DQ54 -> 3.6
A56: 121016 | D56: 1 | E56: 210 | F56: 40.5 | G56: 16 | H56: 16.5 | I56: 0 | J56: 26 | K56: 30 | L56: 37 | M56: 2669.531398 | N56: 2669.531398 | O56: 2909.96403 | P56: 3292.499986 | Q56: N/A | R56: 1 | S56: 1 | T56: 1 | V56: 1469 | W56: 1601 | X56: 1812 | Z56: 253 | AA56: 275 | AB56: 312 | AD56: 1.095669668 | AE56: 1.288538972 | AF56: 1.647302631 | AG56: 0.0002083 | AH56: 1.724 | AI56: 4 | AJ56: 0.001392796 | AK56: 783.5260524 | AL56: 848.3740354 | AM56: 991.4999047 | AN56: 1 | AO56: 1 | AP56: 1 | AQ56: 882 | AR56: 955 | AS56: 1117 | AT56: =ROUND(AQ56*3600/(4186*ABS($AM$1-$AM$2)),0) -> 379 | AU56: =ROUND(AR56*3600/(4186*ABS($AM$1-$AM$2)),0) -> 411 | AV56: =ROUND(AS56*3600/(4186*ABS($AM$1-$AM$2)),0) -> 480 | AW56: 2.406185882 | AX56: 2.818068506 | AY56: 3.814404423 | AZ56: 4.2 | BA56: 19.3 | BB56: 21.3 | BC56: 36 | BE56: 1818 | BG56: 0.68 | BJ56: 0 | BK56: 12.3 | BL56: 14.4 | BM56: 21.85 | BO56: 1 | BP56: 1 | BQ56: 1 | BR56: 882 | BS56: 955 | BT56: 1117 | BV56: 0 | BW56: 0 | BX56: 0 | BY56: 1 | CN56: 30015 | CO56: 300 | CP56: 15 | CQ56: =CQ54 -> 10 | CR56: =CR54 -> 10.6 | CS56: 21.85 | CT56: 19.3 | CU56: 20.4 | CV56: 34.5 | DF56: =DF54 -> 160 | DG56: =BL14 -> 14.4 | DH56: =ROUND(IF($BZ$2=1,W14,IF($BZ$2=2,W14*3.412141633,)),0) -> 1521 | DI56: =IF($BZ$2=1,ROUND(AA14,0),IF($BZ$2=2,ROUND(AA14/272.7654,1),)) -> 262 | DJ56: =IF($BZ$2=1,AE14,IF($BZ$2=2,AE14*0.3346,)) -> 1.009079538 | DK56: =IF(BY14=1,ROUND(IF($BZ$2=1,AR14,IF($BZ$2=2,AR14*3.412141633,)),0),"") -> 978 | DL56: =IF(BY14=1,IF($BZ$2=1,ROUND(AU14,0),IF($BZ$2=2,ROUND(AU14/272.7654,1),)),"") -> 421 | DM56: =IF(BY14=1,IF($BZ$2=1,AX14,IF($BZ$2=2,AX14*0.3346,)),"") -> 2.415292705 | DN56: =K14 -> 30 | DO56: =DN56+8 -> 38 | DP56: =BB14 -> 31.43914396 | DQ56: =DQ54 -> 3.6
A57: 123016 | D57: 1 | E57: 230 | F57: 40.5 | G57: 16 | H57: 16.5 | I57: 0 | J57: 26 | K57: 30 | L57: 37.92062042 | M57: 2918.823115 | N57: 2918.823115 | O57: 3177.456356 | P57: 3658.333289 | Q57: N/A | R57: 1 | S57: 1 | T57: 1 | V57: 1606 | W57: 1749 | X57: 2013 | Z57: 276 | AA57: 301 | AB57: 346 | AD57: 1.324040057 | AE57: 1.566770043 | AF57: 2.05380223 | AG57: 0.0002083 | AH57: 1.724 | AI57: 4 | AJ57: 0.001392796 | AK57: 858.9837336 | AL57: 926.4939336 | AM57: 1101.666646 | AN57: 1 | AO57: 1 | AP57: 1 | AQ57: 967 | AR57: 1043 | AS57: 1241 | AT57: 416 | AU57: 448 | AV57: 534 | AW57: 2.938798812 | AX57: 3.394770057 | AY57: 4.779170957 | AZ57: 4.6 | BA57: 21.6 | BB57: 23.6 | BC57: 42 | BE57: 2352 | BG57: 0.68 | BJ57: 0 | BK57: 12.3 | BL57: 14.4 | BM57: 21.85 | BO57: 1 | BP57: 1 | BQ57: 1 | BR57: 967 | BS57: 1043 | BT57: 1241 | BV57: 0 | BW57: 0 | BX57: 0 | BY57: 1 | DF57: =DF54 -> 160 | DG57: =BM14 -> 21.85 | DH57: =ROUND(IF($BZ$2=1,X14,IF($BZ$2=2,X14*3.412141633,)),0) -> 1963 | DI57: =IF($BZ$2=1,ROUND(AB14,0),IF($BZ$2=2,ROUND(AB14/272.7654,1),)) -> 338 | DJ57: =IF($BZ$2=1,AF14,IF($BZ$2=2,AF14*0.3346,)) -> 1.611662491 | DK57: =IF(BY14=1,ROUND(IF($BZ$2=1,AS14,IF($BZ$2=2,AS14*3.412141633,)),0),"") -> 1173 | DL57: =IF(BY14=1,IF($BZ$2=1,ROUND(AV14,0),IF($BZ$2=2,ROUND(AV14/272.7654,1),)),"") -> 504 | DM57: =IF(BY14=1,IF($BZ$2=1,AY14,IF($BZ$2=2,AY14*0.3346,)),"") -> 3.366761186 | DN57: =L14 -> 40.8451125 | DO57: =DN57+8 -> 48.8451125 | DP57: =BC14 -> 49.4 | DQ57: =DQ54 -> 3.6
A58: 125016 | D58: 1 | E58: 250 | F58: 40.5 | G58: 16 | H58: 16.5 | I58: 0 | J58: 26 | K58: 30 | L58: 38.6989939 | M58: 3189.198512 | N58: 3189.198512 | O58: 3467.53802 | P58: 4024.166592 | Q58: N/A | R58: 1 | S58: 1 | T58: 1 | V58: 1755 | W58: 1908 | X58: 2215 | Y58: =ROUND(U58*3600/(4186*ABS($O$1-$O$2)),0) ->  | Z58: =ROUND(V58*3600/(4186*ABS($O$1-$O$2)),0) -> 302 | AA58: =ROUND(W58*3600/(4186*ABS($O$1-$O$2)),0) -> 328 | AB58: =ROUND(X58*3600/(4186*ABS($O$1-$O$2)),0) -> 381 | AD58: 1.607692744 | AE58: 1.886785324 | AF58: 2.522943991 | AG58: 0.0002083 | AH58: 1.724 | AI58: 4 | AJ58: 0.001392796 | AK58: 939.7016543 | AL58: 1011.377353 | AM58: 1211.833388 | AN58: 1 | AO58: 1 | AP58: 1 | AQ58: 1058 | AR58: 1139 | AS58: 1365 | AT58: 455 | AU58: 490 | AV58: 587 | AW58: 3.561232643 | AX58: 4.112917789 | AY58: 5.844152674 | AZ58: 5 | BA58: 22.7 | BB58: 24.7 | BC58: 45 | BE58: 629 | BG58: 0.68 | BJ58: 0 | BK58: 13.2 | BL58: 15.1 | BM58: 21.85 | BO58: 1 | BP58: 1 | BQ58: 1 | BR58: 1058 | BS58: 1139 | BT58: 1365 | BV58: 0 | BW58: 0 | BX58: 0 | BY58: 1 | DF58: 180 | DG58: =BJ15 -> 0 | DH58: =ROUND(IF($BZ$2=1,U15,IF($BZ$2=2,U15*3.412141633,)),0) ->  | DI58: =IF($BZ$2=1,ROUND(Y15,0),IF($BZ$2=2,ROUND(Y15/272.7654,1),)) ->  | DJ58: =IF($BZ$2=1,AC15,IF($BZ$2=2,AC15*0.3346,)) ->  | DN58: 0 | DO58: 0 | DP58: 0 | DQ58: =IF($BZ$2=1,AZ15,IF($BZ$2=2,AZ15/4.54609,)) -> 3.9
A59: 127016 | D59: 1 | E59: 270 | F59: 40.5 | G59: 16 | H59: 16.5 | I59: 0 | J59: 26 | K59: 30 | L59: 38.6989939 | M59: 3479.125639 | N59: 3479.125639 | O59: 3782.768735 | P59: 4389.999896 | Q59: N/A | R59: 1 | S59: 1 | T59: 1 | V59: 1915 | W59: 2082 | X59: 2416 | Z59: 329 | AA59: 358 | AB59: 416 | AD59: 1.93365277 | AE59: 2.277114578 | AF59: 3.04579104 | AG59: 0.0002083 | AH59: 1.724 | AI59: 4 | AJ59: 0.001392796 | AK59: 1025.128993 | AL59: 1103.320642 | AM59: 1321.999873 | AN59: 1 | AO59: 1 | AP59: 1 | AQ59: 1154 | AR59: 1243 | AS59: 1489 | AT59: 496 | AU59: 534 | AV59: 640 | AW59: 4.283833706 | AX59: 4.943727993 | AY59: 7.027575188 | AZ59: 5.4 | BA59: 22.7 | BB59: 24.7 | BC59: 45 | BE59: 753 | BG59: 0.68 | BJ59: 0 | BK59: 13.2 | BL59: 15.1 | BM59: 21.85 | BO59: 1 | BP59: 1 | BQ59: 1 | BR59: 1154 | BS59: 1243 | BT59: 1489 | BV59: 0 | BW59: 0 | BX59: 0 | BY59: 1 | DF59: =DF58 -> 180 | DG59: =BK15 -> 12.3 | DH59: =ROUND(IF($BZ$2=1,V15,IF($BZ$2=2,V15*3.412141633,)),0) -> 1463 | DI59: =IF($BZ$2=1,ROUND(Z15,0),IF($BZ$2=2,ROUND(Z15/272.7654,1),)) -> 252 | DJ59: =IF($BZ$2=1,AD15,IF($BZ$2=2,AD15*0.3346,)) -> 0.9850493678 | DK59: =IF(BY15=1,ROUND(IF($BZ$2=1,AQ15,IF($BZ$2=2,AQ15*3.412141633,)),0),"") -> 952 | DL59: =IF(BY15=1,IF($BZ$2=1,ROUND(AT15,0),IF($BZ$2=2,ROUND(AT15/272.7654,1),)),"") -> 409 | DM59: =IF(BY15=1,IF($BZ$2=1,AW15,IF($BZ$2=2,AW15*0.3346,)),"") -> 2.39538496 | DN59: =J15 -> 26 | DO59: =DN59+8 -> 34 | DP59: =BA15 -> 26.69 | DQ59: =DQ58 -> 3.9
A60: 129016 | D60: 1 | E60: 290 | F60: 40.5 | G60: 16 | H60: 16.5 | I60: 0 | J60: 26 | K60: 30 | L60: 39.04736875 | M60: 3707.968089 | N60: 3707.968089 | O60: 4011.878714 | P60: 4755.833456 | Q60: N/A | R60: 1 | S60: 1 | T60: 1 | V60: 2041 | W60: 2208 | X60: 2617 | Z60: 351 | AA60: 380 | AB60: 450 | AD60: 2.231621512 | AE60: 2.601642456 | AF60: 3.608101764 | AG60: 0.0002083 | AH60: 1.724 | AI60: 4 | AJ60: 0.001392796 | AK60: 1096.086942 | AL60: 1171.822993 | AM60: 1432.166614 | AN60: 1 | AO60: 1 | AP60: 1 | AQ60: 1234 | AR60: 1320 | AS60: 1613 | AT60: 531 | AU60: 568 | AV60: 694 | AW60: 4.97143774 | AX60: 5.6647288 | AY60: 8.355429798 | AZ60: 5.8 | BA60: 26.2 | BB60: 27.9 | BC60: 54 | BE60: 848 | BG60: 0.68 | BJ60: 0 | BK60: 13.2 | BL60: 15.1 | BM60: 21.85 | BO60: 1 | BP60: 1 | BQ60: 1 | BR60: 1234 | BS60: 1320 | BT60: 1613 | BV60: 0 | BW60: 0 | BX60: 0 | BY60: 1 | CN60: L,rail/L,tot | CO60: T10 | CP60: T11 | CQ60: T15 | CR60: T16 | CS60: T20 | CT60: T21 | CU60: ALS | DF60: =DF58 -> 180 | DG60: =BL15 -> 14.4 | DH60: =ROUND(IF($BZ$2=1,W15,IF($BZ$2=2,W15*3.412141633,)),0) -> 1647 | DI60: =IF($BZ$2=1,ROUND(AA15,0),IF($BZ$2=2,ROUND(AA15/272.7654,1),)) -> 283 | DJ60: =IF($BZ$2=1,AE15,IF($BZ$2=2,AE15*0.3346,)) -> 1.218307628 | DK60: =IF(BY15=1,ROUND(IF($BZ$2=1,AR15,IF($BZ$2=2,AR15*3.412141633,)),0),"") -> 1060 | DL60: =IF(BY15=1,IF($BZ$2=1,ROUND(AU15,0),IF($BZ$2=2,ROUND(AU15/272.7654,1),)),"") -> 456 | DM60: =IF(BY15=1,IF($BZ$2=1,AX15,IF($BZ$2=2,AX15*0.3346,)),"") -> 2.926115972 | DN60: =K15 -> 30 | DO60: =DN60+8 -> 38 | DP60: =BB15 -> 31.44 | DQ60: =DQ58 -> 3.9
A61: 19510 | D61: 1 | E61: 95 | F61: 40.5 | G61: 10 | H61: 16.5 | I61: 0 | J61: 26 | K61: 30 | L61: 41 | M61: 877.5 | N61: 1029.74039 | O61: 1104.285964 | P61: 1320.28 | Q61: N/A | R61: 1 | S61: 1 | T61: 1 | V61: 567 | W61: 608 | X61: 727 | Z61: 98 | AA61: 105 | AB61: 125 | AD61: 0.05240857826 | AE61: 0.05979144663 | AF61: 0.08345022336 | AG61: 0.0003969 | AH61: 1.7346 | AI61: 2 | AJ61: 0.000367347 | AK61: 142.760385 | AL61: 153.0951789 | AM61: 183.04 | AN61: 1 | AO61: 1 | AP61: 1 | AQ61: 161 | AR61: 172 | AS61: 206 | AT61: 69 | AU61: 74 | AV61: 89 | AW61: 0.02684335835 | AX61: 0.03066933915 | AY61: 0.04360542678 | AZ61: 0.6 | BA61: 5.5 | BB61: 5.9 | BC61: 7.9 | BE61: 975 | BG61: 0.9 | BJ61: 0 | BK61: 13.2 | BL61: 15.1 | BM61: 21.85 | BO61: 1 | BP61: 1 | BQ61: 1 | BR61: 161 | BS61: 172 | BT61: 206 | BV61: 0 | BW61: 0 | BX61: 0 | BY61: 1 | CN61: 1 | CO61: 0.9 | CP61: 0.68 | CQ61: 0.8 | CR61: 0.68 | CS61: 0.8 | CT61: 0.8 | CU61: =IF(#REF!/#REF!>data!CN$61,0,IF(#REF!/#REF!=data!CN$61,data!CO$61,IF(#REF!/#REF!>data!CN$62,data!CO$62,IF(#REF!/#REF!>data!CN$63,data!CO$63,IF(#REF!/#REF!>data!CN$64,data!CO$64,IF(#REF!/#REF!>data!CN$65,data!CO$65,IF(#REF!/#REF!>data!CN$66,data!CO$66,IF(#REF!/#REF!=data!CN$66,1,)))))))) ->  | CV61: T10 | DF61: =DF58 -> 180 | DG61: =BM15 -> 21.85 | DH61: =ROUND(IF($BZ$2=1,X15,IF($BZ$2=2,X15*3.412141633,)),0) -> 2126 | DI61: =IF($BZ$2=1,ROUND(AB15,0),IF($BZ$2=2,ROUND(AB15/272.7654,1),)) -> 366 | DJ61: =IF($BZ$2=1,AF15,IF($BZ$2=2,AF15*0.3346,)) -> 1.953021911 | DK61: =IF(BY15=1,ROUND(IF($BZ$2=1,AS15,IF($BZ$2=2,AS15*3.412141633,)),0),"") -> 1271 | DL61: =IF(BY15=1,IF($BZ$2=1,ROUND(AV15,0),IF($BZ$2=2,ROUND(AV15/272.7654,1),)),"") -> 547 | DM61: =IF(BY15=1,IF($BZ$2=1,AY15,IF($BZ$2=2,AY15*0.3346,)),"") -> 4.091415594 | DN61: =L15 -> 40.8451125 | DO61: =DN61+8 -> 48.8451125 | DP61: =BC15 -> 49.4 | DQ61: =DQ58 -> 3.9
A62: 13511 | D62: 1 | E62: 35 | F62: 40.5 | G62: 11 | H62: 16.5 | I62: 0 | J62: 26 | K62: 30 | L62: 41 | M62: 569.16 | N62: 1397.186154 | O62: 1498.332077 | P62: 1791.4 | Q62: N/A | R62: 1 | S62: 1 | T62: 1 | V62: 769 | W62: 825 | X62: 986 | Z62: 132 | AA62: 142 | AB62: 170 | AD62: 0.1133447232 | AE62: 0.1308292203 | AF62: 0.1863510883 | AG62: 0.0003969 | AH62: 1.7346 | AI62: 4 | AJ62: 0.000574288 | AK62: 234.013472 | AL62: 250.9543131 | AM62: 300.04 | AN62: 1 | AO62: 1 | AP62: 1 | AQ62: 264 | AR62: 283 | AS62: 338 | AT62: 114 | AU62: 122 | AV62: 145 | AW62: 0.08499241191 | AX62: 0.09709760815 | AY62: 0.1363155327 | AZ62: 0.5 | BA62: 5.5 | BB62: 5.9 | BC62: 7.9 | BE62: 837 | BG62: 0.68 | BJ62: 0 | BK62: 13.2 | BL62: 15.1 | BM62: 21.85 | BO62: 1 | BP62: 1 | BQ62: 1 | BR62: 264 | BS62: 283 | BT62: 338 | BV62: 0 | BW62: 0 | BX62: 0 | BY62: 1 | CN62: 0.8 | CO62: =CO$66-((CO$66-CO$61)*$CN62) -> 0.92 | CP62: =CP$66-((CP$66-CP$61)*$CN62) -> 0.744 | CQ62: 0.84 | CR62: 0.744 | CS62: 0.84 | CT62: 0.84 | CU62: =IF(#REF!/#REF!>data!CN$61,0,IF(#REF!/#REF!=data!CN$61,data!CP$61,IF(#REF!/#REF!>data!CN$62,data!CP$62,IF(#REF!/#REF!>data!CN$63,data!CP$63,IF(#REF!/#REF!>data!CN$64,data!CP$64,IF(#REF!/#REF!>data!CN$65,data!CP$65,IF(#REF!/#REF!>data!CN$66,data!CP$66,IF(#REF!/#REF!=data!CN$66,1,)))))))) ->  | CV62: T11 | DF62: 200 | DG62: =BJ16 ->  | DH62: =ROUND(IF($BZ$2=1,U16,IF($BZ$2=2,U16*3.412141633,)),0) ->  | DI62: =IF($BZ$2=1,ROUND(Y16,0),IF($BZ$2=2,ROUND(Y16/272.7654,1),)) ->  | DJ62: =IF($BZ$2=1,AC16,IF($BZ$2=2,AC16*0.3346,)) ->  | DN62: 0 | DO62: 0 | DP62: 0 | DQ62: =IF($BZ$2=1,AZ16,IF($BZ$2=2,AZ16/4.54609,)) -> 
A63: 15011 | D63: 1 | E63: 50 | F63: 40.5 | G63: 11 | H63: 16.5 | I63: 0 | J63: 26 | K63: 30 | L63: 41 | M63: 659.6 | N63: 1397.186154 | O63: 1498.332077 | P63: 1791.4 | Q63: N/A | R63: 1 | S63: 1 | T63: 1 | V63: 769 | W63: 825 | X63: 986 | Z63: 132 | AA63: 142 | AB63: 170 | AD63: 0.1244724375 | AE63: 0.1434596401 | AF63: 0.2036092735 | AG63: 0.0003969 | AH63: 1.7346 | AI63: 4 | AJ63: 0.000574288 | AK63: 234.013472 | AL63: 250.9543131 | AM63: 300.04 | AN63: 1 | AO63: 1 | AP63: 1 | AQ63: 264 | AR63: 283 | AS63: 338 | AT63: 114 | AU63: 122 | AV63: 145 | AW63: 0.09362151346 | AX63: 0.1068040082 | AY63: 0.149412398 | AZ63: 0.7 | BA63: 5.5 | BB63: 5.9 | BC63: 7.9 | BE63: 970 | BG63: 0.68 | BJ63: 0 | BK63: 13.2 | BL63: 15.1 | BM63: 21.85 | BO63: 1 | BP63: 1 | BQ63: 1 | BR63: 264 | BS63: 283 | BT63: 338 | BV63: 0 | BW63: 0 | BX63: 0 | BY63: 1 | CN63: 0.6 | CO63: =CO$66-((CO$66-CO$61)*$CN63) -> 0.94 | CP63: 0.808 | CQ63: 0.88 | CR63: 0.808 | CS63: 0.88 | CT63: 0.88 | CU63: =IF(#REF!/#REF!>data!CN$61,0,IF(#REF!/#REF!=data!CN$61,data!CQ$61,IF(#REF!/#REF!>data!CN$62,data!CQ$62,IF(#REF!/#REF!>data!CN$63,data!CQ$63,IF(#REF!/#REF!>data!CN$64,data!CQ$64,IF(#REF!/#REF!>data!CN$65,data!CQ$65,IF(#REF!/#REF!>data!CN$66,data!CQ$66,IF(#REF!/#REF!=data!CN$66,1,)))))))) ->  | CV63: T15 | DF63: =DF62 -> 200 | DG63: =BK16 ->  | DH63: =ROUND(IF($BZ$2=1,V16,IF($BZ$2=2,V16*3.412141633,)),0) ->  | DI63: =IF($BZ$2=1,ROUND(Z16,0),IF($BZ$2=2,ROUND(Z16/272.7654,1),)) ->  | DJ63: =IF($BZ$2=1,AD16,IF($BZ$2=2,AD16*0.3346,)) ->  | DK63: =IF(BY16=1,ROUND(IF($BZ$2=1,AQ16,IF($BZ$2=2,AQ16*3.412141633,)),0),"") ->  | DL63: =IF(BY16=1,IF($BZ$2=1,ROUND(AT16,0),IF($BZ$2=2,ROUND(AT16/272.7654,1),)),"") ->  | DM63: =IF(BY16=1,IF($BZ$2=1,AW16,IF($BZ$2=2,AW16*0.3346,)),"") ->  | DN63: =J16 ->  | DO63: =DN63+8 ->  | DP63: =BA16 ->  | DQ63: =DQ62 -> 
A64: 16511 | D64: 1 | E64: 65 | F64: 40.5 | G64: 11 | H64: 16.5 | I64: 0 | J64: 26 | K64: 30 | L64: 41 | M64: 734.4 | N64: 1397.186154 | O64: 1498.332077 | P64: 1791.4 | Q64: N/A | R64: 1 | S64: 1 | T64: 1 | V64: 769 | W64: 825 | X64: 986 | Z64: 132 | AA64: 142 | AB64: 170 | AD64: 0.1356001518 | AE64: 0.15609006 | AF64: 0.2208674586 | AG64: 0.0003969 | AH64: 1.7346 | AI64: 4 | AJ64: 0.000574288 | AK64: =AK63*(1-(($E64-50)*0.005)) -> 216.4624616 | AL64: =AL63*(1-(($E64-50)*0.005)) -> 232.1327396 | AM64: =AM63*(1-(($E64-50)*0.005)) -> 277.537 | AN64: 1 | AO64: 1 | AP64: 1 | AQ64: 244 | AR64: 261 | AS64: 313 | AT64: 105 | AU64: 112 | AV64: 135 | AW64: 0.08728797586 | AX64: 0.09882663811 | AY64: 0.1416003565 | AZ64: 0.9 | BA64: 5.5 | BB64: 5.9 | BC64: 7.9 | BE64: 1080 | BG64: 0.68 | BJ64: 0 | BK64: 13.2 | BL64: 15.1 | BM64: 21.85 | BO64: 1 | BP64: 1 | BQ64: 1 | BR64: 244 | BS64: 261 | BT64: 313 | BV64: 0 | BW64: 0 | BX64: 0 | BY64: 1 | CN64: 0.4 | CO64: 0.96 | CP64: 0.872 | CQ64: 0.92 | CR64: 0.872 | CS64: 0.92 | CT64: 0.92 | CU64: =IF(#REF!/#REF!>data!CN$61,0,IF(#REF!/#REF!=data!CN$61,data!CR$61,IF(#REF!/#REF!>data!CN$62,data!CR$62,IF(#REF!/#REF!>data!CN$63,data!CR$63,IF(#REF!/#REF!>data!CN$64,data!CR$64,IF(#REF!/#REF!>data!CN$65,data!CR$65,IF(#REF!/#REF!>data!CN$66,data!CR$66,IF(#REF!/#REF!=data!CN$66,1,)))))))) ->  | CV64: T16 | DF64: =DF62 -> 200 | DG64: =BL16 ->  | DH64: =ROUND(IF($BZ$2=1,W16,IF($BZ$2=2,W16*3.412141633,)),0) ->  | DI64: =IF($BZ$2=1,ROUND(AA16,0),IF($BZ$2=2,ROUND(AA16/272.7654,1),)) ->  | DJ64: =IF($BZ$2=1,AE16,IF($BZ$2=2,AE16*0.3346,)) ->  | DK64: =IF(BY16=1,ROUND(IF($BZ$2=1,AR16,IF($BZ$2=2,AR16*3.412141633,)),0),"") ->  | DL64: =IF(BY16=1,IF($BZ$2=1,ROUND(AU16,0),IF($BZ$2=2,ROUND(AU16/272.7654,1),)),"") ->  | DM64: =IF(BY16=1,IF($BZ$2=1,AX16,IF($BZ$2=2,AX16*0.3346,)),"") ->  | DN64: =K16 ->  | DO64: =DN64+8 ->  | DP64: =BB16 ->  | DQ64: =DQ62 -> 
A65: 19511 | D65: 1 | E65: 95 | F65: 40.5 | G65: 11 | H65: 16.5 | I65: 0 | J65: 26 | K65: 30 | L65: 41 | M65: 854.76 | N65: 1397.186154 | O65: 1498.332077 | P65: 1791.4 | Q65: N/A | R65: 1 | S65: 1 | T65: 1 | V65: 769 | W65: 825 | X65: 986 | Z65: 132 | AA65: 142 | AB65: 170 | AD65: 0.1578555804 | AE65: 0.1813508997 | AF65: 0.2553838289 | AG65: 0.0003969 | AH65: 1.7346 | AI65: 4 | AJ65: 0.000574288 | AK65: =AK63*(1-(($E65-50)*0.005)) -> 181.3604408 | AL65: =AL63*(1-(($E65-50)*0.005)) -> 194.4895927 | AM65: =AM63*(1-(($E65-50)*0.005)) -> 232.531 | AN65: 1 | AO65: 1 | AP65: 1 | AQ65: 204 | AR65: 219 | AS65: 262 | AT65: 88 | AU65: 94 | AV65: 113 | AW65: 0.07317728154 | AX65: 0.08291022977 | AY65: 0.1175280208 | AZ65: 1.3 | BA65: 5.5 | BB65: 5.9 | BC65: 7.9 | BE65: 1257 | BG65: 0.68 | BJ65: 0 | BK65: 13.2 | BL65: 15.1 | BM65: 21.85 | BO65: 1 | BP65: 1 | BQ65: 1 | BR65: 204 | BS65: 219 | BT65: 262 | BV65: 0 | BW65: 0 | BX65: 0 | BY65: 1 | CN65: 0.2 | CO65: 0.98 | CP65: 0.936 | CQ65: 0.96 | CR65: 0.936 | CS65: 0.96 | CT65: 0.96 | CU65: =IF(#REF!/#REF!>data!CN$61,0,IF(#REF!/#REF!=data!CN$61,data!CS$61,IF(#REF!/#REF!>data!CN$62,data!CS$62,IF(#REF!/#REF!>data!CN$63,data!CS$63,IF(#REF!/#REF!>data!CN$64,data!CS$64,IF(#REF!/#REF!>data!CN$65,data!CS$65,IF(#REF!/#REF!>data!CN$66,data!CS$66,IF(#REF!/#REF!=data!CN$66,1,)))))))) ->  | CV65: T20 | DF65: =DF62 -> 200 | DG65: =BM16 ->  | DH65: =ROUND(IF($BZ$2=1,X16,IF($BZ$2=2,X16*3.412141633,)),0) ->  | DI65: =IF($BZ$2=1,ROUND(AB16,0),IF($BZ$2=2,ROUND(AB16/272.7654,1),)) ->  | DJ65: =IF($BZ$2=1,AF16,IF($BZ$2=2,AF16*0.3346,)) ->  | DK65: =IF(BY16=1,ROUND(IF($BZ$2=1,AS16,IF($BZ$2=2,AS16*3.412141633,)),0),"") ->  | DL65: =IF(BY16=1,IF($BZ$2=1,ROUND(AV16,0),IF($BZ$2=2,ROUND(AV16/272.7654,1),)),"") ->  | DM65: =IF(BY16=1,IF($BZ$2=1,AY16,IF($BZ$2=2,AY16*0.3346,)),"") ->  | DN65: =L16 ->  | DO65: =DN65+8 ->  | DP65: =BC16 ->  | DQ65: =DQ62 -> 
A66: 13515 | D66: 1 | E66: 35 | F66: 40.5 | G66: 15 | H66: 16.5 | I66: 0 | J66: 26 | K66: 30 | L66: 41.1 | M66: 823.2 | N66: 1070.827354 | O66: 1149.509462 | P66: 1521.41 | Q66: N/A | R66: 1 | S66: 1 | T66: 1 | V66: 589 | W66: 633 | X66: 837 | Z66: 101 | AA66: 109 | AB66: 144 | AD66: 0.04856923665 | AE66: 0.05650989017 | AF66: 0.09827371069 | AG66: 0.0002083 | AH66: 1.724 | AI66: 2 | AJ66: 0.000461829 | AK66: 135.0948149 | AL66: 145.0212935 | AM66: 191.94 | AN66: 1 | AO66: 1 | AP66: 1 | AQ66: 152 | AR66: 163 | AS66: 216 | AT66: 65 | AU66: 70 | AV66: 93 | AW66: 0.02024475939 | AX66: 0.02345276685 | AY66: 0.04122670134 | AZ66: 0.4 | BA66: 5.1 | BB66: 5.6 | BC66: 7.2 | BE66: 1029 | BG66: 0.8 | BJ66: 0 | BK66: 12.3 | BL66: 14.4 | BM66: 21.85 | BO66: 1 | BP66: 1 | BQ66: 1 | BR66: 152 | BS66: 163 | BT66: 216 | BV66: 0 | BW66: 0 | BX66: 0 | BY66: 1 | CN66: 0 | CO66: 1 | CP66: 1 | CQ66: 1 | CR66: 1 | CS66: 1 | CT66: 1 | CU66: =IF(#REF!/#REF!>data!CN$61,0,IF(#REF!/#REF!=data!CN$61,data!CT$61,IF(#REF!/#REF!>data!CN$62,data!CT$62,IF(#REF!/#REF!>data!CN$63,data!CT$63,IF(#REF!/#REF!>data!CN$64,data!CT$64,IF(#REF!/#REF!>data!CN$65,data!CT$65,IF(#REF!/#REF!>data!CN$66,data!CT$66,IF(#REF!/#REF!=data!CN$66,1,)))))))) ->  | CV66: T21 | DF66: 220 | DG66: =BJ17 ->  | DH66: =ROUND(IF($BZ$2=1,U17,IF($BZ$2=2,U17*3.412141633,)),0) ->  | DI66: =IF($BZ$2=1,ROUND(Y17,0),IF($BZ$2=2,ROUND(Y17/272.7654,1),)) ->  | DJ66: =IF($BZ$2=1,AC17,IF($BZ$2=2,AC17*0.3346,)) ->  | DN66: 0 | DO66: 0 | DP66: 0 | DQ66: =IF($BZ$2=1,AZ17,IF($BZ$2=2,AZ17/4.54609,)) -> 
A67: 15015 | D67: 1 | E67: 50 | F67: 40.5 | G67: 15 | H67: 16.5 | I67: 0 | J67: 26 | K67: 30 | L67: 41.1 | M67: 975.8273542 | N67: 1070.827354 | O67: 1149.509462 | P67: 1521.41 | Q67: N/A | R67: 1 | S67: 1 | T67: 1 | V67: 589 | W67: 633 | X67: 837 | Z67: 101 | AA67: 109 | AB67: 144 | AD67: 0.05031701618 | AE67: 0.0585031315 | AF67: 0.1014951766 | AG67: 0.0002083 | AH67: 1.724 | AI67: 2 | AJ67: 0.000461829 | AK67: 135.0948149 | AL67: 145.0212935 | AM67: 191.94 | AN67: 1 | AO67: 1 | AP67: 1 | AQ67: 152 | AR67: 163 | AS67: 216 | AT67: 65 | AU67: 70 | AV67: 93 | AW67: 0.02106228097 | AX67: 0.02438170248 | AY67: 0.04274270833 | AZ67: 0.5 | BA67: 5.1 | BB67: 5.6 | BC67: 7.2 | BE67: 1214 | BG67: 0.8 | BJ67: 0 | BK67: 12.3 | BL67: 14.4 | BM67: 21.85 | BO67: 1 | BP67: 1 | BQ67: 1 | BR67: 152 | BS67: 163 | BT67: 216 | BV67: 0 | BW67: 0 | BX67: 0 | BY67: 1 | DF67: =DF66 -> 220 | DG67: =BK17 ->  | DH67: =ROUND(IF($BZ$2=1,V17,IF($BZ$2=2,V17*3.412141633,)),0) ->  | DI67: =IF($BZ$2=1,ROUND(Z17,0),IF($BZ$2=2,ROUND(Z17/272.7654,1),)) ->  | DJ67: =IF($BZ$2=1,AD17,IF($BZ$2=2,AD17*0.3346,)) ->  | DK67: =IF(BY17=1,ROUND(IF($BZ$2=1,AQ17,IF($BZ$2=2,AQ17*3.412141633,)),0),"") ->  | DL67: =IF(BY17=1,IF($BZ$2=1,ROUND(AT17,0),IF($BZ$2=2,ROUND(AT17/272.7654,1),)),"") ->  | DM67: =IF(BY17=1,IF($BZ$2=1,AW17,IF($BZ$2=2,AW17*0.3346,)),"") ->  | DN67: =J17 ->  | DO67: =DN67+8 ->  | DP67: =BA17 ->  | DQ67: =DQ66 -> 
A68: 16515 | D68: 1 | E68: 65 | F68: 40.5 | G68: 15 | H68: 16.5 | I68: 0 | J68: 26 | K68: 30 | L68: 41.1 | M68: 975.8273542 | N68: 1070.827354 | O68: 1149.509462 | P68: 1521.41 | Q68: N/A | R68: 1 | S68: 1 | T68: 1 | V68: 589 | W68: 633 | X68: 837 | Z68: 101 | AA68: 109 | AB68: 144 | AD68: 0.05206479571 | AE68: 0.06049637283 | AF68: 0.1047166425 | AG68: 0.0002083 | AH68: 1.724 | AI68: 2 | AJ68: 0.000461829 | AK68: 135.0948149 | AL68: 145.0212935 | AM68: 191.94 | AN68: 1 | AO68: 1 | AP68: 1 | AQ68: 152 | AR68: 163 | AS68: 216 | AT68: 65 | AU68: 70 | AV68: 93 | AW68: 0.02187980255 | AX68: 0.02531063811 | AY68: 0.04425871532 | AZ68: 0.7 | BA68: 5.1 | BB68: 5.6 | BC68: 7.2 | BE68: 1345 | BG68: 0.8 | BJ68: 0 | BK68: 12.3 | BL68: 14.4 | BM68: 21.85 | BO68: 1 | BP68: 1 | BQ68: 1 | BR68: 152 | BS68: 163 | BT68: 216 | BV68: 0 | BW68: 0 | BX68: 0 | BY68: 1 | DF68: =DF66 -> 220 | DG68: =BL17 ->  | DH68: =ROUND(IF($BZ$2=1,W17,IF($BZ$2=2,W17*3.412141633,)),0) ->  | DI68: =IF($BZ$2=1,ROUND(AA17,0),IF($BZ$2=2,ROUND(AA17/272.7654,1),)) ->  | DJ68: =IF($BZ$2=1,AE17,IF($BZ$2=2,AE17*0.3346,)) ->  | DK68: =IF(BY17=1,ROUND(IF($BZ$2=1,AR17,IF($BZ$2=2,AR17*3.412141633,)),0),"") ->  | DL68: =IF(BY17=1,IF($BZ$2=1,ROUND(AU17,0),IF($BZ$2=2,ROUND(AU17/272.7654,1),)),"") ->  | DM68: =IF(BY17=1,IF($BZ$2=1,AX17,IF($BZ$2=2,AX17*0.3346,)),"") ->  | DN68: =K17 ->  | DO68: =DN68+8 ->  | DP68: =BB17 ->  | DQ68: =DQ66 -> 
A69: 19515 | D69: 1 | E69: 95 | F69: 40.5 | G69: 15 | H69: 16.5 | I69: 0 | J69: 26 | K69: 30 | L69: 41.1 | M69: 975.8273542 | N69: 1070.827354 | O69: 1149.509462 | P69: 1521.41 | Q69: N/A | R69: 1 | S69: 1 | T69: 1 | V69: 589 | W69: 633 | X69: 837 | Z69: 101 | AA69: 109 | AB69: 144 | AD69: 0.05556035478 | AE69: 0.06448285548 | AF69: 0.1111595742 | AG69: 0.0002083 | AH69: 1.724 | AI69: 2 | AJ69: 0.000461829 | AK69: 135.0948149 | AL69: 145.0212935 | AM69: 191.94 | AN69: 1 | AO69: 1 | AP69: 1 | AQ69: 152 | AR69: 163 | AS69: 216 | AT69: 65 | AU69: 70 | AV69: 93 | AW69: 0.02351484572 | AX69: 0.02716850937 | AY69: 0.0472907293 | AZ69: 1 | BA69: 5.1 | BB69: 5.6 | BC69: 7.2 | BE69: 1502 | BG69: 0.8 | BJ69: 0 | BK69: 12.3 | BL69: 14.4 | BM69: 21.85 | BO69: 1 | BP69: 1 | BQ69: 1 | BR69: 152 | BS69: 163 | BT69: 216 | BV69: 0 | BW69: 0 | BX69: 0 | BY69: 1 | DF69: =DF66 -> 220 | DG69: =BM17 ->  | DH69: =ROUND(IF($BZ$2=1,X17,IF($BZ$2=2,X17*3.412141633,)),0) ->  | DI69: =IF($BZ$2=1,ROUND(AB17,0),IF($BZ$2=2,ROUND(AB17/272.7654,1),)) ->  | DJ69: =IF($BZ$2=1,AF17,IF($BZ$2=2,AF17*0.3346,)) ->  | DK69: =IF(BY17=1,ROUND(IF($BZ$2=1,AS17,IF($BZ$2=2,AS17*3.412141633,)),0),"") ->  | DL69: =IF(BY17=1,IF($BZ$2=1,ROUND(AV17,0),IF($BZ$2=2,ROUND(AV17/272.7654,1),)),"") ->  | DM69: =IF(BY17=1,IF($BZ$2=1,AY17,IF($BZ$2=2,AY17*0.3346,)),"") ->  | DN69: =L17 ->  | DO69: =DN69+8 ->  | DP69: =BC17 ->  | DQ69: =DQ66 -> 
A70: 13516 | D70: 1 | E70: 35 | F70: 40.5 | G70: 16 | H70: 16.5 | I70: 0 | J70: 26 | K70: 30 | L70: 41.1 | M70: 758.2 | N70: 1627.627173 | O70: 1747.221742 | P70: 2312.5 | Q70: N/A | R70: 1 | S70: 1 | T70: 1 | V70: 896 | W70: 962 | X70: 1273 | Z70: 154 | AA70: 165 | AB70: 219 | AD70: 0.3336432837 | AE70: 0.382793772 | AF70: 0.672868137 | AG70: 0.0002083 | AH70: 1.724 | AI70: 4 | AJ70: 0.001392796 | AK70: 219.5976985 | AL70: 235.7332686 | AM70: 312 | AN70: 1 | AO70: 1 | AP70: 1 | AQ70: 247 | AR70: 265 | AS70: 351 | AT70: 106 | AU70: 114 | AV70: 151 | AW70: 0.1585822564 | AX70: 0.1833025007 | AY70: 0.3208228082 | AZ70: 0.7 | BA70: 5.1 | BB70: 5.6 | BC70: 7.2 | BE70: 1115 | BG70: 0.68 | BJ70: 0 | BK70: 12.3 | BL70: 14.4 | BM70: 21.85 | BO70: 1 | BP70: 1 | BQ70: 1 | BR70: 247 | BS70: 265 | BT70: 351 | BV70: 0 | BW70: 0 | BX70: 0 | BY70: 1 | CN70: Lengths | CO70: Calculation factors for lower fan settings | DF70: 240 | DG70: =BJ18 ->  | DH70: =ROUND(IF($BZ$2=1,U18,IF($BZ$2=2,U18*3.412141633,)),0) ->  | DI70: =IF($BZ$2=1,ROUND(Y18,0),IF($BZ$2=2,ROUND(Y18/272.7654,1),)) ->  | DJ70: =IF($BZ$2=1,AC18,IF($BZ$2=2,AC18*0.3346,)) ->  | DN70: 0 | DO70: 0 | DP70: 0 | DQ70: =IF($BZ$2=1,AZ18,IF($BZ$2=2,AZ18/4.54609,)) -> 
A71: 15016 | D71: 1 | E71: 50 | F71: 40.5 | G71: 16 | H71: 16.5 | I71: 0 | J71: 26 | K71: 30 | L71: 41.1 | M71: 903.72 | N71: 1627.627173 | O71: 1747.221742 | P71: 2312.5 | Q71: N/A | R71: 1 | S71: 1 | T71: 1 | V71: 896 | W71: 962 | X71: 1273 | Z71: 154 | AA71: 165 | AB71: 219 | AD71: 0.3408768476 | AE71: 0.3909409821 | AF71: 0.6861418447 | AG71: 0.0002083 | AH71: 1.724 | AI71: 4 | AJ71: 0.001392796 | AK71: 219.5976985 | AL71: 235.7332686 | AM71: 312 | AN71: 1 | AO71: 1 | AP71: 1 | AQ71: 247 | AR71: 265 | AS71: 351 | AT71: 106 | AU71: 114 | AV71: 151 | AW71: 0.1623814717 | AX71: 0.187609458 | AY71: 0.3278151533 | AZ71: 1 | BA71: 5.1 | BB71: 5.6 | BC71: 7.2 | BE71: 1329 | BG71: 0.68 | BJ71: 0 | BK71: 12.3 | BL71: 14.4 | BM71: 21.85 | BO71: 1 | BP71: 1 | BQ71: 1 | BR71: 247 | BS71: 265 | BT71: 351 | BV71: 0 | BW71: 0 | BX71: 0 | BY71: 1 | CO71: T10 | CQ71: T11 | CS71: T15 | CU71: T16 | CW71: T20 | CY71: T21 | DF71: =DF70 -> 240 | DG71: =BK18 ->  | DH71: =ROUND(IF($BZ$2=1,V18,IF($BZ$2=2,V18*3.412141633,)),0) ->  | DI71: =IF($BZ$2=1,ROUND(Z18,0),IF($BZ$2=2,ROUND(Z18/272.7654,1),)) ->  | DJ71: =IF($BZ$2=1,AD18,IF($BZ$2=2,AD18*0.3346,)) ->  | DK71: =IF(BY18=1,ROUND(IF($BZ$2=1,AQ18,IF($BZ$2=2,AQ18*3.412141633,)),0),"") ->  | DL71: =IF(BY18=1,IF($BZ$2=1,ROUND(AT18,0),IF($BZ$2=2,ROUND(AT18/272.7654,1),)),"") ->  | DM71: =IF(BY18=1,IF($BZ$2=1,AW18,IF($BZ$2=2,AW18*0.3346,)),"") ->  | DN71: =J18 ->  | DO71: =DN71+8 ->  | DP71: =BA18 ->  | DQ71: =DQ70 -> 
A72: 16516 | D72: 1 | E72: 65 | F72: 40.5 | G72: 16 | H72: 16.5 | I72: 0 | J72: 26 | K72: 30 | L72: 41.1 | M72: 1034.28 | N72: 1627.627173 | O72: 1747.221742 | P72: 2312.5 | Q72: N/A | R72: 1 | S72: 1 | T72: 1 | V72: 896 | W72: 962 | X72: 1273 | Z72: 154 | AA72: 165 | AB72: 219 | AD72: 0.3481104114 | AE72: 0.3990881922 | AF72: 0.6994155524 | AG72: 0.0002083 | AH72: 1.724 | AI72: 4 | AJ72: 0.001392796 | AK72: =AK71*(1-(($E72-50)*0.005)) -> 203.1278711 | AL72: =AL71*(1-(($E72-50)*0.005)) -> 218.0532735 | AM72: =AM71*(1-(($E72-50)*0.005)) -> 288.6 | AN72: 1 | AO72: 1 | AP72: 1 | AQ72: 229 | AR72: 246 | AS72: 325 | AT72: 98 | AU72: 106 | AV72: 140 | AW72: 0.142283214 | AX72: 0.1661806871 | AY72: 0.2882320806 | AZ72: 1.3 | BA72: 5.1 | BB72: 5.6 | BC72: 7.2 | BE72: 1521 | BG72: 0.68 | BJ72: 0 | BK72: 12.3 | BL72: 14.4 | BM72: 21.85 | BO72: 1 | BP72: 1 | BQ72: 1 | BR72: 229 | BS72: 246 | BT72: 325 | BV72: 0 | BW72: 0 | BX72: 0 | BY72: 1 | CO72: S2 | CP72: S1 | CQ72: S2 | CR72: S1 | CS72: S2 | CT72: S1 | CU72: S2 | CV72: S1 | CW72: S2 | CX72: S1 | CY72: S2 | CZ72: S1 | DF72: =DF70 -> 240 | DG72: =BL18 ->  | DH72: =ROUND(IF($BZ$2=1,W18,IF($BZ$2=2,W18*3.412141633,)),0) ->  | DI72: =IF($BZ$2=1,ROUND(AA18,0),IF($BZ$2=2,ROUND(AA18/272.7654,1),)) ->  | DJ72: =IF($BZ$2=1,AE18,IF($BZ$2=2,AE18*0.3346,)) ->  | DK72: =IF(BY18=1,ROUND(IF($BZ$2=1,AR18,IF($BZ$2=2,AR18*3.412141633,)),0),"") ->  | DL72: =IF(BY18=1,IF($BZ$2=1,ROUND(AU18,0),IF($BZ$2=2,ROUND(AU18/272.7654,1),)),"") ->  | DM72: =IF(BY18=1,IF($BZ$2=1,AX18,IF($BZ$2=2,AX18*0.3346,)),"") ->  | DN72: =K18 ->  | DO72: =DN72+8 ->  | DP72: =BB18 ->  | DQ72: =DQ70 -> 
A73: 19516 | D73: 1 | E73: 95 | F73: 40.5 | G73: 16 | H73: 16.5 | I73: 0 | J73: 26 | K73: 30 | L73: 41.1 | M73: 1274.32 | N73: 1627.627173 | O73: 1747.221742 | P73: 2312.5 | Q73: N/A | R73: 1 | S73: 1 | T73: 1 | V73: 896 | W73: 962 | X73: 1273 | Z73: 154 | AA73: 165 | AB73: 219 | AD73: 0.3625775391 | AE73: 0.4153826124 | AF73: 0.7259629678 | AG73: 0.0002083 | AH73: 1.724 | AI73: 4 | AJ73: 0.001392796 | AK73: =AK71*(1-(($E73-50)*0.005)) -> 170.1882164 | AL73: =AL71*(1-(($E73-50)*0.005)) -> 182.6932832 | AM73: =AM71*(1-(($E73-50)*0.005)) -> 241.8 | AN73: 1 | AO73: 1 | AP73: 1 | AQ73: 192 | AR73: 206 | AS73: 272 | AT73: 83 | AU73: 89 | AV73: 117 | AW73: 0.1074213521 | AX73: 0.1232197482 | AY73: 0.2110492911 | AZ73: 1.9 | BA73: 5.1 | BB73: 5.6 | BC73: 7.2 | BE73: 1874 | BG73: 0.68 | BJ73: 0 | BK73: 12.3 | BL73: 14.4 | BM73: 21.85 | BO73: 1 | BP73: 1 | BQ73: 1 | BR73: 192 | BS73: 206 | BT73: 272 | BV73: 0 | BW73: 0 | BX73: 0 | BY73: 1 | CN73: 50 | CO73: 0.8551869613 | CP73: 0.7991842972 | CQ73: 0.8551869613 | CR73: 0.7991842972 | DF73: =DF70 -> 240 | DG73: =BM18 ->  | DH73: =ROUND(IF($BZ$2=1,X18,IF($BZ$2=2,X18*3.412141633,)),0) ->  | DI73: =IF($BZ$2=1,ROUND(AB18,0),IF($BZ$2=2,ROUND(AB18/272.7654,1),)) ->  | DJ73: =IF($BZ$2=1,AF18,IF($BZ$2=2,AF18*0.3346,)) ->  | DK73: =IF(BY18=1,ROUND(IF($BZ$2=1,AS18,IF($BZ$2=2,AS18*3.412141633,)),0),"") ->  | DL73: =IF(BY18=1,IF($BZ$2=1,ROUND(AV18,0),IF($BZ$2=2,ROUND(AV18/272.7654,1),)),"") ->  | DM73: =IF(BY18=1,IF($BZ$2=1,AY18,IF($BZ$2=2,AY18*0.3346,)),"") ->  | DN73: =L18 ->  | DO73: =DN73+8 ->  | DP73: =BC18 ->  | DQ73: =DQ70 -> 
A74: 13520 | D74: 1 | E74: 35 | F74: 40.5 | G74: 20 | H74: 21.5 | I74: 0 | J74: 26 | K74: 30 | L74: 41.1 | M74: 1153.6 | N74: 1509.84082 | O74: 1619.142106 | P74: 1935.84 | Q74: N/A | R74: 1 | S74: 1 | T74: 1 | V74: 831 | W74: 891 | X74: 1065 | Z74: 143 | AA74: 153 | AB74: 183 | AD74: 0.07812292714 | AE74: 0.08937475653 | AF74: 0.1276529705 | AG74: 0.0001276 | AH74: 1.7219 | AI74: 2 | AJ74: 0.000376611 | AK74: 170.5262815 | AL74: 182.8711206 | AM74: 218.64 | AN74: 1 | AO74: 1 | AP74: 1 | AQ74: 192 | AR74: 206 | AS74: 246 | AT74: 83 | AU74: 89 | AV74: 106 | AW74: 0.02646440419 | AX74: 0.03040592357 | AY74: 0.04305220782 | AZ74: 0.5 | BA74: 5.1 | BB74: 5.6 | BC74: 7.2 | BE74: 1442 | BG74: 0.8 | BJ74: 0 | BK74: 12.3 | BL74: 14.4 | BM74: 21.85 | BO74: 1 | BP74: 1 | BQ74: 1 | BR74: 192 | BS74: 206 | BT74: 246 | BV74: 0 | BW74: 0 | BX74: 0 | BY74: 1 | CN74: 60 | CO74: 0.8452517015 | CP74: 0.7892986148 | CQ74: 0.8452517015 | CR74: 0.7892986148 | CS74: 0.7555553481 | CT74: 0.7038387773 | CU74: 0.7555553481 | CV74: 0.7038387773 | CW74: 0.8452517015 | CX74: 0.7892986148 | CY74: 0.7555553481 | CZ74: 0.7038387773 | DF74: 260 | DG74: =BJ19 ->  | DH74: =ROUND(IF($BZ$2=1,U19,IF($BZ$2=2,U19*3.412141633,)),0) ->  | DI74: =IF($BZ$2=1,ROUND(Y19,0),IF($BZ$2=2,ROUND(Y19/272.7654,1),)) ->  | DJ74: =IF($BZ$2=1,AC19,IF($BZ$2=2,AC19*0.3346,)) ->  | DN74: 0 | DO74: 0 | DP74: 0 | DQ74: =IF($BZ$2=1,AZ19,IF($BZ$2=2,AZ19/4.54609,)) -> 
A75: 15020 | D75: 1 | E75: 50 | F75: 40.5 | G75: 20 | H75: 21.5 | I75: 0 | J75: 26 | K75: 30 | L75: 41.1 | M75: 1358.4 | N75: 1509.84082 | O75: 1619.142106 | P75: 1935.84 | Q75: N/A | R75: 1 | S75: 1 | T75: 1 | V75: 831 | W75: 891 | X75: 1065 | Z75: 143 | AA75: 153 | AB75: 183 | AD75: 0.08005254419 | AE75: 0.09154255138 | AF75: 0.1306035854 | AG75: 0.0001276 | AH75: 1.7219 | AI75: 2 | AJ75: 0.000376611 | AK75: 170.5262815 | AL75: 182.8711206 | AM75: 218.64 | AN75: 1 | AO75: 1 | AP75: 1 | AQ75: 192 | AR75: 206 | AS75: 246 | AT75: 83 | AU75: 89 | AV75: 106 | AW75: 0.02722064232 | AX75: 0.0312587343 | AY75: 0.04420452536 | AZ75: 0.7 | BA75: 5.1 | BB75: 5.6 | BC75: 7.2 | BE75: 1698 | BG75: 0.8 | BJ75: 0 | BK75: 12.3 | BL75: 14.4 | BM75: 21.85 | BO75: 1 | BP75: 1 | BQ75: 1 | BR75: 192 | BS75: 206 | BT75: 246 | BV75: 0 | BW75: 0 | BX75: 0 | BY75: 1 | CN75: 70 | CO75: 0.8364028567 | CP75: 0.7799409144 | CQ75: 0.8364028567 | CR75: 0.7799409144 | CS75: 0.7555553481 | CT75: 0.7038387773 | CU75: 0.7555553481 | CV75: 0.7038387773 | CW75: 0.8364028567 | CX75: 0.7799409144 | CY75: 0.7555553481 | CZ75: 0.7038387773 | DF75: =DF74 -> 260 | DG75: =BK19 ->  | DH75: =ROUND(IF($BZ$2=1,V19,IF($BZ$2=2,V19*3.412141633,)),0) ->  | DI75: =IF($BZ$2=1,ROUND(Z19,0),IF($BZ$2=2,ROUND(Z19/272.7654,1),)) ->  | DJ75: =IF($BZ$2=1,AD19,IF($BZ$2=2,AD19*0.3346,)) ->  | DK75: =IF(BY19=1,ROUND(IF($BZ$2=1,AQ19,IF($BZ$2=2,AQ19*3.412141633,)),0),"") ->  | DL75: =IF(BY19=1,IF($BZ$2=1,ROUND(AT19,0),IF($BZ$2=2,ROUND(AT19/272.7654,1),)),"") ->  | DM75: =IF(BY19=1,IF($BZ$2=1,AW19,IF($BZ$2=2,AW19*0.3346,)),"") ->  | DN75: =J19 ->  | DO75: =DN75+8 ->  | DP75: =BA19 ->  | DQ75: =DQ74 -> 
A76: 16520 | D76: 1 | E76: 65 | F76: 40.5 | G76: 20 | H76: 21.5 | I76: 0 | J76: 26 | K76: 30 | L76: 41.1 | M76: 1414.84082 | N76: 1509.84082 | O76: 1619.142106 | P76: 1935.84 | Q76: N/A | R76: 1 | S76: 1 | T76: 1 | V76: 831 | W76: 891 | X76: 1065 | Z76: 143 | AA76: 153 | AB76: 183 | AD76: 0.08198216123 | AE76: 0.09371034623 | AF76: 0.1335542003 | AG76: 0.0001276 | AH76: 1.7219 | AI76: 2 | AJ76: 0.000376611 | AK76: 170.5262815 | AL76: 182.8711206 | AM76: 218.64 | AN76: 1 | AO76: 1 | AP76: 1 | AQ76: 192 | AR76: 206 | AS76: 246 | AT76: 83 | AU76: 89 | AV76: 106 | AW76: 0.02797688045 | AX76: 0.03211154503 | AY76: 0.0453568429 | AZ76: 0.9 | BA76: 5.1 | BB76: 5.6 | BC76: 7.2 | BE76: 1880 | BG76: 0.8 | BJ76: 0 | BK76: 12.3 | BL76: 14.4 | BM76: 21.85 | BO76: 1 | BP76: 1 | BQ76: 1 | BR76: 192 | BS76: 206 | BT76: 246 | BV76: 0 | BW76: 0 | BX76: 0 | BY76: 1 | CN76: 80 | CO76: 0.8284588614 | CP76: 0.7713393602 | CQ76: 0.8284588614 | CR76: 0.7713393602 | CS76: 0.7453108993 | CT76: 0.6950414455 | CU76: 0.7453108993 | CV76: 0.6950414455 | CW76: 0.8284588614 | CX76: 0.7713393602 | CY76: 0.7453108993 | CZ76: 0.6950414455 | DF76: =DF74 -> 260 | DG76: =BL19 ->  | DH76: =ROUND(IF($BZ$2=1,W19,IF($BZ$2=2,W19*3.412141633,)),0) ->  | DI76: =IF($BZ$2=1,ROUND(AA19,0),IF($BZ$2=2,ROUND(AA19/272.7654,1),)) ->  | DJ76: =IF($BZ$2=1,AE19,IF($BZ$2=2,AE19*0.3346,)) ->  | DK76: =IF(BY19=1,ROUND(IF($BZ$2=1,AR19,IF($BZ$2=2,AR19*3.412141633,)),0),"") ->  | DL76: =IF(BY19=1,IF($BZ$2=1,ROUND(AU19,0),IF($BZ$2=2,ROUND(AU19/272.7654,1),)),"") ->  | DM76: =IF(BY19=1,IF($BZ$2=1,AX19,IF($BZ$2=2,AX19*0.3346,)),"") ->  | DN76: =K19 ->  | DO76: =DN76+8 ->  | DP76: =BB19 ->  | DQ76: =DQ74 -> 
A77: 19520 | D77: 1 | E77: 95 | F77: 40.5 | G77: 20 | H77: 21.5 | I77: 0 | J77: 26 | K77: 30 | L77: 41.1 | M77: 1414.84082 | N77: 1509.84082 | O77: 1619.142106 | P77: 1935.84 | Q77: N/A | R77: 1 | S77: 1 | T77: 1 | V77: 831 | W77: 891 | X77: 1065 | Z77: 143 | AA77: 153 | AB77: 183 | AD77: 0.08584139533 | AE77: 0.09804593592 | AF77: 0.1394554302 | AG77: 0.0001276 | AH77: 1.7219 | AI77: 2 | AJ77: 0.000376611 | AK77: 170.5262815 | AL77: 182.8711206 | AM77: 218.64 | AN77: 1 | AO77: 1 | AP77: 1 | AQ77: 192 | AR77: 206 | AS77: 246 | AT77: 83 | AU77: 89 | AV77: 106 | AW77: 0.02948935672 | AX77: 0.0338171665 | AY77: 0.04766147799 | AZ77: 1.3 | BA77: 5.1 | BB77: 5.6 | BC77: 7.2 | BE77: 2094 | BG77: 0.8 | BJ77: 0 | BK77: 12.3 | BL77: 14.4 | BM77: 21.85 | BO77: 1 | BP77: 1 | BQ77: 1 | BR77: 192 | BS77: 206 | BT77: 246 | BV77: 0 | BW77: 0 | BX77: 0 | BY77: 1 | CN77: 90 | CO77: 0.8212441545 | CP77: 0.7634388097 | CQ77: 0.8212441545 | CR77: 0.7634388097 | CS77: 0.7342980294 | CT77: 0.6854011254 | CU77: 0.7342980294 | CV77: 0.6854011254 | CW77: 0.8212441545 | CX77: 0.7634388097 | CY77: 0.7342980294 | CZ77: 0.6854011254 | DF77: =DF74 -> 260 | DG77: =BM19 ->  | DH77: =ROUND(IF($BZ$2=1,X19,IF($BZ$2=2,X19*3.412141633,)),0) ->  | DI77: =IF($BZ$2=1,ROUND(AB19,0),IF($BZ$2=2,ROUND(AB19/272.7654,1),)) ->  | DJ77: =IF($BZ$2=1,AF19,IF($BZ$2=2,AF19*0.3346,)) ->  | DK77: =IF(BY19=1,ROUND(IF($BZ$2=1,AS19,IF($BZ$2=2,AS19*3.412141633,)),0),"") ->  | DL77: =IF(BY19=1,IF($BZ$2=1,ROUND(AV19,0),IF($BZ$2=2,ROUND(AV19/272.7654,1),)),"") ->  | DM77: =IF(BY19=1,IF($BZ$2=1,AY19,IF($BZ$2=2,AY19*0.3346,)),"") ->  | DN77: =L19 ->  | DO77: =DN77+8 ->  | DP77: =BC19 ->  | DQ77: =DQ74 -> 
A78: 13521 | D78: 1 | E78: 35 | F78: 40.5 | G78: 21 | H78: 21.5 | I78: 0 | J78: 26 | K78: 30 | L78: 41.1 | M78: 1184 | N78: 1977.829195 | O78: 2123.155861 | P78: 2810.06 | Q78: N/A | R78: 1 | S78: 1 | T78: 1 | V78: 1088 | W78: 1168 | X78: 1546 | Z78: 187 | AA78: 201 | AB78: 266 | AD78: 0.184626511 | AE78: 0.2131127682 | AF78: 0.3719829809 | AG78: 0.0001276 | AH78: 1.7219 | AI78: 4 | AJ78: 0.000514201 | AK78: 240.3046353 | AL78: 257.9617069 | AM78: 341.42 | AN78: 1 | AO78: 1 | AP78: 1 | AQ78: 271 | AR78: 291 | AS78: 385 | AT78: 117 | AU78: 125 | AV78: 166 | AW78: 0.07273276663 | AX78: 0.08294113079 | AY78: 0.1457112167 | AZ78: 0.9 | BA78: 5.1 | BB78: 5.6 | BC78: 7.2 | BE78: 1480 | BG78: 0.8 | BJ78: 0 | BK78: 12.3 | BL78: 14.4 | BM78: 21.85 | BO78: 1 | BP78: 1 | BQ78: 1 | BR78: 271 | BS78: 291 | BT78: 385 | BV78: 0 | BW78: 0 | BX78: 0 | BY78: 1 | CN78: 100 | CO78: 0.8146699661 | CP78: 0.7561986895 | CQ78: 0.8146699661 | CR78: 0.7561986895 | CS78: 0.7254135991 | CT78: 0.6774634004 | CU78: 0.7254135991 | CV78: 0.6774634004 | CW78: 0.8146699661 | CX78: 0.7561986895 | CY78: 0.7254135991 | CZ78: 0.6774634004 | DF78: 280 | DG78: =BJ20 ->  | DH78: =ROUND(IF($BZ$2=1,U20,IF($BZ$2=2,U20*3.412141633,)),0) ->  | DI78: =IF($BZ$2=1,ROUND(Y20,0),IF($BZ$2=2,ROUND(Y20/272.7654,1),)) ->  | DJ78: =IF($BZ$2=1,AC20,IF($BZ$2=2,AC20*0.3346,)) ->  | DN78: 0 | DO78: 0 | DP78: 0 | DQ78: =IF($BZ$2=1,AZ20,IF($BZ$2=2,AZ20/4.54609,)) -> 
A79: 15021 | D79: 1 | E79: 50 | F79: 40.5 | G79: 21 | H79: 21.5 | I79: 0 | J79: 26 | K79: 30 | L79: 41.1 | M79: 1445.6 | N79: 1977.829195 | O79: 2123.155861 | P79: 2810.06 | Q79: N/A | R79: 1 | S79: 1 | T79: 1 | V79: 1088 | W79: 1168 | X79: 1546 | Z79: 187 | AA79: 201 | AB79: 266 | AD79: 0.1907515952 | AE79: 0.2200486437 | AF79: 0.3832194973 | AG79: 0.0001276 | AH79: 1.7219 | AI79: 4 | AJ79: 0.000514201 | AK79: 240.3046353 | AL79: 257.9617069 | AM79: 341.42 | AN79: 1 | AO79: 1 | AP79: 1 | AQ79: 271 | AR79: 291 | AS79: 385 | AT79: 117 | AU79: 125 | AV79: 166 | AW79: 0.07546449325 | AX79: 0.0860023706 | AY79: 0.1507004305 | AZ79: 1.3 | BA79: 5.1 | BB79: 5.6 | BC79: 7.2 | BE79: 1807 | BG79: 0.8 | BJ79: 0 | BK79: 12.3 | BL79: 14.4 | BM79: 21.85 | BO79: 1 | BP79: 1 | BQ79: 1 | BR79: 271 | BS79: 291 | BT79: 385 | BV79: 0 | BW79: 0 | BX79: 0 | BY79: 1 | CN79: 110 | CO79: 0.8146699661 | CP79: 0.7561986895 | CQ79: 0.8146699661 | CR79: 0.7561986895 | CS79: 0.7254135991 | CT79: 0.6774634004 | CU79: 0.7254135991 | CV79: 0.6774634004 | CW79: 0.8146699661 | CX79: 0.7561986895 | CY79: 0.7254135991 | CZ79: 0.6774634004 | DF79: =DF78 -> 280 | DG79: =BK20 ->  | DH79: =ROUND(IF($BZ$2=1,V20,IF($BZ$2=2,V20*3.412141633,)),0) ->  | DI79: =IF($BZ$2=1,ROUND(Z20,0),IF($BZ$2=2,ROUND(Z20/272.7654,1),)) ->  | DJ79: =IF($BZ$2=1,AD20,IF($BZ$2=2,AD20*0.3346,)) ->  | DK79: =IF(BY20=1,ROUND(IF($BZ$2=1,AQ20,IF($BZ$2=2,AQ20*3.412141633,)),0),"") ->  | DL79: =IF(BY20=1,IF($BZ$2=1,ROUND(AT20,0),IF($BZ$2=2,ROUND(AT20/272.7654,1),)),"") ->  | DM79: =IF(BY20=1,IF($BZ$2=1,AW20,IF($BZ$2=2,AW20*0.3346,)),"") ->  | DN79: =J20 ->  | DO79: =DN79+8 ->  | DP79: =BA20 ->  | DQ79: =DQ78 -> 
A80: 16521 | D80: 1 | E80: 65 | F80: 40.5 | G80: 21 | H80: 21.5 | I80: 0 | J80: 26 | K80: 30 | L80: 41.1 | M80: 1696.8 | N80: 1977.829195 | O80: 2123.155861 | P80: 2810.06 | Q80: N/A | R80: 1 | S80: 1 | T80: 1 | V80: 1088 | W80: 1168 | X80: 1546 | Z80: 187 | AA80: 201 | AB80: 266 | AD80: 0.1968766794 | AE80: 0.2269845193 | AF80: 0.3944560137 | AG80: 0.0001276 | AH80: 1.7219 | AI80: 4 | AJ80: 0.000514201 | AK80: =AK79*(1-(($E80-50)*0.005)) -> 222.2817877 | AL80: =AL79*(1-(($E80-50)*0.005)) -> 238.6145789 | AM80: =AM79*(1-(($E80-50)*0.005)) -> 315.8135 | AN80: 1 | AO80: 1 | AP80: 1 | AQ80: 250 | AR80: 269 | AS80: 356 | AT80: 108 | AU80: 116 | AV80: 153 | AW80: 0.06680547288 | AX80: 0.07688689365 | AY80: 0.1325873151 | AZ80: 1.7 | BA80: 5.1 | BB80: 5.6 | BC80: 7.2 | BE80: 2121 | BG80: 0.8 | BJ80: 0 | BK80: 12.3 | BL80: 14.4 | BM80: 21.85 | BO80: 1 | BP80: 1 | BQ80: 1 | BR80: 250 | BS80: 269 | BT80: 356 | BV80: 0 | BW80: 0 | BX80: 0 | BY80: 1 | CN80: 120 | CO80: 0.8030103879 | CP80: 0.7433030654 | CQ80: 0.8030103879 | CR80: 0.7433030654 | CS80: 0.7187912226 | CT80: 0.6712287258 | CU80: 0.7187912226 | CV80: 0.6712287258 | CW80: 0.8030103879 | CX80: 0.7433030654 | CY80: 0.7187912226 | CZ80: 0.6712287258 | DF80: =DF78 -> 280 | DG80: =BL20 ->  | DH80: =ROUND(IF($BZ$2=1,W20,IF($BZ$2=2,W20*3.412141633,)),0) ->  | DI80: =IF($BZ$2=1,ROUND(AA20,0),IF($BZ$2=2,ROUND(AA20/272.7654,1),)) ->  | DJ80: =IF($BZ$2=1,AE20,IF($BZ$2=2,AE20*0.3346,)) ->  | DK80: =IF(BY20=1,ROUND(IF($BZ$2=1,AR20,IF($BZ$2=2,AR20*3.412141633,)),0),"") ->  | DL80: =IF(BY20=1,IF($BZ$2=1,ROUND(AU20,0),IF($BZ$2=2,ROUND(AU20/272.7654,1),)),"") ->  | DM80: =IF(BY20=1,IF($BZ$2=1,AX20,IF($BZ$2=2,AX20*0.3346,)),"") ->  | DN80: =K20 ->  | DO80: =DN80+8 ->  | DP80: =BB20 ->  | DQ80: =DQ78 -> 
A81: 19521 | D81: 1 | E81: 95 | F81: 40.5 | G81: 21 | H81: 21.5 | I81: 0 | J81: 26 | K81: 30 | L81: 41.1 | M81: 1882.829195 | N81: 1977.829195 | O81: 2123.155861 | P81: 2810.06 | Q81: N/A | R81: 1 | S81: 1 | T81: 1 | V81: 1088 | W81: 1168 | X81: 1546 | Z81: 187 | AA81: 201 | AB81: 266 | AD81: 0.2091268478 | AE81: 0.2408562704 | AF81: 0.4169290466 | AG81: 0.0001276 | AH81: 1.7219 | AI81: 4 | AJ81: 0.000514201 | AK81: =AK79*(1-(($E81-50)*0.005)) -> 186.2360924 | AL81: =AL79*(1-(($E81-50)*0.005)) -> 199.9203229 | AM81: =AM79*(1-(($E81-50)*0.005)) -> 264.6005 | AN81: 1 | AO81: 1 | AP81: 1 | AQ81: 210 | AR81: 225 | AS81: 298 | AT81: 90 | AU81: 97 | AV81: 128 | AW81: 0.05016018097 | AX81: 0.05804258843 | AY81: 0.09969646293 | AZ81: 2.5 | BA81: 5.1 | BB81: 5.6 | BC81: 7.2 | BE81: 2744 | BG81: 0.8 | BJ81: 0 | BK81: 12.3 | BL81: 14.4 | BM81: 21.85 | BO81: 1 | BP81: 1 | BQ81: 1 | BR81: 210 | BS81: 225 | BT81: 298 | BV81: 0 | BW81: 0 | BX81: 0 | BY81: 1 | CN81: 140 | CO81: 0.7929231279 | CP81: 0.7321171828 | CQ81: 0.7929231279 | CR81: 0.7321171828 | CS81: 0.7127093372 | CT81: 0.6655050705 | CU81: 0.7127093372 | CV81: 0.6655050705 | CW81: 0.7929231279 | CX81: 0.7321171828 | CY81: 0.7127093372 | CZ81: 0.6655050705 | DF81: =DF78 -> 280 | DG81: =BM20 ->  | DH81: =ROUND(IF($BZ$2=1,X20,IF($BZ$2=2,X20*3.412141633,)),0) ->  | DI81: =IF($BZ$2=1,ROUND(AB20,0),IF($BZ$2=2,ROUND(AB20/272.7654,1),)) ->  | DJ81: =IF($BZ$2=1,AF20,IF($BZ$2=2,AF20*0.3346,)) ->  | DK81: =IF(BY20=1,ROUND(IF($BZ$2=1,AS20,IF($BZ$2=2,AS20*3.412141633,)),0),"") ->  | DL81: =IF(BY20=1,IF($BZ$2=1,ROUND(AV20,0),IF($BZ$2=2,ROUND(AV20/272.7654,1),)),"") ->  | DM81: =IF(BY20=1,IF($BZ$2=1,AY20,IF($BZ$2=2,AY20*0.3346,)),"") ->  | DN81: =L20 ->  | DO81: =DN81+8 ->  | DP81: =BC20 ->  | DQ81: =DQ78 -> 
A82: 13510 | D82: 1 | E82: 35 | F82: 40.5 | G82: 10 | H82: 11.5 | I82: 0 | J82: 26 | K82: 30 | L82: 41.8 | M82: 646.2 | N82: 1214.226994 | O82: 1304.14337 | P82: 1574.18 | Q82: N/A | R82: 1 | S82: 1 | T82: 1 | V82: 668 | W82: 718 | X82: 866 | Z82: 115 | AA82: 123 | AB82: 149 | AD82: 0.05362577296 | AE82: 0.06122451961 | AF82: 0.08935147695 | AG82: 0.0003969 | AH82: 1.7346 | AI82: 2 | AJ82: 0.000367347 | AK82: 168.337102 | AL82: 180.8028619 | AM82: 218.24 | AN82: 1 | AO82: 1 | AP82: 1 | AQ82: 190 | AR82: 204 | AS82: 246 | AT82: 82 | AU82: 88 | AV82: 106 | AW82: 0.02755224966 | AX82: 0.03166025233 | AY82: 0.04567236524 | AZ82: 0.2 | BA82: 6.3 | BB82: 6.8 | BC82: 9.1 | BE82: 718 | BG82: 0.9 | BJ82: 0 | BK82: 12.8 | BL82: 14.7 | BM82: 21.85 | BO82: 1 | BP82: 1 | BQ82: 1 | BR82: 190 | BS82: 204 | BT82: 246 | BV82: 0 | BW82: 0 | BX82: 0 | BY82: 1 | CN82: 160 | CO82: 0.7840224333 | CP82: 0.7222362756 | CQ82: 0.7840224333 | CR82: 0.7222362756 | CS82: 0.7015311234 | CT82: 0.6570693053 | CU82: 0.7015311234 | CV82: 0.6570693053 | CW82: 0.7840224333 | CX82: 0.7222362756 | CY82: 0.7015311234 | CZ82: 0.6570693053 | DF82: 300 | DG82: =BJ21 ->  | DH82: =ROUND(IF($BZ$2=1,U21,IF($BZ$2=2,U21*3.412141633,)),0) ->  | DI82: =IF($BZ$2=1,ROUND(Y21,0),IF($BZ$2=2,ROUND(Y21/272.7654,1),)) ->  | DJ82: =IF($BZ$2=1,AC21,IF($BZ$2=2,AC21*0.3346,)) ->  | DN82: 0 | DO82: 0 | DP82: 0 | DQ82: =IF($BZ$2=1,AZ21,IF($BZ$2=2,AZ21/4.54609,)) -> 
A83: 15010 | D83: 1 | E83: 50 | F83: 40.5 | G83: 10 | H83: 11.5 | I83: 0 | J83: 26 | K83: 30 | L83: 41.8 | M83: 774.9 | N83: 1214.226994 | O83: 1304.14337 | P83: 1574.18 | Q83: N/A | R83: 1 | S83: 1 | T83: 1 | V83: 668 | W83: 718 | X83: 866 | Z83: 115 | AA83: 123 | AB83: 149 | AD83: 0.05800618439 | AE83: 0.06614693019 | AF83: 0.09621642619 | AG83: 0.0003969 | AH83: 1.7346 | AI83: 2 | AJ83: 0.000367347 | AK83: 168.337102 | AL83: 180.8028619 | AM83: 218.24 | AN83: 1 | AO83: 1 | AP83: 1 | AQ83: 190 | AR83: 204 | AS83: 246 | AT83: 82 | AU83: 88 | AV83: 106 | AW83: 0.02998854502 | AX83: 0.03441402492 | AY83: 0.04947534473 | AZ83: 0.3 | BA83: 6.3 | BB83: 6.8 | BC83: 9.1 | BE83: 861 | BG83: 0.9 | BJ83: 0 | BK83: 12.8 | BL83: 14.7 | BM83: 21.85 | BO83: 1 | BP83: 1 | BQ83: 1 | BR83: 190 | BS83: 204 | BT83: 246 | BV83: 0 | BW83: 0 | BX83: 0 | BY83: 1 | CN83: 180 | CO83: 0.7840224333 | CP83: 0.7222362756 | CQ83: 0.7840224333 | CR83: 0.7222362756 | CS83: 0.7015311234 | CT83: 0.6570693053 | CU83: 0.7015311234 | CV83: 0.6570693053 | CW83: 0.7840224333 | CX83: 0.7222362756 | CY83: 0.7015311234 | CZ83: 0.6570693053 | DF83: =DF82 -> 300 | DG83: =BK21 ->  | DH83: =ROUND(IF($BZ$2=1,V21,IF($BZ$2=2,V21*3.412141633,)),0) ->  | DI83: =IF($BZ$2=1,ROUND(Z21,0),IF($BZ$2=2,ROUND(Z21/272.7654,1),)) ->  | DJ83: =IF($BZ$2=1,AD21,IF($BZ$2=2,AD21*0.3346,)) ->  | DK83: =IF(BY21=1,ROUND(IF($BZ$2=1,AQ21,IF($BZ$2=2,AQ21*3.412141633,)),0),"") ->  | DL83: =IF(BY21=1,IF($BZ$2=1,ROUND(AT21,0),IF($BZ$2=2,ROUND(AT21/272.7654,1),)),"") ->  | DM83: =IF(BY21=1,IF($BZ$2=1,AW21,IF($BZ$2=2,AW21*0.3346,)),"") ->  | DN83: =J21 ->  | DO83: =DN83+8 ->  | DP83: =BA21 ->  | DQ83: =DQ82 -> 
A84: 16510 | D84: 1 | E84: 65 | F84: 40.5 | G84: 10 | H84: 11.5 | I84: 0 | J84: 26 | K84: 30 | L84: 41.8 | M84: 872.1 | N84: 1214.226994 | O84: 1304.14337 | P84: 1574.18 | Q84: N/A | R84: 1 | S84: 1 | T84: 1 | V84: 668 | W84: 718 | X84: 866 | Z84: 115 | AA84: 123 | AB84: 149 | AD84: 0.06238659581 | AE84: 0.07106934077 | AF84: 0.1030813754 | AG84: 0.0003969 | AH84: 1.7346 | AI84: 2 | AJ84: 0.000367347 | AK84: 168.337102 | AL84: 180.8028619 | AM84: 218.24 | AN84: 1 | AO84: 1 | AP84: 1 | AQ84: 190 | AR84: 204 | AS84: 246 | AT84: 82 | AU84: 88 | AV84: 106 | AW84: 0.03242484037 | AX84: 0.03716779751 | AY84: 0.05327832422 | AZ84: 0.4 | BA84: 6.3 | BB84: 6.8 | BC84: 9.1 | BE84: 969 | BG84: 0.9 | BJ84: 0 | BK84: 12.8 | BL84: 14.7 | BM84: 21.85 | BO84: 1 | BP84: 1 | BQ84: 1 | BR84: 190 | BS84: 204 | BT84: 246 | BV84: 0 | BW84: 0 | BX84: 0 | BY84: 1 | CN84: 200 | CO84: 0.768855912 | CP84: 0.7053868584 | CQ84: 0.768855912 | CR84: 0.7053868584 | CS84: 0.6929174768 | CT84: 0.6576204296 | CU84: 0.6929174768 | CV84: 0.6576204296 | CW84: 0.768855912 | CX84: 0.7053868584 | CY84: 0.6929174768 | CZ84: 0.6576204296 | DF84: =DF82 -> 300 | DG84: =BL21 ->  | DH84: =ROUND(IF($BZ$2=1,W21,IF($BZ$2=2,W21*3.412141633,)),0) ->  | DI84: =IF($BZ$2=1,ROUND(AA21,0),IF($BZ$2=2,ROUND(AA21/272.7654,1),)) ->  | DJ84: =IF($BZ$2=1,AE21,IF($BZ$2=2,AE21*0.3346,)) ->  | DK84: =IF(BY21=1,ROUND(IF($BZ$2=1,AR21,IF($BZ$2=2,AR21*3.412141633,)),0),"") ->  | DL84: =IF(BY21=1,IF($BZ$2=1,ROUND(AU21,0),IF($BZ$2=2,ROUND(AU21/272.7654,1),)),"") ->  | DM84: =IF(BY21=1,IF($BZ$2=1,AX21,IF($BZ$2=2,AX21*0.3346,)),"") ->  | DN84: =K21 ->  | DO84: =DN84+8 ->  | DP84: =BB21 ->  | DQ84: =DQ82 -> 
A85: 19510 | D85: 1 | E85: 95 | F85: 40.5 | G85: 10 | H85: 11.5 | I85: 0 | J85: 26 | K85: 30 | L85: 41.8 | M85: 1002.6 | N85: 1214.226994 | O85: 1304.14337 | P85: 1574.18 | Q85: N/A | R85: 1 | S85: 1 | T85: 1 | V85: 668 | W85: 718 | X85: 866 | Z85: 115 | AA85: 123 | AB85: 149 | AD85: 0.07114741867 | AE85: 0.08091416193 | AF85: 0.1168112739 | AG85: 0.0003969 | AH85: 1.7346 | AI85: 2 | AJ85: 0.000367347 | AK85: 168.337102 | AL85: 180.8028619 | AM85: 218.24 | AN85: 1 | AO85: 1 | AP85: 1 | AQ85: 190 | AR85: 204 | AS85: 246 | AT85: 82 | AU85: 88 | AV85: 106 | AW85: 0.03729743109 | AX85: 0.04267534268 | AY85: 0.0608842832 | AZ85: 0.6 | BA85: 6.3 | BB85: 6.8 | BC85: 9.1 | BE85: 1114 | BG85: 0.9 | BJ85: 0 | BK85: 12.8 | BL85: 14.7 | BM85: 21.85 | BO85: 1 | BP85: 1 | BQ85: 1 | BR85: 190 | BS85: 204 | BT85: 246 | BV85: 0 | BW85: 0 | BX85: 0 | BY85: 1 | CN85: 220 | CO85: 0.7585639347 | CP85: 0.6942595524 | CQ85: 0.7585639347 | CR85: 0.6942595524 | CS85: 0.6852107187 | CT85: 0.6578068518 | CU85: 0.6852107187 | CV85: 0.6578068518 | CW85: 0.7585639347 | CX85: 0.6942595524 | CY85: 0.6852107187 | CZ85: 0.6578068518 | DF85: =DF82 -> 300 | DG85: =BM21 ->  | DH85: =ROUND(IF($BZ$2=1,X21,IF($BZ$2=2,X21*3.412141633,)),0) ->  | DI85: =IF($BZ$2=1,ROUND(AB21,0),IF($BZ$2=2,ROUND(AB21/272.7654,1),)) ->  | DJ85: =IF($BZ$2=1,AF21,IF($BZ$2=2,AF21*0.3346,)) ->  | DK85: =IF(BY21=1,ROUND(IF($BZ$2=1,AS21,IF($BZ$2=2,AS21*3.412141633,)),0),"") ->  | DL85: =IF(BY21=1,IF($BZ$2=1,ROUND(AV21,0),IF($BZ$2=2,ROUND(AV21/272.7654,1),)),"") ->  | DM85: =IF(BY21=1,IF($BZ$2=1,AY21,IF($BZ$2=2,AY21*0.3346,)),"") ->  | DN85: =L21 ->  | DO85: =DN85+8 ->  | DP85: =BC21 ->  | DQ85: =DQ82 -> 
A86: 13511 | D86: 1 | E86: 35 | F86: 40.5 | G86: 11 | H86: 11.5 | I86: 0 | J86: 26 | K86: 30 | L86: 41.8 | M86: 650.76 | N86: 1647.503739 | O86: 1769.505282 | P86: 2135.9 | Q86: N/A | R86: 1 | S86: 1 | T86: 1 | V86: 907 | W86: 974 | X86: 1175 | Z86: 156 | AA86: 168 | AB86: 202 | AD86: 0.1573822638 | AE86: 0.1820649648 | AF86: 0.2616124573 | AG86: 0.0003969 | AH86: 1.7346 | AI86: 4 | AJ86: 0.000574288 | AK86: 276 | AL86: 296 | AM86: 358 | AN86: 1 | AO86: 1 | AP86: 1 | AQ86: 311 | AR86: 333 | AS86: 403 | AT86: 134 | AU86: 143 | AV86: 173 | AW86: 0.1167427037 | AX86: 0.1326456416 | AY86: 0.1928725276 | AZ86: 0.5 | BA86: 6.3 | BB86: 6.8 | BC86: 9.1 | BE86: 957 | BG86: 0.68 | BJ86: 0 | BK86: 12.8 | BL86: 14.7 | BM86: 21.85 | BO86: 1 | BP86: 1 | BQ86: 1 | BR86: 311 | BS86: 333 | BT86: 403 | BV86: 0 | BW86: 0 | BX86: 0 | BY86: 1 | CN86: 240 | CO86: 0.7502750901 | CP86: 0.6848867351 | CQ86: 0.7502750901 | CR86: 0.6848867351 | CS86: 0.6819044016 | CT86: 0.6579686139 | CU86: 0.6819044016 | CV86: 0.6579686139 | CW86: 0.7502750901 | CX86: 0.6848867351 | CY86: 0.6819044016 | CZ86: 0.6579686139 | DQ86: v2020-09-17
A87: 15011 | D87: 1 | E87: 50 | F87: 40.5 | G87: 11 | H87: 11.5 | I87: 0 | J87: 26 | K87: 30 | L87: 41.8 | M87: 754.12 | N87: 1647.503739 | O87: 1769.505282 | P87: 2135.9 | Q87: N/A | R87: 1 | S87: 1 | T87: 1 | V87: 907 | W87: 974 | X87: 1175 | Z87: 156 | AA87: 168 | AB87: 202 | AD87: 0.1722502569 | AE87: 0.1989724846 | AF87: 0.2848891306 | AG87: 0.0003969 | AH87: 1.7346 | AI87: 4 | AJ87: 0.000574288 | AK87: 276 | AL87: 296 | AM87: 358 | AN87: 1 | AO87: 1 | AP87: 1 | AQ87: 311 | AR87: 333 | AS87: 403 | AT87: 134 | AU87: 143 | AV87: 173 | AW87: 0.1281645 | AX87: 0.1454307471 | AY87: 0.2106624148 | AZ87: 0.7 | BA87: 6.3 | BB87: 6.8 | BC87: 9.1 | BE87: 1109 | BG87: 0.68 | BJ87: 0 | BK87: 12.8 | BL87: 14.7 | BM87: 21.85 | BO87: 1 | BP87: 1 | BQ87: 1 | BR87: 311 | BS87: 333 | BT87: 403 | BV87: 0 | BW87: 0 | BX87: 0 | BY87: 1 | CN87: 260 | CO87: 0.75 | CP87: 0.68 | CQ87: 0.75 | CR87: 0.68 | CS87: 0.6819044938 | CT87: 0.6579686139 | CU87: 0.6819044938 | CV87: 0.6579686139 | CW87: 0.75 | CX87: 0.68 | CY87: 0.6819044938 | CZ87: 0.6579686139 | DF87: * | DG87: =IF($J$4=data!$CC$3,NL!DI6,IF($J$4=data!$CC$4,EN!DI6,IF($J$4=data!$CC$5,FR!DI6,IF($J$4=data!$CC$6,DE!DI6,IF($J$4=data!$CC$7,NR!DI6,IF($J$4=data!$CC$8,SP!DI6,IF($J$4=data!$CC$9,SW!DI6,))))))) -> 0
A88: 16511 | D88: 1 | E88: 65 | F88: 40.5 | G88: 11 | H88: 11.5 | I88: 0 | J88: 26 | K88: 30 | L88: 41.8 | M88: 839.12 | N88: 1647.503739 | O88: 1769.505282 | P88: 2135.9 | Q88: N/A | R88: 1 | S88: 1 | T88: 1 | V88: 907 | W88: 974 | X88: 1175 | Z88: 156 | AA88: 168 | AB88: 202 | AD88: 0.1871182501 | AE88: 0.2158800044 | AF88: 0.3081658038 | AG88: 0.0003969 | AH88: 1.7346 | AI88: 4 | AJ88: 0.000574288 | AK88: =AK87*(1-(($E88-50)*0.005)) -> 255.3 | AL88: =AL87*(1-(($E88-50)*0.005)) -> 273.8 | AM88: =AM87*(1-(($E88-50)*0.005)) -> 331.15 | AN88: 1 | AO88: 1 | AP88: 1 | AQ88: 288 | AR88: 308 | AS88: 373 | AT88: 124 | AU88: 132 | AV88: 160 | AW88: 0.1202160734 | AX88: 0.1356001518 | AY88: 0.1964837586 | AZ88: 0.9 | BA88: 6.3 | BB88: 6.8 | BC88: 9.1 | BE88: 1234 | BG88: 0.68 | BJ88: 0 | BK88: 12.8 | BL88: 14.7 | BM88: 21.85 | BO88: 1 | BP88: 1 | BQ88: 1 | BR88: 288 | BS88: 308 | BT88: 373 | BV88: 0 | BW88: 0 | BX88: 0 | BY88: 1 | CN88: 280 | CO88: 0.750779461 | CP88: 0.68 | CQ88: 0.750779461 | CR88: 0.68 | CS88: 0.6729424377 | CT88: 0.6582099453 | CU88: 0.6729424377 | CV88: 0.6582099453 | CW88: 0.750779461 | CX88: 0.68 | CY88: 0.6729424377 | CZ88: 0.6582099453 | DF88: ** | DG88: =IF($J$4=data!$CC$3,NL!DF20,IF($J$4=data!$CC$4,EN!DF20,IF($J$4=data!$CC$5,FR!DF20,IF($J$4=data!$CC$6,DE!DF20,IF($J$4=data!$CC$7,NR!DF20,IF($J$4=data!$CC$8,SP!DF20,IF($J$4=data!$CC$9,SW!DF20,))))))) -> 0
A89: 19511 | D89: 1 | E89: 95 | F89: 40.5 | G89: 11 | H89: 11.5 | I89: 0 | J89: 26 | K89: 30 | L89: 41.8 | M89: 977.16 | N89: 1647.503739 | O89: 1769.505282 | P89: 2135.9 | Q89: N/A | R89: 1 | S89: 1 | T89: 1 | V89: 907 | W89: 974 | X89: 1175 | Z89: 156 | AA89: 168 | AB89: 202 | AD89: 0.2168542365 | AE89: 0.249695044 | AF89: 0.3547191504 | AG89: 0.0003969 | AH89: 1.7346 | AI89: 4 | AJ89: 0.000574288 | AK89: =AK87*(1-(($E89-50)*0.005)) -> 213.9 | AL89: =AL87*(1-(($E89-50)*0.005)) -> 229.4 | AM89: =AM87*(1-(($E89-50)*0.005)) -> 277.45 | AN89: 1 | AO89: 1 | AP89: 1 | AQ89: 241 | AR89: 258 | AS89: 312 | AT89: 104 | AU89: 111 | AV89: 134 | AW89: 0.100413744 | AX89: 0.1136138757 | AY89: 0.1624298887 | AZ89: 1.3 | BA89: 6.3 | BB89: 6.8 | BC89: 9.1 | BE89: 1437 | BG89: 0.68 | BJ89: 0 | BK89: 12.8 | BL89: 14.7 | BM89: 21.85 | BO89: 1 | BP89: 1 | BQ89: 1 | BR89: 241 | BS89: 258 | BT89: 312 | BV89: 0 | BW89: 0 | BX89: 0 | BY89: 1 | CN89: 300 | CO89: 0.750779461 | CP89: 0.68 | CQ89: 0.750779461 | CR89: 0.68 | CS89: 0.6729424377 | CT89: 0.6582099453 | CU89: 0.6729424377 | CV89: 0.6582099453 | CW89: 0.750779461 | CX89: 0.68 | CY89: 0.6729424377 | CZ89: 0.6582099453 | DF89: *** | DG89: =IF($J$4=data!$CC$3,NL!DF21,IF($J$4=data!$CC$4,EN!DF21,IF($J$4=data!$CC$5,FR!DF21,IF($J$4=data!$CC$6,DE!DF21,IF($J$4=data!$CC$7,NR!DF21,IF($J$4=data!$CC$8,SP!DF21,IF($J$4=data!$CC$9,SW!DF21,))))))) -> 0
A90: 13515 | D90: 1 | E90: 35 | F90: 40.5 | G90: 15 | H90: 16.5 | I90: 0 | J90: 26 | K90: 30 | L90: 42.4 | M90: 940.8 | N90: 1395.337404 | O90: 1496.256349 | P90: 2007.56 | Q90: N/A | R90: 1 | S90: 1 | T90: 1 | V90: 768 | W90: 823 | X90: 1105 | Z90: 132 | AA90: 142 | AB90: 190 | AD90: 0.08266757244 | AE90: 0.09557948162 | AF90: 0.1705206959 | AG90: 0.0002083 | AH90: 1.724 | AI90: 2 | AJ90: 0.000461829 | AK90: 190.4691577 | AL90: 204.2449989 | AM90: 274.04 | AN90: 1 | AO90: 1 | AP90: 1 | AQ90: 215 | AR90: 230 | AS90: 309 | AT90: 92 | AU90: 99 | AV90: 133 | AW90: 0.0403509607 | AX90: 0.04667751307 | AY90: 0.08391681172 | AZ90: 0.4 | BA90: 6 | BB90: 6.7 | BC90: 9 | BE90: 1176 | BG90: 0.8 | BJ90: 0 | BK90: 11.8 | BL90: 13.7 | BM90: 21.85 | BO90: 1 | BP90: 1 | BQ90: 1 | BR90: 215 | BS90: 230 | BT90: 309 | BV90: 0 | BW90: 0 | BX90: 0 | BY90: 1 | DF90: **** | DG90: =IF($J$4=data!$CC$3,NL!DF22,IF($J$4=data!$CC$4,EN!DF22,IF($J$4=data!$CC$5,FR!DF22,IF($J$4=data!$CC$6,DE!DF22,IF($J$4=data!$CC$7,NR!DF22,IF($J$4=data!$CC$8,SP!DF22,IF($J$4=data!$CC$9,SW!DF22,))))))) -> 0
A91: 15015 | D91: 1 | E91: 50 | F91: 40.5 | G91: 15 | H91: 16.5 | I91: 0 | J91: 26 | K91: 30 | L91: 42.4 | M91: 1109.6 | N91: 1395.337404 | O91: 1496.256349 | P91: 2007.56 | Q91: N/A | R91: 1 | S91: 1 | T91: 1 | V91: 768 | W91: 823 | X91: 1105 | Z91: 132 | AA91: 142 | AB91: 190 | AD91: 0.08544029271 | AE91: 0.09872419961 | AF91: 0.1757159622 | AG91: 0.0002083 | AH91: 1.724 | AI91: 2 | AJ91: 0.000461829 | AK91: 190.4691577 | AL91: 204.2449989 | AM91: 274.04 | AN91: 1 | AO91: 1 | AP91: 1 | AQ91: 215 | AR91: 230 | AS91: 309 | AT91: 92 | AU91: 99 | AV91: 133 | AW91: 0.04183897401 | AX91: 0.04836605433 | AY91: 0.08672584465 | AZ91: 0.5 | BA91: 6 | BB91: 6.7 | BC91: 9 | BE91: 1387 | BG91: 0.8 | BJ91: 0 | BK91: 11.8 | BL91: 13.7 | BM91: 21.85 | BO91: 1 | BP91: 1 | BQ91: 1 | BR91: 215 | BS91: 230 | BT91: 309 | BV91: 0 | BW91: 0 | BX91: 0 | BY91: 1 | CN91: Type,ww | CO91: L/cm
A92: 16515 | D92: 1 | E92: 65 | F92: 40.5 | G92: 15 | H92: 16.5 | I92: 0 | J92: 26 | K92: 30 | L92: 42.4 | M92: =IF($N92-($BE92*$BG92)>100,$BE92*$BG92,$N92-95) -> 1230.4 | N92: 1395.337404 | O92: 1496.256349 | P92: 2007.56 | Q92: N/A | R92: 1 | S92: 1 | T92: 1 | U92: =ROUND(M92*POWER(CF_heat,Q92),0) ->  | V92: =ROUND(N92*POWER(CF_heat,R92),0) -> 768 | W92: =ROUND(O92*POWER(CF_heat,S92),0) -> 823 | X92: =ROUND(P92*POWER(CF_heat,T92),0) -> 1105 | Z92: 132 | AA92: 142 | AB92: 190 | AD92: 0.08821301298 | AE92: 0.1018689176 | AF92: 0.1809112284 | AG92: =IF($G92=$CO$103,CP$103,IF($G92=$CO$104,CP$104,IF($G92=$CO$105,CP$105,IF($G92=$CO$107,CP$107,IF($G92=$CO$108,CP$108,IF($G92=$CO$109,CP$109,IF($G92=$CO$111,CP$111,IF($G92=$CO$112,CP$112,IF($G92=$CO$113,CP$113,IF($G92=$CO$115,CP$115,IF($G92=$CO$116,CP$116,IF($G92=$CO$117,CP$117,IF($G92=$CO$119,CP$119,IF($G92=$CO$120,CP$120,)))))))))))))) -> 0.0002083 | AH92: =IF($G92=$CO$103,CQ$103,IF($G92=$CO$104,CQ$104,IF($G92=$CO$105,CQ$105,IF($G92=$CO$107,CQ$107,IF($G92=$CO$108,CQ$108,IF($G92=$CO$109,CQ$109,IF($G92=$CO$111,CQ$111,IF($G92=$CO$112,CQ$112,IF($G92=$CO$113,CQ$113,IF($G92=$CO$115,CQ$115,IF($G92=$CO$116,CQ$116,IF($G92=$CO$117,CQ$117,IF($G92=$CO$119,CQ$119,IF($G92=$CO$120,CQ$120,)))))))))))))) -> 1.724 | AI92: =IF($G92=$CO$103,CR$103,IF($G92=$CO$104,CR$104,IF($G92=$CO$105,CR$105,IF($G92=$CO$107,CR$107,IF($G92=$CO$108,CR$108,IF($G92=$CO$109,CR$109,IF($G92=$CO$111,CR$111,IF($G92=$CO$112,CR$112,IF($G92=$CO$113,CR$113,IF($G92=$CO$115,CR$115,IF($G92=$CO$116,CR$116,IF($G92=$CO$117,CR$117,IF($G92=$CO$119,CR$119,IF($G92=$CO$120,CR$120,)))))))))))))) -> 2 | AJ92: =IF($G92=$CO$103,CS$103,IF($G92=$CO$104,CS$104,IF($G92=$CO$105,CS$105,IF($G92=$CO$107,CS$107,IF($G92=$CO$108,CS$108,IF($G92=$CO$109,CS$109,IF($G92=$CO$111,CS$111,IF($G92=$CO$112,CS$112,IF($G92=$CO$113,CS$113,IF($G92=$CO$115,CS$115,IF($G92=$CO$116,CS$116,IF($G92=$CO$117,CS$117,IF($G92=$CO$119,CS$119,IF($G92=$CO$120,CS$120,)))))))))))))) -> 0.000461829 | AK92: 190.4691577 | AL92: 204.2449989 | AM92: 274.04 | AN92: 1 | AO92: 1 | AP92: 1 | AQ92: =ROUND(AK92*POWER(CF_cool,AN92),0) -> 215 | AR92: 230 | AS92: =ROUND(AM92*POWER(CF_cool,AP92),0) -> 309 | AT92: 92 | AU92: 99 | AV92: 133 | AW92: 0.04332698731 | AX92: 0.05005459558 | AY92: 0.08953487757 | AZ92: 0.7 | BA92: 6 | BB92: 6.7 | BC92: 9 | BE92: 1538 | BG92: =IF(G92=10,0.9,IF(G92=11,0.68,IF(G92=15,0.8,IF(G92=16,0.68,IF(G92=20,0.8,IF(G92=21,0.8)))))) -> 0.8 | BJ92: 0 | BK92: 11.8 | BL92: 13.7 | BM92: 21.85 | BO92: 1 | BP92: 1 | BQ92: 1 | BR92: =AQ92/BO92 -> 215 | BS92: 230 | BT92: 309 | BV92: =BR92-AQ92 -> 0 | BW92: =BS92-AR92 -> 0 | BX92: =BT92-AS92 -> 0 | BY92: 1 | CN92: 10 | CO92: =0.4/60 -> 0.006666666667
A93: =CONCATENATE(D93,E93,G93) -> 19515 | D93: 1 | E93: 95 | F93: 40.5 | G93: 15 | H93: 16.5 | I93: 0 | J93: 26 | K93: 30 | L93: 42.4 | M93: 1300.337404 | N93: 1395.337404 | O93: 1496.256349 | P93: 2007.56 | Q93: N/A | R93: 1 | S93: 1 | T93: 1 | V93: 768 | W93: 823 | X93: 1105 | Z93: 132 | AA93: 142 | AB93: 190 | AC93: =(($AG93*(Y93^$AH93)*((($F93-14.4)*$AI93)/100))+($AJ93*(Y93^2)))*0.0098 ->  | AD93: =(($AG93*(Z93^$AH93)*((($E93-14.4)*$AI93)/100))+($AJ93*(Z93^2)))*0.0098 -> 0.09375845353 | AE93: =(($AG93*(AA93^$AH93)*((($E93-14.4)*$AI93)/100))+($AJ93*(AA93^2)))*0.0098 -> 0.1081583536 | AF93: =(($AG93*(AB93^$AH93)*((($E93-14.4)*$AI93)/100))+($AJ93*(AB93^2)))*0.0098 -> 0.1913017609 | AG93: 0.0002083 | AH93: 1.724 | AI93: 2 | AJ93: 0.000461829 | AK93: 190.4691577 | AL93: 204.2449989 | AM93: 274.04 | AN93: 1 | AO93: 1 | AP93: 1 | AQ93: 215 | AR93: 230 | AS93: 309 | AT93: 92 | AU93: 99 | AV93: 133 | AW93: =(($AG93*(AT93^$AH93)*((($E93-14.4)*$AI93)/100))+($AJ93*(AT93^2)))*0.0098 -> 0.04630301393 | AX93: =(($AG93*(AU93^$AH93)*((($E93-14.4)*$AI93)/100))+($AJ93*(AU93^2)))*0.0098 -> 0.05343167809 | AY93: =(($AG93*(AV93^$AH93)*((($E93-14.4)*$AI93)/100))+($AJ93*(AV93^2)))*0.0098 -> 0.09515294342 | AZ93: 1 | BA93: 6 | BB93: 6.7 | BC93: 9 | BE93: 1717 | BG93: 0.8 | BJ93: 0 | BK93: 11.8 | BL93: 13.7 | BM93: 21.85 | BO93: 1 | BP93: 1 | BQ93: 1 | BR93: 215 | BS93: =AR93/BP93 -> 230 | BT93: =AS93/BQ93 -> 309 | BV93: 0 | BW93: 0 | BX93: 0 | BY93: =IF(SUM(BV93:BX93)=0,1,0) -> 1 | CN93: 11 | CO93: =CO92*2 -> 0.01333333333
A94: 13516 | D94: 1 | E94: 35 | F94: 40.5 | G94: 16 | H94: 16.5 | I94: 0 | J94: 26 | K94: 30 | L94: 42.4 | M94: 866.32 | N94: 2040.433172 | O94: 2188.009207 | P94: 2935.7 | Q94: N/A | R94: 1 | S94: 1 | T94: 1 | V94: 1123 | W94: 1204 | X94: 1616 | Z94: 193 | AA94: 207 | AB94: 278 | AD94: 0.5230868473 | AE94: 0.6014046956 | AF94: 1.08238302 | AG94: 0.0002083 | AH94: 1.724 | AI94: 4 | AJ94: 0.001392796 | AK94: 312 | AL94: 335 | AM94: 450 | AN94: 1 | AO94: 1 | AP94: 1 | AQ94: 351 | AR94: 377 | AS94: 507 | AT94: 151 | AU94: 162 | AV94: 218 | AW94: 0.3208228082 | AX94: 0.3690553029 | AY94: 0.666760083 | AZ94: 0.7 | BA94: 6 | BB94: 6.7 | BC94: 9 | BE94: 1274 | BG94: 0.68 | BJ94: 0 | BK94: 11.8 | BL94: 13.7 | BM94: 21.85 | BO94: =IF((237.3*LN(($AQ$1*EXP(17.27*($AM$3/($AM$3+237.3))))))/(17.27-LN(($AQ$1*EXP(17.27*($AM$3/($AM$3+237.3))))))<(($AM$1+$AM$2)/2),1,IF(1/(1+((2258*((0.622/((101325/(1*611*EXP(17.27*((($AM$1+$AM$2)/2)/((($AM$1+$AM$2)/2)+237.3))))))-1)*1000-(0.622/((101325/($AQ$1*611*EXP(17.27*($AM$3/($AM$3+237.3))))))-1)*1000))/(1005*((($AM$1+$AM$2)/2)-$AM$3))))>1,1,1/(1+((2258*((0.622/((101325/(1*611*EXP(17.27*((($AM$1+$AM$2)/2)/((($AM$1+$AM$2)/2)+237.3))))))-1)*1000-(0.622/((101325/($AQ$1*611*EXP(17.27*($AM$3/($AM$3+237.3))))))-1)*1000))/(1005*((($AM$1+$AM$2)/2)-$AM$3)))))) -> 1 | BP94: 1 | BQ94: 1 | BR94: 351 | BS94: 377 | BT94: 507 | BV94: 0 | BW94: 0 | BX94: 0 | BY94: 1 | CN94: 15 | CO94: =CO92*1.5 -> 0.01
A95: 15016 | D95: 1 | E95: 50 | F95: 40.5 | G95: 16 | H95: 16.5 | I95: 0 | J95: 26 | K95: 30 | L95: 42.4 | M95: 1032.24 | N95: 2040.433172 | O95: 2188.009207 | P95: 2935.7 | Q95: N/A | R95: 1 | S95: 1 | T95: 1 | V95: 1123 | W95: 1204 | X95: 1616 | Z95: 193 | AA95: 207 | AB95: 278 | AD95: 0.5337618353 | AE95: 0.6134494922 | AF95: 1.102409279 | AG95: 0.0002083 | AH95: 1.724 | AI95: 4 | AJ95: 0.001392796 | AK95: 312 | AL95: 335 | AM95: 450 | AN95: 1 | AO95: 1 | AP95: 1 | AQ95: 351 | AR95: 377 | AS95: 507 | AT95: 151 | AU95: 162 | AV95: 218 | AW95: 0.3278151533 | AX95: 0.3769488187 | AY95: 0.679929471 | AZ95: 1 | BA95: 6 | BB95: 6.7 | BC95: 9 | BE95: 1518 | BG95: 0.68 | BJ95: 0 | BK95: 11.8 | BL95: 13.7 | BM95: 21.85 | BO95: 1 | BP95: 1 | BQ95: 1 | BR95: 351 | BS95: 377 | BT95: 507 | BV95: 0 | BW95: 0 | BX95: 0 | BY95: 1 | CN95: 16 | CO95: =CO94*2 -> 0.02
A96: 16516 | D96: 1 | E96: 65 | F96: 40.5 | G96: 16 | H96: 16.5 | I96: 0 | J96: 26 | K96: 30 | L96: 42.4 | M96: 1181.84 | N96: 2040.433172 | O96: 2188.009207 | P96: 2935.7 | Q96: N/A | R96: 1 | S96: 1 | T96: 1 | V96: 1123 | W96: 1204 | X96: 1616 | Z96: 193 | AA96: 207 | AB96: 278 | AD96: 0.5444368234 | AE96: 0.6254942888 | AF96: 1.122435538 | AG96: 0.0002083 | AH96: 1.724 | AI96: 4 | AJ96: 0.001392796 | AK96: =AK95*(1-(($E96-50)*0.005)) -> 288.6 | AL96: =AL95*(1-(($E96-50)*0.005)) -> 309.875 | AM96: =AM95*(1-(($E96-50)*0.005)) -> 416.25 | AN96: 1 | AO96: 1 | AP96: 1 | AQ96: 325 | AR96: 349 | AS96: 469 | AT96: 140 | AU96: 150 | AV96: 202 | AW96: 0.2882320806 | AX96: 0.330430371 | AY96: 0.5959041103 | AZ96: 1.3 | BA96: 6 | BB96: 6.7 | BC96: 9 | BE96: 1738 | BG96: 0.68 | BJ96: 0 | BK96: 11.8 | BL96: 13.7 | BM96: 21.85 | BO96: 1 | BP96: 1 | BQ96: 1 | BR96: 325 | BS96: 349 | BT96: 469 | BV96: 0 | BW96: 0 | BX96: 0 | BY96: 1 | CN96: 20 | CO96: =CO92*2 -> 0.01333333333
A97: 19516 | D97: 1 | E97: 95 | F97: 40.5 | G97: 16 | H97: 16.5 | I97: 0 | J97: 26 | K97: 30 | L97: 42.4 | M97: 1456.56 | N97: 2040.433172 | O97: 2188.009207 | P97: 2935.7 | Q97: N/A | R97: 1 | S97: 1 | T97: 1 | V97: 1123 | W97: 1204 | X97: 1616 | Z97: 193 | AA97: 207 | AB97: 278 | AD97: 0.5657867994 | AE97: 0.6495838821 | AF97: 1.162488055 | AG97: 0.0002083 | AH97: 1.724 | AI97: 4 | AJ97: 0.001392796 | AK97: =AK95*(1-(($E97-50)*0.005)) -> 241.8 | AL97: =AL95*(1-(($E97-50)*0.005)) -> 259.625 | AM97: =AM95*(1-(($E97-50)*0.005)) -> 348.75 | AN97: 1 | AO97: 1 | AP97: 1 | AQ97: 272 | AR97: 292 | AS97: 393 | AT97: 117 | AU97: 126 | AV97: 169 | AW97: 0.2110492911 | AX97: 0.2441989322 | AY97: 0.4354638743 | AZ97: 1.9 | BA97: 6 | BB97: 6.7 | BC97: 9 | BE97: 2142 | BG97: 0.68 | BJ97: 0 | BK97: 11.8 | BL97: 13.7 | BM97: 21.85 | BO97: 1 | BP97: 1 | BQ97: 1 | BR97: 272 | BS97: 292 | BT97: 393 | BV97: 0 | BW97: 0 | BX97: 0 | BY97: 1 | CN97: 21 | CO97: =CO96*2 -> 0.02666666667
A98: 13520 | D98: 1 | E98: 35 | F98: 40.5 | G98: 20 | H98: 21.5 | I98: 0 | J98: 26 | K98: 30 | L98: 42.4 | M98: 1318.4 | N98: 1942.571898 | O98: 2086.423935 | P98: 2518.44 | Q98: N/A | R98: 1 | S98: 1 | T98: 1 | V98: 1069 | W98: 1148 | X98: 1386 | Z98: 184 | AA98: 197 | AB98: 238 | AD98: 0.1290456929 | AE98: 0.1478363931 | AF98: 0.2154318994 | AG98: 0.0001276 | AH98: 1.7219 | AI98: 2 | AJ98: 0.000376611 | AK98: 240.0716625 | AL98: 257.849536 | AM98: 311.24 | AN98: 1 | AO98: 1 | AP98: 1 | AQ98: 270 | AR98: 290 | AS98: 351 | AT98: 116 | AU98: 125 | AV98: 151 | AW98: 0.05151150537 | AX98: 0.05977061071 | AY98: 0.08706406395 | AZ98: 0.5 | BA98: 6 | BB98: 6.7 | BC98: 9 | BE98: 1648 | BG98: 0.8 | BJ98: 0 | BK98: 11.8 | BL98: 13.7 | BM98: 21.85 | BO98: 1 | BP98: 1 | BQ98: 1 | BR98: 270 | BS98: 290 | BT98: 351 | BV98: 0 | BW98: 0 | BX98: 0 | BY98: 1
A99: 15020 | D99: 1 | E99: 50 | F99: 40.5 | G99: 20 | H99: 21.5 | I99: 0 | J99: 26 | K99: 30 | L99: 42.4 | M99: 1552 | N99: 1942.571898 | O99: 2086.423935 | P99: 2518.44 | Q99: N/A | R99: 1 | S99: 1 | T99: 1 | V99: 1069 | W99: 1148 | X99: 1386 | Z99: 184 | AA99: 197 | AB99: 238 | AD99: 0.1320241257 | AE99: 0.1511863514 | AF99: 0.2200709154 | AG99: 0.0001276 | AH99: 1.7219 | AI99: 2 | AJ99: 0.000376611 | AK99: 240.0716625 | AL99: 257.849536 | AM99: 311.24 | AN99: 1 | AO99: 1 | AP99: 1 | AQ99: 270 | AR99: 290 | AS99: 351 | AT99: 116 | AU99: 125 | AV99: 151 | AW99: 0.05285732921 | AX99: 0.06130123061 | AY99: 0.0891832955 | AZ99: 0.7 | BA99: 6 | BB99: 6.7 | BC99: 9 | BE99: 1940 | BG99: 0.8 | BJ99: 0 | BK99: 11.8 | BL99: 13.7 | BM99: 21.85 | BO99: 1 | BP99: 1 | BQ99: 1 | BR99: 270 | BS99: 290 | BT99: 351 | BV99: 0 | BW99: 0 | BX99: 0 | BY99: 1
A100: 16520 | D100: 1 | E100: 65 | F100: 40.5 | G100: 20 | H100: 21.5 | I100: 0 | J100: 26 | K100: 30 | L100: 42.4 | M100: 1718.4 | N100: 1942.571898 | O100: 2086.423935 | P100: 2518.44 | Q100: N/A | R100: 1 | S100: 1 | T100: 1 | V100: 1069 | W100: 1148 | X100: 1386 | Z100: 184 | AA100: 197 | AB100: 238 | AD100: 0.1350025586 | AE100: 0.1545363097 | AF100: 0.2247099313 | AG100: 0.0001276 | AH100: 1.7219 | AI100: 2 | AJ100: 0.000376611 | AK100: 240.0716625 | AL100: 257.849536 | AM100: 311.24 | AN100: 1 | AO100: 1 | AP100: 1 | AQ100: 270 | AR100: 290 | AS100: 351 | AT100: 116 | AU100: 125 | AV100: 151 | AW100: 0.05420315305 | AX100: 0.06283185051 | AY100: 0.09130252705 | AZ100: 0.9 | BA100: 6 | BB100: 6.7 | BC100: 9 | BE100: 2148 | BG100: 0.8 | BJ100: 0 | BK100: 11.8 | BL100: 13.7 | BM100: 21.85 | BO100: 1 | BP100: 1 | BQ100: 1 | BR100: 270 | BS100: 290 | BT100: 351 | BV100: 0 | BW100: 0 | BX100: 0 | BY100: 1 | CN100: Niveaus | CO100: Type | CP100: k1 | CQ100: n | CR100: t | CS100: k2
A101: 19520 | D101: 1 | E101: 95 | F101: 40.5 | G101: 20 | H101: 21.5 | I101: 0 | J101: 26 | K101: 30 | L101: 42.4 | M101: 1847.571898 | N101: 1942.571898 | O101: 2086.423935 | P101: 2518.44 | Q101: N/A | R101: 1 | S101: 1 | T101: 1 | V101: 1069 | W101: 1148 | X101: 1386 | Z101: 184 | AA101: 197 | AB101: 238 | AD101: 0.1409594243 | AE101: 0.1612362263 | AF101: 0.2339879633 | AG101: 0.0001276 | AH101: 1.7219 | AI101: 2 | AJ101: 0.000376611 | AK101: 240.0716625 | AL101: 257.849536 | AM101: 311.24 | AN101: 1 | AO101: 1 | AP101: 1 | AQ101: 270 | AR101: 290 | AS101: 351 | AT101: 116 | AU101: 125 | AV101: 151 | AW101: 0.05689480073 | AX101: 0.06589309032 | AY101: 0.09554099014 | AZ101: 1.3 | BA101: 6 | BB101: 6.7 | BC101: 9 | BE101: 2394 | BG101: 0.8 | BJ101: 0 | BK101: 11.8 | BL101: 13.7 | BM101: 21.85 | BO101: 1 | BP101: 1 | BQ101: 1 | BR101: 270 | BS101: 290 | BT101: 351 | BV101: 0 | BW101: 0 | BX101: 0 | BY101: 1
A102: 13521 | D102: 1 | E102: 35 | F102: 40.5 | G102: 21 | H102: 21.5 | I102: 0 | J102: 26 | K102: 30 | L102: 42.4 | M102: 1352.8 | N102: 2627.784896 | O102: 2817.841636 | P102: 3780.76 | Q102: N/A | R102: 1 | S102: 1 | T102: 1 | V102: 1446 | W102: 1551 | X102: 2081 | Z102: 249 | AA102: 267 | AB102: 358 | AD102: 0.3262062836 | AE102: 0.3747688867 | AF102: 0.6715758085 | AG102: 0.0001276 | AH102: 1.7219 | AI102: 4 | AJ102: 0.000514201 | AK102: 340.8622257 | AL102: 365.5153713 | AM102: 490.42 | AN102: 1 | AO102: 1 | AP102: 1 | AQ102: 384 | AR102: 412 | AS102: 552 | AT102: 165 | AU102: 177 | AV102: 237 | AW102: 0.1439723326 | AX102: 0.1655244003 | AY102: 0.2956949133 | AZ102: 0.9 | BA102: 6 | BB102: 6.7 | BC102: 9 | BE102: 1691 | BG102: 0.8 | BJ102: 0 | BK102: 11.8 | BL102: 13.7 | BM102: 21.85 | BO102: 1 | BP102: 1 | BQ102: 1 | BR102: 384 | BS102: 412 | BT102: 552 | BV102: 0 | BW102: 0 | BX102: 0 | BY102: 1 | CN102: 1 row
A103: 15021 | D103: 1 | E103: 50 | F103: 40.5 | G103: 21 | H103: 21.5 | I103: 0 | J103: 26 | K103: 30 | L103: 42.4 | M103: 1652.8 | N103: 2627.784896 | O103: 2817.841636 | P103: 3780.76 | Q103: N/A | R103: 1 | S103: 1 | T103: 1 | V103: 1446 | W103: 1551 | X103: 2081 | Z103: 249 | AA103: 267 | AB103: 358 | AD103: 0.3362349609 | AE103: 0.3860782392 | AF103: 0.6903153596 | AG103: 0.0001276 | AH103: 1.7219 | AI103: 4 | AJ103: 0.000514201 | AK103: 340.8622257 | AL103: 365.5153713 | AM103: 490.42 | AN103: 1 | AO103: 1 | AP103: 1 | AQ103: 384 | AR103: 412 | AS103: 552 | AT103: 165 | AU103: 177 | AV103: 237 | AW103: 0.1489099064 | AX103: 0.1710964267 | AY103: 0.3049059217 | AZ103: =ROUND(IF(G103=10,$CO$92*E103,IF(G103=11,$CO$93*E103,IF(G103=15,$CO$94*E103,IF(G103=16,$CO$95*E103,IF(G103=20,$CO$96*E103,IF(G103=21,$CO$97*E103,)))))),1) -> 1.3 | BA103: 6 | BB103: 6.7 | BC103: 9 | BE103: 2066 | BG103: 0.8 | BJ103: 0 | BK103: 11.8 | BL103: 13.7 | BM103: 21.85 | BO103: 1 | BP103: 1 | BQ103: 1 | BR103: 384 | BS103: 412 | BT103: 552 | BV103: 0 | BW103: 0 | BX103: 0 | BY103: 1 | CN103: 1 | CO103: 4 | CP103: 0.001382333883 | CQ103: 1.723172228 | CR103: 1 | CS103: 0.0003329081633
A104: 16521 | D104: 1 | E104: 65 | F104: 40.5 | G104: 21 | H104: 21.5 | I104: 0 | J104: 26 | K104: 30 | L104: 42.4 | M104: 1939.2 | N104: 2627.784896 | O104: 2817.841636 | P104: 3780.76 | Q104: N/A | R104: 1 | S104: 1 | T104: 1 | V104: 1446 | W104: 1551 | X104: 2081 | Z104: 249 | AA104: 267 | AB104: 358 | AD104: 0.3462636381 | AE104: 0.3973875917 | AF104: 0.7090549107 | AG104: 0.0001276 | AH104: 1.7219 | AI104: 4 | AJ104: 0.000514201 | AK104: =AK103*(1-(($E104-50)*0.005)) -> 315.2975588 | AL104: =AL103*(1-(($E104-50)*0.005)) -> 338.1017184 | AM104: =AM103*(1-(($E104-50)*0.005)) -> 453.6385 | AN104: 1 | AO104: 1 | AP104: 1 | AQ104: 355 | AR104: 381 | AS104: 511 | AT104: 153 | AU104: 164 | AV104: 220 | AW104: 0.1325873151 | AX104: 0.152016155 | AY104: 0.2712299242 | AZ104: 1.7 | BA104: 6 | BB104: 6.7 | BC104: 9 | BE104: 2424 | BG104: 0.8 | BJ104: 0 | BK104: 11.8 | BL104: 13.7 | BM104: 21.85 | BO104: 1 | BP104: 1 | BQ104: 1 | BR104: 355 | BS104: 381 | BT104: 511 | BV104: 0 | BW104: 0 | BX104: 0 | BY104: 1 | CN104: 2 | CO104: 5 | CP104: 0.000937 | CQ104: 1.789 | CR104: 2 | CS104: 0.000446
A105: 19521 | D105: 1 | E105: 95 | F105: 40.5 | G105: 21 | H105: 21.5 | I105: 0 | J105: 26 | K105: 30 | L105: 42.4 | M105: 2508.8 | N105: 2627.784896 | O105: 2817.841636 | P105: 3780.76 | Q105: N/A | R105: 1 | S105: 1 | T105: 1 | V105: 1446 | W105: 1551 | X105: 2081 | Z105: 249 | AA105: 267 | AB105: 358 | AD105: 0.3663209927 | AE105: 0.4200062967 | AF105: 0.746534013 | AG105: 0.0001276 | AH105: 1.7219 | AI105: 4 | AJ105: 0.000514201 | AK105: =AK103*(1-(($E105-50)*0.005)) -> 264.1682249 | AL105: =AL103*(1-(($E105-50)*0.005)) -> 283.2744127 | AM105: =AM103*(1-(($E105-50)*0.005)) -> 380.0755 | AN105: 1 | AO105: 1 | AP105: 1 | AQ105: 298 | AR105: 319 | AS105: 428 | AT105: 128 | AU105: 137 | AV105: 184 | AW105: 0.09969646293 | AX105: 0.1138417145 | AY105: 0.2026143579 | AZ105: 2.5 | BA105: 6 | BB105: 6.7 | BC105: 9 | BE105: 3136 | BG105: 0.8 | BJ105: 0 | BK105: 11.8 | BL105: 13.7 | BM105: 21.85 | BO105: 1 | BP105: 1 | BQ105: 1 | BR105: 298 | BS105: 319 | BT105: 428 | BV105: 0 | BW105: 0 | BX105: 0 | BY105: 1 | CN105: 4 | CO105: 6 | CP105: 0.000937 | CQ105: 1.789 | CR105: 4 | CS105: 0.00139
A106: 13510 | D106: 1 | E106: 35 | F106: 40.5 | G106: 10 | H106: 11.5 | I106: 0 | J106: 26 | K106: 30 | L106: 42.4 | M106: 727.2 | N106: 1395.627219 | O106: 1501.300014 | P106: 1828.08 | Q106: N/A | R106: 1 | S106: 1 | T106: 1 | V106: 768 | W106: 826 | X106: 1006 | Y106: =ROUND(U106*3600/(4186*ABS($O$1-$O$2)),0) ->  | Z106: =ROUND(V106*3600/(4186*ABS($O$1-$O$2)),0) -> 132 | AA106: =ROUND(W106*3600/(4186*ABS($O$1-$O$2)),0) -> 142 | AB106: =ROUND(X106*3600/(4186*ABS($O$1-$O$2)),0) -> 173 | AD106: 0.07036744093 | AE106: 0.08126330039 | AF106: 0.1199601405 | AG106: 0.0003969 | AH106: 1.7346 | AI106: 2 | AJ106: 0.000367347 | AK106: 193.4859319 | AL106: 208.1361185 | AM106: 253.44 | AN106: 1 | AO106: 1 | AP106: 1 | AQ106: 218 | AR106: 234 | AS106: 285 | AT106: =ROUND(AQ106*3600/(4186*ABS($AM$1-$AM$2)),0) -> 94 | AU106: =ROUND(AR106*3600/(4186*ABS($AM$1-$AM$2)),0) -> 101 | AV106: =ROUND(AS106*3600/(4186*ABS($AM$1-$AM$2)),0) -> 123 | AW106: 0.03604986021 | AX106: 0.04152646964 | AY106: 0.06122451961 | AZ106: 0.2 | BA106: 6.7 | BB106: 7.4 | BC106: 10.3 | BE106: 808 | BG106: 0.9 | BJ106: 0 | BK106: 12.5 | BL106: 14.7 | BM106: 21.85 | BO106: 1 | BP106: 1 | BQ106: 1 | BR106: 218 | BS106: 234 | BT106: 285 | BV106: 0 | BW106: 0 | BX106: 0 | BY106: 1 | CN106: 2 rows
A107: 15010 | D107: 1 | E107: 50 | F107: 40.5 | G107: 10 | H107: 11.5 | I107: 0 | J107: 26 | K107: 30 | L107: 42.4 | M107: 871.2 | N107: 1395.627219 | O107: 1501.300014 | P107: 1828.08 | Q107: N/A | R107: 1 | S107: 1 | T107: 1 | V107: 768 | W107: 826 | X107: 1006 | Z107: 132 | AA107: 142 | AB107: 173 | AD107: 0.07593129807 | AE107: 0.08757851032 | AF107: 0.1288550842 | AG107: 0.0003969 | AH107: 1.7346 | AI107: 2 | AJ107: 0.000367347 | AK107: 193.4859319 | AL107: 208.1361185 | AM107: 253.44 | AN107: 1 | AO107: 1 | AP107: 1 | AQ107: 218 | AR107: 234 | AS107: 285 | AT107: 94 | AU107: 101 | AV107: 123 | AW107: 0.03913742446 | AX107: 0.04502370036 | AY107: 0.06614693019 | AZ107: 0.3 | BA107: 6.7 | BB107: 7.4 | BC107: 10.3 | BE107: 968 | BG107: 0.9 | BJ107: 0 | BK107: 12.5 | BL107: 14.7 | BM107: 21.85 | BO107: 1 | BP107: 1 | BQ107: 1 | BR107: 218 | BS107: 234 | BT107: 285 | BV107: 0 | BW107: 0 | BX107: 0 | BY107: 1 | CN107: 1 | CO107: 9 | CP107: 0.000805344706 | CQ107: 1.813864716 | CR107: 2 | CS107: 0.0003979505047
A108: 16510 | D108: 1 | E108: 65 | F108: 40.5 | G108: 10 | H108: 11.5 | I108: 0 | J108: 26 | K108: 30 | L108: 42.4 | M108: 981 | N108: 1395.627219 | O108: 1501.300014 | P108: 1828.08 | Q108: N/A | R108: 1 | S108: 1 | T108: 1 | V108: 768 | W108: 826 | X108: 1006 | Z108: 132 | AA108: 142 | AB108: 173 | AD108: 0.08149515521 | AE108: 0.09389372024 | AF108: 0.1377500278 | AG108: 0.0003969 | AH108: 1.7346 | AI108: 2 | AJ108: 0.000367347 | AK108: 193.4859319 | AL108: 208.1361185 | AM108: 253.44 | AN108: 1 | AO108: 1 | AP108: 1 | AQ108: 218 | AR108: 234 | AS108: 285 | AT108: 94 | AU108: 101 | AV108: 123 | AW108: 0.04222498872 | AX108: 0.04852093107 | AY108: 0.07106934077 | AZ108: 0.4 | BA108: 6.7 | BB108: 7.4 | BC108: 10.3 | BE108: 1090 | BG108: 0.9 | BJ108: 0 | BK108: 12.5 | BL108: 14.7 | BM108: 21.85 | BO108: 1 | BP108: 1 | BQ108: 1 | BR108: 218 | BS108: 234 | BT108: 285 | BV108: 0 | BW108: 0 | BX108: 0 | BY108: 1 | CN108: 2 | CO108: 10 | CP108: 0.0003969 | CQ108: 1.7346 | CR108: 2 | CS108: 0.000367347
A109: 19510 | D109: 1 | E109: 95 | F109: 40.5 | G109: 10 | H109: 11.5 | I109: 0 | J109: 26 | K109: 30 | L109: 42.4 | M109: 1128.6 | N109: 1395.627219 | O109: 1501.300014 | P109: 1828.08 | Q109: N/A | R109: 1 | S109: 1 | T109: 1 | V109: 768 | W109: 826 | X109: 1006 | Z109: 132 | AA109: 142 | AB109: 173 | AD109: 0.09262286949 | AE109: 0.1065241401 | AF109: 0.155539915 | AG109: 0.0003969 | AH109: 1.7346 | AI109: 2 | AJ109: 0.000367347 | AK109: 193.4859319 | AL109: 208.1361185 | AM109: 253.44 | AN109: 1 | AO109: 1 | AP109: 1 | AQ109: 218 | AR109: 234 | AS109: 285 | AT109: 94 | AU109: 101 | AV109: 123 | AW109: 0.04840011722 | AX109: 0.05551539251 | AY109: 0.08091416193 | AZ109: 0.6 | BA109: 6.7 | BB109: 7.4 | BC109: 10.3 | BE109: 1254 | BG109: 0.9 | BJ109: 0 | BK109: 12.5 | BL109: 14.7 | BM109: 21.85 | BO109: 1 | BP109: 1 | BQ109: 1 | BR109: 218 | BS109: 234 | BT109: 285 | BV109: 0 | BW109: 0 | BX109: 0 | BY109: 1 | CN109: 4 | CO109: 11 | CP109: 0.0003969 | CQ109: 1.7346 | CR109: 4 | CS109: 0.000574288
A110: 13511 | D110: 1 | E110: 35 | F110: 40.5 | G110: 11 | H110: 11.5 | I110: 0 | J110: 26 | K110: 30 | L110: 42.4 | M110: 731.68 | N110: 1893.633624 | O110: 2037.014001 | P110: 2480.4 | Q110: N/A | R110: 1 | S110: 1 | T110: 1 | V110: 1042 | W110: 1121 | X110: 1365 | Z110: 179 | AA110: 193 | AB110: 235 | AD110: 0.2062473617 | AE110: 0.2391749147 | AF110: 0.3523687965 | AG110: 0.0003969 | AH110: 1.7346 | AI110: 4 | AJ110: 0.000574288 | AK110: 317.1630191 | AL110: 341.1776716 | AM110: 415.44 | AN110: 1 | AO110: 1 | AP110: 1 | AQ110: 357 | AR110: 384 | AS110: 468 | AT110: 154 | AU110: 165 | AV110: 201 | AW110: 0.1534409499 | AX110: 0.1757280663 | AY110: 0.259070362 | AZ110: 0.5 | BA110: 6.7 | BB110: 7.4 | BC110: 10.3 | BE110: 1076 | BG110: 0.68 | BJ110: 0 | BK110: 12.5 | BL110: 14.7 | BM110: 21.85 | BO110: 1 | BP110: 1 | BQ110: 1 | BR110: 357 | BS110: 384 | BT110: 468 | BV110: 0 | BW110: 0 | BX110: 0 | BY110: 1 | CN110: 3 rows
A111: 15011 | D111: 1 | E111: 50 | F111: 40.5 | G111: 11 | H111: 11.5 | I111: 0 | J111: 26 | K111: 30 | L111: 42.4 | M111: 847.96 | N111: 1893.633624 | O111: 2037.014001 | P111: 2480.4 | Q111: N/A | R111: 1 | S111: 1 | T111: 1 | V111: 1042 | W111: 1121 | X111: 1365 | Z111: 179 | AA111: 193 | AB111: 235 | AD111: 0.2251210723 | AE111: 0.2606822266 | AF111: 0.3826318496 | AG111: 0.0003969 | AH111: 1.7346 | AI111: 4 | AJ111: 0.000574288 | AK111: 317.1630191 | AL111: 341.1776716 | AM111: 415.44 | AN111: 1 | AO111: 1 | AP111: 1 | AQ111: 357 | AR111: 384 | AS111: 468 | AT111: 154 | AU111: 165 | AV111: 201 | AW111: 0.1679798605 | AX111: 0.1921153161 | AY111: 0.2821475191 | AZ111: 0.7 | BA111: 6.7 | BB111: 7.4 | BC111: 10.3 | BE111: 1247 | BG111: 0.68 | BJ111: 0 | BK111: 12.5 | BL111: 14.7 | BM111: 21.85 | BO111: 1 | BP111: 1 | BQ111: 1 | BR111: 357 | BS111: 384 | BT111: 468 | BV111: 0 | BW111: 0 | BX111: 0 | BY111: 1 | CN111: 1 | CO111: 14 | CP111: 0.002558239829 | CQ111: 1.494274772 | CR111: 3 | CS111: 0.0005616169468
A112: 16511 | D112: 1 | E112: 65 | F112: 40.5 | G112: 11 | H112: 11.5 | I112: 0 | J112: 26 | K112: 30 | L112: 42.4 | M112: 944.52 | N112: 1893.633624 | O112: 2037.014001 | P112: 2480.4 | Q112: N/A | R112: 1 | S112: 1 | T112: 1 | V112: 1042 | W112: 1121 | X112: 1365 | Z112: 179 | AA112: 193 | AB112: 235 | AD112: 0.243994783 | AE112: 0.2821895385 | AF112: 0.4128949026 | AG112: 0.0003969 | AH112: 1.7346 | AI112: 4 | AJ112: 0.000574288 | AK112: =AK111*(1-(($E112-50)*0.005)) -> 293.3757927 | AL112: =AL111*(1-(($E112-50)*0.005)) -> 315.5893462 | AM112: =AM111*(1-(($E112-50)*0.005)) -> 384.282 | AN112: 1 | AO112: 1 | AP112: 1 | AQ112: 330 | AR112: 355 | AS112: 433 | AT112: 142 | AU112: 153 | AV112: 186 | AW112: 0.15609006 | AX112: 0.1802398661 | AY112: 0.26275498 | AZ112: 0.9 | BA112: 6.7 | BB112: 7.4 | BC112: 10.3 | BE112: 1389 | BG112: 0.68 | BJ112: 0 | BK112: 12.5 | BL112: 14.7 | BM112: 21.85 | BO112: 1 | BP112: 1 | BQ112: 1 | BR112: 330 | BS112: 355 | BT112: 433 | BV112: 0 | BW112: 0 | BX112: 0 | BY112: 1 | CN112: 2 | CO112: 15 | CP112: 0.0002083 | CQ112: 1.724 | CR112: 2 | CS112: 0.000461829
A113: 19511 | D113: 1 | E113: 95 | F113: 40.5 | G113: 11 | H113: 11.5 | I113: 0 | J113: 26 | K113: 30 | L113: 42.4 | M113: 1098.88 | N113: 1893.633624 | O113: 2037.014001 | P113: 2480.4 | Q113: N/A | R113: 1 | S113: 1 | T113: 1 | V113: 1042 | W113: 1121 | X113: 1365 | Z113: 179 | AA113: 193 | AB113: 235 | AD113: 0.2817422042 | AE113: 0.3252041623 | AF113: 0.4734210087 | AG113: 0.0003969 | AH113: 1.7346 | AI113: 4 | AJ113: 0.000574288 | AK113: =AK111*(1-(($E113-50)*0.005)) -> 245.8013398 | AL113: =AL111*(1-(($E113-50)*0.005)) -> 264.4126955 | AM113: =AM111*(1-(($E113-50)*0.005)) -> 321.966 | AN113: 1 | AO113: 1 | AP113: 1 | AQ113: 277 | AR113: 298 | AS113: 363 | AT113: 119 | AU113: 128 | AV113: 156 | AW113: 0.1296496299 | AX113: 0.1488945804 | AY113: 0.2168542365 | AZ113: 1.3 | BA113: 6.7 | BB113: 7.4 | BC113: 10.3 | BE113: 1616 | BG113: 0.68 | BJ113: 0 | BK113: 12.5 | BL113: 14.7 | BM113: 21.85 | BO113: 1 | BP113: 1 | BQ113: 1 | BR113: 277 | BS113: 298 | BT113: 363 | BV113: 0 | BW113: 0 | BX113: 0 | BY113: 1 | CN113: 4 | CO113: 16 | CP113: 0.0002083 | CQ113: 1.724 | CR113: 4 | CS113: 0.001392796
A114: 13515 | D114: 1 | E114: 35 | F114: 40.5 | G114: 15 | H114: 16.5 | I114: 0 | J114: 26 | K114: 30 | L114: 43.3 | M114: 1058.4 | N114: 1597.916768 | O114: 1711.913054 | P114: 2331.36 | Q114: N/A | R114: 1 | S114: 1 | T114: 1 | V114: 879 | W114: 942 | X114: 1283 | Z114: 151 | AA114: 162 | AB114: 221 | AD114: 0.107997008 | AE114: 0.1241985689 | AF114: 0.2303092536 | AG114: 0.0002083 | AH114: 1.724 | AI114: 2 | AJ114: 0.000461829 | AK114: 218.1220541 | AL114: 233.6830049 | AM114: 318.24 | AN114: 1 | AO114: 1 | AP114: 1 | AQ114: 246 | AR114: 263 | AS114: 358 | AT114: 106 | AU114: 113 | AV114: 154 | AW114: 0.05346207883 | AX114: 0.06070438736 | AY114: 0.1123038655 | AZ114: 0.4 | BA114: 7 | BB114: 7.7 | BC114: 10.7 | BE114: 1323 | BG114: 0.8 | BJ114: 0 | BK114: 11.3 | BL114: 13.2 | BM114: 21.85 | BO114: 1 | BP114: 1 | BQ114: 1 | BR114: 246 | BS114: 263 | BT114: 358 | BV114: 0 | BW114: 0 | BX114: 0 | BY114: 1 | CN114: 4 rows
A115: 15015 | D115: 1 | E115: 50 | F115: 40.5 | G115: 15 | H115: 16.5 | I115: 0 | J115: 26 | K115: 30 | L115: 43.3 | M115: 1248.8 | N115: 1597.916768 | O115: 1711.913054 | P115: 2331.36 | Q115: N/A | R115: 1 | S115: 1 | T115: 1 | V115: 879 | W115: 942 | X115: 1283 | Z115: 151 | AA115: 162 | AB115: 221 | AD115: 0.1114931805 | AE115: 0.1281453268 | AF115: 0.2370509452 | AG115: 0.0002083 | AH115: 1.724 | AI115: 2 | AJ115: 0.000461829 | AK115: 218.1220541 | AL115: 233.6830049 | AM115: 318.24 | AN115: 1 | AO115: 1 | AP115: 1 | AQ115: 246 | AR115: 263 | AS115: 358 | AT115: 106 | AU115: 113 | AV115: 154 | AW115: 0.05536168649 | AX115: 0.06282540283 | AY115: 0.1159206474 | AZ115: 0.5 | BA115: 7 | BB115: 7.7 | BC115: 10.7 | BE115: 1561 | BG115: 0.8 | BJ115: 0 | BK115: 11.3 | BL115: 13.2 | BM115: 21.85 | BO115: 1 | BP115: 1 | BQ115: 1 | BR115: 246 | BS115: 263 | BT115: 358 | BV115: 0 | BW115: 0 | BX115: 0 | BY115: 1 | CN115: 1 | CO115: 19 | CP115: 0.01161629289 | CQ115: 1.586934682 | CR115: 1 | CS115: 0.001655322747
A116: 16515 | D116: 1 | E116: 65 | F116: 40.5 | G116: 15 | H116: 16.5 | I116: 0 | J116: 26 | K116: 30 | L116: 43.3 | M116: 1384 | N116: 1597.916768 | O116: 1711.913054 | P116: 2331.36 | Q116: N/A | R116: 1 | S116: 1 | T116: 1 | V116: 879 | W116: 942 | X116: 1283 | Z116: 151 | AA116: 162 | AB116: 221 | AD116: 0.1149893531 | AE116: 0.1320920846 | AF116: 0.2437926368 | AG116: 0.0002083 | AH116: 1.724 | AI116: 2 | AJ116: 0.000461829 | AK116: 218.1220541 | AL116: 233.6830049 | AM116: 318.24 | AN116: 1 | AO116: 1 | AP116: 1 | AQ116: 246 | AR116: 263 | AS116: 358 | AT116: 106 | AU116: 113 | AV116: 154 | AW116: 0.05726129415 | AX116: 0.06494641831 | AY116: 0.1195374293 | AZ116: 0.7 | BA116: 7 | BB116: 7.7 | BC116: 10.7 | BE116: 1730 | BG116: 0.8 | BJ116: 0 | BK116: 11.3 | BL116: 13.2 | BM116: 21.85 | BO116: 1 | BP116: 1 | BQ116: 1 | BR116: 246 | BS116: 263 | BT116: 358 | BV116: 0 | BW116: 0 | BX116: 0 | BY116: 1 | CN116: 2 | CO116: 20 | CP116: 0.0001276 | CQ116: 1.7219 | CR116: 2 | CS116: 0.000376611
A117: 19515 | D117: 1 | E117: 95 | F117: 40.5 | G117: 15 | H117: 16.5 | I117: 0 | J117: 26 | K117: 30 | L117: 43.3 | M117: 1502.916768 | N117: 1597.916768 | O117: 1711.913054 | P117: 2331.36 | Q117: N/A | R117: 1 | S117: 1 | T117: 1 | V117: 879 | W117: 942 | X117: 1283 | Z117: 151 | AA117: 162 | AB117: 221 | AD117: 0.1219816981 | AE117: 0.1399856004 | AF117: 0.2572760199 | AG117: 0.0002083 | AH117: 1.724 | AI117: 2 | AJ117: 0.000461829 | AK117: 218.1220541 | AL117: 233.6830049 | AM117: 318.24 | AN117: 1 | AO117: 1 | AP117: 1 | AQ117: 246 | AR117: 263 | AS117: 358 | AT117: 106 | AU117: 113 | AV117: 154 | AW117: 0.06106050947 | AX117: 0.06918844926 | AY117: 0.1267709932 | AZ117: 1 | BA117: 7 | BB117: 7.7 | BC117: 10.7 | BE117: 1931 | BG117: 0.8 | BJ117: 0 | BK117: 11.3 | BL117: 13.2 | BM117: 21.85 | BO117: 1 | BP117: 1 | BQ117: 1 | BR117: 246 | BS117: 263 | BT117: 358 | BV117: 0 | BW117: 0 | BX117: 0 | BY117: 1 | CN117: 4 | CO117: 21 | CP117: 0.0001276 | CQ117: 1.7219 | CR117: 4 | CS117: 0.000514201
A118: 13516 | D118: 1 | E118: 35 | F118: 40.5 | G118: 16 | H118: 16.5 | I118: 0 | J118: 26 | K118: 30 | L118: 43.3 | M118: 975.12 | N118: 2336.669517 | O118: 2503.368842 | P118: 3409.2 | Q118: N/A | R118: 1 | S118: 1 | T118: 1 | V118: 1286 | W118: 1378 | X118: 1876 | Z118: 221 | AA118: 237 | AB118: 323 | AD118: 0.685167564 | AE118: 0.7875617633 | AF118: 1.459649467 | AG118: 0.0002083 | AH118: 1.724 | AI118: 4 | AJ118: 0.001392796 | AK118: 357.7793875 | AL118: 383.3035713 | AM118: 522 | AN118: 1 | AO118: 1 | AP118: 1 | AQ118: 403 | AR118: 432 | AS118: 588 | AT118: 173 | AU118: 186 | AV118: 253 | AW118: 0.4206533457 | AX118: 0.4859703757 | AY118: 0.8970633023 | AZ118: 0.7 | BA118: 7 | BB118: 7.7 | BC118: 10.7 | BE118: 1434 | BG118: 0.68 | BJ118: 0 | BK118: 11.3 | BL118: 13.2 | BM118: 21.85 | BO118: 1 | BP118: 1 | BQ118: 1 | BR118: 403 | BS118: 432 | BT118: 588 | BV118: 0 | BW118: 0 | BX118: 0 | BY118: 1
A119: 15016 | D119: 1 | E119: 50 | F119: 40.5 | G119: 16 | H119: 16.5 | I119: 0 | J119: 26 | K119: 30 | L119: 43.3 | M119: 1161.44 | N119: 2336.669517 | O119: 2503.368842 | P119: 3409.2 | Q119: N/A | R119: 1 | S119: 1 | T119: 1 | V119: 1286 | W119: 1378 | X119: 1876 | Z119: 221 | AA119: 237 | AB119: 323 | AD119: 0.6986509472 | AE119: 0.802771887 | AF119: 1.485587184 | AG119: 0.0002083 | AH119: 1.724 | AI119: 4 | AJ119: 0.001392796 | AK119: 357.7793875 | AL119: 383.3035713 | AM119: 522 | AN119: 1 | AO119: 1 | AP119: 1 | AQ119: 403 | AR119: 432 | AS119: 588 | AT119: 173 | AU119: 186 | AV119: 253 | AW119: 0.429493464 | AX119: 0.4959866662 | AY119: 0.914086705 | AZ119: 1 | BA119: 7 | BB119: 7.7 | BC119: 10.7 | BE119: 1708 | BG119: 0.68 | BJ119: 0 | BK119: 11.3 | BL119: 13.2 | BM119: 21.85 | BO119: 1 | BP119: 1 | BQ119: 1 | BR119: 403 | BS119: 432 | BT119: 588 | BV119: 0 | BW119: 0 | BX119: 0 | BY119: =IF(SUM(BV119:BX119)=0,1,0) -> 1 | CN119: =CN111 -> 1 | CO119: 7 | CP119: =CP111 -> 0.002558239829 | CQ119: =CQ111 -> 1.494274772 | CR119: =CR111 -> 3 | CS119: =CS111 -> 0.0005616169468
A120: 16516 | D120: 1 | E120: 65 | F120: 40.5 | G120: 16 | H120: 16.5 | I120: 0 | J120: 26 | K120: 30 | L120: 43.3 | M120: 1330.08 | N120: 2336.669517 | O120: 2503.368842 | P120: 3409.2 | Q120: N/A | R120: 1 | S120: 1 | T120: 1 | V120: 1286 | W120: 1378 | X120: 1876 | Z120: 221 | AA120: 237 | AB120: 323 | AD120: 0.7121343303 | AE120: 0.8179820106 | AF120: 1.511524901 | AG120: 0.0002083 | AH120: 1.724 | AI120: 4 | AJ120: 0.001392796 | AK120: =AK119*(1-(($E120-50)*0.005)) -> 330.9459334 | AL120: =AL119*(1-(($E120-50)*0.005)) -> 354.5558035 | AM120: =AM119*(1-(($E120-50)*0.005)) -> 482.85 | AN120: 1 | AO120: 1 | AP120: 1 | AQ120: 373 | AR120: 399 | AS120: 544 | AT120: 160 | AU120: 172 | AV120: 234 | AW120: 0.3754879185 | AX120: 0.4333279888 | AY120: 0.7975808428 | AZ120: 1.3 | BA120: 7 | BB120: 7.7 | BC120: 10.7 | BE120: 1956 | BG120: 0.68 | BJ120: 0 | BK120: 11.3 | BL120: 13.2 | BM120: 21.85 | BO120: 1 | BP120: 1 | BQ120: 1 | BR120: 373 | BS120: 399 | BT120: 544 | BV120: 0 | BW120: 0 | BX120: 0 | BY120: 1 | CN120: =CN105 -> 4 | CO120: 8 | CP120: =CP105 -> 0.000937 | CQ120: =CQ105 -> 1.789 | CR120: =CR105 -> 4 | CS120: =CS105 -> 0.00139
A121: 19516 | D121: 1 | E121: 95 | F121: 40.5 | G121: 16 | H121: 16.5 | I121: 0 | J121: 26 | K121: 30 | L121: 43.3 | M121: 1638.12 | N121: 2336.669517 | O121: 2503.368842 | P121: 3409.2 | Q121: N/A | R121: 1 | S121: 1 | T121: 1 | V121: 1286 | W121: 1378 | X121: 1876 | Z121: 221 | AA121: 237 | AB121: 323 | AD121: 0.7391010966 | AE121: 0.8484022579 | AF121: 1.563400334 | AG121: 0.0002083 | AH121: 1.724 | AI121: 4 | AJ121: 0.001392796 | AK121: =AK119*(1-(($E121-50)*0.005)) -> 277.2790253 | AL121: =AL119*(1-(($E121-50)*0.005)) -> 297.0602678 | AM121: =AM119*(1-(($E121-50)*0.005)) -> 404.55 | AN121: 1 | AO121: 1 | AP121: 1 | AQ121: 312 | AR121: 335 | AS121: 456 | AT121: 134 | AU121: 144 | AV121: 196 | AW121: 0.2756687513 | AX121: 0.317653995 | AY121: 0.5832614236 | AZ121: 1.9 | BA121: 7 | BB121: 7.7 | BC121: 10.7 | BE121: 2409 | BG121: 0.68 | BJ121: 0 | BK121: 11.3 | BL121: 13.2 | BM121: 21.85 | BO121: 1 | BP121: 1 | BQ121: 1 | BR121: 312 | BS121: 335 | BT121: 456 | BV121: 0 | BW121: 0 | BX121: 0 | BY121: 1
A122: 13520 | D122: 1 | E122: 35 | F122: 40.5 | G122: 20 | H122: 21.5 | I122: 0 | J122: 26 | K122: 30 | L122: 43.3 | M122: 1483.2 | N122: 2232.78368 | O122: 2401.843504 | P122: 2924.64 | Q122: N/A | R122: 1 | S122: 1 | T122: 1 | V122: 1229 | W122: 1322 | X122: 1610 | Z122: 211 | AA122: 227 | AB122: 277 | AD122: 0.1694954907 | AE122: 0.1960549945 | AF122: 0.2914637782 | AG122: 0.0001276 | AH122: 1.7219 | AI122: 2 | AJ122: 0.000376611 | AK122: 275.9373234 | AL122: 296.8304872 | AM122: 361.44 | AN122: 1 | AO122: 1 | AP122: 1 | AQ122: 311 | AR122: 334 | AS122: 407 | AT122: 134 | AU122: 144 | AV122: 175 | AW122: 0.06864117119 | AX122: 0.07921417315 | AY122: 0.1167823621 | AZ122: 0.5 | BA122: 7 | BB122: 7.7 | BC122: 10.7 | BE122: 1854 | BG122: 0.8 | BJ122: 0 | BK122: 11.3 | BL122: 13.2 | BM122: 21.85 | BO122: 1 | BP122: 1 | BQ122: 1 | BR122: 311 | BS122: 334 | BT122: 407 | BV122: 0 | BW122: 0 | BX122: 0 | BY122: 1
A123: 15020 | D123: 1 | E123: 50 | F123: 40.5 | G123: 20 | H123: 21.5 | I123: 0 | J123: 26 | K123: 30 | L123: 43.3 | M123: 1746.4 | N123: 2232.78368 | O123: 2401.843504 | P123: 2924.64 | Q123: N/A | R123: 1 | S123: 1 | T123: 1 | V123: 1229 | W123: 1322 | X123: 1610 | Z123: 211 | AA123: 227 | AB123: 277 | AD123: 0.1732658259 | AE123: 0.2003310067 | AF123: 0.2974880411 | AG123: 0.0001276 | AH123: 1.7219 | AI123: 2 | AJ123: 0.000376611 | AK123: 275.9373234 | AL123: 296.8304872 | AM123: 361.44 | AN123: 1 | AO123: 1 | AP123: 1 | AQ123: 311 | AR123: 334 | AS123: 407 | AT123: 134 | AU123: 144 | AV123: 175 | AW123: 0.07036645187 | AX123: 0.08116708383 | AY123: 0.1195143906 | AZ123: 0.7 | BA123: 7 | BB123: 7.7 | BC123: 10.7 | BE123: 2183 | BG123: 0.8 | BJ123: 0 | BK123: 11.3 | BL123: 13.2 | BM123: 21.85 | BO123: 1 | BP123: 1 | BQ123: 1 | BR123: 311 | BS123: 334 | BT123: 407 | BV123: 0 | BW123: 0 | BX123: 0 | BY123: 1
A124: 16520 | D124: 1 | E124: 65 | F124: 40.5 | G124: 20 | H124: 21.5 | I124: 0 | J124: 26 | K124: 30 | L124: 43.3 | M124: 1933.6 | N124: 2232.78368 | O124: 2401.843504 | P124: 2924.64 | Q124: N/A | R124: 1 | S124: 1 | T124: 1 | V124: 1229 | W124: 1322 | X124: 1610 | Z124: 211 | AA124: 227 | AB124: 277 | AD124: 0.1770361611 | AE124: 0.2046070188 | AF124: 0.3035123041 | AG124: 0.0001276 | AH124: 1.7219 | AI124: 2 | AJ124: 0.000376611 | AK124: 275.9373234 | AL124: 296.8304872 | AM124: 361.44 | AN124: 1 | AO124: 1 | AP124: 1 | AQ124: 311 | AR124: 334 | AS124: 407 | AT124: 134 | AU124: 144 | AV124: 175 | AW124: 0.07209173254 | AX124: 0.08311999451 | AY124: 0.1222464191 | AZ124: 0.9 | BA124: 7 | BB124: 7.7 | BC124: 10.7 | BE124: 2417 | BG124: 0.8 | BJ124: 0 | BK124: 11.3 | BL124: 13.2 | BM124: 21.85 | BO124: 1 | BP124: 1 | BQ124: 1 | BR124: 311 | BS124: 334 | BT124: 407 | BV124: 0 | BW124: 0 | BX124: 0 | BY124: 1
A125: 19520 | D125: 1 | E125: 95 | F125: 40.5 | G125: 20 | H125: 21.5 | I125: 0 | J125: 26 | K125: 30 | L125: 43.3 | M125: 2137.78368 | N125: 2232.78368 | O125: 2401.843504 | P125: 2924.64 | Q125: N/A | R125: 1 | S125: 1 | T125: 1 | V125: 1229 | W125: 1322 | X125: 1610 | Z125: 211 | AA125: 227 | AB125: 277 | AD125: 0.1845768315 | AE125: 0.213159043 | AF125: 0.31556083 | AG125: 0.0001276 | AH125: 1.7219 | AI125: 2 | AJ125: 0.000376611 | AK125: 275.9373234 | AL125: 296.8304872 | AM125: 361.44 | AN125: 1 | AO125: 1 | AP125: 1 | AQ125: 311 | AR125: 334 | AS125: 407 | AT125: 134 | AU125: 144 | AV125: 175 | AW125: 0.07554229388 | AX125: 0.08702581586 | AY125: 0.127710476 | AZ125: 1.3 | BA125: 7 | BB125: 7.7 | BC125: 10.7 | BE125: 2693 | BG125: 0.8 | BJ125: 0 | BK125: 11.3 | BL125: 13.2 | BM125: 21.85 | BO125: 1 | BP125: 1 | BQ125: 1 | BR125: 311 | BS125: 334 | BT125: 407 | BV125: 0 | BW125: 0 | BX125: 0 | BY125: 1
A126: 13521 | D126: 1 | E126: 35 | F126: 40.5 | G126: 21 | H126: 21.5 | I126: 0 | J126: 26 | K126: 30 | L126: 43.3 | M126: 1522.4 | N126: 3009.294765 | O126: 3223.979556 | P126: 4390.56 | Q126: N/A | R126: 1 | S126: 1 | T126: 1 | V126: 1656 | W126: 1774 | X126: 2416 | Z126: 285 | AA126: 305 | AB126: 416 | AD126: 0.4266846284 | AE126: 0.4882995627 | AF126: 0.9053874526 | AG126: 0.0001276 | AH126: 1.7219 | AI126: 4 | AJ126: 0.000514201 | AK126: 390.3496489 | AL126: 418.1974137 | AM126: 569.52 | AN126: 1 | AO126: 1 | AP126: 1 | AQ126: 440 | AR126: 471 | AS126: 641 | AT126: 189 | AU126: 203 | AV126: 276 | AW126: 0.1885714759 | AX126: 0.2173482026 | AY126: 0.400307717 | AZ126: 0.9 | BA126: 7 | BB126: 7.7 | BC126: 10.7 | BE126: 1903 | BG126: 0.8 | BJ126: 0 | BK126: 11.3 | BL126: 13.2 | BM126: 21.85 | BO126: 1 | BP126: 1 | BQ126: 1 | BR126: 440 | BS126: 471 | BT126: 641 | BV126: 0 | BW126: 0 | BX126: 0 | BY126: 1
A127: 15021 | D127: 1 | E127: 50 | F127: 40.5 | G127: 21 | H127: 21.5 | I127: 0 | J127: 26 | K127: 30 | L127: 43.3 | M127: 1859.2 | N127: 3009.294765 | O127: 3223.979556 | P127: 4390.56 | Q127: N/A | R127: 1 | S127: 1 | T127: 1 | V127: 1656 | W127: 1774 | X127: 2416 | Z127: 285 | AA127: 305 | AB127: 416 | AD127: 0.4393385565 | AE127: 0.5025210132 | AF127: 0.9296560572 | AG127: 0.0001276 | AH127: 1.7219 | AI127: 4 | AJ127: 0.000514201 | AK127: 390.3496489 | AL127: 418.1974137 | AM127: 569.52 | AN127: 1 | AO127: 1 | AP127: 1 | AQ127: 440 | AR127: 471 | AS127: 641 | AT127: 189 | AU127: 203 | AV127: 276 | AW127: 0.1948097949 | AX127: 0.2244033392 | AY127: 0.4122814439 | AZ127: 1.3 | BA127: 7 | BB127: 7.7 | BC127: 10.7 | BE127: 2324 | BG127: 0.8 | BJ127: 0 | BK127: 11.3 | BL127: 13.2 | BM127: 21.85 | BO127: 1 | BP127: 1 | BQ127: 1 | BR127: 440 | BS127: 471 | BT127: 641 | BV127: 0 | BW127: 0 | BX127: 0 | BY127: 1
A128: 16521 | D128: 1 | E128: 65 | F128: 40.5 | G128: 21 | H128: 21.5 | I128: 0 | J128: 26 | K128: 30 | L128: 43.3 | M128: 2181.6 | N128: 3009.294765 | O128: 3223.979556 | P128: 4390.56 | Q128: N/A | R128: 1 | S128: 1 | T128: 1 | V128: 1656 | W128: 1774 | X128: 2416 | Z128: 285 | AA128: 305 | AB128: 416 | AD128: 0.4519924847 | AE128: 0.5167424636 | AF128: 0.9539246619 | AG128: 0.0001276 | AH128: 1.7219 | AI128: 4 | AJ128: 0.000514201 | AK128: =AK127*(1-(($E128-50)*0.005)) -> 361.0734253 | AL128: =AL127*(1-(($E128-50)*0.005)) -> 386.8326077 | AM128: =AM127*(1-(($E128-50)*0.005)) -> 526.806 | AN128: 1 | AO128: 1 | AP128: 1 | AQ128: 407 | AR128: 436 | AS128: 593 | AT128: 175 | AU128: 187 | AV128: 255 | AW128: 0.1727566605 | AX128: 0.1968766794 | AY128: 0.3629179317 | AZ128: 1.7 | BA128: 7 | BB128: 7.7 | BC128: 10.7 | BE128: 2727 | BG128: 0.8 | BJ128: 0 | BK128: 11.3 | BL128: 13.2 | BM128: 21.85 | BO128: 1 | BP128: 1 | BQ128: 1 | BR128: 407 | BS128: 436 | BT128: 593 | BV128: 0 | BW128: 0 | BX128: 0 | BY128: 1
A129: 19521 | D129: 1 | E129: 95 | F129: 40.5 | G129: 21 | H129: 21.5 | I129: 0 | J129: 26 | K129: 30 | L129: 43.3 | M129: 2822.4 | N129: 3009.294765 | O129: 3223.979556 | P129: 4390.56 | Q129: N/A | R129: 1 | S129: 1 | T129: 1 | V129: 1656 | W129: 1774 | X129: 2416 | Z129: 285 | AA129: 305 | AB129: 416 | AD129: 0.477300341 | AE129: 0.5451853646 | AF129: 1.002461871 | AG129: 0.0001276 | AH129: 1.7219 | AI129: 4 | AJ129: 0.000514201 | AK129: =AK127*(1-(($E129-50)*0.005)) -> 302.5209779 | AL129: =AL127*(1-(($E129-50)*0.005)) -> 324.1029956 | AM129: =AM127*(1-(($E129-50)*0.005)) -> 441.378 | AN129: 1 | AO129: 1 | AP129: 1 | AQ129: 341 | AR129: 365 | AS129: 497 | AT129: 147 | AU129: 157 | AV129: 214 | AW129: 0.1306372258 | AX129: 0.1485656793 | AY129: 0.2722894145 | AZ129: 2.5 | BA129: 7 | BB129: 7.7 | BC129: 10.7 | BE129: 3528 | BG129: 0.8 | BJ129: 0 | BK129: 11.3 | BL129: 13.2 | BM129: 21.85 | BO129: 1 | BP129: 1 | BQ129: 1 | BR129: 341 | BS129: 365 | BT129: 497 | BV129: 0 | BW129: 0 | BX129: 0 | BY129: 1
A130: 13510 | D130: 1 | E130: 35 | F130: 40.5 | G130: 10 | H130: 11.5 | I130: 0 | J130: 26 | K130: 30 | L130: 43 | M130: 808.2 | N130: 1574.390548 | O130: 1696.126576 | P130: 2081.98 | Q130: N/A | R130: 1 | S130: 1 | T130: 1 | V130: 866 | W130: 933 | X130: 1146 | Z130: 149 | AA130: 160 | AB130: 197 | AD130: 0.08935147695 | AE130: 0.1028277183 | AF130: 0.1550157379 | AG130: 0.0003969 | AH130: 1.7346 | AI130: 2 | AJ130: 0.000367347 | AK130: 218.2691897 | AL130: 235.146339 | AM130: 288.64 | AN130: 1 | AO130: 1 | AP130: 1 | AQ130: 246 | AR130: 265 | AS130: 325 | AT130: 106 | AU130: 114 | AV130: 140 | AW130: 0.04567236524 | AX130: 0.0527109242 | AY130: 0.07902211036 | AZ130: 0.2 | BA130: 7.8 | BB130: 8.7 | BC130: 12.2 | BE130: 898 | BG130: 0.9 | BJ130: 0 | BK130: 12.3 | BL130: 14.1 | BM130: 21.85 | BO130: 1 | BP130: 1 | BQ130: 1 | BR130: 246 | BS130: 265 | BT130: 325 | BV130: 0 | BW130: 0 | BX130: 0 | BY130: 1
A131: 15010 | D131: 1 | E131: 50 | F131: 40.5 | G131: 10 | H131: 11.5 | I131: 0 | J131: 26 | K131: 30 | L131: 43 | M131: 968.4 | N131: 1574.390548 | O131: 1696.126576 | P131: 2081.98 | Q131: N/A | R131: 1 | S131: 1 | T131: 1 | V131: 866 | W131: 933 | X131: 1146 | Z131: 149 | AA131: 160 | AB131: 197 | AD131: 0.09621642619 | AE131: 0.1105954631 | AF131: 0.1661589281 | AG131: 0.0003969 | AH131: 1.7346 | AI131: 2 | AJ131: 0.000367347 | AK131: 218.2691897 | AL131: 235.146339 | AM131: 288.64 | AN131: 1 | AO131: 1 | AP131: 1 | AQ131: 246 | AR131: 265 | AS131: 325 | AT131: 106 | AU131: 114 | AV131: 140 | AW131: 0.04947534473 | AX131: 0.05702547497 | AY131: 0.08518383264 | AZ131: 0.3 | BA131: 7.8 | BB131: 8.7 | BC131: 12.2 | BE131: 1076 | BG131: 0.9 | BJ131: 0 | BK131: 12.3 | BL131: 14.1 | BM131: 21.85 | BO131: 1 | BP131: 1 | BQ131: 1 | BR131: 246 | BS131: 265 | BT131: 325 | BV131: 0 | BW131: 0 | BX131: 0 | BY131: 1
A132: 16510 | D132: 1 | E132: 65 | F132: 40.5 | G132: 10 | H132: 11.5 | I132: 0 | J132: 26 | K132: 30 | L132: 43 | M132: 1089.9 | N132: 1574.390548 | O132: 1696.126576 | P132: 2081.98 | Q132: N/A | R132: 1 | S132: 1 | T132: 1 | V132: 866 | W132: 933 | X132: 1146 | Z132: 149 | AA132: 160 | AB132: 197 | AD132: 0.1030813754 | AE132: 0.118363208 | AF132: 0.1773021184 | AG132: 0.0003969 | AH132: 1.7346 | AI132: 2 | AJ132: 0.000367347 | AK132: 218.2691897 | AL132: 235.146339 | AM132: 288.64 | AN132: 1 | AO132: 1 | AP132: 1 | AQ132: 246 | AR132: 265 | AS132: 325 | AT132: 106 | AU132: 114 | AV132: 140 | AW132: 0.05327832422 | AX132: 0.06134002575 | AY132: 0.09134555492 | AZ132: 0.4 | BA132: 7.8 | BB132: 8.7 | BC132: 12.2 | BE132: 1211 | BG132: 0.9 | BJ132: 0 | BK132: 12.3 | BL132: 14.1 | BM132: 21.85 | BO132: 1 | BP132: 1 | BQ132: 1 | BR132: 246 | BS132: 265 | BT132: 325 | BV132: 0 | BW132: 0 | BX132: 0 | BY132: 1
A133: 19510 | D133: 1 | E133: 95 | F133: 40.5 | G133: 10 | H133: 11.5 | I133: 0 | J133: 26 | K133: 30 | L133: 43 | M133: 1253.7 | N133: 1574.390548 | O133: 1696.126576 | P133: 2081.98 | Q133: N/A | R133: 1 | S133: 1 | T133: 1 | V133: 866 | W133: 933 | X133: 1146 | Z133: 149 | AA133: 160 | AB133: 197 | AD133: 0.1168112739 | AE133: 0.1338986976 | AF133: 0.1995884989 | AG133: 0.0003969 | AH133: 1.7346 | AI133: 2 | AJ133: 0.000367347 | AK133: 218.2691897 | AL133: 235.146339 | AM133: 288.64 | AN133: 1 | AO133: 1 | AP133: 1 | AQ133: 246 | AR133: 265 | AS133: 325 | AT133: 106 | AU133: 114 | AV133: 140 | AW133: 0.0608842832 | AX133: 0.0699691273 | AY133: 0.1036689995 | AZ133: 0.6 | BA133: 7.8 | BB133: 8.7 | BC133: 12.2 | BE133: 1393 | BG133: 0.9 | BJ133: 0 | BK133: 12.3 | BL133: 14.1 | BM133: 21.85 | BO133: 1 | BP133: 1 | BQ133: 1 | BR133: 246 | BS133: 265 | BT133: 325 | BV133: 0 | BW133: 0 | BX133: 0 | BY133: 1
A134: 13511 | D134: 1 | E134: 35 | F134: 40.5 | G134: 11 | H134: 11.5 | I134: 0 | J134: 26 | K134: 30 | L134: 43 | M134: 813.28 | N134: 2136.185678 | O134: 2301.361187 | P134: 2824.9 | Q134: N/A | R134: 1 | S134: 1 | T134: 1 | V134: 1176 | W134: 1267 | X134: 1555 | Z134: 202 | AA134: 218 | AB134: 267 | AD134: 0.2616124573 | AE134: 0.3039516968 | AF134: 0.4530794693 | AG134: 0.0003969 | AH134: 1.7346 | AI134: 4 | AJ134: 0.000574288 | AK134: 358 | AL134: 385 | AM134: 473 | AN134: 1 | AO134: 1 | AP134: 1 | AQ134: 403 | AR134: 434 | AS134: 533 | AT134: 173 | AU134: 187 | AV134: 229 | AW134: 0.1928725276 | AX134: 0.2247684831 | AY134: 0.334877032 | AZ134: 0.5 | BA134: 7.8 | BB134: 8.7 | BC134: 12.2 | BE134: 1196 | BG134: 0.68 | BJ134: 0 | BK134: 12.3 | BL134: 14.1 | BM134: 21.85 | BO134: 1 | BP134: 1 | BQ134: 1 | BR134: 403 | BS134: 434 | BT134: 533 | BV134: 0 | BW134: 0 | BX134: 0 | BY134: 1
A135: 15011 | D135: 1 | E135: 50 | F135: 40.5 | G135: 11 | H135: 11.5 | I135: 0 | J135: 26 | K135: 30 | L135: 43 | M135: 942.48 | N135: 2136.185678 | O135: 2301.361187 | P135: 2824.9 | Q135: N/A | R135: 1 | S135: 1 | T135: 1 | V135: 1176 | W135: 1267 | X135: 1555 | Z135: 202 | AA135: 218 | AB135: 267 | AD135: 0.2848891306 | AE135: 0.3305188524 | AF135: 0.4908440667 | AG135: 0.0003969 | AH135: 1.7346 | AI135: 4 | AJ135: 0.000574288 | AK135: 358 | AL135: 385 | AM135: 473 | AN135: 1 | AO135: 1 | AP135: 1 | AQ135: 403 | AR135: 434 | AS135: 533 | AT135: 173 | AU135: 187 | AV135: 229 | AW135: 0.2106624148 | AX135: 0.2451292848 | AY135: 0.3638124028 | AZ135: 0.7 | BA135: 7.8 | BB135: 8.7 | BC135: 12.2 | BE135: 1386 | BG135: 0.68 | BJ135: 0 | BK135: 12.3 | BL135: 14.1 | BM135: 21.85 | BO135: 1 | BP135: 1 | BQ135: 1 | BR135: 403 | BS135: 434 | BT135: 533 | BV135: 0 | BW135: 0 | BX135: 0 | BY135: 1
A136: 16511 | D136: 1 | E136: 65 | F136: 40.5 | G136: 11 | H136: 11.5 | I136: 0 | J136: 26 | K136: 30 | L136: 43 | M136: 1049.24 | N136: 2136.185678 | O136: 2301.361187 | P136: 2824.9 | Q136: N/A | R136: 1 | S136: 1 | T136: 1 | V136: 1176 | W136: 1267 | X136: 1555 | Z136: 202 | AA136: 218 | AB136: 267 | AD136: 0.3081658038 | AE136: 0.357086008 | AF136: 0.528608664 | AG136: 0.0003969 | AH136: 1.7346 | AI136: 4 | AJ136: 0.000574288 | AK136: =AK135*(1-(($E136-50)*0.005)) -> 331.15 | AL136: =AL135*(1-(($E136-50)*0.005)) -> 356.125 | AM136: =AM135*(1-(($E136-50)*0.005)) -> 437.525 | AN136: 1 | AO136: 1 | AP136: 1 | AQ136: 373 | AR136: 401 | AS136: 493 | AT136: 160 | AU136: 172 | AV136: 212 | AW136: 0.1964837586 | AX136: 0.2259102046 | AY136: 0.3383305014 | AZ136: 0.9 | BA136: 7.8 | BB136: 8.7 | BC136: 12.2 | BE136: 1543 | BG136: 0.68 | BJ136: 0 | BK136: 12.3 | BL136: 14.1 | BM136: 21.85 | BO136: 1 | BP136: 1 | BQ136: 1 | BR136: 373 | BS136: 401 | BT136: 493 | BV136: 0 | BW136: 0 | BX136: 0 | BY136: 1
A137: 19511 | D137: 1 | E137: 95 | F137: 40.5 | G137: 11 | H137: 11.5 | I137: 0 | J137: 26 | K137: 30 | L137: 43 | M137: 1221.28 | N137: 2136.185678 | O137: 2301.361187 | P137: 2824.9 | Q137: N/A | R137: 1 | S137: 1 | T137: 1 | V137: 1176 | W137: 1267 | X137: 1555 | Z137: 202 | AA137: 218 | AB137: 267 | AD137: 0.3547191504 | AE137: 0.4102203191 | AF137: 0.6041378588 | AG137: 0.0003969 | AH137: 1.7346 | AI137: 4 | AJ137: 0.000574288 | AK137: =AK135*(1-(($E137-50)*0.005)) -> 277.45 | AL137: =AL135*(1-(($E137-50)*0.005)) -> 298.375 | AM137: =AM135*(1-(($E137-50)*0.005)) -> 366.575 | AN137: 1 | AO137: 1 | AP137: 1 | AQ137: 312 | AR137: 336 | AS137: 413 | AT137: 134 | AU137: 144 | AV137: 178 | AW137: 0.1624298887 | AX137: 0.1862367643 | AY137: 0.278752258 | AZ137: 1.3 | BA137: 7.8 | BB137: 8.7 | BC137: 12.2 | BE137: 1796 | BG137: 0.68 | BJ137: 0 | BK137: 12.3 | BL137: 14.1 | BM137: 21.85 | BO137: 1 | BP137: 1 | BQ137: 1 | BR137: 312 | BS137: 336 | BT137: 413 | BV137: 0 | BW137: 0 | BX137: 0 | BY137: 1
A138: 13515 | D138: 1 | E138: 35 | F138: 40.5 | G138: 15 | H138: 16.5 | I138: 0 | J138: 26 | K138: 30 | L138: 44.1 | M138: 1176 | N138: 1798.773722 | O138: 1926.089172 | P138: 2655.16 | Q138: N/A | R138: 1 | S138: 1 | T138: 1 | V138: 990 | W138: 1060 | X138: 1461 | Z138: 170 | AA138: 182 | AB138: 251 | AD138: 0.1366890901 | AE138: 0.1565415569 | AF138: 0.2966683014 | AG138: 0.0002083 | AH138: 1.724 | AI138: 2 | AJ138: 0.000461829 | AK138: 245.5398348 | AL138: 262.9189049 | AM138: 362.44 | AN138: 1 | AO138: 1 | AP138: 1 | AQ138: 277 | AR138: 296 | AS138: 408 | AT138: 119 | AU138: 127 | AV138: 175 | AW138: 0.06727621723 | AX138: 0.07656125696 | AY138: 0.1447981322 | AZ138: 0.4 | BA138: 7 | BB138: 7.7 | BC138: 10.7 | BE138: 1470 | BG138: 0.8 | BJ138: 0 | BK138: 10.9 | BL138: 12.8 | BM138: 21.85 | BO138: 1 | BP138: 1 | BQ138: 1 | BR138: 277 | BS138: 296 | BT138: 408 | BV138: 0 | BW138: 0 | BX138: 0 | BY138: 1
A139: 15015 | D139: 1 | E139: 50 | F139: 40.5 | G139: 15 | H139: 16.5 | I139: 0 | J139: 26 | K139: 30 | L139: 44.1 | M139: 1387.2 | N139: 1798.773722 | O139: 1926.089172 | P139: 2655.16 | Q139: N/A | R139: 1 | S139: 1 | T139: 1 | V139: 990 | W139: 1060 | X139: 1461 | Z139: 170 | AA139: 182 | AB139: 251 | AD139: 0.1409778383 | AE139: 0.1613654722 | AF139: 0.3050643336 | AG139: 0.0002083 | AH139: 1.724 | AI139: 2 | AJ139: 0.000461829 | AK139: 245.5398348 | AL139: 262.9189049 | AM139: 362.44 | AN139: 1 | AO139: 1 | AP139: 1 | AQ139: 277 | AR139: 296 | AS139: 408 | AT139: 119 | AU139: 127 | AV139: 175 | AW139: 0.0695951041 | AX139: 0.07915540177 | AY139: 0.1493066542 | AZ139: 0.5 | BA139: 7 | BB139: 7.7 | BC139: 10.7 | BE139: 1734 | BG139: 0.8 | BJ139: 0 | BK139: 10.9 | BL139: 12.8 | BM139: 21.85 | BO139: 1 | BP139: 1 | BQ139: 1 | BR139: 277 | BS139: 296 | BT139: 408 | BV139: 0 | BW139: 0 | BX139: 0 | BY139: 1
A140: 16515 | D140: 1 | E140: 65 | F140: 40.5 | G140: 15 | H140: 16.5 | I140: 0 | J140: 26 | K140: 30 | L140: 44.1 | M140: 1537.6 | N140: 1798.773722 | O140: 1926.089172 | P140: 2655.16 | Q140: N/A | R140: 1 | S140: 1 | T140: 1 | V140: 990 | W140: 1060 | X140: 1461 | Z140: 170 | AA140: 182 | AB140: 251 | AD140: 0.1452665864 | AE140: 0.1661893875 | AF140: 0.3134603659 | AG140: 0.0002083 | AH140: 1.724 | AI140: 2 | AJ140: 0.000461829 | AK140: 245.5398348 | AL140: 262.9189049 | AM140: 362.44 | AN140: 1 | AO140: 1 | AP140: 1 | AQ140: 277 | AR140: 296 | AS140: 408 | AT140: 119 | AU140: 127 | AV140: 175 | AW140: 0.07191399098 | AX140: 0.08174954658 | AY140: 0.1538151763 | AZ140: 0.7 | BA140: 7 | BB140: 7.7 | BC140: 10.7 | BE140: 1922 | BG140: 0.8 | BJ140: 0 | BK140: 10.9 | BL140: 12.8 | BM140: 21.85 | BO140: 1 | BP140: 1 | BQ140: 1 | BR140: 277 | BS140: 296 | BT140: 408 | BV140: 0 | BW140: 0 | BX140: 0 | BY140: 1
A141: 19515 | D141: 1 | E141: 95 | F141: 40.5 | G141: 15 | H141: 16.5 | I141: 0 | J141: 26 | K141: 30 | L141: 44.1 | M141: 1703.773722 | N141: 1798.773722 | O141: 1926.089172 | P141: 2655.16 | Q141: N/A | R141: 1 | S141: 1 | T141: 1 | V141: 990 | W141: 1060 | X141: 1461 | Z141: 170 | AA141: 182 | AB141: 251 | AD141: 0.1538440826 | AE141: 0.1758372181 | AF141: 0.3302524303 | AG141: 0.0002083 | AH141: 1.724 | AI141: 2 | AJ141: 0.000461829 | AK141: 245.5398348 | AL141: 262.9189049 | AM141: 362.44 | AN141: 1 | AO141: 1 | AP141: 1 | AQ141: 277 | AR141: 296 | AS141: 408 | AT141: 119 | AU141: 127 | AV141: 175 | AW141: 0.07655176472 | AX141: 0.08693783619 | AY141: 0.1628322203 | AZ141: 1 | BA141: 7 | BB141: 7.7 | BC141: 10.7 | BE141: 2146 | BG141: 0.8 | BJ141: 0 | BK141: 10.9 | BL141: 12.8 | BM141: 21.85 | BO141: 1 | BP141: 1 | BQ141: 1 | BR141: 277 | BS141: 296 | BT141: 408 | BV141: 0 | BW141: 0 | BX141: 0 | BY141: 1
A142: 13516 | D142: 1 | E142: 35 | F142: 40.5 | G142: 16 | H142: 16.5 | I142: 0 | J142: 26 | K142: 30 | L142: 44.1 | M142: 1083.24 | N142: 2630.387145 | O142: 2816.563381 | P142: 3882.7 | Q142: N/A | R142: 1 | S142: 1 | T142: 1 | V142: 1448 | W142: 1550 | X142: 2137 | Z142: 249 | AA142: 267 | AB142: 368 | AD142: 0.8690217237 | AE142: 0.9987057131 | AF142: 1.893059467 | AG142: 0.0002083 | AH142: 1.724 | AI142: 4 | AJ142: 0.001392796 | AK142: 403 | AL142: 431 | AM142: 595 | AN142: 1 | AO142: 1 | AP142: 1 | AQ142: 454 | AR142: 485 | AS142: 670 | AT142: 195 | AU142: 209 | AV142: 288 | AW142: 0.5339416746 | AX142: 0.6130374921 | AY142: 1.16136633 | AZ142: 0.7 | BA142: 7 | BB142: 7.7 | BC142: 10.7 | BE142: 1593 | BG142: 0.68 | BJ142: 0 | BK142: 10.9 | BL142: 12.8 | BM142: 21.85 | BO142: 1 | BP142: 1 | BQ142: 1 | BR142: 454 | BS142: 485 | BT142: 670 | BV142: 0 | BW142: 0 | BX142: 0 | BY142: 1
A143: 15016 | D143: 1 | E143: 50 | F143: 40.5 | G143: 16 | H143: 16.5 | I143: 0 | J143: 26 | K143: 30 | L143: 44.1 | M143: 1290.64 | N143: 2630.387145 | O143: 2816.563381 | P143: 3882.7 | Q143: N/A | R143: 1 | S143: 1 | T143: 1 | V143: 1448 | W143: 1550 | X143: 2137 | Z143: 249 | AA143: 267 | AB143: 368 | AD143: 0.8855837805 | AE143: 1.017385504 | AF143: 1.925537389 | AG143: 0.0002083 | AH143: 1.724 | AI143: 4 | AJ143: 0.001392796 | AK143: 403 | AL143: 431 | AM143: 595 | AN143: 1 | AO143: 1 | AP143: 1 | AQ143: 454 | AR143: 485 | AS143: 670 | AT143: 195 | AU143: 209 | AV143: 288 | AW143: 0.5448080891 | AX143: 0.6252836201 | AY143: 1.182650624 | AZ143: 1 | BA143: 7 | BB143: 7.7 | BC143: 10.7 | BE143: 1898 | BG143: 0.68 | BJ143: 0 | BK143: 10.9 | BL143: 12.8 | BM143: 21.85 | BO143: 1 | BP143: 1 | BQ143: 1 | BR143: 454 | BS143: 485 | BT143: 670 | BV143: 0 | BW143: 0 | BX143: 0 | BY143: 1
A144: 16516 | D144: 1 | E144: 65 | F144: 40.5 | G144: 16 | H144: 16.5 | I144: 0 | J144: 26 | K144: 30 | L144: 44.1 | M144: 1477.64 | N144: 2630.387145 | O144: 2816.563381 | P144: 3882.7 | Q144: N/A | R144: 1 | S144: 1 | T144: 1 | V144: 1448 | W144: 1550 | X144: 2137 | Z144: 249 | AA144: 267 | AB144: 368 | AD144: 0.9021458374 | AE144: 1.036065295 | AF144: 1.958015311 | AG144: 0.0002083 | AH144: 1.724 | AI144: 4 | AJ144: 0.001392796 | AK144: =AK143*(1-(($E144-50)*0.005)) -> 372.775 | AL144: =AL143*(1-(($E144-50)*0.005)) -> 398.675 | AM144: =AM143*(1-(($E144-50)*0.005)) -> 550.375 | AN144: 1 | AO144: 1 | AP144: 1 | AQ144: 420 | AR144: 449 | AS144: 620 | AT144: 181 | AU144: 193 | AV144: 267 | AW144: 0.4794056949 | AX144: 0.5444368234 | AY144: 1.036065295 | AZ144: 1.3 | BA144: 7 | BB144: 7.7 | BC144: 10.7 | BE144: 2173 | BG144: 0.68 | BJ144: 0 | BK144: 10.9 | BL144: 12.8 | BM144: 21.85 | BO144: 1 | BP144: 1 | BQ144: 1 | BR144: 420 | BS144: 449 | BT144: 620 | BV144: 0 | BW144: 0 | BX144: 0 | BY144: 1
A145: 19516 | D145: 1 | E145: 95 | F145: 40.5 | G145: 16 | H145: 16.5 | I145: 0 | J145: 26 | K145: 30 | L145: 44.1 | M145: 1820.36 | N145: 2630.387145 | O145: 2816.563381 | P145: 3882.7 | Q145: N/A | R145: 1 | S145: 1 | T145: 1 | V145: 1448 | W145: 1550 | X145: 2137 | Z145: 249 | AA145: 267 | AB145: 368 | AD145: 0.935269951 | AE145: 1.073424877 | AF145: 2.022971155 | AG145: 0.0002083 | AH145: 1.724 | AI145: 4 | AJ145: 0.001392796 | AK145: =AK143*(1-(($E145-50)*0.005)) -> 312.325 | AL145: =AL143*(1-(($E145-50)*0.005)) -> 334.025 | AM145: =AM143*(1-(($E145-50)*0.005)) -> 461.125 | AN145: 1 | AO145: 1 | AP145: 1 | AQ145: 352 | AR145: 376 | AS145: 519 | AT145: 151 | AU145: 162 | AV145: 223 | AW145: 0.3487921885 | AX145: 0.400629366 | AY145: 0.7523558268 | AZ145: 1.9 | BA145: 7 | BB145: 7.7 | BC145: 10.7 | BE145: 2677 | BG145: 0.68 | BJ145: 0 | BK145: 10.9 | BL145: 12.8 | BM145: 21.85 | BO145: 1 | BP145: 1 | BQ145: 1 | BR145: 352 | BS145: 376 | BT145: 519 | BV145: 0 | BW145: 0 | BX145: 0 | BY145: 1
A146: 13520 | D146: 1 | E146: 35 | F146: 40.5 | G146: 20 | H146: 21.5 | I146: 0 | J146: 26 | K146: 30 | L146: 44.1 | M146: 1648 | N146: 2518.776843 | O146: 2713.53531 | P146: 3330.84 | Q146: N/A | R146: 1 | S146: 1 | T146: 1 | V146: 1386 | W146: 1493 | X146: 1833 | Z146: 238 | AA146: 257 | AB146: 315 | AD146: 0.2154318994 | AE146: 0.2510445745 | AF146: 0.3765416329 | AG146: 0.0001276 | AH146: 1.7219 | AI146: 2 | AJ146: 0.000376611 | AK146: 311.2816285 | AL146: 335.3507448 | AM146: 411.64 | AN146: 1 | AO146: 1 | AP146: 1 | AQ146: 351 | AR146: 378 | AS146: 464 | AT146: 151 | AU146: 163 | AV146: 200 | AW146: 0.08706406395 | AX146: 0.1013805542 | AY146: 0.1523534199 | AZ146: 0.5 | BA146: 7 | BB146: 7.7 | BC146: 10.7 | BE146: 2060 | BG146: 0.8 | BJ146: 0 | BK146: 10.9 | BL146: 12.8 | BM146: 21.85 | BO146: 1 | BP146: 1 | BQ146: 1 | BR146: 351 | BS146: 378 | BT146: 464 | BV146: 0 | BW146: 0 | BX146: 0 | BY146: 1
A147: 15020 | D147: 1 | E147: 50 | F147: 40.5 | G147: 20 | H147: 21.5 | I147: 0 | J147: 26 | K147: 30 | L147: 44.1 | M147: 1940 | N147: 2518.776843 | O147: 2713.53531 | P147: 3330.84 | Q147: N/A | R147: 1 | S147: 1 | T147: 1 | V147: 1386 | W147: 1493 | X147: 1833 | Z147: 238 | AA147: 257 | AB147: 315 | AD147: 0.2200709154 | AE147: 0.2563395243 | AF147: 0.384058536 | AG147: 0.0001276 | AH147: 1.7219 | AI147: 2 | AJ147: 0.000376611 | AK147: 311.2816285 | AL147: 335.3507448 | AM147: 411.64 | AN147: 1 | AO147: 1 | AP147: 1 | AQ147: 351 | AR147: 378 | AS147: 464 | AT147: 151 | AU147: 163 | AV147: 200 | AW147: 0.0891832955 | AX147: 0.1037980395 | AY147: 0.1557917024 | AZ147: 0.7 | BA147: 7 | BB147: 7.7 | BC147: 10.7 | BE147: 2425 | BG147: 0.8 | BJ147: 0 | BK147: 10.9 | BL147: 12.8 | BM147: 21.85 | BO147: 1 | BP147: 1 | BQ147: 1 | BR147: 351 | BS147: 378 | BT147: 464 | BV147: 0 | BW147: 0 | BX147: 0 | BY147: 1
A148: 16520 | D148: 1 | E148: 65 | F148: 40.5 | G148: 20 | H148: 21.5 | I148: 0 | J148: 26 | K148: 30 | L148: 44.1 | M148: 2148 | N148: 2518.776843 | O148: 2713.53531 | P148: 3330.84 | Q148: N/A | R148: 1 | S148: 1 | T148: 1 | V148: 1386 | W148: 1493 | X148: 1833 | Z148: 238 | AA148: 257 | AB148: 315 | AD148: 0.2247099313 | AE148: 0.2616344742 | AF148: 0.391575439 | AG148: 0.0001276 | AH148: 1.7219 | AI148: 2 | AJ148: 0.000376611 | AK148: 311.2816285 | AL148: 335.3507448 | AM148: 411.64 | AN148: 1 | AO148: 1 | AP148: 1 | AQ148: 351 | AR148: 378 | AS148: 464 | AT148: 151 | AU148: 163 | AV148: 200 | AW148: 0.09130252705 | AX148: 0.1062155248 | AY148: 0.1592299849 | AZ148: 0.9 | BA148: 7 | BB148: 7.7 | BC148: 10.7 | BE148: 2685 | BG148: 0.8 | BJ148: 0 | BK148: 10.9 | BL148: 12.8 | BM148: 21.85 | BO148: 1 | BP148: 1 | BQ148: 1 | BR148: 351 | BS148: 378 | BT148: 464 | BV148: 0 | BW148: 0 | BX148: 0 | BY148: 1
A149: 19520 | D149: 1 | E149: 95 | F149: 40.5 | G149: 20 | H149: 21.5 | I149: 0 | J149: 26 | K149: 30 | L149: 44.1 | M149: 2393.6 | N149: 2518.776843 | O149: 2713.53531 | P149: 3330.84 | Q149: N/A | R149: 1 | S149: 1 | T149: 1 | V149: 1386 | W149: 1493 | X149: 1833 | Z149: 238 | AA149: 257 | AB149: 315 | AD149: 0.2339879633 | AE149: 0.2722243738 | AF149: 0.406609245 | AG149: 0.0001276 | AH149: 1.7219 | AI149: 2 | AJ149: 0.000376611 | AK149: 311.2816285 | AL149: 335.3507448 | AM149: 411.64 | AN149: 1 | AO149: 1 | AP149: 1 | AQ149: 351 | AR149: 378 | AS149: 464 | AT149: 151 | AU149: 163 | AV149: 200 | AW149: 0.09554099014 | AX149: 0.1110504954 | AY149: 0.1661065499 | AZ149: 1.3 | BA149: 7 | BB149: 7.7 | BC149: 10.7 | BE149: 2992 | BG149: 0.8 | BJ149: 0 | BK149: 10.9 | BL149: 12.8 | BM149: 21.85 | BO149: 1 | BP149: 1 | BQ149: 1 | BR149: 351 | BS149: 378 | BT149: 464 | BV149: 0 | BW149: 0 | BX149: 0 | BY149: 1
A150: 13521 | D150: 1 | E150: 35 | F150: 40.5 | G150: 21 | H150: 21.5 | I150: 0 | J150: 26 | K150: 30 | L150: 44.1 | M150: 1691.2 | N150: 3387.560889 | O150: 3627.329144 | P150: 5000.36 | Q150: N/A | R150: 1 | S150: 1 | T150: 1 | V150: 1864 | W150: 1996 | X150: 2752 | Z150: 321 | AA150: 343 | AB150: 473 | AD150: 0.5405693333 | AE150: 0.6167603883 | AF150: 1.168984866 | AG150: 0.0001276 | AH150: 1.7219 | AI150: 4 | AJ150: 0.000514201 | AK150: 439.4163108 | AL150: 470.5177686 | AM150: 648.62 | AN150: 1 | AO150: 1 | AP150: 1 | AQ150: 495 | AR150: 530 | AS150: 730 | AT150: 213 | AU150: 228 | AV150: 314 | AW150: 0.2391475478 | AX150: 0.2737902141 | AY150: 0.5173756814 | AZ150: 0.9 | BA150: 7 | BB150: 7.7 | BC150: 10.7 | BE150: 2114 | BG150: 0.8 | BJ150: 0 | BK150: 10.9 | BL150: 12.8 | BM150: 21.85 | BO150: 1 | BP150: 1 | BQ150: 1 | BR150: 495 | BS150: 530 | BT150: 730 | BV150: 0 | BW150: 0 | BX150: 0 | BY150: 1
A151: 15021 | D151: 1 | E151: 50 | F151: 40.5 | G151: 21 | H151: 21.5 | I151: 0 | J151: 26 | K151: 30 | L151: 44.1 | M151: 2065.6 | N151: 3387.560889 | O151: 3627.329144 | P151: 5000.36 | Q151: N/A | R151: 1 | S151: 1 | T151: 1 | V151: 1864 | W151: 1996 | X151: 2752 | Z151: 321 | AA151: 343 | AB151: 473 | AD151: 0.5560996036 | AE151: 0.6341684712 | AF151: 1.199258977 | AG151: 0.0001276 | AH151: 1.7219 | AI151: 4 | AJ151: 0.000514201 | AK151: 439.4163108 | AL151: 470.5177686 | AM151: 648.62 | AN151: 1 | AO151: 1 | AP151: 1 | AQ151: 495 | AR151: 530 | AS151: 730 | AT151: 213 | AU151: 228 | AV151: 314 | AW151: 0.2468117127 | AX151: 0.2824072125 | AY151: 0.5323274016 | AZ151: 1.3 | BA151: 7 | BB151: 7.7 | BC151: 10.7 | BE151: 2582 | BG151: 0.8 | BJ151: 0 | BK151: 10.9 | BL151: 12.8 | BM151: 21.85 | BO151: 1 | BP151: 1 | BQ151: 1 | BR151: 495 | BS151: 530 | BT151: 730 | BV151: 0 | BW151: 0 | BX151: 0 | BY151: 1
A152: 16521 | D152: 1 | E152: 65 | F152: 40.5 | G152: 21 | H152: 21.5 | I152: 0 | J152: 26 | K152: 30 | L152: 44.1 | M152: 2424 | N152: 3387.560889 | O152: 3627.329144 | P152: 5000.36 | Q152: N/A | R152: 1 | S152: 1 | T152: 1 | V152: 1864 | W152: 1996 | X152: 2752 | Z152: 321 | AA152: 343 | AB152: 473 | AD152: 0.571629874 | AE152: 0.6515765541 | AF152: 1.229533088 | AG152: 0.0001276 | AH152: 1.7219 | AI152: 4 | AJ152: 0.000514201 | AK152: =AK151*(1-(($E152-50)*0.005)) -> 406.4600875 | AL152: =AL151*(1-(($E152-50)*0.005)) -> 435.228936 | AM152: =AM151*(1-(($E152-50)*0.005)) -> 599.9735 | AN152: 1 | AO152: 1 | AP152: 1 | AQ152: 458 | AR152: 490 | AS152: 676 | AT152: 197 | AU152: 211 | AV152: 291 | AW152: 0.2181661927 | AX152: 0.2497860736 | AY152: 0.4709669782 | AZ152: 1.7 | BA152: 7 | BB152: 7.7 | BC152: 10.7 | BE152: 3030 | BG152: 0.8 | BJ152: 0 | BK152: 10.9 | BL152: 12.8 | BM152: 21.85 | BO152: 1 | BP152: 1 | BQ152: 1 | BR152: 458 | BS152: 490 | BT152: 676 | BV152: 0 | BW152: 0 | BX152: 0 | BY152: 1
A153: 19521 | D153: 1 | E153: 95 | F153: 40.5 | G153: 21 | H153: 21.5 | I153: 0 | J153: 26 | K153: 30 | L153: 44.1 | M153: 3136 | N153: 3387.560889 | O153: 3627.329144 | P153: 5000.36 | Q153: N/A | R153: 1 | S153: 1 | T153: 1 | V153: 1864 | W153: 1996 | X153: 2752 | Z153: 321 | AA153: 343 | AB153: 473 | AD153: 0.6026904147 | AE153: 0.6863927198 | AF153: 1.29008131 | AG153: 0.0001276 | AH153: 1.7219 | AI153: 4 | AJ153: 0.000514201 | AK153: =AK151*(1-(($E153-50)*0.005)) -> 340.5476409 | AL153: =AL151*(1-(($E153-50)*0.005)) -> 364.6512707 | AM153: =AM151*(1-(($E153-50)*0.005)) -> 502.6805 | AN153: 1 | AO153: 1 | AP153: 1 | AQ153: 384 | AR153: 411 | AS153: 566 | AT153: 165 | AU153: 177 | AV153: 243 | AW153: 0.1637226279 | AX153: 0.187812506 | AY153: 0.3492289802 | AZ153: 2.5 | BA153: 7 | BB153: 7.7 | BC153: 10.7 | BE153: 3920 | BG153: 0.8 | BJ153: 0 | BK153: 10.9 | BL153: 12.8 | BM153: 21.85 | BO153: 1 | BP153: 1 | BQ153: 1 | BR153: 384 | BS153: 411 | BT153: 566 | BV153: 0 | BW153: 0 | BX153: 0 | BY153: 1
A154: 13510 | D154: 1 | E154: 35 | F154: 40.5 | G154: 10 | H154: 11.5 | I154: 0 | J154: 26 | K154: 30 | L154: 43.5 | M154: 889.2 | N154: 1766.389395 | O154: 1902.97128 | P154: 2335.88 | Q154: N/A | R154: 1 | S154: 1 | T154: 1 | V154: 972 | W154: 1047 | X154: 1286 | Y154: =ROUND(U154*3600/(4186*ABS($O$1-$O$2)),0) ->  | Z154: =ROUND(V154*3600/(4186*ABS($O$1-$O$2)),0) -> 167 | AA154: =ROUND(W154*3600/(4186*ABS($O$1-$O$2)),0) -> 180 | AB154: =ROUND(X154*3600/(4186*ABS($O$1-$O$2)),0) -> 221 | AD154: 0.1118906377 | AE154: 0.1297258134 | AF154: 0.1945080748 | AG154: 0.0003969 | AH154: 1.7346 | AI154: 2 | AJ154: 0.000367347 | AK154: 244.8873836 | AL154: 263.8227218 | AM154: 323.84 | AN154: 1 | AO154: 1 | AP154: 1 | AQ154: 276 | AR154: 297 | AS154: 365 | AT154: =ROUND(AQ154*3600/(4186*ABS($AM$1-$AM$2)),0) -> 119 | AU154: =ROUND(AR154*3600/(4186*ABS($AM$1-$AM$2)),0) -> 128 | AV154: =ROUND(AS154*3600/(4186*ABS($AM$1-$AM$2)),0) -> 157 | AW154: 0.05736295104 | AX154: 0.06622628244 | AY154: 0.09905955742 | AZ154: 0.2 | BA154: 8.4 | BB154: 9.3 | BC154: 14 | BE154: 988 | BG154: 0.9 | BJ154: 0 | BK154: 12 | BL154: 13.9 | BM154: 21.85 | BO154: 1 | BP154: 1 | BQ154: 1 | BR154: 276 | BS154: 297 | BT154: 365 | BV154: 0 | BW154: 0 | BX154: 0 | BY154: 1
A155: 15010 | D155: 1 | E155: 50 | F155: 40.5 | G155: 10 | H155: 11.5 | I155: 0 | J155: 26 | K155: 30 | L155: 43.5 | M155: 1065.6 | N155: 1766.389395 | O155: 1902.97128 | P155: 2335.88 | Q155: N/A | R155: 1 | S155: 1 | T155: 1 | V155: 972 | W155: 1047 | X155: 1286 | Z155: 167 | AA155: 180 | AB155: 221 | AD155: 0.1202573035 | AE155: 0.1392543042 | AF155: 0.2081103409 | AG155: 0.0003969 | AH155: 1.7346 | AI155: 2 | AJ155: 0.000367347 | AK155: 244.8873836 | AL155: 263.8227218 | AM155: 323.84 | AN155: 1 | AO155: 1 | AP155: 1 | AQ155: 276 | AR155: 297 | AS155: 365 | AT155: 119 | AU155: 128 | AV155: 157 | AW155: 0.06201101599 | AX155: 0.07150094695 | AY155: 0.1065764088 | AZ155: 0.3 | BA155: 8.4 | BB155: 9.3 | BC155: 14 | BE155: 1184 | BG155: 0.9 | BJ155: 0 | BK155: 12 | BL155: 13.9 | BM155: 21.85 | BO155: 1 | BP155: 1 | BQ155: 1 | BR155: 276 | BS155: 297 | BT155: 365 | BV155: 0 | BW155: 0 | BX155: 0 | BY155: 1
A156: 16510 | D156: 1 | E156: 65 | F156: 40.5 | G156: 10 | H156: 11.5 | I156: 0 | J156: 26 | K156: 30 | L156: 43.5 | M156: =IF($N156-($BE156*$BG156)>100,$BE156*$BG156,$N156-95) -> 1198.8 | N156: 1766.389395 | O156: 1902.97128 | P156: 2335.88 | Q156: N/A | R156: 1 | S156: 1 | T156: 1 | U156: =ROUND(M156*POWER(CF_heat,Q156),0) ->  | V156: =ROUND(N156*POWER(CF_heat,R156),0) -> 972 | W156: =ROUND(O156*POWER(CF_heat,S156),0) -> 1047 | X156: =ROUND(P156*POWER(CF_heat,T156),0) -> 1286 | Z156: 167 | AA156: 180 | AB156: 221 | AD156: 0.1286239693 | AE156: 0.1487827949 | AF156: 0.221712607 | AG156: =IF($G156=$CO$103,CP$103,IF($G156=$CO$104,CP$104,IF($G156=$CO$105,CP$105,IF($G156=$CO$107,CP$107,IF($G156=$CO$108,CP$108,IF($G156=$CO$109,CP$109,IF($G156=$CO$111,CP$111,IF($G156=$CO$112,CP$112,IF($G156=$CO$113,CP$113,IF($G156=$CO$115,CP$115,IF($G156=$CO$116,CP$116,IF($G156=$CO$117,CP$117,IF($G156=$CO$119,CP$119,IF($G156=$CO$120,CP$120,)))))))))))))) -> 0.0003969 | AH156: =IF($G156=$CO$103,CQ$103,IF($G156=$CO$104,CQ$104,IF($G156=$CO$105,CQ$105,IF($G156=$CO$107,CQ$107,IF($G156=$CO$108,CQ$108,IF($G156=$CO$109,CQ$109,IF($G156=$CO$111,CQ$111,IF($G156=$CO$112,CQ$112,IF($G156=$CO$113,CQ$113,IF($G156=$CO$115,CQ$115,IF($G156=$CO$116,CQ$116,IF($G156=$CO$117,CQ$117,IF($G156=$CO$119,CQ$119,IF($G156=$CO$120,CQ$120,)))))))))))))) -> 1.7346 | AI156: =IF($G156=$CO$103,CR$103,IF($G156=$CO$104,CR$104,IF($G156=$CO$105,CR$105,IF($G156=$CO$107,CR$107,IF($G156=$CO$108,CR$108,IF($G156=$CO$109,CR$109,IF($G156=$CO$111,CR$111,IF($G156=$CO$112,CR$112,IF($G156=$CO$113,CR$113,IF($G156=$CO$115,CR$115,IF($G156=$CO$116,CR$116,IF($G156=$CO$117,CR$117,IF($G156=$CO$119,CR$119,IF($G156=$CO$120,CR$120,)))))))))))))) -> 2 | AJ156: =IF($G156=$CO$103,CS$103,IF($G156=$CO$104,CS$104,IF($G156=$CO$105,CS$105,IF($G156=$CO$107,CS$107,IF($G156=$CO$108,CS$108,IF($G156=$CO$109,CS$109,IF($G156=$CO$111,CS$111,IF($G156=$CO$112,CS$112,IF($G156=$CO$113,CS$113,IF($G156=$CO$115,CS$115,IF($G156=$CO$116,CS$116,IF($G156=$CO$117,CS$117,IF($G156=$CO$119,CS$119,IF($G156=$CO$120,CS$120,)))))))))))))) -> 0.000367347 | AK156: 244.8873836 | AL156: 263.8227218 | AM156: 323.84 | AN156: 1 | AO156: 1 | AP156: 1 | AQ156: =ROUND(AK156*POWER(CF_cool,AN156),0) -> 276 | AR156: 297 | AS156: =ROUND(AM156*POWER(CF_cool,AP156),0) -> 365 | AT156: 119 | AU156: 128 | AV156: 157 | AW156: 0.06665908095 | AX156: 0.07677561147 | AY156: 0.1140932603 | AZ156: 0.4 | BA156: 8.4 | BB156: 9.3 | BC156: 14 | BE156: 1332 | BG156: =IF(G156=10,0.9,IF(G156=11,0.68,IF(G156=15,0.8,IF(G156=16,0.68,IF(G156=20,0.8,IF(G156=21,0.8)))))) -> 0.9 | BJ156: 0 | BK156: 12 | BL156: 13.9 | BM156: 21.85 | BO156: 1 | BP156: 1 | BQ156: 1 | BR156: =AQ156/BO156 -> 276 | BS156: 297 | BT156: 365 | BV156: =BR156-AQ156 -> 0 | BW156: =BS156-AR156 -> 0 | BX156: =BT156-AS156 -> 0 | BY156: 1
A157: =CONCATENATE(D157,E157,G157) -> 19510 | D157: 1 | E157: 95 | F157: 40.5 | G157: 10 | H157: 11.5 | I157: 0 | J157: 26 | K157: 30 | L157: 43.5 | M157: 1378.8 | N157: 1766.389395 | O157: 1902.97128 | P157: 2335.88 | Q157: N/A | R157: 1 | S157: 1 | T157: 1 | V157: 972 | W157: 1047 | X157: 1286 | Z157: 167 | AA157: 180 | AB157: 221 | AC157: =(($AG157*(Y157^$AH157)*((($F157-14.4)*$AI157)/100))+($AJ157*(Y157^2)))*0.0098 ->  | AD157: =(($AG157*(Z157^$AH157)*((($E157-14.4)*$AI157)/100))+($AJ157*(Z157^2)))*0.0098 -> 0.1453573008 | AE157: =(($AG157*(AA157^$AH157)*((($E157-14.4)*$AI157)/100))+($AJ157*(AA157^2)))*0.0098 -> 0.1678397764 | AF157: =(($AG157*(AB157^$AH157)*((($E157-14.4)*$AI157)/100))+($AJ157*(AB157^2)))*0.0098 -> 0.2489171392 | AG157: 0.0003969 | AH157: 1.7346 | AI157: 2 | AJ157: 0.000367347 | AK157: 244.8873836 | AL157: 263.8227218 | AM157: 323.84 | AN157: 1 | AO157: 1 | AP157: 1 | AQ157: 276 | AR157: 297 | AS157: 365 | AT157: 119 | AU157: 128 | AV157: 157 | AW157: =(($AG157*(AT157^$AH157)*((($E157-14.4)*$AI157)/100))+($AJ157*(AT157^2)))*0.0098 -> 0.07595521086 | AX157: =(($AG157*(AU157^$AH157)*((($E157-14.4)*$AI157)/100))+($AJ157*(AU157^2)))*0.0098 -> 0.08732494051 | AY157: =(($AG157*(AV157^$AH157)*((($E157-14.4)*$AI157)/100))+($AJ157*(AV157^2)))*0.0098 -> 0.1291269631 | AZ157: 0.6 | BA157: 8.4 | BB157: 9.3 | BC157: 14 | BE157: 1532 | BG157: 0.9 | BJ157: 0 | BK157: 12 | BL157: 13.9 | BM157: 21.85 | BO157: 1 | BP157: 1 | BQ157: 1 | BR157: 276 | BS157: =AR157/BP157 -> 297 | BT157: =AS157/BQ157 -> 365 | BV157: 0 | BW157: 0 | BX157: 0 | BY157: 1
A158: 13511 | D158: 1 | E158: 35 | F158: 40.5 | G158: 11 | H158: 11.5 | I158: 0 | J158: 26 | K158: 30 | L158: 43.5 | M158: 894.88 | N158: 2396.696126 | O158: 2582.014991 | P158: 3169.4 | Q158: N/A | R158: 1 | S158: 1 | T158: 1 | V158: 1319 | W158: 1421 | X158: 1744 | Z158: 227 | AA158: 244 | AB158: 300 | AD158: 0.3291442049 | AE158: 0.3794308856 | AF158: 0.5700037696 | AG158: 0.0003969 | AH158: 1.7346 | AI158: 4 | AJ158: 0.000574288 | AK158: 401.4205123 | AL158: 432.4594048 | AM158: 530.84 | AN158: 1 | AO158: 1 | AP158: 1 | AQ158: 452 | AR158: 487 | AS158: 598 | AT158: 194 | AU158: 209 | AV158: 257 | AW158: 0.2416189274 | AX158: 0.279750172 | AY158: 0.4202657668 | AZ158: 0.5 | BA158: 8.4 | BB158: 9.3 | BC158: 14 | BE158: 1316 | BG158: 0.68 | BJ158: 0 | BK158: 12 | BL158: 13.9 | BM158: 21.85 | BO158: =IF((237.3*LN(($AQ$1*EXP(17.27*($AM$3/($AM$3+237.3))))))/(17.27-LN(($AQ$1*EXP(17.27*($AM$3/($AM$3+237.3))))))<(($AM$1+$AM$2)/2),1,IF(1/(1+((2258*((0.622/((101325/(1*611*EXP(17.27*((($AM$1+$AM$2)/2)/((($AM$1+$AM$2)/2)+237.3))))))-1)*1000-(0.622/((101325/($AQ$1*611*EXP(17.27*($AM$3/($AM$3+237.3))))))-1)*1000))/(1005*((($AM$1+$AM$2)/2)-$AM$3))))>1,1,1/(1+((2258*((0.622/((101325/(1*611*EXP(17.27*((($AM$1+$AM$2)/2)/((($AM$1+$AM$2)/2)+237.3))))))-1)*1000-(0.622/((101325/($AQ$1*611*EXP(17.27*($AM$3/($AM$3+237.3))))))-1)*1000))/(1005*((($AM$1+$AM$2)/2)-$AM$3)))))) -> 1 | BP158: 1 | BQ158: 1 | BR158: 452 | BS158: 487 | BT158: 598 | BV158: 0 | BW158: 0 | BX158: 0 | BY158: 1
A159: 15011 | D159: 1 | E159: 50 | F159: 40.5 | G159: 11 | H159: 11.5 | I159: 0 | J159: 26 | K159: 30 | L159: 43.5 | M159: 1037 | N159: 2396.696126 | O159: 2582.014991 | P159: 3169.4 | Q159: N/A | R159: 1 | S159: 1 | T159: 1 | V159: 1319 | W159: 1421 | X159: 1744 | Z159: 227 | AA159: 244 | AB159: 300 | AD159: 0.3576426311 | AE159: 0.4117325438 | AF159: 0.6162283474 | AG159: 0.0003969 | AH159: 1.7346 | AI159: 4 | AJ159: 0.000574288 | AK159: 401.4205123 | AL159: 432.4594048 | AM159: 530.84 | AN159: 1 | AO159: 1 | AP159: 1 | AQ159: 452 | AR159: 487 | AS159: 598 | AT159: 194 | AU159: 209 | AV159: 257 | AW159: 0.2633199054 | AX159: 0.3044437586 | AY159: 0.4556108021 | AZ159: 0.7 | BA159: 8.4 | BB159: 9.3 | BC159: 14 | BE159: 1525 | BG159: 0.68 | BJ159: 0 | BK159: 12 | BL159: 13.9 | BM159: 21.85 | BO159: 1 | BP159: 1 | BQ159: 1 | BR159: 452 | BS159: 487 | BT159: 598 | BV159: 0 | BW159: 0 | BX159: 0 | BY159: 1
A160: 16511 | D160: 1 | E160: 65 | F160: 40.5 | G160: 11 | H160: 11.5 | I160: 0 | J160: 26 | K160: 30 | L160: 43.5 | M160: 1153.96 | N160: 2396.696126 | O160: 2582.014991 | P160: 3169.4 | Q160: N/A | R160: 1 | S160: 1 | T160: 1 | V160: 1319 | W160: 1421 | X160: 1744 | Z160: 227 | AA160: 244 | AB160: 300 | AD160: 0.3861410572 | AE160: 0.444034202 | AF160: 0.6624529252 | AG160: 0.0003969 | AH160: 1.7346 | AI160: 4 | AJ160: 0.000574288 | AK160: =AK159*(1-(($E160-50)*0.005)) -> 371.3139739 | AL160: =AL159*(1-(($E160-50)*0.005)) -> 400.0249494 | AM160: =AM159*(1-(($E160-50)*0.005)) -> 491.027 | AN160: 1 | AO160: 1 | AP160: 1 | AQ160: 418 | AR160: 451 | AS160: 553 | AT160: 180 | AU160: 194 | AV160: 238 | AW160: 0.2466334767 | AX160: 0.2850208833 | AY160: 0.4231522595 | AZ160: 0.9 | BA160: 8.4 | BB160: 9.3 | BC160: 14 | BE160: 1697 | BG160: 0.68 | BJ160: 0 | BK160: 12 | BL160: 13.9 | BM160: 21.85 | BO160: 1 | BP160: 1 | BQ160: 1 | BR160: 418 | BS160: 451 | BT160: 553 | BV160: 0 | BW160: 0 | BX160: 0 | BY160: 1
A161: 19511 | D161: 1 | E161: 95 | F161: 40.5 | G161: 11 | H161: 11.5 | I161: 0 | J161: 26 | K161: 30 | L161: 43.5 | M161: 1343.68 | N161: 2396.696126 | O161: 2582.014991 | P161: 3169.4 | Q161: N/A | R161: 1 | S161: 1 | T161: 1 | V161: 1319 | W161: 1421 | X161: 1744 | Z161: 227 | AA161: 244 | AB161: 300 | AD161: 0.4431379096 | AE161: 0.5086375185 | AF161: 0.7549020809 | AG161: 0.0003969 | AH161: 1.7346 | AI161: 4 | AJ161: 0.000574288 | AK161: =AK159*(1-(($E161-50)*0.005)) -> 311.1008971 | AL161: =AL159*(1-(($E161-50)*0.005)) -> 335.1560387 | AM161: =AM159*(1-(($E161-50)*0.005)) -> 411.401 | AN161: 1 | AO161: 1 | AP161: 1 | AQ161: 350 | AR161: 377 | AS161: 463 | AT161: 151 | AU161: 162 | AV161: 199 | AW161: 0.2038260458 | AX161: 0.2329974834 | AY161: 0.3447441766 | AZ161: 1.3 | BA161: 8.4 | BB161: 9.3 | BC161: 14 | BE161: 1976 | BG161: 0.68 | BJ161: 0 | BK161: 12 | BL161: 13.9 | BM161: 21.85 | BO161: 1 | BP161: 1 | BQ161: 1 | BR161: 350 | BS161: 377 | BT161: 463 | BV161: 0 | BW161: 0 | BX161: 0 | BY161: 1
A162: 13515 | D162: 1 | E162: 35 | F162: 40.5 | G162: 15 | H162: 16.5 | I162: 0 | J162: 26 | K162: 30 | L162: 44.1 | M162: 1293.6 | N162: 1908.150188 | O162: 2043.207197 | P162: 2816.61 | Q162: N/A | R162: 1 | S162: 1 | T162: 1 | V162: 1050 | W162: 1124 | X162: 1550 | Z162: 181 | AA162: 193 | AB162: 267 | AD162: 0.1548360173 | AE162: 0.175916309 | AF162: 0.3354754 | AG162: 0.0002083 | AH162: 1.724 | AI162: 2 | AJ162: 0.000461829 | AK162: 249.8078543 | AL162: 267.4890105 | AM162: 368.74 | AN162: 1 | AO162: 1 | AP162: 1 | AQ162: 281 | AR162: 301 | AS162: 415 | AT162: 121 | AU162: 129 | AV162: 178 | AW162: 0.06954149463 | AX162: 0.07897580464 | AY162: 0.1497752111 | AZ162: 0.4 | BA162: 7.9 | BB162: 8.8 | BC162: 12.5 | BE162: 1617 | BG162: 0.8 | BJ162: 0 | BK162: 10.9 | BL162: 12.8 | BM162: 21.85 | BO162: 1 | BP162: 1 | BQ162: 1 | BR162: 281 | BS162: 301 | BT162: 415 | BV162: 0 | BW162: 0 | BX162: 0 | BY162: 1
A163: 15015 | D163: 1 | E163: 50 | F163: 40.5 | G163: 15 | H163: 16.5 | I163: 0 | J163: 26 | K163: 30 | L163: 44.1 | M163: 1525.6 | N163: 1908.150188 | O163: 2043.207197 | P163: 2816.61 | Q163: N/A | R163: 1 | S163: 1 | T163: 1 | V163: 1050 | W163: 1124 | X163: 1550 | Z163: 181 | AA163: 193 | AB163: 267 | AD163: 0.1596143288 | AE163: 0.181253803 | AF163: 0.3448152955 | AG163: 0.0002083 | AH163: 1.724 | AI163: 2 | AJ163: 0.000461829 | AK163: 249.8078543 | AL163: 267.4890105 | AM163: 368.74 | AN163: 1 | AO163: 1 | AP163: 1 | AQ163: 281 | AR163: 301 | AS163: 415 | AT163: 121 | AU163: 129 | AV163: 178 | AW163: 0.07192797891 | AX163: 0.08164078038 | AY163: 0.1544178049 | AZ163: 0.5 | BA163: 7.9 | BB163: 8.8 | BC163: 12.5 | BE163: 1907 | BG163: 0.8 | BJ163: 0 | BK163: 10.9 | BL163: 12.8 | BM163: 21.85 | BO163: 1 | BP163: 1 | BQ163: 1 | BR163: 281 | BS163: 301 | BT163: 415 | BV163: 0 | BW163: 0 | BX163: 0 | BY163: 1
A164: 16515 | D164: 1 | E164: 65 | F164: 40.5 | G164: 15 | H164: 16.5 | I164: 0 | J164: 26 | K164: 30 | L164: 44.1 | M164: 1691.2 | N164: 1908.150188 | O164: 2043.207197 | P164: 2816.61 | Q164: N/A | R164: 1 | S164: 1 | T164: 1 | V164: 1050 | W164: 1124 | X164: 1550 | Z164: 181 | AA164: 193 | AB164: 267 | AD164: 0.1643926404 | AE164: 0.186591297 | AF164: 0.354155191 | AG164: 0.0002083 | AH164: 1.724 | AI164: 2 | AJ164: 0.000461829 | AK164: 249.8078543 | AL164: 267.4890105 | AM164: 368.74 | AN164: 1 | AO164: 1 | AP164: 1 | AQ164: 281 | AR164: 301 | AS164: 415 | AT164: 121 | AU164: 129 | AV164: 178 | AW164: 0.0743144632 | AX164: 0.08430575613 | AY164: 0.1590603987 | AZ164: 0.7 | BA164: 7.9 | BB164: 8.8 | BC164: 12.5 | BE164: 2114 | BG164: 0.8 | BJ164: 0 | BK164: 10.9 | BL164: 12.8 | BM164: 21.85 | BO164: 1 | BP164: 1 | BQ164: 1 | BR164: 281 | BS164: 301 | BT164: 415 | BV164: 0 | BW164: 0 | BX164: 0 | BY164: 1
A165: 19515 | D165: 1 | E165: 95 | F165: 40.5 | G165: 15 | H165: 16.5 | I165: 0 | J165: 26 | K165: 30 | L165: 44.1 | M165: 1813.150188 | N165: 1908.150188 | O165: 2043.207197 | P165: 2816.61 | Q165: N/A | R165: 1 | S165: 1 | T165: 1 | V165: 1050 | W165: 1124 | X165: 1550 | Z165: 181 | AA165: 193 | AB165: 267 | AD165: 0.1739492635 | AE165: 0.197266285 | AF165: 0.3728349819 | AG165: 0.0002083 | AH165: 1.724 | AI165: 2 | AJ165: 0.000461829 | AK165: 249.8078543 | AL165: 267.4890105 | AM165: 368.74 | AN165: 1 | AO165: 1 | AP165: 1 | AQ165: 281 | AR165: 301 | AS165: 415 | AT165: 121 | AU165: 129 | AV165: 178 | AW165: 0.07908743177 | AX165: 0.08963570762 | AY165: 0.1683455862 | AZ165: 1 | BA165: 7.9 | BB165: 8.8 | BC165: 12.5 | BE165: 2361 | BG165: 0.8 | BJ165: 0 | BK165: 10.9 | BL165: 12.8 | BM165: 21.85 | BO165: 1 | BP165: 1 | BQ165: 1 | BR165: 281 | BS165: 301 | BT165: 415 | BV165: 0 | BW165: 0 | BX165: 0 | BY165: 1
A166: 13516 | D166: 1 | E166: 35 | F166: 40.5 | G166: 16 | H166: 16.5 | I166: 0 | J166: 26 | K166: 30 | L166: 44.1 | M166: 1191.36 | N166: 2849.749794 | O166: 3051.452305 | P166: 4206.5 | Q166: N/A | R166: 1 | S166: 1 | T166: 1 | V166: 1568 | W166: 1679 | X166: 2315 | Z166: 270 | AA166: 289 | AB166: 398 | AD166: 1.021193847 | AE166: 1.169417231 | AF166: 2.213175001 | AG166: 0.0002083 | AH166: 1.724 | AI166: 4 | AJ166: 0.001392796 | AK166: 407.8329671 | AL166: 436.6989867 | AM166: 602 | AN166: 1 | AO166: 1 | AP166: 1 | AQ166: 459 | AR166: 492 | AS166: 678 | AT166: 197 | AU166: 212 | AV166: 292 | AW166: 0.5449076566 | AX166: 0.6306950306 | AY166: 1.193736361 | AZ166: 0.7 | BA166: 7.9 | BB166: 8.8 | BC166: 12.5 | BE166: 1752 | BG166: 0.68 | BJ166: 0 | BK166: 10.9 | BL166: 12.8 | BM166: 21.85 | BO166: 1 | BP166: 1 | BQ166: 1 | BR166: 459 | BS166: 492 | BT166: 678 | BV166: 0 | BW166: 0 | BX166: 0 | BY166: 1
A167: 15016 | D167: 1 | E167: 50 | F167: 40.5 | G167: 16 | H167: 16.5 | I167: 0 | J167: 26 | K167: 30 | L167: 44.1 | M167: 1419.84 | N167: 2849.749794 | O167: 3051.452305 | P167: 4206.5 | Q167: N/A | R167: 1 | S167: 1 | T167: 1 | V167: 1568 | W167: 1679 | X167: 2315 | Z167: 270 | AA167: 289 | AB167: 398 | AD167: 1.04023695 | AE167: 1.190829095 | AF167: 2.250351202 | AG167: 0.0002083 | AH167: 1.724 | AI167: 4 | AJ167: 0.001392796 | AK167: 407.8329671 | AL167: 436.6989867 | AM167: 602 | AN167: 1 | AO167: 1 | AP167: 1 | AQ167: 459 | AR167: 492 | AS167: 678 | AT167: 197 | AU167: 212 | AV167: 292 | AW167: 0.5559669243 | AX167: 0.6432457789 | AY167: 1.215532854 | AZ167: =ROUND(IF(G167=10,$CO$92*E167,IF(G167=11,$CO$93*E167,IF(G167=15,$CO$94*E167,IF(G167=16,$CO$95*E167,IF(G167=20,$CO$96*E167,IF(G167=21,$CO$97*E167,)))))),1) -> 1 | BA167: 7.9 | BB167: 8.8 | BC167: 12.5 | BE167: 2088 | BG167: 0.68 | BJ167: 0 | BK167: 10.9 | BL167: 12.8 | BM167: 21.85 | BO167: 1 | BP167: 1 | BQ167: 1 | BR167: 459 | BS167: 492 | BT167: 678 | BV167: 0 | BW167: 0 | BX167: 0 | BY167: 1
A168: 16516 | D168: 1 | E168: 65 | F168: 40.5 | G168: 16 | H168: 16.5 | I168: 0 | J168: 26 | K168: 30 | L168: 44.1 | M168: 1625.2 | N168: 2849.749794 | O168: 3051.452305 | P168: 4206.5 | Q168: N/A | R168: 1 | S168: 1 | T168: 1 | V168: 1568 | W168: 1679 | X168: 2315 | Z168: 270 | AA168: 289 | AB168: 398 | AD168: 1.059280054 | AE168: 1.212240959 | AF168: 2.287527404 | AG168: 0.0002083 | AH168: 1.724 | AI168: 4 | AJ168: 0.001392796 | AK168: =AK167*(1-(($E168-50)*0.005)) -> 377.2454945 | AL168: =AL167*(1-(($E168-50)*0.005)) -> 403.9465627 | AM168: =AM167*(1-(($E168-50)*0.005)) -> 556.85 | AN168: 1 | AO168: 1 | AP168: 1 | AQ168: 425 | AR168: 455 | AS168: 627 | AT168: 183 | AU168: 196 | AV168: 270 | AW168: 0.4899590315 | AX168: 0.5613360976 | AY168: 1.059280054 | AZ168: 1.3 | BA168: 7.9 | BB168: 8.8 | BC168: 12.5 | BE168: 2390 | BG168: 0.68 | BJ168: 0 | BK168: 10.9 | BL168: 12.8 | BM168: 21.85 | BO168: 1 | BP168: 1 | BQ168: 1 | BR168: 425 | BS168: 455 | BT168: 627 | BV168: 0 | BW168: 0 | BX168: 0 | BY168: 1
A169: 19516 | D169: 1 | E169: 95 | F169: 40.5 | G169: 16 | H169: 16.5 | I169: 0 | J169: 26 | K169: 30 | L169: 44.1 | M169: 2002.6 | N169: 2849.749794 | O169: 3051.452305 | P169: 4206.5 | Q169: N/A | R169: 1 | S169: 1 | T169: 1 | V169: 1568 | W169: 1679 | X169: 2315 | Z169: 270 | AA169: 289 | AB169: 398 | AD169: 1.097366261 | AE169: 1.255064687 | AF169: 2.361879807 | AG169: 0.0002083 | AH169: 1.724 | AI169: 4 | AJ169: 0.001392796 | AK169: =AK167*(1-(($E169-50)*0.005)) -> 316.0705495 | AL169: =AL167*(1-(($E169-50)*0.005)) -> 338.4417147 | AM169: =AM167*(1-(($E169-50)*0.005)) -> 466.55 | AN169: 1 | AO169: 1 | AP169: 1 | AQ169: 356 | AR169: 381 | AS169: 525 | AT169: 153 | AU169: 164 | AV169: 226 | AW169: 0.3579530729 | AX169: 0.4104355532 | AY169: 0.7724565095 | AZ169: 1.9 | BA169: 7.9 | BB169: 8.8 | BC169: 12.5 | BE169: 2945 | BG169: 0.68 | BJ169: 0 | BK169: 10.9 | BL169: 12.8 | BM169: 21.85 | BO169: 1 | BP169: 1 | BQ169: 1 | BR169: 356 | BS169: 381 | BT169: 525 | BV169: 0 | BW169: 0 | BX169: 0 | BY169: 1
A170: 13520 | D170: 1 | E170: 35 | F170: 40.5 | G170: 20 | H170: 21.5 | I170: 0 | J170: 26 | K170: 30 | L170: 44.1 | M170: 1812.8 | N170: 2692.551302 | O170: 2900.746468 | P170: 3560.64 | Q170: N/A | R170: 1 | S170: 1 | T170: 1 | V170: 1482 | W170: 1596 | X170: 1960 | Z170: 255 | AA170: 275 | AB170: 337 | AD170: 0.2471680405 | AE170: 0.2872865587 | AF170: 0.4307548577 | AG170: 0.0001276 | AH170: 1.7219 | AI170: 2 | AJ170: 0.000376611 | AK170: 317.1799783 | AL170: 341.7051706 | AM170: 419.44 | AN170: 1 | AO170: 1 | AP170: 1 | AQ170: 357 | AR170: 385 | AS170: 472 | AT170: 154 | AU170: 166 | AV170: 203 | AW170: 0.09054141246 | AX170: 0.1051292754 | AY170: 0.1569382016 | AZ170: 0.5 | BA170: 7.9 | BB170: 8.8 | BC170: 12.5 | BE170: 2266 | BG170: 0.8 | BJ170: 0 | BK170: 10.9 | BL170: 12.8 | BM170: 21.85 | BO170: 1 | BP170: 1 | BQ170: 1 | BR170: 357 | BS170: 385 | BT170: 472 | BV170: 0 | BW170: 0 | BX170: 0 | BY170: 1
A171: 15020 | D171: 1 | E171: 50 | F171: 40.5 | G171: 20 | H171: 21.5 | I171: 0 | J171: 26 | K171: 30 | L171: 44.1 | M171: 2134.4 | N171: 2692.551302 | O171: 2900.746468 | P171: 3560.64 | Q171: N/A | R171: 1 | S171: 1 | T171: 1 | V171: 1482 | W171: 1596 | X171: 1960 | Z171: 255 | AA171: 275 | AB171: 337 | AD171: 0.2523922375 | AE171: 0.2932361204 | AF171: 0.4391983853 | AG171: 0.0001276 | AH171: 1.7219 | AI171: 2 | AJ171: 0.000376611 | AK171: 317.1799783 | AL171: 341.7051706 | AM171: 419.44 | AN171: 1 | AO171: 1 | AP171: 1 | AQ171: 357 | AR171: 385 | AS171: 472 | AT171: 154 | AU171: 166 | AV171: 203 | AW171: 0.09273366173 | AX171: 0.1076238824 | AY171: 0.1604657699 | AZ171: 0.7 | BA171: 7.9 | BB171: 8.8 | BC171: 12.5 | BE171: 2668 | BG171: 0.8 | BJ171: 0 | BK171: 10.9 | BL171: 12.8 | BM171: 21.85 | BO171: 1 | BP171: 1 | BQ171: 1 | BR171: 357 | BS171: 385 | BT171: 472 | BV171: 0 | BW171: 0 | BX171: 0 | BY171: 1
A172: 16520 | D172: 1 | E172: 65 | F172: 40.5 | G172: 20 | H172: 21.5 | I172: 0 | J172: 26 | K172: 30 | L172: 44.1 | M172: 2363.2 | N172: 2692.551302 | O172: 2900.746468 | P172: 3560.64 | Q172: N/A | R172: 1 | S172: 1 | T172: 1 | V172: 1482 | W172: 1596 | X172: 1960 | Z172: 255 | AA172: 275 | AB172: 337 | AD172: 0.2576164344 | AE172: 0.2991856821 | AF172: 0.447641913 | AG172: 0.0001276 | AH172: 1.7219 | AI172: 2 | AJ172: 0.000376611 | AK172: 317.1799783 | AL172: 341.7051706 | AM172: 419.44 | AN172: 1 | AO172: 1 | AP172: 1 | AQ172: 357 | AR172: 385 | AS172: 472 | AT172: 154 | AU172: 166 | AV172: 203 | AW172: 0.094925911 | AX172: 0.1101184893 | AY172: 0.1639933382 | AZ172: 0.9 | BA172: 7.9 | BB172: 8.8 | BC172: 12.5 | BE172: 2954 | BG172: 0.8 | BJ172: 0 | BK172: 10.9 | BL172: 12.8 | BM172: 21.85 | BO172: 1 | BP172: 1 | BQ172: 1 | BR172: 357 | BS172: 385 | BT172: 472 | BV172: 0 | BW172: 0 | BX172: 0 | BY172: 1
A173: 19520 | D173: 1 | E173: 95 | F173: 40.5 | G173: 20 | H173: 21.5 | I173: 0 | J173: 26 | K173: 30 | L173: 44.1 | M173: 2597.551302 | N173: 2692.551302 | O173: 2900.746468 | P173: 3560.64 | Q173: N/A | R173: 1 | S173: 1 | T173: 1 | V173: 1482 | W173: 1596 | X173: 1960 | Z173: 255 | AA173: 275 | AB173: 337 | AD173: 0.2680648283 | AE173: 0.3110848054 | AF173: 0.4645289684 | AG173: 0.0001276 | AH173: 1.7219 | AI173: 2 | AJ173: 0.000376611 | AK173: 317.1799783 | AL173: 341.7051706 | AM173: 419.44 | AN173: 1 | AO173: 1 | AP173: 1 | AQ173: 357 | AR173: 385 | AS173: 472 | AT173: 154 | AU173: 166 | AV173: 203 | AW173: 0.09931040954 | AX173: 0.1151077031 | AY173: 0.1710484748 | AZ173: 1.3 | BA173: 7.9 | BB173: 8.8 | BC173: 12.5 | BE173: 3291 | BG173: 0.8 | BJ173: 0 | BK173: 10.9 | BL173: 12.8 | BM173: 21.85 | BO173: 1 | BP173: 1 | BQ173: 1 | BR173: 357 | BS173: 385 | BT173: 472 | BV173: 0 | BW173: 0 | BX173: 0 | BY173: 1
A174: 13521 | D174: 1 | E174: 35 | F174: 40.5 | G174: 21 | H174: 21.5 | I174: 0 | J174: 26 | K174: 30 | L174: 44.1 | M174: 1860 | N174: 3556.181529 | O174: 3807.884589 | P174: 5249.26 | Q174: N/A | R174: 1 | S174: 1 | T174: 1 | V174: 1957 | W174: 2096 | X174: 2889 | Z174: 337 | AA174: 361 | AB174: 497 | AD174: 0.595485031 | AE174: 0.6828177683 | AF174: 1.289995457 | AG174: 0.0001276 | AH174: 1.7219 | AI174: 4 | AJ174: 0.000514201 | AK174: 445.6489741 | AL174: 477.1915738 | AM174: 657.82 | AN174: 1 | AO174: 1 | AP174: 1 | AQ174: 502 | AR174: 537 | AS174: 741 | AT174: 216 | AU174: 231 | AV174: 319 | AW174: 0.2458895198 | AX174: 0.2809985409 | AY174: 0.5338908941 | AZ174: 0.9 | BA174: 7.9 | BB174: 8.8 | BC174: 12.5 | BE174: 2325 | BG174: 0.8 | BJ174: 0 | BK174: 10.9 | BL174: 12.8 | BM174: 21.85 | BO174: 1 | BP174: 1 | BQ174: 1 | BR174: 502 | BS174: 537 | BT174: 741 | BV174: 0 | BW174: 0 | BX174: 0 | BY174: 1
A175: 15021 | D175: 1 | E175: 50 | F175: 40.5 | G175: 21 | H175: 21.5 | I175: 0 | J175: 26 | K175: 30 | L175: 44.1 | M175: 2272 | N175: 3556.181529 | O175: 3807.884589 | P175: 5249.26 | Q175: N/A | R175: 1 | S175: 1 | T175: 1 | V175: 1957 | W175: 2096 | X175: 2889 | Z175: 337 | AA175: 361 | AB175: 497 | AD175: 0.6123720864 | AE175: 0.7018285358 | AF175: 1.322962809 | AG175: 0.0001276 | AH175: 1.7219 | AI175: 4 | AJ175: 0.000514201 | AK175: 445.6489741 | AL175: 477.1915738 | AM175: 657.82 | AN175: 1 | AO175: 1 | AP175: 1 | AQ175: 502 | AR175: 537 | AS175: 741 | AT175: 216 | AU175: 231 | AV175: 319 | AW175: 0.2537405006 | AX175: 0.2898116971 | AY175: 0.5492549252 | AZ175: 1.3 | BA175: 7.9 | BB175: 8.8 | BC175: 12.5 | BE175: 2840 | BG175: 0.8 | BJ175: 0 | BK175: 10.9 | BL175: 12.8 | BM175: 21.85 | BO175: 1 | BP175: 1 | BQ175: 1 | BR175: 502 | BS175: 537 | BT175: 741 | BV175: 0 | BW175: 0 | BX175: 0 | BY175: 1
A176: 16521 | D176: 1 | E176: 65 | F176: 40.5 | G176: 21 | H176: 21.5 | I176: 0 | J176: 26 | K176: 30 | L176: 44.1 | M176: 2666.4 | N176: 3556.181529 | O176: 3807.884589 | P176: 5249.26 | Q176: N/A | R176: 1 | S176: 1 | T176: 1 | V176: 1957 | W176: 2096 | X176: 2889 | Z176: 337 | AA176: 361 | AB176: 497 | AD176: 0.6292591417 | AE176: 0.7208393033 | AF176: 1.355930161 | AG176: 0.0001276 | AH176: 1.7219 | AI176: 4 | AJ176: 0.000514201 | AK176: =AK175*(1-(($E176-50)*0.005)) -> 412.225301 | AL176: =AL175*(1-(($E176-50)*0.005)) -> 441.4022057 | AM176: =AM175*(1-(($E176-50)*0.005)) -> 608.4835 | AN176: 1 | AO176: 1 | AP176: 1 | AQ176: 464 | AR176: 497 | AS176: 685 | AT176: 200 | AU176: 214 | AV176: 295 | AW176: 0.2247637378 | AX176: 0.25683696 | AY176: 0.4838312053 | AZ176: 1.7 | BA176: 7.9 | BB176: 8.8 | BC176: 12.5 | BE176: 3333 | BG176: 0.8 | BJ176: 0 | BK176: 10.9 | BL176: 12.8 | BM176: 21.85 | BO176: 1 | BP176: 1 | BQ176: 1 | BR176: 464 | BS176: 497 | BT176: 685 | BV176: 0 | BW176: 0 | BX176: 0 | BY176: 1
A177: 19521 | D177: 1 | E177: 95 | F177: 40.5 | G177: 21 | H177: 21.5 | I177: 0 | J177: 26 | K177: 30 | L177: 44.1 | M177: 3449.6 | N177: 3556.181529 | O177: 3807.884589 | P177: 5249.26 | Q177: N/A | R177: 1 | S177: 1 | T177: 1 | V177: 1957 | W177: 2096 | X177: 2889 | Z177: 337 | AA177: 361 | AB177: 497 | AD177: 0.6630332524 | AE177: 0.7588608384 | AF177: 1.421864865 | AG177: 0.0001276 | AH177: 1.7219 | AI177: 4 | AJ177: 0.000514201 | AK177: =AK175*(1-(($E177-50)*0.005)) -> 345.3779549 | AL177: =AL175*(1-(($E177-50)*0.005)) -> 369.8234697 | AM177: =AM175*(1-(($E177-50)*0.005)) -> 509.8105 | AN177: 1 | AO177: 1 | AP177: 1 | AQ177: 389 | AR177: 416 | AS177: 574 | AT177: 167 | AU177: 179 | AV177: 247 | AW177: 0.1676248037 | AX177: 0.1919853028 | AY177: 0.3605790074 | AZ177: 2.5 | BA177: 7.9 | BB177: 8.8 | BC177: 12.5 | BE177: 4312 | BG177: 0.8 | BJ177: 0 | BK177: 10.9 | BL177: 12.8 | BM177: 21.85 | BO177: 1 | BP177: 1 | BQ177: 1 | BR177: 389 | BS177: 416 | BT177: 574 | BV177: 0 | BW177: 0 | BX177: 0 | BY177: 1
A178: 13510 | D178: 1 | E178: 35 | F178: 40.5 | G178: 10 | H178: 11.5 | I178: 0 | J178: 26 | K178: 30 | L178: 44 | M178: 970.2 | N178: 1924.991413 | O178: 2079.620242 | P178: 2589.78 | Q178: N/A | R178: 1 | S178: 1 | T178: 1 | V178: 1059 | W178: 1144 | X178: 1425 | Z178: 182 | AA178: 197 | AB178: 245 | AD178: 0.132585449 | AE178: 0.1550157379 | AF178: 0.2384284266 | AG178: 0.0003969 | AH178: 1.7346 | AI178: 2 | AJ178: 0.000367347 | AK178: 266.8755326 | AL178: 288.3128497 | AM178: 359.04 | AN178: 1 | AO178: 1 | AP178: 1 | AQ178: 301 | AR178: 325 | AS178: 404 | AT178: 129 | AU178: 140 | AV178: 174 | AW178: 0.06724992988 | AX178: 0.07902211036 | AY178: 0.1213320827 | AZ178: 0.2 | BA178: 8.9 | BB178: 9.9 | BC178: 14.8 | BE178: 1078 | BG178: 0.9 | BJ178: 0 | BK178: 11.8 | BL178: 13.7 | BM178: 21.85 | BO178: 1 | BP178: 1 | BQ178: 1 | BR178: 301 | BS178: 325 | BT178: 404 | BV178: 0 | BW178: 0 | BX178: 0 | BY178: 1
A179: 15010 | D179: 1 | E179: 50 | F179: 40.5 | G179: 10 | H179: 11.5 | I179: 0 | J179: 26 | K179: 30 | L179: 44 | M179: 1161.9 | N179: 1924.991413 | O179: 2079.620242 | P179: 2589.78 | Q179: N/A | R179: 1 | S179: 1 | T179: 1 | V179: 1059 | W179: 1144 | X179: 1425 | Z179: 182 | AA179: 197 | AB179: 245 | AD179: 0.1422983343 | AE179: 0.1661589281 | AF179: 0.254694245 | AG179: 0.0003969 | AH179: 1.7346 | AI179: 2 | AJ179: 0.000367347 | AK179: 266.8755326 | AL179: 288.3128497 | AM179: 359.04 | AN179: 1 | AO179: 1 | AP179: 1 | AQ179: 301 | AR179: 325 | AS179: 404 | AT179: 129 | AU179: 140 | AV179: 174 | AW179: 0.07259627932 | AX179: 0.08518383264 | AY179: 0.1303164015 | AZ179: 0.3 | BA179: 8.9 | BB179: 9.9 | BC179: 14.8 | BE179: 1291 | BG179: 0.9 | BJ179: 0 | BK179: 11.8 | BL179: 13.7 | BM179: 21.85 | BO179: 1 | BP179: 1 | BQ179: 1 | BR179: 301 | BS179: 325 | BT179: 404 | BV179: 0 | BW179: 0 | BX179: 0 | BY179: 1
A180: 16510 | D180: 1 | E180: 65 | F180: 40.5 | G180: 10 | H180: 11.5 | I180: 0 | J180: 26 | K180: 30 | L180: 44 | M180: 1307.7 | N180: 1924.991413 | O180: 2079.620242 | P180: 2589.78 | Q180: N/A | R180: 1 | S180: 1 | T180: 1 | V180: 1059 | W180: 1144 | X180: 1425 | Z180: 182 | AA180: 197 | AB180: 245 | AD180: 0.1520112195 | AE180: 0.1773021184 | AF180: 0.2709600634 | AG180: 0.0003969 | AH180: 1.7346 | AI180: 2 | AJ180: 0.000367347 | AK180: 266.8755326 | AL180: 288.3128497 | AM180: 359.04 | AN180: 1 | AO180: 1 | AP180: 1 | AQ180: 301 | AR180: 325 | AS180: 404 | AT180: 129 | AU180: 140 | AV180: 174 | AW180: 0.07794262875 | AX180: 0.09134555492 | AY180: 0.1393007203 | AZ180: 0.4 | BA180: 8.9 | BB180: 9.9 | BC180: 14.8 | BE180: 1453 | BG180: 0.9 | BJ180: 0 | BK180: 11.8 | BL180: 13.7 | BM180: 21.85 | BO180: 1 | BP180: 1 | BQ180: 1 | BR180: 301 | BS180: 325 | BT180: 404 | BV180: 0 | BW180: 0 | BX180: 0 | BY180: 1
A181: 19510 | D181: 1 | E181: 95 | F181: 40.5 | G181: 10 | H181: 11.5 | I181: 0 | J181: 26 | K181: 30 | L181: 44 | M181: 1504.8 | N181: 1924.991413 | O181: 2079.620242 | P181: 2589.78 | Q181: N/A | R181: 1 | S181: 1 | T181: 1 | V181: 1059 | W181: 1144 | X181: 1425 | Z181: 182 | AA181: 197 | AB181: 245 | AD181: 0.1714369901 | AE181: 0.1995884989 | AF181: 0.3034917002 | AG181: 0.0003969 | AH181: 1.7346 | AI181: 2 | AJ181: 0.000367347 | AK181: 266.8755326 | AL181: 288.3128497 | AM181: 359.04 | AN181: 1 | AO181: 1 | AP181: 1 | AQ181: 301 | AR181: 325 | AS181: 404 | AT181: 129 | AU181: 140 | AV181: 174 | AW181: 0.08863532763 | AX181: 0.1036689995 | AY181: 0.157269358 | AZ181: 0.6 | BA181: 8.9 | BB181: 9.9 | BC181: 14.8 | BE181: 1672 | BG181: 0.9 | BJ181: 0 | BK181: 11.8 | BL181: 13.7 | BM181: 21.85 | BO181: 1 | BP181: 1 | BQ181: 1 | BR181: 301 | BS181: 325 | BT181: 404 | BV181: 0 | BW181: 0 | BX181: 0 | BY181: 1
A182: 13511 | D182: 1 | E182: 35 | F182: 40.5 | G182: 11 | H182: 11.5 | I182: 0 | J182: 26 | K182: 30 | L182: 44 | M182: 975.8 | N182: 2611.892641 | O182: 2821.698202 | P182: 3513.9 | Q182: N/A | R182: 1 | S182: 1 | T182: 1 | V182: 1437 | W182: 1553 | X182: 1934 | Z182: 247 | AA182: 267 | AB182: 333 | AD182: 0.3886713185 | AE182: 0.4530794693 | AF182: 0.7001650138 | AG182: 0.0003969 | AH182: 1.7346 | AI182: 4 | AJ182: 0.000574288 | AK182: 437 | AL182: 473 | AM182: 589 | AN182: 1 | AO182: 1 | AP182: 1 | AQ182: 492 | AR182: 533 | AS182: 663 | AT182: 212 | AU182: 229 | AV182: 285 | AW182: 0.2877071836 | AX182: 0.334877032 | AY182: 0.5152136685 | AZ182: 0.5 | BA182: 8.9 | BB182: 9.9 | BC182: 14.8 | BE182: 1435 | BG182: 0.68 | BJ182: 0 | BK182: 11.8 | BL182: 13.7 | BM182: 21.85 | BO182: 1 | BP182: 1 | BQ182: 1 | BR182: 492 | BS182: 533 | BT182: 663 | BV182: 0 | BW182: 0 | BX182: 0 | BY182: 1
A183: 15011 | D183: 1 | E183: 50 | F183: 40.5 | G183: 11 | H183: 11.5 | I183: 0 | J183: 26 | K183: 30 | L183: 44 | M183: 1130.84 | N183: 2611.892641 | O183: 2821.698202 | P183: 3513.9 | Q183: N/A | R183: 1 | S183: 1 | T183: 1 | V183: 1437 | W183: 1553 | X183: 1934 | Z183: 247 | AA183: 267 | AB183: 333 | AD183: 0.4216649835 | AE183: 0.4908440667 | AF183: 0.7555625172 | AG183: 0.0003969 | AH183: 1.7346 | AI183: 4 | AJ183: 0.000574288 | AK183: 437 | AL183: 473 | AM183: 589 | AN183: 1 | AO183: 1 | AP183: 1 | AQ183: 492 | AR183: 533 | AS183: 663 | AT183: 212 | AU183: 229 | AV183: 285 | AW183: 0.3130188425 | AX183: 0.3638124028 | AY183: 0.557503146 | AZ183: 0.7 | BA183: 8.9 | BB183: 9.9 | BC183: 14.8 | BE183: 1663 | BG183: 0.68 | BJ183: 0 | BK183: 11.8 | BL183: 13.7 | BM183: 21.85 | BO183: 1 | BP183: 1 | BQ183: 1 | BR183: 492 | BS183: 533 | BT183: 663 | BV183: 0 | BW183: 0 | BX183: 0 | BY183: =IF(SUM(BV183:BX183)=0,1,0) -> 1
A184: 16511 | D184: 1 | E184: 65 | F184: 40.5 | G184: 11 | H184: 11.5 | I184: 0 | J184: 26 | K184: 30 | L184: 44 | M184: 1259.36 | N184: 2611.892641 | O184: 2821.698202 | P184: 3513.9 | Q184: N/A | R184: 1 | S184: 1 | T184: 1 | V184: 1437 | W184: 1553 | X184: 1934 | Z184: 247 | AA184: 267 | AB184: 333 | AD184: 0.4546586484 | AE184: 0.528608664 | AF184: 0.8109600205 | AG184: 0.0003969 | AH184: 1.7346 | AI184: 4 | AJ184: 0.000574288 | AK184: =AK183*(1-(($E184-50)*0.005)) -> 404.225 | AL184: =AL183*(1-(($E184-50)*0.005)) -> 437.525 | AM184: =AM183*(1-(($E184-50)*0.005)) -> 544.825 | AN184: 1 | AO184: 1 | AP184: 1 | AQ184: 455 | AR184: 493 | AS184: 614 | AT184: 196 | AU184: 212 | AV184: 264 | AW184: 0.2907247732 | AX184: 0.3383305014 | AY184: 0.5171706143 | AZ184: 0.9 | BA184: 8.9 | BB184: 9.9 | BC184: 14.8 | BE184: 1852 | BG184: 0.68 | BJ184: 0 | BK184: 11.8 | BL184: 13.7 | BM184: 21.85 | BO184: 1 | BP184: 1 | BQ184: 1 | BR184: 455 | BS184: 493 | BT184: 614 | BV184: 0 | BW184: 0 | BX184: 0 | BY184: 1
A185: 19511 | D185: 1 | E185: 95 | F185: 40.5 | G185: 11 | H185: 11.5 | I185: 0 | J185: 26 | K185: 30 | L185: 44 | M185: 1465.4 | N185: 2611.892641 | O185: 2821.698202 | P185: 3513.9 | Q185: N/A | R185: 1 | S185: 1 | T185: 1 | V185: 1437 | W185: 1553 | X185: 1934 | Z185: 247 | AA185: 267 | AB185: 333 | AD185: 0.5206459784 | AE185: 0.6041378588 | AF185: 0.9217550272 | AG185: 0.0003969 | AH185: 1.7346 | AI185: 4 | AJ185: 0.000574288 | AK185: =AK183*(1-(($E185-50)*0.005)) -> 338.675 | AL185: =AL183*(1-(($E185-50)*0.005)) -> 366.575 | AM185: =AM183*(1-(($E185-50)*0.005)) -> 456.475 | AN185: 1 | AO185: 1 | AP185: 1 | AQ185: 381 | AR185: 413 | AS185: 514 | AT185: 164 | AU185: 178 | AV185: 221 | AW185: 0.2385018186 | AX185: 0.278752258 | AY185: 0.4210572619 | AZ185: 1.3 | BA185: 8.9 | BB185: 9.9 | BC185: 14.8 | BE185: 2155 | BG185: 0.68 | BJ185: 0 | BK185: 11.8 | BL185: 13.7 | BM185: 21.85 | BO185: 1 | BP185: 1 | BQ185: 1 | BR185: 381 | BS185: 413 | BT185: 514 | BV185: 0 | BW185: 0 | BX185: 0 | BY185: 1
A186: 13515 | D186: 1 | E186: 35 | F186: 40.5 | G186: 15 | H186: 16.5 | I186: 0 | J186: 26 | K186: 30 | L186: 44.8 | M186: 1411.2 | N186: 2216.907387 | O186: 2373.994898 | P186: 3302.76 | Q186: N/A | R186: 1 | S186: 1 | T186: 1 | V186: 1220 | W186: 1307 | X186: 1818 | Z186: 210 | AA186: 225 | AB186: 313 | AD186: 0.2080717494 | AE186: 0.2386742937 | AF186: 0.4602708863 | AG186: 0.0002083 | AH186: 1.724 | AI186: 2 | AJ186: 0.000461829 | AK186: 302.6167588 | AL186: 324.0598348 | AM186: 450.84 | AN186: 1 | AO186: 1 | AP186: 1 | AQ186: 341 | AR186: 365 | AS186: 508 | AT186: 147 | AU186: 157 | AV186: 218 | AW186: 0.1023849392 | AX186: 0.1166945424 | AY186: 0.2241330014 | AZ186: 0.4 | BA186: 8.7 | BB186: 9.8 | BC186: 14.3 | BE186: 1764 | BG186: 0.8 | BJ186: 0 | BK186: 10.6 | BL186: 12.5 | BM186: 21.85 | BO186: 1 | BP186: 1 | BQ186: 1 | BR186: 341 | BS186: 365 | BT186: 508 | BV186: 0 | BW186: 0 | BX186: 0 | BY186: 1
A187: 15015 | D187: 1 | E187: 50 | F187: 40.5 | G187: 15 | H187: 16.5 | I187: 0 | J187: 26 | K187: 30 | L187: 44.8 | M187: 1664.8 | N187: 2216.907387 | O187: 2373.994898 | P187: 3302.76 | Q187: N/A | R187: 1 | S187: 1 | T187: 1 | V187: 1220 | W187: 1307 | X187: 1818 | Z187: 210 | AA187: 225 | AB187: 313 | AD187: 0.2142454088 | AE187: 0.2456277265 | AF187: 0.4725553171 | AG187: 0.0002083 | AH187: 1.724 | AI187: 2 | AJ187: 0.000461829 | AK187: 302.6167588 | AL187: 324.0598348 | AM187: 450.84 | AN187: 1 | AO187: 1 | AP187: 1 | AQ187: 341 | AR187: 365 | AS187: 508 | AT187: =ROUND(AQ187*3600/(4186*ABS($AM$1-$AM$2)),0) -> 147 | AU187: =ROUND(AR187*3600/(4186*ABS($AM$1-$AM$2)),0) -> 157 | AV187: =ROUND(AS187*3600/(4186*ABS($AM$1-$AM$2)),0) -> 218 | AW187: 0.1057229804 | AX187: 0.1204336469 | AY187: 0.2307176954 | AZ187: 0.5 | BA187: 8.7 | BB187: 9.8 | BC187: 14.3 | BE187: 2081 | BG187: 0.8 | BJ187: 0 | BK187: 10.6 | BL187: 12.5 | BM187: 21.85 | BO187: 1 | BP187: 1 | BQ187: 1 | BR187: 341 | BS187: 365 | BT187: 508 | BV187: 0 | BW187: 0 | BX187: 0 | BY187: 1
A188: 16515 | D188: 1 | E188: 65 | F188: 40.5 | G188: 15 | H188: 16.5 | I188: 0 | J188: 26 | K188: 30 | L188: 44.8 | M188: 1844.8 | N188: 2216.907387 | O188: 2373.994898 | P188: 3302.76 | Q188: N/A | R188: 1 | S188: 1 | T188: 1 | V188: 1220 | W188: 1307 | X188: 1818 | Z188: 210 | AA188: 225 | AB188: 313 | AD188: 0.2204190682 | AE188: 0.2525811593 | AF188: 0.4848397479 | AG188: 0.0002083 | AH188: 1.724 | AI188: 2 | AJ188: 0.000461829 | AK188: 302.6167588 | AL188: 324.0598348 | AM188: 450.84 | AN188: 1 | AO188: 1 | AP188: 1 | AQ188: 341 | AR188: 365 | AS188: 508 | AT188: 147 | AU188: 157 | AV188: 218 | AW188: 0.1090610215 | AX188: 0.1241727514 | AY188: 0.2373023893 | AZ188: 0.7 | BA188: 8.7 | BB188: 9.8 | BC188: 14.3 | BE188: 2306 | BG188: 0.8 | BJ188: 0 | BK188: 10.6 | BL188: 12.5 | BM188: 21.85 | BO188: 1 | BP188: 1 | BQ188: 1 | BR188: 341 | BS188: 365 | BT188: 508 | BV188: 0 | BW188: 0 | BX188: 0 | BY188: 1
A189: 19515 | D189: 1 | E189: 95 | F189: 40.5 | G189: 15 | H189: 16.5 | I189: 0 | J189: 26 | K189: 30 | L189: 44.8 | M189: 2060 | N189: 2216.907387 | O189: 2373.994898 | P189: 3302.76 | Q189: N/A | R189: 1 | S189: 1 | T189: 1 | V189: 1220 | W189: 1307 | X189: 1818 | Y189: =ROUND(U189*3600/(4186*ABS($O$1-$O$2)),0) ->  | Z189: =ROUND(V189*3600/(4186*ABS($O$1-$O$2)),0) -> 210 | AA189: =ROUND(W189*3600/(4186*ABS($O$1-$O$2)),0) -> 225 | AB189: =ROUND(X189*3600/(4186*ABS($O$1-$O$2)),0) -> 313 | AD189: 0.232766387 | AE189: 0.2664880248 | AF189: 0.5094086095 | AG189: 0.0002083 | AH189: 1.724 | AI189: 2 | AJ189: 0.000461829 | AK189: 302.6167588 | AL189: 324.0598348 | AM189: 450.84 | AN189: 1 | AO189: 1 | AP189: 1 | AQ189: 341 | AR189: 365 | AS189: 508 | AT189: 147 | AU189: 157 | AV189: 218 | AW189: 0.1157371038 | AX189: 0.1316509604 | AY189: 0.2504717773 | AZ189: 1 | BA189: 8.7 | BB189: 9.8 | BC189: 14.3 | BE189: 2575 | BG189: 0.8 | BJ189: 0 | BK189: 10.6 | BL189: 12.5 | BM189: 21.85 | BO189: 1 | BP189: 1 | BQ189: 1 | BR189: 341 | BS189: 365 | BT189: 508 | BV189: 0 | BW189: 0 | BX189: 0 | BY189: 1
A190: 13516 | D190: 1 | E190: 35 | F190: 40.5 | G190: 16 | H190: 16.5 | I190: 0 | J190: 26 | K190: 30 | L190: 44.8 | M190: 1300.16 | N190: 3241.833377 | O190: 3471.545968 | P190: 4829.7 | Q190: N/A | R190: 1 | S190: 1 | T190: 1 | V190: 1784 | W190: 1911 | X190: 2658 | Z190: 307 | AA190: 329 | AB190: 457 | AD190: 1.319076286 | AE190: 1.51419434 | AF190: 2.915458199 | AG190: 0.0002083 | AH190: 1.724 | AI190: 4 | AJ190: 0.001392796 | AK190: 496 | AL190: 532 | AM190: 740 | AN190: 1 | AO190: 1 | AP190: 1 | AQ190: 559 | AR190: 599 | AS190: 833 | AT190: 240 | AU190: 258 | AV190: 358 | AW190: 0.807551989 | AX190: 0.9327397523 | AY190: 1.79189587 | AZ190: 0.7 | BA190: 8.7 | BB190: 9.8 | BC190: 14.3 | BE190: 1912 | BG190: 0.68 | BJ190: 0 | BK190: 10.6 | BL190: 12.5 | BM190: 21.85 | BO190: 1 | BP190: 1 | BQ190: 1 | BR190: 559 | BS190: 599 | BT190: 833 | BV190: 0 | BW190: 0 | BX190: 0 | BY190: 1
A191: 15016 | D191: 1 | E191: 50 | F191: 40.5 | G191: 16 | H191: 16.5 | I191: 0 | J191: 26 | K191: 30 | L191: 44.8 | M191: 1549.04 | N191: 3241.833377 | O191: 3471.545968 | P191: 4829.7 | Q191: N/A | R191: 1 | S191: 1 | T191: 1 | V191: 1784 | W191: 1911 | X191: 2658 | Z191: 307 | AA191: 329 | AB191: 457 | AD191: 1.342838842 | AE191: 1.540968282 | AF191: 2.962638654 | AG191: 0.0002083 | AH191: 1.724 | AI191: 4 | AJ191: 0.001392796 | AK191: 496 | AL191: 532 | AM191: 740 | AN191: 1 | AO191: 1 | AP191: 1 | AQ191: 559 | AR191: 599 | AS191: 833 | AT191: 240 | AU191: 258 | AV191: 358 | AW191: 0.8230955592 | AX191: 0.9503473039 | AY191: 1.822867277 | AZ191: 1 | BA191: 8.7 | BB191: 9.8 | BC191: 14.3 | BE191: 2278 | BG191: 0.68 | BJ191: 0 | BK191: 10.6 | BL191: 12.5 | BM191: 21.85 | BO191: 1 | BP191: 1 | BQ191: 1 | BR191: 559 | BS191: 599 | BT191: 833 | BV191: 0 | BW191: 0 | BX191: 0 | BY191: 1
A192: 16516 | D192: 1 | E192: 65 | F192: 40.5 | G192: 16 | H192: 16.5 | I192: 0 | J192: 26 | K192: 30 | L192: 44.8 | M192: 1773.44 | N192: 3241.833377 | O192: 3471.545968 | P192: 4829.7 | Q192: N/A | R192: 1 | S192: 1 | T192: 1 | V192: 1784 | W192: 1911 | X192: 2658 | Z192: 307 | AA192: 329 | AB192: 457 | AD192: 1.366601399 | AE192: 1.567742224 | AF192: 3.009819109 | AG192: 0.0002083 | AH192: 1.724 | AI192: 4 | AJ192: 0.001392796 | AK192: =AK191*(1-(($E192-50)*0.005)) -> 458.8 | AL192: =AL191*(1-(($E192-50)*0.005)) -> 492.1 | AM192: =AM191*(1-(($E192-50)*0.005)) -> 684.5 | AN192: 1 | AO192: 1 | AP192: 1 | AQ192: 517 | AR192: 554 | AS192: 771 | AT192: 222 | AU192: 238 | AV192: 332 | AW192: 0.7185364117 | AX192: 0.8248392796 | AY192: 1.596233492 | AZ192: 1.3 | BA192: 8.7 | BB192: 9.8 | BC192: 14.3 | BE192: 2608 | BG192: 0.68 | BJ192: 0 | BK192: 10.6 | BL192: 12.5 | BM192: 21.85 | BO192: 1 | BP192: 1 | BQ192: 1 | BR192: 517 | BS192: 554 | BT192: 771 | BV192: 0 | BW192: 0 | BX192: 0 | BY192: 1
A193: 19516 | D193: 1 | E193: 95 | F193: 40.5 | G193: 16 | H193: 16.5 | I193: 0 | J193: 26 | K193: 30 | L193: 44.8 | M193: 2184.16 | N193: 3241.833377 | O193: 3471.545968 | P193: 4829.7 | Q193: N/A | R193: 1 | S193: 1 | T193: 1 | V193: 1784 | W193: 1911 | X193: 2658 | Z193: 307 | AA193: 329 | AB193: 457 | AD193: 1.414126511 | AE193: 1.621290109 | AF193: 3.104180019 | AG193: 0.0002083 | AH193: 1.724 | AI193: 4 | AJ193: 0.001392796 | AK193: =AK191*(1-(($E193-50)*0.005)) -> 384.4 | AL193: =AL191*(1-(($E193-50)*0.005)) -> 412.3 | AM193: =AM191*(1-(($E193-50)*0.005)) -> 573.5 | AN193: 1 | AO193: 1 | AP193: 1 | AQ193: 433 | AR193: 464 | AS193: 646 | AT193: 186 | AU193: 200 | AV193: 278 | AW193: 0.5260355377 | AX193: 0.6069698882 | AY193: 1.162488055 | AZ193: 1.9 | BA193: 8.7 | BB193: 9.8 | BC193: 14.3 | BE193: 3212 | BG193: 0.68 | BJ193: 0 | BK193: 10.6 | BL193: 12.5 | BM193: 21.85 | BO193: 1 | BP193: 1 | BQ193: 1 | BR193: 433 | BS193: 464 | BT193: 646 | BV193: 0 | BW193: 0 | BX193: 0 | BY193: 1
A194: 13520 | D194: 1 | E194: 35 | F194: 40.5 | G194: 20 | H194: 21.5 | I194: 0 | J194: 26 | K194: 30 | L194: 44.8 | M194: 1977.6 | N194: 3079.682993 | O194: 3327.064759 | P194: 4143.24 | Q194: N/A | R194: 1 | S194: 1 | T194: 1 | V194: 1695 | W194: 1831 | X194: 2280 | Z194: 292 | AA194: 315 | AB194: 392 | AD194: 0.3237510911 | AE194: 0.3765416329 | AF194: 0.5821848673 | AG194: 0.0001276 | AH194: 1.7219 | AI194: 2 | AJ194: 0.000376611 | AK194: 380.6009016 | AL194: 411.173439 | AM194: 512.04 | AN194: 1 | AO194: 1 | AP194: 1 | AQ194: 429 | AR194: 463 | AS194: 577 | AT194: 184 | AU194: 199 | AV194: 248 | AW194: 0.1290456929 | AX194: 0.1508402157 | AY194: 0.2338370193 | AZ194: 0.5 | BA194: 8.7 | BB194: 9.8 | BC194: 14.3 | BE194: 2472 | BG194: 0.8 | BJ194: 0 | BK194: 10.6 | BL194: 12.5 | BM194: 21.85 | BO194: 1 | BP194: 1 | BQ194: 1 | BR194: 429 | BS194: 463 | BT194: 577 | BV194: 0 | BW194: 0 | BX194: 0 | BY194: 1
A195: 15020 | D195: 1 | E195: 50 | F195: 40.5 | G195: 20 | H195: 21.5 | I195: 0 | J195: 26 | K195: 30 | L195: 44.8 | M195: 2328 | N195: 3079.682993 | O195: 3327.064759 | P195: 4143.24 | Q195: N/A | R195: 1 | S195: 1 | T195: 1 | V195: 1695 | W195: 1831 | X195: 2280 | Z195: 292 | AA195: 315 | AB195: 392 | AD195: 0.3303480038 | AE195: 0.384058536 | AF195: 0.593138982 | AG195: 0.0001276 | AH195: 1.7219 | AI195: 2 | AJ195: 0.000376611 | AK195: 380.6009016 | AL195: 411.173439 | AM195: 512.04 | AN195: 1 | AO195: 1 | AP195: 1 | AQ195: 429 | AR195: 463 | AS195: 577 | AT195: 184 | AU195: 199 | AV195: 248 | AW195: 0.1320241257 | AX195: 0.1542489498 | AY195: 0.2388167328 | AZ195: 0.7 | BA195: 8.7 | BB195: 9.8 | BC195: 14.3 | BE195: 2910 | BG195: 0.8 | BJ195: 0 | BK195: 10.6 | BL195: 12.5 | BM195: 21.85 | BO195: 1 | BP195: 1 | BQ195: 1 | BR195: 429 | BS195: 463 | BT195: 577 | BV195: 0 | BW195: 0 | BX195: 0 | BY195: 1
A196: 16520 | D196: 1 | E196: 65 | F196: 40.5 | G196: 20 | H196: 21.5 | I196: 0 | J196: 26 | K196: 30 | L196: 44.8 | M196: 2577.6 | N196: 3079.682993 | O196: 3327.064759 | P196: 4143.24 | Q196: N/A | R196: 1 | S196: 1 | T196: 1 | V196: 1695 | W196: 1831 | X196: 2280 | Z196: 292 | AA196: 315 | AB196: 392 | AD196: 0.3369449165 | AE196: 0.391575439 | AF196: 0.6040930967 | AG196: 0.0001276 | AH196: 1.7219 | AI196: 2 | AJ196: 0.000376611 | AK196: 380.6009016 | AL196: 411.173439 | AM196: 512.04 | AN196: 1 | AO196: 1 | AP196: 1 | AQ196: 429 | AR196: 463 | AS196: 577 | AT196: 184 | AU196: 199 | AV196: 248 | AW196: 0.1350025586 | AX196: 0.1576576838 | AY196: 0.2437964463 | AZ196: 0.9 | BA196: 8.7 | BB196: 9.8 | BC196: 14.3 | BE196: 3222 | BG196: 0.8 | BJ196: 0 | BK196: 10.6 | BL196: 12.5 | BM196: 21.85 | BO196: 1 | BP196: 1 | BQ196: 1 | BR196: 429 | BS196: 463 | BT196: 577 | BV196: 0 | BW196: 0 | BX196: 0 | BY196: 1
A197: 19520 | D197: 1 | E197: 95 | F197: 40.5 | G197: 20 | H197: 21.5 | I197: 0 | J197: 26 | K197: 30 | L197: 44.8 | M197: 2872 | N197: 3079.682993 | O197: 3327.064759 | P197: 4143.24 | Q197: N/A | R197: 1 | S197: 1 | T197: 1 | V197: 1695 | W197: 1831 | X197: 2280 | Z197: 292 | AA197: 315 | AB197: 392 | AD197: 0.3501387419 | AE197: 0.406609245 | AF197: 0.6260013261 | AG197: 0.0001276 | AH197: 1.7219 | AI197: 2 | AJ197: 0.000376611 | AK197: 380.6009016 | AL197: 411.173439 | AM197: 512.04 | AN197: 1 | AO197: 1 | AP197: 1 | AQ197: 429 | AR197: 463 | AS197: 577 | AT197: 184 | AU197: 199 | AV197: 248 | AW197: 0.1409594243 | AX197: 0.1644751519 | AY197: 0.2537558732 | AZ197: 1.3 | BA197: 8.7 | BB197: 9.8 | BC197: 14.3 | BE197: 3590 | BG197: 0.8 | BJ197: 0 | BK197: 10.6 | BL197: 12.5 | BM197: 21.85 | BO197: 1 | BP197: 1 | BQ197: 1 | BR197: 429 | BS197: 463 | BT197: 577 | BV197: 0 | BW197: 0 | BX197: 0 | BY197: 1
A198: 13521 | D198: 1 | E198: 35 | F198: 40.5 | G198: 21 | H198: 21.5 | I198: 0 | J198: 26 | K198: 30 | L198: 44.8 | M198: 2029.6 | N198: 4175.015826 | O198: 4470.852653 | P198: 6219.96 | Q198: N/A | R198: 1 | S198: 1 | T198: 1 | V198: 2298 | W198: 2460 | X198: 3423 | Z198: 395 | AA198: 423 | AB198: 589 | AD198: 0.8167213488 | AE198: 0.9359540333 | AF198: 1.80884867 | AG198: 0.0001276 | AH198: 1.7219 | AI198: 4 | AJ198: 0.000514201 | AK198: 541.5607606 | AL198: 579.9351342 | AM198: 806.82 | AN198: 1 | AO198: 1 | AP198: 1 | AQ198: 610 | AR198: 653 | AS198: 909 | AT198: 262 | AU198: 281 | AV198: 391 | AW198: 0.3609428552 | AX198: 0.4148581024 | AY198: 0.80034858 | AZ198: 0.9 | BA198: 8.7 | BB198: 9.8 | BC198: 14.3 | BE198: 2537 | BG198: 0.8 | BJ198: 0 | BK198: 10.6 | BL198: 12.5 | BM198: 21.85 | BO198: 1 | BP198: 1 | BQ198: 1 | BR198: 610 | BS198: 653 | BT198: 909 | BV198: 0 | BW198: 0 | BX198: 0 | BY198: 1
A199: 15021 | D199: 1 | E199: 50 | F199: 40.5 | G199: 21 | H199: 21.5 | I199: 0 | J199: 26 | K199: 30 | L199: 44.8 | M199: 2478.4 | N199: 4175.015826 | O199: 4470.852653 | P199: 6219.96 | Q199: N/A | R199: 1 | S199: 1 | T199: 1 | V199: 2298 | W199: 2460 | X199: 3423 | Z199: 395 | AA199: 423 | AB199: 589 | AD199: 0.8389190775 | AE199: 0.9609300675 | AF199: 1.853014818 | AG199: 0.0001276 | AH199: 1.7219 | AI199: 4 | AJ199: 0.000514201 | AK199: 541.5607606 | AL199: 579.9351342 | AM199: 806.82 | AN199: 1 | AO199: 1 | AP199: 1 | AQ199: 610 | AR199: 653 | AS199: 909 | AT199: 262 | AU199: 281 | AV199: 391 | AW199: 0.3718900033 | AX199: 0.4272077741 | AY199: 0.8221606639 | AZ199: 1.3 | BA199: 8.7 | BB199: 9.8 | BC199: 14.3 | BE199: 3098 | BG199: 0.8 | BJ199: 0 | BK199: 10.6 | BL199: 12.5 | BM199: 21.85 | BO199: 1 | BP199: 1 | BQ199: 1 | BR199: 610 | BS199: 653 | BT199: 909 | BV199: 0 | BW199: 0 | BX199: 0 | BY199: 1
A200: 16521 | D200: 1 | E200: 65 | F200: 40.5 | G200: 21 | H200: 21.5 | I200: 0 | J200: 26 | K200: 30 | L200: 44.8 | M200: 2908.8 | N200: 4175.015826 | O200: 4470.852653 | P200: 6219.96 | Q200: N/A | R200: 1 | S200: 1 | T200: 1 | V200: 2298 | W200: 2460 | X200: 3423 | Z200: 395 | AA200: 423 | AB200: 589 | AD200: 0.8611168062 | AE200: 0.9859061016 | AF200: 1.897180967 | AG200: 0.0001276 | AH200: 1.7219 | AI200: 4 | AJ200: 0.000514201 | AK200: =AK199*(1-(($E200-50)*0.005)) -> 500.9437035 | AL200: =AL199*(1-(($E200-50)*0.005)) -> 536.4399991 | AM200: =AM199*(1-(($E200-50)*0.005)) -> 746.3085 | AN200: 1 | AO200: 1 | AP200: 1 | AQ200: 564 | AR200: 604 | AS200: 840 | AT200: 243 | AU200: 260 | AV200: 361 | AW200: 0.3299965822 | AX200: 0.3770921997 | AY200: 0.7208393033 | AZ200: 1.7 | BA200: 8.7 | BB200: 9.8 | BC200: 14.3 | BE200: 3636 | BG200: 0.8 | BJ200: 0 | BK200: 10.6 | BL200: 12.5 | BM200: 21.85 | BO200: 1 | BP200: 1 | BQ200: 1 | BR200: 564 | BS200: 604 | BT200: 840 | BV200: 0 | BW200: 0 | BX200: 0 | BY200: 1
... 902 more rows

Sheet NL (hidden)
B1: Selectiontool Strada Hybrid
B3: Lengte | D3: mm | E3: Invulformulier | F3: Statisch toestel | G3: rel. vocht. | H3: Unit | I3: Kopieer alle data
B4: Hoogte | D4: =D3 -> mm | E4: Uitvoering | F4: Hybrid toestel | G4: Eenheidsstelsel | H4: DBH set | I4: SI-eenheden
B5: Type | E5: Temperaturen | F5: DBH rail type | G5: Toestel | I5: Imperiale-eenheden
B6: Diepte | D6: =D3 -> mm | E6: Vermogen zonder ventilatoren is verwaarloosbaar. | F6: Waterzijdig drukverlies
E7: Afgifte zonder ventilatoren is verwaarloosbaar
B8: Verwarmen: | G8: Koelen:
B9: Water aanvoer | E9: =B9 -> Water aanvoer | I9: =D9 -> 0
B10: Water retour | D10: =D9 -> 0 | E10: =B10 -> Water retour | I10: =D9 -> 0
B11: Ruimte (droge bol) | D11: =D9 -> 0 | E11: =B11 -> Ruimte (droge bol) | I11: =D9 -> 0
C13: =CONCATENATE(B8," ",C9,"/",C10,"/",C11) -> Verwarmen: // | E13: =CONCATENATE(G8," ",H9,"/",H10,"/",H11) -> Koelen: // | G13: Watervolume | H13: Elektrisch verbruik [W] | I13: Geluidsdrukniveau [dB(A)]**** | J13: Geluidsvermogen [dB(A)]****
C14: Verwarmvermogen | D14: Waterdebiet | E14: Koelvermogen | F14: =D14 -> Waterdebiet
A15: Statisch (indicatieve waarde)
A16: EN16430 | B16: Ventilatorsnelheid
B17: Ventilatorsnelheid 2
B18: Ventilatorsnelheid 3
B19: Stuurspanning [v]
A20: * | B20: Koelvermogen is berekend volgens EN16430 met de ventilatoren naar boven blazend voor alle types.
A21: ** | B21: Wanneer het watervolume in gallons wordt gegeven, zijn dit imperial gallons.
A22: *** | B22: Geluidsvermogen volgens ISO 3741:2010, Voor het geluidsdrukniveau is er een aangenomen kamerdemping van 8 dB(A).

Sheet EN (hidden)
B1: Selectiontool Strada Hybrid
B3: Length | D3: mm | E3: Formulary | F3: Static device | G3: rel. humid. | H3: Unit | I3: Copy all data
B4: Heigth | D4: =D3 -> mm | E4: Version | F4: Hybrid device | G4: Unit conversion | H4: DBH set | I4: SI-units
B5: Type | E5: Temperatures | F5: DBH rail type | G5: Device | I5: Imperial-units
B6: Depth | D6: =D3 -> mm | E6: Output without fans is negligible | F6: Water side pressure loss
B8: Heating: | G8: Cooling:
B9: Supply water | E9: =B9 -> Supply water | I9: =D9 -> 0
B10: Return water | D10: =D9 -> 0 | E10: =B10 -> Return water | I10: =D9 -> 0
B11: Entering air (dry bulb) | D11: =D9 -> 0 | E11: =B11 -> Entering air (dry bulb) | I11: =D9 -> 0
C13: =CONCATENATE(B8," ",C9,"/",C10,"/",C11) -> Heating: // | E13: =CONCATENATE(G8," ",H9,"/",H10,"/",H11) -> Cooling: // | G13: Water volume | H13: Electrical consumption [W] | I13: Sound pressure level [dB(A)]**** | J13: Sound power [dB(A)]****
C14: Heating capacity | D14: Water flow | E14: Cooling capacity | F14: =D14 -> Water flow
A15: Fans off (indicative value)
A16: EN16430 | B16: Fan speed
B17: Fan speed selection 2
B18: Fan speed selection 3
B19: Fan voltage [V]
A20: * | B20: Cooling power is calcullated according EN16430 with fans blowing up for all heights.
A21: ** | B21: When the water volume is given in gallons, the units are specifically imperial gallons.
A22: *** | B22: Soundpower according to ISO 3741:2010, sound pressure level with assumed room damping of 8 dB(A).

Sheet FR (hidden)
B1: Selectiontool Strada Hybrid
B3: Longeur | D3: mm | E3: Formulaire | F3: Appareil statique | G3: hum. rel. | H3: Unité | I3: Copier toutes des données
B4: Hauteur | D4: =D3 -> mm | E4: Version | F4: Appareil Hybrid | G4: Système unitaire | H4: DBH set | I4: Unités-SI
B5: Type | E5: Températures | F5: DBH rail type | G5: Appareil | I5: Unités-Impériales
B6: Profondeur | D6: =D3 -> mm | E6: L’émission sans ventilateurs est négligeable | F6: Perte de charge
B8: Chauffer: | G8: Refroidir:
B9: Entrée de l'eau | E9: =B9 -> Entrée de l'eau | I9: =D9 -> 0
B10: Retour de l'eau | D10: =D9 -> 0 | E10: =B10 -> Retour de l'eau | I10: =D9 -> 0
B11: Ambiante (bulbe sec) | D11: =D9 -> 0 | E11: =B11 -> Ambiante (bulbe sec) | I11: =D9 -> 0
C13: =CONCATENATE(B8," ",C9,"/",C10,"/",C11) -> Chauffer: // | E13: =CONCATENATE(G8," ",H9,"/",H10,"/",H11) -> Refroidir: // | G13: Volume d'eau | H13: Puissance absorbée elec. [W] | I13: Pression sonore [dB(A)]**** | J13: Puissance sonore [dB(A)]****
C14: Puissance de chauffer | D14: Débit d'eau | E14: Puissance de refroidir | F14: =D14 -> Débit d'eau
A15: Ventilateur éteint (indicative)
A16: EN16430 | B16: Vitesse ventilateur
B17: Vitesse du ventilateur 2
B18: Vitesse du ventilateur 3
B19: Tension ventilateur [V]
A20: * | B20: La puissance de refroidissement est calculée selon EN 16430 avec des ventilateurs qui soufflent pour toutes les hauteurs.
A21: ** | B21: Lorsque le volume d'eau est donné en gallons, ce sont des gallons impérial.
A22: *** | B22: Puissance acoustique selon ISO 3741: 2010, niveau de pression acoustique avec un amortissement de la pièce supposé de 8 dB(A).

Sheet DE (hidden)
B1: Selectiontool Strada Hybrid
B3: Länge | D3: mm | E3: Eingabefelder | F3: Statisches Gerät | G3: rel. Luftf. | H3: Unit | I3: Kopieren Sie alle daten
B4: Höhe | D4: =D3 -> mm | E4: Ausführung | F4: Hybrid Gerät | G4: Einheiten | H4: DBH set | I4: SI-einheiten
B5: Typ | E5: Temperaturen | F5: DBH rail typ | G5: Gerät | I5: Imperiale-einheiten
B6: Tiefe | D6: =D3 -> mm | E6: Die Ausgabe ohne Lüfter ist vernachlässigbar. | F6: zug. wassers. Druckverlust
B8: Heizen: | G8: Kühlen:
B9: Vorlauf wasser | E9: =B9 -> Vorlauf wasser | I9: =D9 -> 0
B10: Rücklauf wasser | D10: =D9 -> 0 | E10: =B10 -> Rücklauf wasser | I10: =D9 -> 0
B11: Raum (trocken) | D11: =D9 -> 0 | E11: =B11 -> Raum (trocken) | I11: =D9 -> 0
C13: =CONCATENATE(B8," ",C9,"/",C10,"/",C11) -> Heizen: // | E13: =CONCATENATE(G8," ",H9,"/",H10,"/",H11) -> Kühlen: // | G13: Wasservolumen | H13: Elektr. Leistung [W] | I13: Schalldruckpegel [dB(A)]**** | J13: Schallleistungspegel [dB(A)]****
C14: Heizleistung | D14: Heizmittelstrom | E14: Kühlleistung | F14: Kühlmittelstrom
A15: Lüfter aus (richtwert)
A16: EN16430 | B16: Auslegungsstufe
B17: Auslegungsstufe 2
B18: Auslegungsstufe 3
B19: Lufterspannung [V]
A20: * | B20: Die Kühlleistung wird nach EN 16430 berechnet, wobei die Lüfter für alle Höhen hochgehen.
A21: ** | B21: Wenn das Wasservolumen in Gallonen angegeben ist, sind dies imperiale Gallonen.
A22: *** | B22: Schallleistung nach ISO 3741: 2010, Schalldruckpegel bei angenommener Raumdämpfung von 8 dB(A).

Sheet NR (hidden)
B1: Selectiontool Strada Hybrid
B3: Lengde | D3: mm | E3: Inngangsskjema | F3: Statisk modell | G3: rel. fuktighet | H3: Unit | I3: Kopier alle data
B4: Høyde | D4: =D3 -> mm | E4: Versjon | F4: Hybrid modell | G4: Enhetssystem | H4: DBH set | I4: SI-enheter
B5: Type | E5: Temperaturer | F5: DBH rail type | G5: Modell | I5: Imperiale-enheter
B6: Bredde | D6: =D3 -> mm | E6: Utgang uten vifter er neglisjerbar. | F6: Trykktap
B8: Varme: | G8: Kjøling:
B9: Tur vann | E9: =B9 -> Tur vann | I9: =D9 -> 0
B10: Retur vann | D10: 0 | E10: =B10 -> Retur vann | I10: =D9 -> 0
B11: Rom (tørr pære) | D11: 0 | E11: =B11 -> Rom (tørr pære) | I11: =D9 -> 0
C13: =CONCATENATE(B8," ",C9,"/",C10,"/",C11) -> Varme: // | E13: =CONCATENATE(G8," ",H9,"/",H10,"/",H11) -> Kjøling: // | G13: Vannvolum | H13: Elektrisk effekt [W] | I13: Lydtrykk [dB(A)]**** | J13: Lydeffekt [dB(A)]****
C14: Varme effekt | D14: Vannmengde | E14: Kjøle effekt | F14: =D14 -> Vannmengde
A15: Lüfter aus (richtwert)
A16: EN16430 | B16: Styresignal
B17: Auslegungsstufe 2
B18: Auslegungsstufe 3
B19: Viftespenning [V]
A20: * | B20: Kjølekapasitet beregnes i henhold til EN16430 med viftene som blåser oppover for alle typer.
A21: ** | B21: Når vannvolumet er gitt i gallon, er dette imperial gallons.
A22: *** | B22: Lydeffekt i henhold til ISO 3741: 2010. For lydtrykknivået er det en antatt romdemping på 8 dB (A).

Sheet SP (hidden)
B1: Selectiontool Strada Hybrid
B3: Longitud | D3: mm | E3: Formulary | F3: Dispositivo estático | G3: Hum. Relativa | H3: Unit | I3: Copiar todos los datos
B4: Altura | D4: =D3 -> mm | E4: Versión | F4: Dispositivo Hybrid | G4: Convers. de unidades | H4: DBH set | I4: Unidades-SI
B5: Tipo | E5: Temperaturas | F5: tipo de riel DBH | G5: Despositivo | I5: Unidades-Imperial
B6: Profund. | D6: =D3 -> mm | E6: La salida sin ventiladores es insignificante. | F6: Pérdida de carga del agua
B8: Calefacción: | G8: Enfriamiento:
B9: Agua impulsión | E9: =B9 -> Agua impulsión | I9: =D9 -> 0
B10: Agua retorno | D10: =D9 -> 0 | E10: =B10 -> Agua retorno | I10: =D9 -> 0
B11: Ambiente (bulbo seco) | D11: =D9 -> 0 | E11: =B11 -> Ambiente (bulbo seco) | I11: =D9 -> 0
C13: =CONCATENATE(B8," ",C9,"/",C10,"/",C11) -> Calefacción: // | E13: =CONCATENATE(G8," ",H9,"/",H10,"/",H11) -> Enfriamiento: // | G13: Volumen de agua | H13: Potencia eléctrica absorbida [W] | I13: Presión sonora [dB(A)]**** | J13: Potencia sonora [dB(A)]****
C14: Emisión calefacción | D14: Caudal de agua, calefacción | E14: Emisión sensible Frío | F14: =D14 -> Caudal de agua, calefacción
A15: Fans off (indicative value)
A16: EN16430 | B16: Velocidad del ventilador
B17: Fan speed selection 2
B18: Fan speed selection 3
B19: Voltaje control [V]
A20: * | B20: La potencia de enfriamiento se calcula según la norma EN 16430 con ventiladores de todas las alturas.
A21: ** | B21: Cuando el volumen de agua se da en galones, las unidades son específicamente galones imperiales.
A22: *** | B22: Potencia sonora según ISO 3741: 2010, nivel de presión acústica con una amortiguación ambiental supuesta de 8 dB (A).

Sheet SW (hidden)
B1: Selectiontool Strada Hybrid
B3: Längd | D3: mm | E3: Inngangsskjema | F3: Statisk modell | G3: rel. Fuktighet | H3: Unit | I3: Kopiera all data
B4: Höjd | D4: =D3 -> mm | E4: Storlek | F4: Hybrid modell | G4: Enhetssystem | H4: DBH set | I4: SI-enheter
B5: Typ | E5: Temperaturer | F5: DBH rail typ | G5: Modell | I5: Imperiella-enheter
B6: Djup | D6: =D3 -> mm | E6: Utgång utan fläktar är försumbar. | F6: Tryckfall, vatten
B8: Värme: | G8: Kyla:
B9: Tillopp | E9: =B9 -> Tillopp | I9: =D9 -> 0
B10: Retur | D10: 0 | E10: =B10 -> Retur | I10: =D9 -> 0
B11: Rum (torr) | D11: 0 | E11: =B11 -> Rum (torr) | I11: =D9 -> 0
C13: =CONCATENATE(B8," ",C9,"/",C10,"/",C11) -> Värme: // | E13: =CONCATENATE(G8," ",H9,"/",H10,"/",H11) -> Kyla: // | G13: Vattenvolym | H13: Effektförbrukning [W] | I13: Ljudtryck [dB(A)]**** | J13: Ljudeffekt [dB(A)]****
C14: Effekt | D14: Vattenflöde | E14: Kyleffekt | F14: =D14 -> Vattenflöde
A15: Fans off (indicative value)
A16: EN16430 | B16: Fläkthastighet
B17: Fan speed selection 2
B18: Fan speed selection 3
B19: Spänning, Fläkt [V]
A20: * | B20: Kyleffekt är beräknad enligt EN16430 med fläktar blåsandes i riktning uppåt för alla höjder
A21: ** | B21: När vattenvolymen är given i gallon avser det Imperiella gallon.
A22: *** | B22: Ljudeffekt enligt ISO 3741:2010 ljudtryck med antagen ljudreduktion från rummet på 8 dB(A)

Sheet TS (hidden)
B1: Selectiontool Strada Hybrid
B3: Délka | D3: mm | E3: Formulary | F3: Statická jednotka | G3: Relativní vlhkost | H3: Jednotka | I3: Kopírovat všechna data
B4: Výška | D4: =D3 -> mm | E4: Verze | F4: Hybridní jednotka | G4: Převod jednotek | H4: DBH sada | I4: Mezinárodní (Sl)
B5: Typ | E5: Teploty | F5: DBH rail type | G5: Device | I5: Imperiální
B6: Hloubka | D6: =D3 -> mm | E6: Výstup bez ventilátorů je zanedbatelný. | F6: Tlaková ztráta
B8: Topení: | G8: Chlazení:
B9: Voda na přívodu | E9: =B9 -> Voda na přívodu | I9: =D9 -> 0
B10: Voda na zpátečce | D10: =D9 -> 0 | E10: =B10 -> Voda na zpátečce | I10: =D9 -> 0
B11: "Suchá" teplota vzduchu | D11: =D9 -> 0 | E11: =B11 -> "Suchá" teplota vzduchu | I11: =D9 -> 0
C13: =CONCATENATE(B8," ",C9,"/",C10,"/",C11) -> Topení: // | E13: =CONCATENATE(G8," ",H9,"/",H10,"/",H11) -> Chlazení: // | G13: Objem vody | H13: Elektrický výkon [W] | I13: Akustický tlak [dB(A)]**** | J13: Akustický výkon [dB(A)]****
C14: Výkon Topení | D14: Průtok vody | E14: Výkon Chlazení | F14: Průtok vody
A15: Fans off (indicative value)
A16: EN16430 | B16: Rychlost otáček ventilátoru
B17: Fan speed selection 2
B18: Fan speed selection 3
B19: Napětí ventilárotu [V]
A20: * | B20: Chladicí výkon vypočítán podle EN 16430 s ventilátory, které u všech typů - výšek foukají nahoru.
A21: ** | B21: Když je objem vody uveden v galonech, jednotky jsou konkrétně imperiální galony.
A22: *** | B22: Akustický výkon podle ISO 3741: 2010, hladina akustického tlaku s předpokládaným útlumem místnosti o 8 dB (A).

Sheet ExtraTaal1 (hidden)
B1: Selectiontool Strada Hybrid
B3: Length | D3: mm | E3: Formulary | F3: Static device | G3: rel. humid. | H3: Unit | I3: Copy all data
B4: Heigth | D4: =D3 -> mm | E4: Version | F4: Hybrid device | G4: Unit conversion | H4: DBH set | I4: SI-units
B5: Type | E5: Temperatures | F5: DBH rail type | G5: Device | I5: Imperial-units
B6: Depth | D6: =D3 -> mm | E6: If the fans are switched off, the output is an indicative value. | F6: Water side pressure loss
B8: Heating: | G8: Cooling:
B9: Supply water | E9: =B9 -> Supply water | I9: =D9 -> 0
B10: Return water | D10: =D9 -> 0 | E10: =B10 -> Return water | I10: =D9 -> 0
B11: Entering air (dry bulb) | D11: =D9 -> 0 | E11: =B11 -> Entering air (dry bulb) | I11: =D9 -> 0
C13: =CONCATENATE(B8," ",C9,"/",C10,"/",C11) -> Heating: // | E13: =CONCATENATE(G8," ",H9,"/",H10,"/",H11) -> Cooling: // | G13: Water volume | H13: Electrical consumption [W] | I13: Sound pressure level [dB(A)]**** | J13: Sound power [dB(A)]****
C14: Heating capacity | D14: Water flow | E14: Cooling capacity | F14: =D14 -> Water flow
A15: Fans off (indicative value)
A16: EN16430 | B16: Fan speed
B17: Fan speed selection 2
B18: Fan speed selection 3
B19: Fan voltage [V]
A20: * | B20: Cooling power is calcullated according EN16430 with fans blowing up for all heights.
A21: ** | B21: When the water volume is given in gallons, the units are specifically imperial gallons.
A22: *** | B22: Soundpower according to ISO 3741:2010, sound pressure level with assumed room damping of 8 dB(A).

Sheet ExtraTaal2 (hidden)
B1: Selectiontool Strada Hybrid
B3: Length | D3: mm | E3: Formulary | F3: Static device | G3: rel. humid. | H3: Unit | I3: Copy all data
B4: Heigth | D4: =D3 -> mm | E4: Version | F4: Hybrid device | G4: Unit conversion | H4: DBH set | I4: SI-units
B5: Type | E5: Temperatures | F5: DBH rail type | G5: Device | I5: Imperial-units
B6: Depth | D6: =D3 -> mm | E6: If the fans are switched off, the output is an indicative value. | F6: Water side pressure loss
B8: Heating: | G8: Cooling:
B9: Supply water | E9: =B9 -> Supply water | I9: =D9 -> 0
B10: Return water | D10: =D9 -> 0 | E10: =B10 -> Return water | I10: =D9 -> 0
B11: Entering air (dry bulb) | D11: =D9 -> 0 | E11: =B11 -> Entering air (dry bulb) | I11: =D9 -> 0
C13: =CONCATENATE(B8," ",C9,"/",C10,"/",C11) -> Heating: // | E13: =CONCATENATE(G8," ",H9,"/",H10,"/",H11) -> Cooling: // | G13: Water volume | H13: Electrical consumption [W] | I13: Sound pressure level [dB(A)]**** | J13: Sound power [dB(A)]****
C14: Heating capacity | D14: Water flow | E14: Cooling capacity | F14: =D14 -> Water flow
A15: Fans off (indicative value)
A16: EN16430 | B16: Fan speed
B17: Fan speed selection 2
B18: Fan speed selection 3
B19: Fan voltage [V]
A20: * | B20: Cooling power is calcullated according EN16430 with fans blowing up for all heights.
A21: ** | B21: When the water volume is given in gallons, the units are specifically imperial gallons.
A22: *** | B22: Soundpower according to ISO 3741:2010, sound pressure level with assumed room damping of 8 dB(A).

Sheet ExtraTaal3 (hidden)
B1: Selectiontool Strada Hybrid
B3: Length | D3: mm | E3: Formulary | F3: Static device | G3: rel. humid. | H3: Unit | I3: Copy all data
B4: Heigth | D4: =D3 -> mm | E4: Version | F4: Hybrid device | G4: Unit conversion | H4: DBH set | I4: SI-units
B5: Type | E5: Temperatures | F5: DBH rail type | G5: Device | I5: Imperial-units
B6: Depth | D6: =D3 -> mm | E6: If the fans are switched off, the output is an indicative value. | F6: Water side pressure loss
B8: Heating: | G8: Cooling:
B9: Supply water | E9: =B9 -> Supply water | I9: =D9 -> 0
B10: Return water | D10: =D9 -> 0 | E10: =B10 -> Return water | I10: =D9 -> 0
B11: Entering air (dry bulb) | D11: =D9 -> 0 | E11: =B11 -> Entering air (dry bulb) | I11: =D9 -> 0
C13: =CONCATENATE(B8," ",C9,"/",C10,"/",C11) -> Heating: // | E13: =CONCATENATE(G8," ",H9,"/",H10,"/",H11) -> Cooling: // | G13: Water volume | H13: Electrical consumption [W] | I13: Sound pressure level [dB(A)]**** | J13: Sound power [dB(A)]****
C14: Heating capacity | D14: Water flow | E14: Cooling capacity | F14: =D14 -> Water flow
A15: Fans off (indicative value)
A16: EN16430 | B16: Fan speed
B17: Fan speed selection 2
B18: Fan speed selection 3
B19: Fan voltage [V]
A20: * | B20: Cooling power is calcullated according EN16430 with fans blowing up for all heights.
A21: ** | B21: When the water volume is given in gallons, the units are specifically imperial gallons.
A22: *** | B22: Soundpower according to ISO 3741:2010, sound pressure level with assumed room damping of 8 dB(A).
